Workbook

Sheet Input impactbeoordeing
A1: Vul de oranje en groene cellen in | AA1: Ingavelijst | AD1: Keuzelijst eenheid
A3: Huidig geloosde volume afvalwater | D3: m³/dag | AA3: selecteer eenheid | AD3: ng/L
A4: Aantal lozingsdagen | D4: dagen/jaar | AA4: m³/uur | AD4: µg/L
A5: Aantal uren lozing per dag | D5: uur/dag | AA5: m³/dag | AD5: mg/L
AA6: m³/jaar | AD6: g/L | AQ6: Na update stappenplan impactbeoordeling is deze berekening niet langer relevant. Dit wordt dan ook niet langer weergegeven op dit dashboard.
A7: Lozing | C7: =IFERROR(C8/C5,"") ->  | D7: m³/uur | AD7: mg O2/L
C8: =IFERROR(C9/C4,"") ->  | D8: m³/dag | AD8: µS/cm
C9: =IF(D3=$AA$4,$C$3*$C$4*$C$5,IF(D3=$AA$5,$C$3*$C$4,IF(D3=AA6,$C$3,""))) -> 0 | D9: m³/jaar
A11: Waterloop Code
A12: Waterloop naam | C12: =IFERROR(VLOOKUP(C11,'Info per OWL'!$A:$B,2,FALSE),"") -> 
A13: Q gem pegase waterloop | D13: m³/s
C14: =C13*60*60*24*365 -> 0 | D14: m³/jaar
A17: Probleemparameters impactbeoordeling | BB17: Hoeveel % mag bedrijf innemen van overige ruimte | BC17: 1
B18: Parameternaam | C18: Afkorting | D18: Max. procentuele bijdrage parameter (%) | E18: Duidelijke verslechtering klasse | F18: Eenheid | G18: MKN - JG* | H18: Concentratie lozing | I18: Stroomopwaartse concentratie - Jaargemiddelde | J18: Gewenste effluentconcentratie impactbeoordeling afvalwater | K18: Waterrelevante stof Vlaanderen | L18: Stofcategorie | AA18: Uniformisatie eenheden | AC18: Geloosde vuilvracht | AD18: Toegestane vuilvracht | AE18: Vereiste vuilvrachtreductie | AF18: MKN omrekening naar µg/L voor bezwaarlijkheid | AG18: Waterbezwaarlijkheid | AR18: Meetonzekerheid opzoeken | AS18: Toetswaarden opzoeken | AW18: Reductiedoelberekening
AA19: Uniforme eenheid | AB19: Factor omrekening eenheden | AC19: kg/jaar | AD19: kg/jaar | AE19: kg/jaar | AF19: µg/L | AG19: 1/MKN | AQ19: MKN opzoeken | AR19: Meetonzekerheid | AS19: MKN | AT19: TW G-M | AU19: TW M-O | AV19: Doel waterlichaam | AX19: =AA19 -> Uniforme eenheid | AY19: Factor | AZ19: VV max (kg/jaar) | BA19: VV oppervlaktewater (kg/jaar) | BB19: VV Lozing ruimte (kg/jaar) | BC19: Individeel bedrijf: max xx% inname overige ruimte (kg/jaar) | BD19: Concentratie (mg/L) | BE19: Terugrekening eenheid | BF19: Finale beslissing
A20: 1 | C20: =IFERROR(VLOOKUP(B20,'Keuzelijst parameters'!C:E,3,FALSE),"") ->  | F20: =IFERROR(VLOOKUP(B20,'Keuzelijst parameters'!C:F,4,FALSE),"") ->  | G20: =AS20 ->  | K20: =IFERROR(VLOOKUP(C20,'Keuzelijst parameters'!E:I,4,FALSE),"") ->  | L20: =IF(ISBLANK(D20)=TRUE,"",'Dashboard beslissing'!M5) ->  | M20: =IF(ISBLANK(D20)=TRUE,"",IF(L20=3,"Geen verdere beoordeling nodig voor deze parameter","")) ->  | AA20: =IFERROR(VLOOKUP(B20,'Keuzelijst parameters'!C:G,5,FALSE),"") ->  | AB20: =IF(AA20="mg/L",1,IF(AA20="µg/L",1000,IF(AA20="ng/L",1000*1000,IF(AA20="µS/cm",1000,"")))) ->  | AC20: =IFERROR(H20/AB20*$C$9/1000,"") ->  | AD20: =IFERROR(J20/AB20*$C$9/1000,"") ->  | AE20: =IFERROR(AC20-AD20,"") ->  | AF20: =IFERROR(IF(AA20="mg/L",G20*1000,IF(AA20="µg/L",G20,IF(AA20="ng/L",G20/1000,""))),"") ->  | AG20: =IFERROR(1/AF20,"") ->  | AQ20: =IFERROR(IF(VLOOKUP(C20,'Keuzelijst parameters'!$B:$M,11,FALSE)="ja",VLOOKUP(_xlfn.CONCAT($C$11,C20),'Toetswaarden spec wl'!$F:$N,6,FALSE),VLOOKUP(C20,'Keuzelijst parameters'!$B:$M,12,FALSE)),"") ->  | AR20: =VLOOKUP(B20,'Keuzelijst parameters'!$W:$Z,3,FALSE) ->  | AS20: =IFERROR(IF(VLOOKUP(C20,'Keuzelijst parameters'!$B:$M,11,FALSE)="ja",VLOOKUP(_xlfn.CONCAT($C$11,C20),'Toetswaarden spec wl'!$F:$N,4,FALSE),VLOOKUP(C20,'Keuzelijst parameters'!$B:$M,12,FALSE)),"") ->  | AT20: =IFERROR(IF(VLOOKUP(C20,'Keuzelijst parameters'!$B:$M,11,FALSE)="ja",VLOOKUP(_xlfn.CONCAT($C$11,C20),'Toetswaarden spec wl'!$F:$N,8,FALSE),AS20),"") ->  | AU20: =IFERROR(IF(VLOOKUP(C20,'Keuzelijst parameters'!$B:$M,11,FALSE)="ja",VLOOKUP(_xlfn.CONCAT($C$11,C20),'Toetswaarden spec wl'!$F:$N,9,FALSE),VLOOKUP(C20,'Keuzelijst parameters'!$B:$P,15,FALSE)),"") -> 0 | AV20: =AS20 ->  | AW20: =B20 -> 0 | AX20: =AA20 ->  | AY20: =IF(AX20="mg/L",1,IF(AX20="µg/L",1000,IF(AX20="ng/L",1000*1000,IF(AX20="µS/cm",1000,"")))) ->  | AZ20: =(AV20/AY20*($C$14+$C$9))/1000 ->  | BA20: =(I20/AY20*$C$14)/1000 ->  | BB20: =AZ20-BA20 ->  | BC20: =IF(BB20<=0,0,BB20*$BC$17) ->  | BD20: =BC20/$C$9*1000 ->  | BE20: =BD20*AY20 ->  | BF20: =IF(I20="","",IF(I20<AV20,BE20,AV20)) -> 
A21: 2 | C21: =IFERROR(VLOOKUP(B21,'Keuzelijst parameters'!C:E,3,FALSE),"") ->  | F21: =IFERROR(VLOOKUP(B21,'Keuzelijst parameters'!C:F,4,FALSE),"") ->  | K21: =IFERROR(VLOOKUP(C21,'Keuzelijst parameters'!E:I,4,FALSE),"") ->  | L21: =IF(ISBLANK(D21)=TRUE,"",'Dashboard beslissing'!M6) ->  | M21: =IF(ISBLANK(D21)=TRUE,"",IF(L21=3,"Geen verdere beoordeling nodig voor deze parameter","")) ->  | AA21: =IFERROR(VLOOKUP(B21,'Keuzelijst parameters'!C:G,5,FALSE),"") ->  | AB21: =IF(AA21="mg/L",1,IF(AA21="µg/L",1000,IF(AA21="ng/L",1000*1000,IF(AA21="µS/cm",1000,"")))) ->  | AE21: =IFERROR(AC21-AD21,"") ->  | AG21: =IFERROR(1/AF21,"") ->  | AQ21: =IFERROR(IF(VLOOKUP(C21,'Keuzelijst parameters'!$B:$M,11,FALSE)="ja",VLOOKUP(_xlfn.CONCAT($C$11,C21),'Toetswaarden spec wl'!$F:$N,6,FALSE),VLOOKUP(C21,'Keuzelijst parameters'!$B:$M,12,FALSE)),"") ->  | AR21: =VLOOKUP(B21,'Keuzelijst parameters'!$W:$Z,3,FALSE) ->  | AS21: =IFERROR(IF(VLOOKUP(C21,'Keuzelijst parameters'!$B:$M,11,FALSE)="ja",VLOOKUP(_xlfn.CONCAT($C$11,C21),'Toetswaarden spec wl'!$F:$N,4,FALSE),VLOOKUP(C21,'Keuzelijst parameters'!$B:$M,12,FALSE)),"") ->  | AT21: =IFERROR(IF(VLOOKUP(C21,'Keuzelijst parameters'!$B:$M,11,FALSE)="ja",VLOOKUP(_xlfn.CONCAT($C$11,C21),'Toetswaarden spec wl'!$F:$N,8,FALSE),AS21),"") ->  | AU21: =IFERROR(IF(VLOOKUP(C21,'Keuzelijst parameters'!$B:$M,11,FALSE)="ja",VLOOKUP(_xlfn.CONCAT($C$11,C21),'Toetswaarden spec wl'!$F:$N,9,FALSE),VLOOKUP(C21,'Keuzelijst parameters'!$B:$P,15,FALSE)),"") -> 0 | AV21: =AS21 ->  | AW21: 0 | AX21: =AA21 ->  | AY21: =IF(AX21="mg/L",1,IF(AX21="µg/L",1000,IF(AX21="ng/L",1000*1000,IF(AX21="µS/cm",1000,"")))) ->  | AZ21: =(AV21/AY21*($C$14+$C$9))/1000 ->  | BB21: =AZ21-BA21 ->  | BD21: =BC21/$C$9*1000 ->  | BE21: =BD21*AY21 -> 
A22: 3 | C22: =IFERROR(VLOOKUP(B22,'Keuzelijst parameters'!C:E,3,FALSE),"") ->  | F22: =IFERROR(VLOOKUP(B22,'Keuzelijst parameters'!C:F,4,FALSE),"") ->  | K22: =IFERROR(VLOOKUP(C22,'Keuzelijst parameters'!E:I,4,FALSE),"") ->  | L22: =IF(ISBLANK(D22)=TRUE,"",'Dashboard beslissing'!M7) ->  | AA22: =IFERROR(VLOOKUP(B22,'Keuzelijst parameters'!C:G,5,FALSE),"") ->  | AQ22: =IFERROR(IF(VLOOKUP(C22,'Keuzelijst parameters'!$B:$M,11,FALSE)="ja",VLOOKUP(_xlfn.CONCAT($C$11,C22),'Toetswaarden spec wl'!$F:$N,6,FALSE),VLOOKUP(C22,'Keuzelijst parameters'!$B:$M,12,FALSE)),"") ->  | AR22: =VLOOKUP(B22,'Keuzelijst parameters'!$W:$Z,3,FALSE) ->  | AS22: =IFERROR(IF(VLOOKUP(C22,'Keuzelijst parameters'!$B:$M,11,FALSE)="ja",VLOOKUP(_xlfn.CONCAT($C$11,C22),'Toetswaarden spec wl'!$F:$N,4,FALSE),VLOOKUP(C22,'Keuzelijst parameters'!$B:$M,12,FALSE)),"") ->  | AT22: =IFERROR(IF(VLOOKUP(C22,'Keuzelijst parameters'!$B:$M,11,FALSE)="ja",VLOOKUP(_xlfn.CONCAT($C$11,C22),'Toetswaarden spec wl'!$F:$N,8,FALSE),AS22),"") ->  | AU22: =IFERROR(IF(VLOOKUP(C22,'Keuzelijst parameters'!$B:$M,11,FALSE)="ja",VLOOKUP(_xlfn.CONCAT($C$11,C22),'Toetswaarden spec wl'!$F:$N,9,FALSE),VLOOKUP(C22,'Keuzelijst parameters'!$B:$P,15,FALSE)),"") -> 0 | AW22: 0
A23: 4 | C23: =IFERROR(VLOOKUP(B23,'Keuzelijst parameters'!C:E,3,FALSE),"") ->  | F23: =IFERROR(VLOOKUP(B23,'Keuzelijst parameters'!C:F,4,FALSE),"") ->  | K23: =IFERROR(VLOOKUP(C23,'Keuzelijst parameters'!E:I,4,FALSE),"") ->  | L23: =IF(ISBLANK(D23)=TRUE,"",'Dashboard beslissing'!M8) ->  | AA23: =IFERROR(VLOOKUP(B23,'Keuzelijst parameters'!C:G,5,FALSE),"") ->  | AQ23: =IFERROR(IF(VLOOKUP(C23,'Keuzelijst parameters'!$B:$M,11,FALSE)="ja",VLOOKUP(_xlfn.CONCAT($C$11,C23),'Toetswaarden spec wl'!$F:$N,6,FALSE),VLOOKUP(C23,'Keuzelijst parameters'!$B:$M,12,FALSE)),"") ->  | AR23: =VLOOKUP(B23,'Keuzelijst parameters'!$W:$Z,3,FALSE) ->  | AS23: =IFERROR(IF(VLOOKUP(C23,'Keuzelijst parameters'!$B:$M,11,FALSE)="ja",VLOOKUP(_xlfn.CONCAT($C$11,C23),'Toetswaarden spec wl'!$F:$N,4,FALSE),VLOOKUP(C23,'Keuzelijst parameters'!$B:$M,12,FALSE)),"") ->  | AT23: =IFERROR(IF(VLOOKUP(C23,'Keuzelijst parameters'!$B:$M,11,FALSE)="ja",VLOOKUP(_xlfn.CONCAT($C$11,C23),'Toetswaarden spec wl'!$F:$N,8,FALSE),AS23),"") ->  | AU23: =IFERROR(IF(VLOOKUP(C23,'Keuzelijst parameters'!$B:$M,11,FALSE)="ja",VLOOKUP(_xlfn.CONCAT($C$11,C23),'Toetswaarden spec wl'!$F:$N,9,FALSE),VLOOKUP(C23,'Keuzelijst parameters'!$B:$P,15,FALSE)),"") -> 0 | AW23: 0
A24: 5 | C24: =IFERROR(VLOOKUP(B24,'Keuzelijst parameters'!C:E,3,FALSE),"") ->  | F24: =IFERROR(VLOOKUP(B24,'Keuzelijst parameters'!C:F,4,FALSE),"") ->  | K24: =IFERROR(VLOOKUP(C24,'Keuzelijst parameters'!E:I,4,FALSE),"") ->  | L24: =IF(ISBLANK(D24)=TRUE,"",'Dashboard beslissing'!M9) ->  | AA24: =IFERROR(VLOOKUP(B24,'Keuzelijst parameters'!C:G,5,FALSE),"") ->  | AQ24: =IFERROR(IF(VLOOKUP(C24,'Keuzelijst parameters'!$B:$M,11,FALSE)="ja",VLOOKUP(_xlfn.CONCAT($C$11,C24),'Toetswaarden spec wl'!$F:$N,6,FALSE),VLOOKUP(C24,'Keuzelijst parameters'!$B:$M,12,FALSE)),"") ->  | AR24: =VLOOKUP(B24,'Keuzelijst parameters'!$W:$Z,3,FALSE) ->  | AS24: =IFERROR(IF(VLOOKUP(C24,'Keuzelijst parameters'!$B:$M,11,FALSE)="ja",VLOOKUP(_xlfn.CONCAT($C$11,C24),'Toetswaarden spec wl'!$F:$N,4,FALSE),VLOOKUP(C24,'Keuzelijst parameters'!$B:$M,12,FALSE)),"") ->  | AT24: =IFERROR(IF(VLOOKUP(C24,'Keuzelijst parameters'!$B:$M,11,FALSE)="ja",VLOOKUP(_xlfn.CONCAT($C$11,C24),'Toetswaarden spec wl'!$F:$N,8,FALSE),AS24),"") ->  | AU24: =IFERROR(IF(VLOOKUP(C24,'Keuzelijst parameters'!$B:$M,11,FALSE)="ja",VLOOKUP(_xlfn.CONCAT($C$11,C24),'Toetswaarden spec wl'!$F:$N,9,FALSE),VLOOKUP(C24,'Keuzelijst parameters'!$B:$P,15,FALSE)),"") -> 0 | AW24: 0
A25: 6 | C25: =IFERROR(VLOOKUP(B25,'Keuzelijst parameters'!C:E,3,FALSE),"") ->  | F25: =IFERROR(VLOOKUP(B25,'Keuzelijst parameters'!C:F,4,FALSE),"") ->  | K25: =IFERROR(VLOOKUP(C25,'Keuzelijst parameters'!E:I,4,FALSE),"") ->  | L25: =IF(ISBLANK(D25)=TRUE,"",'Dashboard beslissing'!M10) ->  | AA25: =IFERROR(VLOOKUP(B25,'Keuzelijst parameters'!C:G,5,FALSE),"") ->  | AQ25: =IFERROR(IF(VLOOKUP(C25,'Keuzelijst parameters'!$B:$M,11,FALSE)="ja",VLOOKUP(_xlfn.CONCAT($C$11,C25),'Toetswaarden spec wl'!$F:$N,6,FALSE),VLOOKUP(C25,'Keuzelijst parameters'!$B:$M,12,FALSE)),"") ->  | AR25: =VLOOKUP(B25,'Keuzelijst parameters'!$W:$Z,3,FALSE) ->  | AS25: =IFERROR(IF(VLOOKUP(C25,'Keuzelijst parameters'!$B:$M,11,FALSE)="ja",VLOOKUP(_xlfn.CONCAT($C$11,C25),'Toetswaarden spec wl'!$F:$N,4,FALSE),VLOOKUP(C25,'Keuzelijst parameters'!$B:$M,12,FALSE)),"") ->  | AT25: =IFERROR(IF(VLOOKUP(C25,'Keuzelijst parameters'!$B:$M,11,FALSE)="ja",VLOOKUP(_xlfn.CONCAT($C$11,C25),'Toetswaarden spec wl'!$F:$N,8,FALSE),AS25),"") ->  | AU25: =IFERROR(IF(VLOOKUP(C25,'Keuzelijst parameters'!$B:$M,11,FALSE)="ja",VLOOKUP(_xlfn.CONCAT($C$11,C25),'Toetswaarden spec wl'!$F:$N,9,FALSE),VLOOKUP(C25,'Keuzelijst parameters'!$B:$P,15,FALSE)),"") -> 0 | AW25: 0
A26: 7 | C26: =IFERROR(VLOOKUP(B26,'Keuzelijst parameters'!C:E,3,FALSE),"") ->  | F26: =IFERROR(VLOOKUP(B26,'Keuzelijst parameters'!C:F,4,FALSE),"") ->  | K26: =IFERROR(VLOOKUP(C26,'Keuzelijst parameters'!E:I,4,FALSE),"") ->  | L26: =IF(ISBLANK(D26)=TRUE,"",'Dashboard beslissing'!M11) ->  | AA26: =IFERROR(VLOOKUP(B26,'Keuzelijst parameters'!C:G,5,FALSE),"") ->  | AQ26: =IFERROR(IF(VLOOKUP(C26,'Keuzelijst parameters'!$B:$M,11,FALSE)="ja",VLOOKUP(_xlfn.CONCAT($C$11,C26),'Toetswaarden spec wl'!$F:$N,6,FALSE),VLOOKUP(C26,'Keuzelijst parameters'!$B:$M,12,FALSE)),"") ->  | AR26: =VLOOKUP(B26,'Keuzelijst parameters'!$W:$Z,3,FALSE) ->  | AS26: =IFERROR(IF(VLOOKUP(C26,'Keuzelijst parameters'!$B:$M,11,FALSE)="ja",VLOOKUP(_xlfn.CONCAT($C$11,C26),'Toetswaarden spec wl'!$F:$N,4,FALSE),VLOOKUP(C26,'Keuzelijst parameters'!$B:$M,12,FALSE)),"") ->  | AT26: =IFERROR(IF(VLOOKUP(C26,'Keuzelijst parameters'!$B:$M,11,FALSE)="ja",VLOOKUP(_xlfn.CONCAT($C$11,C26),'Toetswaarden spec wl'!$F:$N,8,FALSE),AS26),"") ->  | AU26: =IFERROR(IF(VLOOKUP(C26,'Keuzelijst parameters'!$B:$M,11,FALSE)="ja",VLOOKUP(_xlfn.CONCAT($C$11,C26),'Toetswaarden spec wl'!$F:$N,9,FALSE),VLOOKUP(C26,'Keuzelijst parameters'!$B:$P,15,FALSE)),"") -> 0 | AW26: 0
A30: Huidige index der consumptieprijzen met als basisjaar 2013 (2013=100)
A31: 134.44 | B31: Huidige consumptieprijsindex raadplegen
A35: Niet-genormeerde parameters
A36: Volgnummer | B36: Naam stof | C36: Toetswaarde | D36: Eenheid
A37: E1
A38: E2
A39: E3
A40: E4
A41: E5
A42: E6
A43: E7

Sheet Input bijkomende maatregelen
B1: Vul groene velden in
B3: 1. Bijkomende maatregelen: Informatie
B5: Deze maatregel is een: | F5: =VLOOKUP(D5,O19:P24,2,FALSE) -> 
B6: Type Technologie
B8: =IF(F5=4,"Jaarlijks volume water waar maatregel een effect op heeft","Behandeld volume door bijkomende maatregel") ->  | E8: m³/j
D9: =IF(ISBLANK(D8)=TRUE,"",IF(D8='Input huidige maatreg. (fac.)'!D10,"Volledige behandeling stroom",IF(D8<'Input huidige maatreg. (fac.)'!D10,"Deelstroombehandeling","Fout - check behandelingsdebiet"))) -> 
B11: Heeft deze maatregel ook een effect op het volume (vb. indamping of membraantechniek)?
B12: Geloosd volume na maatregel | E12: m³/j
B14: Geloosd totaal volume - lozingspunt
D15: =IF(D11="ja",'Input impactbeoordeing'!$C$9-(D8-D12),'Input impactbeoordeing'!$C$9) -> 0 | E15: m³/j
B18: Omschrijving maatregel | O18: Lijstje | P18: Code | R18: Lijst | S18: Code | U18: Lijst
O19: Afwalwaterbehandeling op deelstroomniveau | P19: 1 | R19: Membraan technieken + afvoer | S19: 1 | U19: ja | V19: 1
O20: Afwalwaterbehandeling op de volledige waterstroom | P20: 1 | R20: Membraan technieken | S20: 3 | U20: nee | V20: 0
B21: 2. Bijkomende maatreglen: Vuilvrachtreductie | O21: Bronmaatregel | P21: 4 | R21: Indamping + afvoer | S21: 1
O22: Procesgeïntegreerde maatregel | P22: 4 | R22: Indamping | S22: 2
R23: Adsorptie technieken | S23: 3
R24: Oxidatieve technieken | S24: 3
B25: Probleemparameter(s) | D25: =IF($F$5=1,"Influentconcentratie bijkomende techniek","Vermeden emissies (kg/jaar)") ->  | E25: =IF($F$5=1,"Concentratie lozing na bijkomende techniek - gemiddeld","") ->  | F25: Berekende effluentconcentratie ter hoogte van lozingspunt | G25: ='Input impactbeoordeing'!J18 -> Gewenste effluentconcentratie impactbeoordeling afvalwater | H25: Eenheid | I25: Verwijderde vuilvracht | J25: Resterende vuilvracht geloosd | K25: Inkomend volume bijkomende techniek (m³/jaar) | L25: Geloosd volume na bijkomende techniek (m³/jaar) | R25: fysico-chemische behandeling | S25: 3 | AB25: Probleemparameter(s) | AC25: Eenheid uniform | AE25: Influentconcentratie bijkomende techniek - UNIF mg/L | AF25: Effluentconcentratie na implementatie bijkomende techniek - gemiddeld | AG25: Ingaande vuilvracht | AH25: Uitgaande vuilvracht | AI25: Verijderde vuilvracht | AJ25: Totale vuilvracht voor maatregel | AK25: Totale resterende vuilvracht | AL25: Totaal volume | AM25: C lozingspunt | AN25: C lozingspunt terugrekening basiseenheid | AP25: Probleemparameter(s) | AQ25: Eenheid uniform | AS25: Verijderde vuilvracht | AT25: Totale vuilvracht voor maatregel | AU25: Totale resterende vuilvracht | AV25: Totaal volume | AW25: C lozingspunt | AX25: C lozingspunt terugrekening basiseenheid
B26: Nr | C26: Naam | I26: kg/jaar | J26: kg/jaar | R26: Andere technieken of combinaties | S26: 4 | AD26: UNIF factor | AE26: mg/L | AF26: mg/L | AG26: kg/jaar | AH26: kg/jaar | AI26: kg/jaar | AJ26: kg/jaar | AK26: kg/jaar | AL26: m³/jaar | AM26: mg/L | AR26: UNIF factor | AS26: kg/jaar | AT26: kg/jaar | AU26: kg/jaar | AV26: m³/jaar | AW26: mg/L
B27: 1 | C27: =IF(ISBLANK('Input impactbeoordeing'!B20)=TRUE,"",'Input impactbeoordeing'!B20) ->  | F27: =IF(ISBLANK('Input impactbeoordeing'!B20)=TRUE,"",IF($F$5=1,AN27,AX27)) ->  | G27: =IF(ISBLANK('Input impactbeoordeing'!B20)=TRUE,"",'Input impactbeoordeing'!J20) ->  | H27: =IF(ISBLANK('Input impactbeoordeing'!B20)=TRUE,"",'Input impactbeoordeing'!F20) ->  | I27: =IF(ISBLANK('Input impactbeoordeing'!B20)=TRUE,"",IF($F$5=1,AI27,AS27)) ->  | J27: =IF(ISBLANK('Input impactbeoordeing'!B20)=TRUE,"",IF($F$5=1,AK27,AU27)) ->  | K27: =IF(ISBLANK('Input impactbeoordeing'!B20)=TRUE,"",$D$8) ->  | L27: =IF(ISBLANK('Input impactbeoordeing'!B20)=TRUE,"",IF($D$11="ja",$D$12,$D$8)) ->  | AA27: 1 | AB27: =IF(ISBLANK('Input impactbeoordeing'!B20)=TRUE,"",'Input impactbeoordeing'!B20) ->  | AC27: =IF(ISBLANK('Input impactbeoordeing'!B20)=TRUE,"",'Input impactbeoordeing'!AA20) ->  | AD27: =IF($AC27="mg/L",1,IF($AC27="µg/L",1000,IF($AC27="ng/L",1000*1000,IF($AC27="µS/cm",1000,"")))) ->  | AE27: =IF($F$5=1,D27/AD27,"") ->  | AF27: =IF($F$5=1,E27/AD27,"") ->  | AG27: =AE27*K27/1000 ->  | AI27: =AG27-AH27 ->  | AJ27: =IF(ISBLANK('Input impactbeoordeing'!B20)=TRUE,"",'Input impactbeoordeing'!AC20) ->  | AK27: =AJ27-AI27 ->  | AL27: =$D$15 -> 0 | AM27: =AK27/AL27*1000 ->  | AN27: =AM27*AD27 ->  | AO27: 1 | AP27: =IF(ISBLANK('Input impactbeoordeing'!B20)=TRUE,"",'Input impactbeoordeing'!B20) ->  | AQ27: =IF(ISBLANK('Input impactbeoordeing'!B20)=TRUE,"",'Input impactbeoordeing'!AA20) ->  | AR27: =IF($AC27="mg/L",1,IF($AC27="µg/L",1000,IF($AC27="ng/L",1000*1000,IF($AC27="µS/cm",1000,"")))) ->  | AS27: =D27 -> 0 | AT27: =IF(ISBLANK('Input impactbeoordeing'!B20)=TRUE,"",'Input impactbeoordeing'!AC20) ->  | AU27: =AT27-AS27 ->  | AV27: =$D$15 -> 0 | AW27: =AU27/AV27*1000 ->  | AX27: =AW27*AR27 -> 
B28: 2 | C28: =IF(ISBLANK('Input impactbeoordeing'!B21)=TRUE,"",'Input impactbeoordeing'!B21) ->  | F28: =IF(ISBLANK('Input impactbeoordeing'!B21)=TRUE,"",IF($F$5=1,AN28,AX28)) ->  | G28: =IF(ISBLANK('Input impactbeoordeing'!B21)=TRUE,"",'Input impactbeoordeing'!J21) ->  | H28: =IF(ISBLANK('Input impactbeoordeing'!B21)=TRUE,"",'Input impactbeoordeing'!F21) ->  | I28: =IF(ISBLANK('Input impactbeoordeing'!B21)=TRUE,"",IF($F$5=1,AI28,AS28)) ->  | J28: =IF(ISBLANK('Input impactbeoordeing'!B21)=TRUE,"",IF($F$5=1,AK28,AU28)) ->  | K28: =IF(ISBLANK('Input impactbeoordeing'!B21)=TRUE,"",$D$8) ->  | L28: =IF(ISBLANK('Input impactbeoordeing'!B21)=TRUE,"",IF($D$11="ja",$D$12,$D$8)) ->  | AA28: 2 | AB28: =IF(ISBLANK('Input impactbeoordeing'!B21)=TRUE,"",'Input impactbeoordeing'!B21) ->  | AC28: =IF(ISBLANK('Input impactbeoordeing'!B21)=TRUE,"",'Input impactbeoordeing'!AA21) ->  | AD28: =IF($AC28="mg/L",1,IF($AC28="µg/L",1000,IF($AC28="ng/L",1000*1000,IF($AC28="µS/cm",1000,"")))) ->  | AI28: =AG28-AH28 ->  | AJ28: =IF(ISBLANK('Input impactbeoordeing'!B21)=TRUE,"",'Input impactbeoordeing'!AC21) ->  | AK28: =AJ28-AI28 ->  | AL28: =$D$15 -> 0 | AM28: =AK28/AL28*1000 ->  | AN28: =AM28*AD28 ->  | AO28: 2 | AP28: =IF(ISBLANK('Input impactbeoordeing'!B21)=TRUE,"",'Input impactbeoordeing'!B21) ->  | AQ28: =IF(ISBLANK('Input impactbeoordeing'!B21)=TRUE,"",'Input impactbeoordeing'!AA21) ->  | AR28: =IF($AC28="mg/L",1,IF($AC28="µg/L",1000,IF($AC28="ng/L",1000*1000,IF($AC28="µS/cm",1000,"")))) ->  | AS28: 0 | AT28: =IF(ISBLANK('Input impactbeoordeing'!B21)=TRUE,"",'Input impactbeoordeing'!AC21) ->  | AU28: =AT28-AS28 ->  | AV28: =$D$15 -> 0 | AW28: =AU28/AV28*1000 ->  | AX28: =AW28*AR28 -> 
B29: 3 | C29: =IF(ISBLANK('Input impactbeoordeing'!B22)=TRUE,"",'Input impactbeoordeing'!B22) ->  | F29: =IF(ISBLANK('Input impactbeoordeing'!B22)=TRUE,"",IF($F$5=1,AN29,AX29)) ->  | G29: =IF(ISBLANK('Input impactbeoordeing'!B22)=TRUE,"",'Input impactbeoordeing'!J22) ->  | H29: =IF(ISBLANK('Input impactbeoordeing'!B22)=TRUE,"",'Input impactbeoordeing'!F22) ->  | I29: =IF(ISBLANK('Input impactbeoordeing'!B22)=TRUE,"",IF($F$5=1,AI29,AS29)) ->  | J29: =IF(ISBLANK('Input impactbeoordeing'!B22)=TRUE,"",IF($F$5=1,AK29,AU29)) ->  | K29: =IF(ISBLANK('Input impactbeoordeing'!B22)=TRUE,"",$D$8) ->  | L29: =IF(ISBLANK('Input impactbeoordeing'!B22)=TRUE,"",IF($D$11="ja",$D$12,$D$8)) ->  | AA29: 3 | AB29: =IF(ISBLANK('Input impactbeoordeing'!B22)=TRUE,"",'Input impactbeoordeing'!B22) ->  | AC29: =IF(ISBLANK('Input impactbeoordeing'!B22)=TRUE,"",'Input impactbeoordeing'!AA22) ->  | AJ29: =IF(ISBLANK('Input impactbeoordeing'!B22)=TRUE,"",'Input impactbeoordeing'!AC22) ->  | AL29: 0 | AO29: 3 | AP29: =IF(ISBLANK('Input impactbeoordeing'!B22)=TRUE,"",'Input impactbeoordeing'!B22) ->  | AQ29: =IF(ISBLANK('Input impactbeoordeing'!B22)=TRUE,"",'Input impactbeoordeing'!AA22) ->  | AS29: 0 | AT29: =IF(ISBLANK('Input impactbeoordeing'!B22)=TRUE,"",'Input impactbeoordeing'!AC22) ->  | AV29: 0
B30: 4 | C30: =IF(ISBLANK('Input impactbeoordeing'!B23)=TRUE,"",'Input impactbeoordeing'!B23) ->  | F30: =IF(ISBLANK('Input impactbeoordeing'!B23)=TRUE,"",IF($F$5=1,AN30,AX30)) ->  | G30: =IF(ISBLANK('Input impactbeoordeing'!B23)=TRUE,"",'Input impactbeoordeing'!J23) ->  | H30: =IF(ISBLANK('Input impactbeoordeing'!B23)=TRUE,"",'Input impactbeoordeing'!F23) ->  | I30: =IF(ISBLANK('Input impactbeoordeing'!B23)=TRUE,"",IF($F$5=1,AI30,AS30)) ->  | J30: =IF(ISBLANK('Input impactbeoordeing'!B23)=TRUE,"",IF($F$5=1,AK30,AU30)) ->  | K30: =IF(ISBLANK('Input impactbeoordeing'!B23)=TRUE,"",$D$8) ->  | L30: =IF(ISBLANK('Input impactbeoordeing'!B23)=TRUE,"",IF($D$11="ja",$D$12,$D$8)) ->  | AA30: 4 | AB30: =IF(ISBLANK('Input impactbeoordeing'!B23)=TRUE,"",'Input impactbeoordeing'!B23) ->  | AC30: =IF(ISBLANK('Input impactbeoordeing'!B23)=TRUE,"",'Input impactbeoordeing'!AA23) ->  | AJ30: =IF(ISBLANK('Input impactbeoordeing'!B23)=TRUE,"",'Input impactbeoordeing'!AC23) ->  | AL30: 0 | AO30: 4 | AP30: =IF(ISBLANK('Input impactbeoordeing'!B23)=TRUE,"",'Input impactbeoordeing'!B23) ->  | AQ30: =IF(ISBLANK('Input impactbeoordeing'!B23)=TRUE,"",'Input impactbeoordeing'!AA23) ->  | AS30: 0 | AT30: =IF(ISBLANK('Input impactbeoordeing'!B23)=TRUE,"",'Input impactbeoordeing'!AC23) ->  | AV30: 0
B31: 5 | C31: =IF(ISBLANK('Input impactbeoordeing'!B24)=TRUE,"",'Input impactbeoordeing'!B24) ->  | F31: =IF(ISBLANK('Input impactbeoordeing'!B24)=TRUE,"",IF($F$5=1,AN31,AX31)) ->  | G31: =IF(ISBLANK('Input impactbeoordeing'!B24)=TRUE,"",'Input impactbeoordeing'!J24) ->  | H31: =IF(ISBLANK('Input impactbeoordeing'!B24)=TRUE,"",'Input impactbeoordeing'!F24) ->  | I31: =IF(ISBLANK('Input impactbeoordeing'!B24)=TRUE,"",IF($F$5=1,AI31,AS31)) ->  | J31: =IF(ISBLANK('Input impactbeoordeing'!B24)=TRUE,"",IF($F$5=1,AK31,AU31)) ->  | K31: =IF(ISBLANK('Input impactbeoordeing'!B24)=TRUE,"",$D$8) ->  | L31: =IF(ISBLANK('Input impactbeoordeing'!B24)=TRUE,"",IF($D$11="ja",$D$12,$D$8)) ->  | AA31: 5 | AB31: =IF(ISBLANK('Input impactbeoordeing'!B24)=TRUE,"",'Input impactbeoordeing'!B24) ->  | AC31: =IF(ISBLANK('Input impactbeoordeing'!B24)=TRUE,"",'Input impactbeoordeing'!AA24) ->  | AJ31: =IF(ISBLANK('Input impactbeoordeing'!B24)=TRUE,"",'Input impactbeoordeing'!AC24) ->  | AL31: 0 | AO31: 5 | AP31: =IF(ISBLANK('Input impactbeoordeing'!B24)=TRUE,"",'Input impactbeoordeing'!B24) ->  | AQ31: =IF(ISBLANK('Input impactbeoordeing'!B24)=TRUE,"",'Input impactbeoordeing'!AA24) ->  | AS31: 0 | AT31: =IF(ISBLANK('Input impactbeoordeing'!B24)=TRUE,"",'Input impactbeoordeing'!AC24) ->  | AV31: 0
B32: 6 | C32: =IF(ISBLANK('Input impactbeoordeing'!B25)=TRUE,"",'Input impactbeoordeing'!B25) ->  | F32: =IF(ISBLANK('Input impactbeoordeing'!B25)=TRUE,"",IF($F$5=1,AN32,AX32)) ->  | G32: =IF(ISBLANK('Input impactbeoordeing'!B25)=TRUE,"",'Input impactbeoordeing'!J25) ->  | H32: =IF(ISBLANK('Input impactbeoordeing'!B25)=TRUE,"",'Input impactbeoordeing'!F25) ->  | I32: =IF(ISBLANK('Input impactbeoordeing'!B25)=TRUE,"",IF($F$5=1,AI32,AS32)) ->  | J32: =IF(ISBLANK('Input impactbeoordeing'!B25)=TRUE,"",IF($F$5=1,AK32,AU32)) ->  | K32: =IF(ISBLANK('Input impactbeoordeing'!B25)=TRUE,"",$D$8) ->  | L32: =IF(ISBLANK('Input impactbeoordeing'!B25)=TRUE,"",IF($D$11="ja",$D$12,$D$8)) ->  | AA32: 6 | AB32: =IF(ISBLANK('Input impactbeoordeing'!B25)=TRUE,"",'Input impactbeoordeing'!B25) ->  | AC32: =IF(ISBLANK('Input impactbeoordeing'!B25)=TRUE,"",'Input impactbeoordeing'!AA25) ->  | AJ32: =IF(ISBLANK('Input impactbeoordeing'!B25)=TRUE,"",'Input impactbeoordeing'!AC25) ->  | AL32: 0 | AO32: 6 | AP32: =IF(ISBLANK('Input impactbeoordeing'!B25)=TRUE,"",'Input impactbeoordeing'!B25) ->  | AQ32: =IF(ISBLANK('Input impactbeoordeing'!B25)=TRUE,"",'Input impactbeoordeing'!AA25) ->  | AS32: 0 | AT32: =IF(ISBLANK('Input impactbeoordeing'!B25)=TRUE,"",'Input impactbeoordeing'!AC25) ->  | AV32: 0
B33: 7 | C33: =IF(ISBLANK('Input impactbeoordeing'!B26)=TRUE,"",'Input impactbeoordeing'!B26) ->  | F33: =IF(ISBLANK('Input impactbeoordeing'!B26)=TRUE,"",IF($F$5=1,AN33,AX33)) ->  | G33: =IF(ISBLANK('Input impactbeoordeing'!B26)=TRUE,"",'Input impactbeoordeing'!J26) ->  | H33: =IF(ISBLANK('Input impactbeoordeing'!B26)=TRUE,"",'Input impactbeoordeing'!F26) ->  | I33: =IF(ISBLANK('Input impactbeoordeing'!B26)=TRUE,"",IF($F$5=1,AI33,AS33)) ->  | J33: =IF(ISBLANK('Input impactbeoordeing'!B26)=TRUE,"",IF($F$5=1,AK33,AU33)) ->  | K33: =IF(ISBLANK('Input impactbeoordeing'!B26)=TRUE,"",$D$8) ->  | L33: =IF(ISBLANK('Input impactbeoordeing'!B26)=TRUE,"",IF($D$11="ja",$D$12,$D$8)) ->  | AA33: 7 | AB33: =IF(ISBLANK('Input impactbeoordeing'!B26)=TRUE,"",'Input impactbeoordeing'!B26) ->  | AC33: =IF(ISBLANK('Input impactbeoordeing'!B26)=TRUE,"",'Input impactbeoordeing'!AA26) ->  | AJ33: =IF(ISBLANK('Input impactbeoordeing'!B26)=TRUE,"",'Input impactbeoordeing'!AC26) ->  | AL33: 0 | AO33: 7 | AP33: =IF(ISBLANK('Input impactbeoordeing'!B26)=TRUE,"",'Input impactbeoordeing'!B26) ->  | AQ33: =IF(ISBLANK('Input impactbeoordeing'!B26)=TRUE,"",'Input impactbeoordeing'!AA26) ->  | AS33: 0 | AT33: =IF(ISBLANK('Input impactbeoordeing'!B26)=TRUE,"",'Input impactbeoordeing'!AC26) ->  | AV33: 0
B38: 3. Bijkomende maatregelen: Financiële informatie
B40: Ik wens de eenvoudige kostenstructuur in te vullen | E40: ja
B42: CAPEX / Investeringskosten - eenvoudig | F42: OPEX / werkingskosten | I42: Baten
B44: Totale CAPEX | E44: EUR | F44: Totale OPEX | H44: EUR/jaar | I44: Totale baten | K44: EUR/jaar
B46: CAPEX / Investeringskosten - uitgebreid | F46: OPEX / werkingskosten | I46: Baten
B48: Directe constructie kosten | D48: =SUM(D49:D53) -> 0 | E48: EUR | F48: VARIABLE | G48: =SUM(G49:G54) -> 0 | H48: EUR/jaar | I48: verminderde heffing | K48: EUR/jaar
B49: Unit kostprijs waterzuivering | E49: EUR | F49: Energie | H49: EUR/jaar | I49: verminderde aankoop water | K49: EUR/jaar
B50: Elektriciteit & instrumentatie | E50: EUR | F50: Chemicaliën | H50: EUR/jaar | I50: verkoop reststoffen | K50: EUR/jaar
B51: Equipment & utilities | E51: EUR | F51: Verbruiksmateriaal (bv. membranen) | H51: EUR/jaar | I51: andere baten | K51: EUR/jaar
B52: Gebouw | E52: EUR | F52: Afvoer afval | H52: EUR/jaar | I52: andere baten 2 | K52: EUR/jaar
B53: Varia | E53: EUR | F53: Varia | H53: EUR/jaar
B54: Emissies tijdens bouw (CO2) | E54: EUR | F54: Emissies tijdens exploitatie (CO2 eq) | H54: EUR/jaar
B56: Indirecte kosten | D56: =SUM(D57:D60) -> 0 | E56: EUR | F56: FIXED | G56: =SUM(G57:G60) -> 0 | H56: EUR/jaar
B57: Engineering | E57: EUR | F57: Manuren | H57: EUR/jaar
B58: Project ontwikkeling (admin, vergunningen, legal, …) | E58: EUR | F58: Onderhoud | H58: EUR/jaar
B59: Financiering | E59: EUR | F59: Opvolging (data analyse, …) | H59: EUR/jaar
B60: Varia | E60: EUR | F60: Varia | H60: EUR/jaar
B62: onvoorzien | E62: EUR | F62: onvoorzien | H62: EUR/jaar
B64: Totale CAPEX | D64: =D62+D56+D48 -> 0 | E64: EUR | F64: Totale OPEX | G64: =G62+G56+G48 -> 0 | H64: EUR/jaar | I64: Totale baten | J64: =SUM(J48:J61) -> 0 | K64: EUR/jaar
B68: Totale CAPEX | D68: =IF(E40="ja",D44,D64) -> 0 | E68: EUR | F68: Totale OPEX | G68: =IF(E40="ja",G44,G64) -> 0 | H68: EUR/jaar | I68: Totale baten | J68: =IF(E40="ja",J44,J64) -> 0 | K68: EUR/jaar
B69: Afschrijvingsperiode | D69: 10 | E69: jaar
B70: Rente | D70: 0.04 | E70: %
B72: Jaarslijkse kapitaalkost (YCC) | D72: =-PMT(D70,D69,D68) -> 0 | E72: EUR/jaar | F72: OPEX (exclusief YCC en baten) | G72: =G68 -> 0 | H72: EUR/jaar | I72: Totale baten | J72: =J68 -> 0 | K72: EUR/jaar
D74: =IFERROR(D72/D8,0) -> 0 | E74: EUR/m³ | G74: =IFERROR(G72/D8,0) -> 0 | H74: EUR/m³
B77: Totale kost (=YCC+OPEX-baten) | D77: =D72+G72-J72 -> 0 | E77: EUR/jaar
D78: =IFERROR(D77/D8,0) -> 0 | E78: EUR/m³
B85: 4. Bijkomende maatregelen: Mogelijke cross-media effecten
B86: De voorgestelde maatregel geeft aanleiding tot volgende cross-media effecten
B88: A Emissies naar water - opconcentratie reeds aanwezige polluent | E88: nee
C90: Parameternaam | D90: Afkorting | E90: Eenheid | F90: MKN - JG/Toetswaarde | G90: Volume (m³/jaar) | H90: CSOW | I90: Ceffluent ter hoogte van lozingspunt | J90: CSAW (berekend) | K90: Abs Bijdrage onder realistische omstandigheden | L90: Proc. Bijdrage onder realistische omstandigheden | AB90: Probleemparameter(s) | AE90: CSOW | AF90: CSAW | AG90: TW | AH90: CSOW < TW | AI90: CSAW > TW | AJ90: Beoordeling | AN90: Expressie
AE91: µg/L | AF91: µg/L | AG91: µg/L
B92: 1 | C92: =IFERROR(IF(F27>'Input impactbeoordeing'!H20,'Input bijkomende maatregelen'!C27,""),"") ->  | D92: =IFERROR(VLOOKUP(C92,'Keuzelijst parameters'!C:E,3,FALSE),"") ->  | E92: =IFERROR(IF(F27>'Input impactbeoordeing'!H20,'Input impactbeoordeing'!F20,""),"") ->  | F92: =IFERROR(IF(F27>'Input impactbeoordeing'!H20,'Input impactbeoordeing'!G20,""),"") ->  | G92: =IFERROR(IF(F27>'Input impactbeoordeing'!H20,$D$15,""),"") ->  | H92: =IFERROR(IF(F27>'Input impactbeoordeing'!H20,'Input impactbeoordeing'!I20,""),"") ->  | I92: =IFERROR(IF(F27>'Input impactbeoordeing'!H20,F27,""),"") ->  | J92: =IFERROR(IF(ISBLANK('Input impactbeoordeing'!B20)=TRUE,"",((I92*G92)+(H92*'Input impactbeoordeing'!$C$14))/(G92+'Input impactbeoordeing'!$C$14)),"") ->  | K92: =IFERROR(IF(ISBLANK('Input impactbeoordeing'!B20)=TRUE,"",((I92*G92)/(G92+'Input impactbeoordeing'!$C$14))),"") ->  | L92: =IFERROR(IF(ISBLANK('Input impactbeoordeing'!B20)=TRUE,"",K92/F92),"") ->  | AA92: 1 | AB92: =C92 ->  | AE92: =H92 ->  | AF92: =J92 ->  | AG92: =F92 ->  | AH92: =IF(H92>=F92,"Nee","Ja") -> Nee | AI92: =IF(J92>F92,"Ja","Nee") -> Nee | AJ92: =IF(AND(AH92="Ja",AI92="Nee"),$AN$105,IF(AND(AH92="Ja",AI92="Ja"),$AN$106,$AN$104)) -> Toetswaarde SOW niet gehaald. Maatregel draagt bij tot het niet halen doelstellingen voor deze parameter | AN92: Toetswaarde SOW niet gehaald. Maatregel draagt bij tot het niet halen doelstellingen voor deze parameter
B93: 2 | C93: =IFERROR(IF(F28>'Input impactbeoordeing'!H21,'Input bijkomende maatregelen'!C28,""),"") ->  | D93: =IFERROR(VLOOKUP(C93,'Keuzelijst parameters'!C:E,3,FALSE),"") ->  | E93: =IFERROR(IF(F28>'Input impactbeoordeing'!H21,'Input impactbeoordeing'!F21,""),"") ->  | F93: =IFERROR(IF(F28>'Input impactbeoordeing'!H21,'Input impactbeoordeing'!G21,""),"") ->  | G93: =IFERROR(IF(F28>'Input impactbeoordeing'!H21,$D$15,""),"") ->  | H93: =IFERROR(IF(F28>'Input impactbeoordeing'!H21,'Input impactbeoordeing'!I21,""),"") ->  | I93: =IFERROR(IF(F28>'Input impactbeoordeing'!H21,F28,""),"") ->  | J93: =IFERROR(IF(ISBLANK('Input impactbeoordeing'!B21)=TRUE,"",((I93*G93)+(H93*'Input impactbeoordeing'!$C$14))/(G93+'Input impactbeoordeing'!$C$14)),"") ->  | K93: =IFERROR(IF(ISBLANK('Input impactbeoordeing'!B21)=TRUE,"",((I93*G93)/(G93+'Input impactbeoordeing'!$C$14))),"") ->  | L93: =IFERROR(IF(ISBLANK('Input impactbeoordeing'!B21)=TRUE,"",K93/F93),"") ->  | AA93: 2 | AB93: =C93 ->  | AH93: Nee | AI93: Nee | AJ93: Toetswaarde SOW niet gehaald. Maatregel draagt bij tot het niet halen doelstellingen voor deze parameter | AN93: Toetswaarde SOW en SAW gehaald. Maatregel zorgt niet voor achteruitgang klasse voor deze parameter
B94: 3 | C94: =IFERROR(IF(F29>'Input impactbeoordeing'!H22,'Input bijkomende maatregelen'!C29,""),"") ->  | D94: =IFERROR(VLOOKUP(C94,'Keuzelijst parameters'!C:E,3,FALSE),"") ->  | E94: =IFERROR(IF(F29>'Input impactbeoordeing'!H22,'Input impactbeoordeing'!F22,""),"") ->  | F94: =IFERROR(IF(F29>'Input impactbeoordeing'!H22,'Input impactbeoordeing'!G22,""),"") ->  | G94: =IFERROR(IF(F29>'Input impactbeoordeing'!H22,$D$15,""),"") ->  | H94: =IFERROR(IF(F29>'Input impactbeoordeing'!H22,'Input impactbeoordeing'!I22,""),"") ->  | I94: =IFERROR(IF(F29>'Input impactbeoordeing'!H22,F29,""),"") ->  | J94: =IFERROR(IF(ISBLANK('Input impactbeoordeing'!B22)=TRUE,"",((I94*G94)+(H94*'Input impactbeoordeing'!$C$14))/(G94+'Input impactbeoordeing'!$C$14)),"") ->  | K94: =IFERROR(IF(ISBLANK('Input impactbeoordeing'!B22)=TRUE,"",((I94*G94)/(G94+'Input impactbeoordeing'!$C$14))),"") ->  | L94: =IFERROR(IF(ISBLANK('Input impactbeoordeing'!B22)=TRUE,"",K94/F94),"") ->  | AA94: 3 | AH94: Nee | AI94: Nee | AJ94: Toetswaarde SOW niet gehaald. Maatregel draagt bij tot het niet halen doelstellingen voor deze parameter | AN94: Toetswaarde SOW gehaald, SAW niet. Maatregel zorgt voor achteruitgang klasse voor deze parameter
B95: 4 | C95: =IFERROR(IF(F30>'Input impactbeoordeing'!H23,'Input bijkomende maatregelen'!C30,""),"") ->  | D95: =IFERROR(VLOOKUP(C95,'Keuzelijst parameters'!C:E,3,FALSE),"") ->  | E95: =IFERROR(IF(F30>'Input impactbeoordeing'!H23,'Input impactbeoordeing'!F23,""),"") ->  | F95: =IFERROR(IF(F30>'Input impactbeoordeing'!H23,'Input impactbeoordeing'!G23,""),"") ->  | G95: =IFERROR(IF(F30>'Input impactbeoordeing'!H23,$D$15,""),"") ->  | H95: =IFERROR(IF(F30>'Input impactbeoordeing'!H23,'Input impactbeoordeing'!I23,""),"") ->  | I95: =IFERROR(IF(F30>'Input impactbeoordeing'!H23,F30,""),"") ->  | J95: =IFERROR(IF(ISBLANK('Input impactbeoordeing'!B23)=TRUE,"",((I95*G95)+(H95*'Input impactbeoordeing'!$C$14))/(G95+'Input impactbeoordeing'!$C$14)),"") ->  | K95: =IFERROR(IF(ISBLANK('Input impactbeoordeing'!B23)=TRUE,"",((I95*G95)/(G95+'Input impactbeoordeing'!$C$14))),"") ->  | L95: =IFERROR(IF(ISBLANK('Input impactbeoordeing'!B23)=TRUE,"",K95/F95),"") ->  | AA95: 4 | AH95: Nee | AI95: Nee | AJ95: Toetswaarde SOW niet gehaald. Maatregel draagt bij tot het niet halen doelstellingen voor deze parameter
B96: 5 | C96: =IFERROR(IF(F31>'Input impactbeoordeing'!H24,'Input bijkomende maatregelen'!C31,""),"") ->  | D96: =IFERROR(VLOOKUP(C96,'Keuzelijst parameters'!C:E,3,FALSE),"") ->  | E96: =IFERROR(IF(F31>'Input impactbeoordeing'!H24,'Input impactbeoordeing'!F24,""),"") ->  | F96: =IFERROR(IF(F31>'Input impactbeoordeing'!H24,'Input impactbeoordeing'!G24,""),"") ->  | G96: =IFERROR(IF(F31>'Input impactbeoordeing'!H24,$D$15,""),"") ->  | H96: =IFERROR(IF(F31>'Input impactbeoordeing'!H24,'Input impactbeoordeing'!I24,""),"") ->  | I96: =IFERROR(IF(F31>'Input impactbeoordeing'!H24,F31,""),"") ->  | J96: =IFERROR(IF(ISBLANK('Input impactbeoordeing'!B24)=TRUE,"",((I96*G96)+(H96*'Input impactbeoordeing'!$C$14))/(G96+'Input impactbeoordeing'!$C$14)),"") ->  | K96: =IFERROR(IF(ISBLANK('Input impactbeoordeing'!B24)=TRUE,"",((I96*G96)/(G96+'Input impactbeoordeing'!$C$14))),"") ->  | L96: =IFERROR(IF(ISBLANK('Input impactbeoordeing'!B24)=TRUE,"",K96/F96),"") ->  | AA96: 5 | AH96: Nee | AI96: Nee | AJ96: Toetswaarde SOW niet gehaald. Maatregel draagt bij tot het niet halen doelstellingen voor deze parameter
B97: 6 | C97: =IFERROR(IF(F32>'Input impactbeoordeing'!H25,'Input bijkomende maatregelen'!C32,""),"") ->  | D97: =IFERROR(VLOOKUP(C97,'Keuzelijst parameters'!C:E,3,FALSE),"") ->  | E97: =IFERROR(IF(F32>'Input impactbeoordeing'!H25,'Input impactbeoordeing'!F25,""),"") ->  | F97: =IFERROR(IF(F32>'Input impactbeoordeing'!H25,'Input impactbeoordeing'!G25,""),"") ->  | G97: =IFERROR(IF(F32>'Input impactbeoordeing'!H25,$D$15,""),"") ->  | H97: =IFERROR(IF(F32>'Input impactbeoordeing'!H25,'Input impactbeoordeing'!I25,""),"") ->  | I97: =IFERROR(IF(F32>'Input impactbeoordeing'!H25,F32,""),"") ->  | J97: =IFERROR(IF(ISBLANK('Input impactbeoordeing'!B25)=TRUE,"",((I97*G97)+(H97*'Input impactbeoordeing'!$C$14))/(G97+'Input impactbeoordeing'!$C$14)),"") ->  | K97: =IFERROR(IF(ISBLANK('Input impactbeoordeing'!B25)=TRUE,"",((I97*G97)/(G97+'Input impactbeoordeing'!$C$14))),"") ->  | L97: =IFERROR(IF(ISBLANK('Input impactbeoordeing'!B25)=TRUE,"",K97/F97),"") ->  | AA97: 6 | AH97: Nee | AI97: Nee | AJ97: Toetswaarde SOW niet gehaald. Maatregel draagt bij tot het niet halen doelstellingen voor deze parameter
B98: 7 | C98: =IFERROR(IF(F33>'Input impactbeoordeing'!H26,'Input bijkomende maatregelen'!C33,""),"") ->  | D98: =IFERROR(VLOOKUP(C98,'Keuzelijst parameters'!C:E,3,FALSE),"") ->  | E98: =IFERROR(IF(F33>'Input impactbeoordeing'!H26,'Input impactbeoordeing'!F26,""),"") ->  | F98: =IFERROR(IF(F33>'Input impactbeoordeing'!H26,'Input impactbeoordeing'!G26,""),"") ->  | G98: =IFERROR(IF(F33>'Input impactbeoordeing'!H26,$D$15,""),"") ->  | H98: =IFERROR(IF(F33>'Input impactbeoordeing'!H26,'Input impactbeoordeing'!I26,""),"") ->  | I98: =IFERROR(IF(F33>'Input impactbeoordeing'!H26,F33,""),"") ->  | J98: =IFERROR(IF(ISBLANK('Input impactbeoordeing'!B26)=TRUE,"",((I98*G98)+(H98*'Input impactbeoordeing'!$C$14))/(G98+'Input impactbeoordeing'!$C$14)),"") ->  | K98: =IFERROR(IF(ISBLANK('Input impactbeoordeing'!B26)=TRUE,"",((I98*G98)/(G98+'Input impactbeoordeing'!$C$14))),"") ->  | L98: =IFERROR(IF(ISBLANK('Input impactbeoordeing'!B26)=TRUE,"",K98/F98),"") ->  | AA98: 7 | AH98: Nee | AI98: Nee | AJ98: Toetswaarde SOW niet gehaald. Maatregel draagt bij tot het niet halen doelstellingen voor deze parameter
B100: B Emissies naar water - Toename lozing andere componenten | E100: nee
C102: Parameternaam | D102: Afkorting | E102: Eenheid | F102: MKN - JG/Toetswaarde | G102: Volume | H102: CSOW | I102: Ceffluent ter hoogte van het lozingspunt | J102: CSAW (berekend) | K102: Abs Bijdrage onder realistische omstandigheden | L102: Proc. Bijdrage onder realistische omstandigheden | AB102: Probleemparameter(s) | AE102: CSOW | AF102: CSAW | AG102: TW | AH102: CSOW < TW | AI102: CSAW > TW | AJ102: Beoordeling | AN102: Expressie
G103: m³/jaar | H103: µg/L | I103: µg/L | J103: µg/L | K103: µg/L | AE103: µg/L | AF103: µg/L | AG103: µg/L
B104: 1 | D104: =IFERROR(VLOOKUP(C104,'Keuzelijst parameters'!C:E,3,FALSE),"") ->  | E104: =IFERROR(VLOOKUP(C104,'Keuzelijst parameters'!C:F,4,FALSE),"") ->  | J104: =IF(ISBLANK(C104)=TRUE,"",((I104*G104)+(H104*'Input impactbeoordeing'!$C$14))/(G104+'Input impactbeoordeing'!$C$14)) ->  | K104: =IF(ISBLANK(C104)=TRUE,"",((I104*G104))/(G104+'Input impactbeoordeing'!$C$14)) ->  | L104: =IFERROR(IF(ISBLANK(C104)=TRUE,"",K104/F104),0) ->  | AA104: 1 | AB104: =C104 -> 0 | AE104: =H104 -> 0 | AF104: =J104 ->  | AG104: =F104 -> 0 | AH104: =IF(H104>=F104,"Nee","Ja") -> Nee | AI104: =IF(J104>F104,"Ja","Nee") -> Nee | AJ104: =IF(AND(AH104="Ja",AI104="Nee"),$AN$105,IF(AND(AH104="Ja",AI104="Ja"),$AN$106,$AN$104)) -> Toetswaarde SOW niet gehaald. Maatregel draagt bij tot het niet halen doelstellingen voor deze parameter | AN104: Toetswaarde SOW niet gehaald. Maatregel draagt bij tot het niet halen doelstellingen voor deze parameter
B105: 2 | D105: =IFERROR(VLOOKUP(C105,'Keuzelijst parameters'!C:E,3,FALSE),"") ->  | E105: =IFERROR(VLOOKUP(C105,'Keuzelijst parameters'!C:F,4,FALSE),"") ->  | J105: =IF(ISBLANK(C105)=TRUE,"",((I105*G105)+(H105*'Input impactbeoordeing'!$C$14))/(G105+'Input impactbeoordeing'!$C$14)) ->  | K105: =IF(ISBLANK(C105)=TRUE,"",((I105*G105))/(G105+'Input impactbeoordeing'!$C$14)) ->  | L105: =IFERROR(IF(ISBLANK(C105)=TRUE,"",K105/F105),0) ->  | AA105: 2 | AB105: =C105 -> 0 | AE105: 0 | AG105: 0 | AH105: Nee | AI105: Nee | AJ105: Toetswaarde SOW niet gehaald. Maatregel draagt bij tot het niet halen doelstellingen voor deze parameter | AN105: Toetswaarde SOW en SAW gehaald. Maatregel zorgt niet voor achteruitgang klasse voor deze parameter
B106: 3 | D106: =IFERROR(VLOOKUP(C106,'Keuzelijst parameters'!C:E,3,FALSE),"") ->  | E106: =IFERROR(VLOOKUP(C106,'Keuzelijst parameters'!C:F,4,FALSE),"") ->  | J106: =IF(ISBLANK(C106)=TRUE,"",((I106*G106)+(H106*'Input impactbeoordeing'!$C$14))/(G106+'Input impactbeoordeing'!$C$14)) ->  | K106: =IF(ISBLANK(C106)=TRUE,"",((I106*G106))/(G106+'Input impactbeoordeing'!$C$14)) ->  | AA106: 3 | AB106: 0 | AE106: 0 | AG106: 0 | AH106: Nee | AI106: Nee | AJ106: Toetswaarde SOW niet gehaald. Maatregel draagt bij tot het niet halen doelstellingen voor deze parameter | AN106: Toetswaarde SOW gehaald, SAW niet. Maatregel zorgt voor achteruitgang klasse voor deze parameter
B107: 4 | D107: =IFERROR(VLOOKUP(C107,'Keuzelijst parameters'!C:E,3,FALSE),"") ->  | E107: =IFERROR(VLOOKUP(C107,'Keuzelijst parameters'!C:F,4,FALSE),"") ->  | J107: =IF(ISBLANK(C107)=TRUE,"",((I107*G107)+(H107*'Input impactbeoordeing'!$C$14))/(G107+'Input impactbeoordeing'!$C$14)) ->  | K107: =IF(ISBLANK(C107)=TRUE,"",((I107*G107))/(G107+'Input impactbeoordeing'!$C$14)) ->  | AA107: 4 | AB107: 0 | AE107: 0 | AG107: 0 | AH107: Nee | AI107: Nee | AJ107: Toetswaarde SOW niet gehaald. Maatregel draagt bij tot het niet halen doelstellingen voor deze parameter
B108: 5 | D108: =IFERROR(VLOOKUP(C108,'Keuzelijst parameters'!C:E,3,FALSE),"") ->  | E108: =IFERROR(VLOOKUP(C108,'Keuzelijst parameters'!C:F,4,FALSE),"") ->  | J108: =IF(ISBLANK(C108)=TRUE,"",((I108*G108)+(H108*'Input impactbeoordeing'!$C$14))/(G108+'Input impactbeoordeing'!$C$14)) ->  | K108: =IF(ISBLANK(C108)=TRUE,"",((I108*G108))/(G108+'Input impactbeoordeing'!$C$14)) ->  | AA108: 5 | AB108: 0 | AE108: 0 | AG108: 0 | AH108: Nee | AI108: Nee | AJ108: Toetswaarde SOW niet gehaald. Maatregel draagt bij tot het niet halen doelstellingen voor deze parameter
B109: 6 | D109: =IFERROR(VLOOKUP(C109,'Keuzelijst parameters'!C:E,3,FALSE),"") ->  | E109: =IFERROR(VLOOKUP(C109,'Keuzelijst parameters'!C:F,4,FALSE),"") ->  | J109: =IF(ISBLANK(C109)=TRUE,"",((I109*G109)+(H109*'Input impactbeoordeing'!$C$14))/(G109+'Input impactbeoordeing'!$C$14)) ->  | K109: =IF(ISBLANK(C109)=TRUE,"",((I109*G109))/(G109+'Input impactbeoordeing'!$C$14)) ->  | AA109: 6 | AB109: 0 | AE109: 0 | AG109: 0 | AH109: Nee | AI109: Nee | AJ109: Toetswaarde SOW niet gehaald. Maatregel draagt bij tot het niet halen doelstellingen voor deze parameter
B110: 7 | D110: =IFERROR(VLOOKUP(C110,'Keuzelijst parameters'!C:E,3,FALSE),"") ->  | E110: =IFERROR(VLOOKUP(C110,'Keuzelijst parameters'!C:F,4,FALSE),"") ->  | J110: =IF(ISBLANK(C110)=TRUE,"",((I110*G110)+(H110*'Input impactbeoordeing'!$C$14))/(G110+'Input impactbeoordeing'!$C$14)) ->  | K110: =IF(ISBLANK(C110)=TRUE,"",((I110*G110))/(G110+'Input impactbeoordeing'!$C$14)) ->  | AA110: 7 | AB110: 0 | AE110: 0 | AG110: 0 | AH110: Nee | AI110: Nee | AJ110: Toetswaarde SOW niet gehaald. Maatregel draagt bij tot het niet halen doelstellingen voor deze parameter
B112: C Emissies naar lucht | E112: nee
B114: D Overige | E114: nee

Sheet Input financiële kengetallen
A1: Vul groene velden in
A3: Volledig schema (VOL)
A4: (Nummering jaarrekening rechter bovenhoek jaarrekening start met VOL) | D4: bronnen | E4: https://cri.nbb.be/bc9/web/catalog?execution=e2s1
E5: jaarrekeningen raadplegen via nationale bank - opgelet: pop up blocker disablen
A6: In dit kader worden de kengetallen van de holding gerapporteerd.
A7: Financiële kengetallen van de holding | B7: Naam Holding | H7: Definities
A9: Recentste jaartal beschikbare informatie | B9: 2024 | H9: Omzet (code 70), zijnde het totaal bedrag aan verkochte producten/diensten.
A11: Maatstaf | B11: Jaartal | H11: Zuivere toegevoegde waarde = Bedrijfsopbrengsten (code 70/76A) - Handelsgoederen, grond- en hulpstoffen (code 60) - Diensten en diverse goederen (code 61) - Exploitatiesubsidies en vanwege de overheid ontvangen compenserende bedragen (code 740).
B12: =B9 -> 2024 | C12: =B12-1 -> 2023 | D12: =C12-1 -> 2022 | E12: =D12-1 -> 2021 | F12: =E12-1 -> 2020
A14: Omzet
H15: EBITDA = [Winst of verlies van het boekjaar (code 9903)-opbrengst uit financiële activa (code 750)-Opbrengst uit Vlottende activa (code 751)-andere financiële opbrengsten (code 752/9)+kosten van schulden (code 650)+Waardevermindering op vlottende activa (code 651)+andere financiële kosten (code652/9)] +Afschrijvingen en waardeverminderingen (code 630)+waardeverminderingen op voorraden,bestellingen,...(code 631/4)+uitzonderlijke afschrijvingen en waardeverminderingen (code 660)-Terugnemng avan afschrijvingen en van waardeverminderingen (code 760)
A16: Toegevoegde waarde
A18: EBIDTA
A21: In dit kader worden de kengetallen van de vestiging gerapporteerd. Deze informatie wordt door het bedrijf opgegeven (vaak niet publiek).
A22: Financiële kengetallen van de vestiging | B22: Naam Vestiging
A24: Recentste jaartal beschikbare informatie | B24: 2024
A26: Maatstaf | B26: Jaartal
B27: =B24 -> 2024 | C27: =B27-1 -> 2023 | D27: =C27-1 -> 2022 | E27: 2021 | F27: 2020
A29: Omzet
A31: Toegevoegde waarde
A33: EBIDTA

Sheet Input huidige maatreg. (fac.)
B1: Vul de groene velden in
B3: 1. Huidige maatregelen: Beschrijving van de case - bestaande maatreglen en lozing
B4: Omschrijving huidige technieken en maatregelen:
B9: Gegevens lozing
B10: Lozing TOTAAL volume afvalwater | D10: ='Input impactbeoordeing'!$C$9 -> 0 | E10: m³/jaar
D11: ='Input impactbeoordeing'!C8 ->  | E11: m³/d
B14: 2. Huidige maatreglen: Vuilvrachtreductie door huidige maatregelen
B15: Probleemparameter(s) | D15: Inkomende concentratie huidige waterzuivering | E15: Huidige effluentconcentratie thv lozingspunt | F15: ='Input impactbeoordeing'!J18 -> Gewenste effluentconcentratie impactbeoordeling afvalwater | G15: Eenheid | H15: Inkomende vuilvracht huidige waterzuivering | I15: Huidig geloosde vuilvrachten | J15: Gem. bijkomend te verwijderen per jaar | K15: Gem. vuilvracht reeds verwijderd door huidige WZ | AA15: Probleemparameter(s) | AB15: Eenheid uniform | AC15: Factor
B16: nr | C16: naam | H16: kg/jaar | I16: kg/jaar | J16: kg/jaar | K16: kg/jaar
B17: 1 | C17: =IF(ISBLANK('Input impactbeoordeing'!B20)=TRUE,"",'Input impactbeoordeing'!B20) ->  | E17: =IF(ISBLANK('Input impactbeoordeing'!B20)=TRUE,"",'Input impactbeoordeing'!H20) ->  | F17: =IF(ISBLANK('Input impactbeoordeing'!B20)=TRUE,"",'Input impactbeoordeing'!J20) ->  | G17: =IF(ISBLANK('Input impactbeoordeing'!B20)=TRUE,"",'Input impactbeoordeing'!F20) ->  | H17: =IF(ISBLANK('Input impactbeoordeing'!B20)=TRUE,"",D17*$D$10/AC17/1000) ->  | I17: =IF(ISBLANK('Input impactbeoordeing'!B20)=TRUE,"",$D$10*E17/AC17/1000) ->  | J17: =IFERROR(IF(ISBLANK('Input impactbeoordeing'!B20)=TRUE,"",($D$10*(E17-F17))/AC17)/1000,"") ->  | K17: =IFERROR(IF(ISBLANK(D17)=TRUE,"",(H17-I17)),"") ->  | AA17: =IF(ISBLANK('Input impactbeoordeing'!B20)=TRUE,"",'Input impactbeoordeing'!B20) ->  | AB17: =IF(ISBLANK('Input impactbeoordeing'!B20)=TRUE,"",'Input impactbeoordeing'!AA20) ->  | AC17: =IF($AB17="mg/L",1,IF($AB17="µg/L",1000,IF($AB17="ng/L",1000*1000,IF($AB17="µS/cm",1000,"")))) -> 
B18: 2 | C18: =IF(ISBLANK('Input impactbeoordeing'!B21)=TRUE,"",'Input impactbeoordeing'!B21) ->  | E18: =IF(ISBLANK('Input impactbeoordeing'!B21)=TRUE,"",'Input impactbeoordeing'!H21) ->  | F18: =IF(ISBLANK('Input impactbeoordeing'!B21)=TRUE,"",'Input impactbeoordeing'!J21) ->  | G18: =IF(ISBLANK('Input impactbeoordeing'!B21)=TRUE,"",'Input impactbeoordeing'!F21) ->  | H18: =IF(ISBLANK('Input impactbeoordeing'!B21)=TRUE,"",D18*$D$10/AC18/1000) ->  | I18: =IF(ISBLANK('Input impactbeoordeing'!B21)=TRUE,"",$D$10*E18/AC18/1000) ->  | J18: =IFERROR(IF(ISBLANK('Input impactbeoordeing'!B21)=TRUE,"",($D$10*(E18-F18))/AC18)/1000,"") ->  | K18: =IFERROR(IF(ISBLANK(D18)=TRUE,"",(H18-I18)),"") ->  | AA18: =IF(ISBLANK('Input impactbeoordeing'!B21)=TRUE,"",'Input impactbeoordeing'!B21) ->  | AB18: =IF(ISBLANK('Input impactbeoordeing'!B21)=TRUE,"",'Input impactbeoordeing'!AA21) ->  | AC18: =IF($AB18="mg/L",1,IF($AB18="µg/L",1000,IF($AB18="ng/L",1000*1000,IF($AB18="µS/cm",1000,"")))) -> 
B19: 3 | C19: =IF(ISBLANK('Input impactbeoordeing'!B22)=TRUE,"",'Input impactbeoordeing'!B22) ->  | E19: =IF(ISBLANK('Input impactbeoordeing'!B22)=TRUE,"",'Input impactbeoordeing'!H22) ->  | F19: =IF(ISBLANK('Input impactbeoordeing'!B22)=TRUE,"",'Input impactbeoordeing'!J22) ->  | G19: =IF(ISBLANK('Input impactbeoordeing'!B22)=TRUE,"",'Input impactbeoordeing'!F22) ->  | H19: =IF(ISBLANK('Input impactbeoordeing'!B22)=TRUE,"",D19*$D$10/AC19/1000) ->  | I19: =IF(ISBLANK('Input impactbeoordeing'!B22)=TRUE,"",$D$10*E19/AC19/1000) ->  | J19: =IFERROR(IF(ISBLANK('Input impactbeoordeing'!B22)=TRUE,"",($D$10*(E19-F19))/AC19)/1000,"") ->  | AA19: =IF(ISBLANK('Input impactbeoordeing'!B22)=TRUE,"",'Input impactbeoordeing'!B22) ->  | AB19: =IF(ISBLANK('Input impactbeoordeing'!B22)=TRUE,"",'Input impactbeoordeing'!AA22) -> 
B20: 4 | C20: =IF(ISBLANK('Input impactbeoordeing'!B23)=TRUE,"",'Input impactbeoordeing'!B23) ->  | E20: =IF(ISBLANK('Input impactbeoordeing'!B23)=TRUE,"",'Input impactbeoordeing'!H23) ->  | F20: =IF(ISBLANK('Input impactbeoordeing'!B23)=TRUE,"",'Input impactbeoordeing'!J23) ->  | G20: =IF(ISBLANK('Input impactbeoordeing'!B23)=TRUE,"",'Input impactbeoordeing'!F23) ->  | H20: =IF(ISBLANK('Input impactbeoordeing'!B23)=TRUE,"",D20*$D$10/AC20/1000) ->  | I20: =IF(ISBLANK('Input impactbeoordeing'!B23)=TRUE,"",$D$10*E20/AC20/1000) ->  | J20: =IFERROR(IF(ISBLANK('Input impactbeoordeing'!B23)=TRUE,"",($D$10*(E20-F20))/AC20)/1000,"") ->  | AA20: =IF(ISBLANK('Input impactbeoordeing'!B23)=TRUE,"",'Input impactbeoordeing'!B23) ->  | AB20: =IF(ISBLANK('Input impactbeoordeing'!B23)=TRUE,"",'Input impactbeoordeing'!AA23) -> 
B21: 5 | C21: =IF(ISBLANK('Input impactbeoordeing'!B24)=TRUE,"",'Input impactbeoordeing'!B24) ->  | E21: =IF(ISBLANK('Input impactbeoordeing'!B24)=TRUE,"",'Input impactbeoordeing'!H24) ->  | F21: =IF(ISBLANK('Input impactbeoordeing'!B24)=TRUE,"",'Input impactbeoordeing'!J24) ->  | G21: =IF(ISBLANK('Input impactbeoordeing'!B24)=TRUE,"",'Input impactbeoordeing'!F24) ->  | H21: =IF(ISBLANK('Input impactbeoordeing'!B24)=TRUE,"",D21*$D$10/AC21/1000) ->  | I21: =IF(ISBLANK('Input impactbeoordeing'!B24)=TRUE,"",$D$10*E21/AC21/1000) ->  | J21: =IFERROR(IF(ISBLANK('Input impactbeoordeing'!B24)=TRUE,"",($D$10*(E21-F21))/AC21)/1000,"") ->  | AA21: =IF(ISBLANK('Input impactbeoordeing'!B24)=TRUE,"",'Input impactbeoordeing'!B24) ->  | AB21: =IF(ISBLANK('Input impactbeoordeing'!B24)=TRUE,"",'Input impactbeoordeing'!AA24) -> 
B22: 6 | C22: =IF(ISBLANK('Input impactbeoordeing'!B25)=TRUE,"",'Input impactbeoordeing'!B25) ->  | E22: =IF(ISBLANK('Input impactbeoordeing'!B25)=TRUE,"",'Input impactbeoordeing'!H25) ->  | F22: =IF(ISBLANK('Input impactbeoordeing'!B25)=TRUE,"",'Input impactbeoordeing'!J25) ->  | G22: =IF(ISBLANK('Input impactbeoordeing'!B25)=TRUE,"",'Input impactbeoordeing'!F25) ->  | H22: =IF(ISBLANK('Input impactbeoordeing'!B25)=TRUE,"",D22*$D$10/AC22/1000) ->  | I22: =IF(ISBLANK('Input impactbeoordeing'!B25)=TRUE,"",$D$10*E22/AC22/1000) ->  | J22: =IFERROR(IF(ISBLANK('Input impactbeoordeing'!B25)=TRUE,"",($D$10*(E22-F22))/AC22)/1000,"") ->  | AA22: =IF(ISBLANK('Input impactbeoordeing'!B25)=TRUE,"",'Input impactbeoordeing'!B25) ->  | AB22: =IF(ISBLANK('Input impactbeoordeing'!B25)=TRUE,"",'Input impactbeoordeing'!AA25) -> 
B23: 7 | C23: =IF(ISBLANK('Input impactbeoordeing'!B26)=TRUE,"",'Input impactbeoordeing'!B26) ->  | E23: =IF(ISBLANK('Input impactbeoordeing'!B26)=TRUE,"",'Input impactbeoordeing'!H26) ->  | F23: =IF(ISBLANK('Input impactbeoordeing'!B26)=TRUE,"",'Input impactbeoordeing'!J26) ->  | G23: =IF(ISBLANK('Input impactbeoordeing'!B26)=TRUE,"",'Input impactbeoordeing'!F26) ->  | H23: =IF(ISBLANK('Input impactbeoordeing'!B26)=TRUE,"",D23*$D$10/AC23/1000) ->  | I23: =IF(ISBLANK('Input impactbeoordeing'!B26)=TRUE,"",$D$10*E23/AC23/1000) ->  | J23: =IFERROR(IF(ISBLANK('Input impactbeoordeing'!B26)=TRUE,"",($D$10*(E23-F23))/AC23)/1000,"") ->  | AA23: =IF(ISBLANK('Input impactbeoordeing'!B26)=TRUE,"",'Input impactbeoordeing'!B26) ->  | AB23: =IF(ISBLANK('Input impactbeoordeing'!B26)=TRUE,"",'Input impactbeoordeing'!AA26) -> 
G24: =IF(ISBLANK('Input impactbeoordeing'!B28)=TRUE,"",$D$10*E24/1000) ->  | H24: =IF(ISBLANK('Input impactbeoordeing'!B28)=TRUE,"",($D$10*(E24-F24))/1000) ->  | I24: =IFERROR(H24/1000,"") -> 
B29: 3. Huidige maatregelen: Financiële informatie
B30: CAPEX / Investeringskosten | F30: OPEX / Werkingskosten
B31: Totale investeringskost huidige maatregelen | E31: EUR | F31: Energie | I31: EUR/jaar
F32: Chemiecaliën | I32: EUR/jaar
F33: Verbruiksmateriaal | I33: EUR/jaar
B34: Afschrijvingsperiode | D34: 10 | E34: jaar | F34: Manuren | I34: EUR/jaar
B35: Rente | D35: 0.04 | E35: % | F35: Vervanging | I35: EUR/jaar
F36: … | I36: EUR/jaar
B37: Jaarlijkse kapitaalkost (YCC) | D37: =IFERROR(-PMT(D35,D34,D31),0) -> 0 | E37: EUR/jaar | F37: OPEX | H37: =SUM(H31:H36) -> 0 | I37: EUR/jaar
D38: =IFERROR(D37/D10,0) -> 0 | E38: EUR/m³ | H38: =IFERROR(H37/D10,0) -> 0 | I38: EUR/m³
B41: Totale kost huidige maatregelen (YCC + OPEX) | D41: =SUM(H37,D37) -> 0 | E41: EUR/jaar
D42: =IFERROR(D41/D10,0) -> 0 | E42: EUR/m³

Sheet Input overige investeringen
A1: 1. Andere gelijktijdige investeringen i.k.v. impactbeoordeling afvalwater
A2: Indien er ook andere gelijktijdige investeringen nodig zijn in het kader van de impactbeoordeling afvalwater, dan kunnen deze hier worden weergegeven
A4: Afschrijvingsperiode | C4: 10 | D4: jaar
A5: Rente | C5: 0.04 | D5: %
A7: Nr | B7: Omschrijving | F7: Capex (EUR) | G7: Opex (EUR) | H7: Baten (EUR) | I7: YCC | J7: Totale kost (=YCC+OPEX-baten)
A8: 1 | I8: =-PMT($C$5,$C$4,F8) -> 0 | J8: =I8+G8-H8 -> 0
A9: 2 | I9: =-PMT($C$5,$C$4,F9) -> 0 | J9: =I9+G9-H9 -> 0
A10: 3 | I10: =-PMT($C$5,$C$4,F10) -> 0 | J10: 0
A11: 4 | I11: 0 | J11: 0
A12: 5 | I12: =-PMT($C$5,$C$4,F12) -> 0 | J12: =I12+G12-H12 -> 0
A13: 6 | I13: 0 | J13: 0
A14: 7 | I14: 0 | J14: 0
A15: 8 | I15: 0 | J15: 0
A16: Totaal overige investeringen i.k.v. impactbeoordeling afvalwater | J16: =SUM(J8:K15) -> 0

Sheet Dashboard beslissing
B2: Overzicht: Aard van de impact en aanwijzing stofcategorie
C3: Probleemparameter(s) | D3: ='Input impactbeoordeing'!D18 -> Max. procentuele bijdrage parameter (%) | E3: ='Input impactbeoordeing'!K18 -> Waterrelevante stof Vlaanderen | F3: ='Input impactbeoordeing'!AG18 -> Waterbezwaarlijkheid | L3: Code | M3: Stof x impactcategorie | AF3: Codering bijdrage | AG3: Codering speciale categorie | AH3: Codering duidelijke achteruitgang | AI3: Unieke code
B5: 1 | C5: =IF(ISBLANK('Input impactbeoordeing'!B20)=TRUE,"",'Input impactbeoordeing'!B20) ->  | D5: =IF(ISBLANK('Input impactbeoordeing'!B20)=TRUE,"",'Input impactbeoordeing'!D20) ->  | E5: =IF(ISBLANK('Input impactbeoordeing'!B20)=TRUE,"",'Input impactbeoordeing'!K20) ->  | F5: =IF(ISBLANK('Input impactbeoordeing'!B20)=TRUE,"",'Input impactbeoordeing'!AG20) ->  | L5: =AI5 ->  | M5: =IFERROR(VLOOKUP(L5,'Matrix Stof x impact'!$I$2:$K$22,3,FALSE),"") ->  | N5: =IF(M5=5,"Geen verder onderzoek nodig, gelet op de stof x impactcategorie","") ->  | AF5: =IF(ISBLANK('Input impactbeoordeing'!B20)=TRUE,"",IF(D5>='Matrix Stof x impact'!$B$32,'Matrix Stof x impact'!$C$32,IF(D5>='Matrix Stof x impact'!$B$33,'Matrix Stof x impact'!$C$33,IF(D5>='Matrix Stof x impact'!$B$34,'Matrix Stof x impact'!$C$34,IF(D5>='Matrix Stof x impact'!$B$35,'Matrix Stof x impact'!$C$35,'Matrix Stof x impact'!$C$36))))) ->  | AG5: =IF(ISBLANK('Input impactbeoordeing'!B20)=TRUE,"",IF(E5='Matrix Stof x impact'!$A$40,'Matrix Stof x impact'!$B$40,IF(E5='Matrix Stof x impact'!$A$41,'Matrix Stof x impact'!$B$41,"ERROR"))) ->  | AI5: =IF(ISBLANK('Input impactbeoordeing'!B20)=TRUE,"",IF(C5="","",SUM(AF5:AH5))) -> 
B6: 2 | C6: =IF(ISBLANK('Input impactbeoordeing'!B21)=TRUE,"",'Input impactbeoordeing'!B21) ->  | D6: =IF(ISBLANK('Input impactbeoordeing'!B21)=TRUE,"",'Input impactbeoordeing'!D21) ->  | E6: =IF(ISBLANK('Input impactbeoordeing'!B21)=TRUE,"",'Input impactbeoordeing'!K21) ->  | F6: =IF(ISBLANK('Input impactbeoordeing'!B21)=TRUE,"",'Input impactbeoordeing'!AG21) ->  | L6: =AI6 ->  | M6: =IFERROR(VLOOKUP(L6,'Matrix Stof x impact'!$I$2:$K$22,3,FALSE),"") ->  | N6: =IF(M6=5,"Geen verder onderzoek nodig, gelet op de stof x impactcategorie","") ->  | AF6: =IF(ISBLANK('Input impactbeoordeing'!B21)=TRUE,"",IF(D6>='Matrix Stof x impact'!$B$32,'Matrix Stof x impact'!$C$32,IF(D6>='Matrix Stof x impact'!$B$33,'Matrix Stof x impact'!$C$33,IF(D6>='Matrix Stof x impact'!$B$34,'Matrix Stof x impact'!$C$34,IF(D6>='Matrix Stof x impact'!$B$35,'Matrix Stof x impact'!$C$35,'Matrix Stof x impact'!$C$36))))) ->  | AG6: =IF(ISBLANK('Input impactbeoordeing'!B21)=TRUE,"",IF(E6='Matrix Stof x impact'!$A$40,'Matrix Stof x impact'!$B$40,IF(E6='Matrix Stof x impact'!$A$41,'Matrix Stof x impact'!$B$41,"ERROR"))) ->  | AI6: =IF(ISBLANK('Input impactbeoordeing'!B21)=TRUE,"",IF(C6="","",SUM(AF6:AH6))) -> 
B7: 3 | C7: =IF(ISBLANK('Input impactbeoordeing'!B22)=TRUE,"",'Input impactbeoordeing'!B22) ->  | D7: =IF(ISBLANK('Input impactbeoordeing'!B22)=TRUE,"",'Input impactbeoordeing'!D22) ->  | E7: =IF(ISBLANK('Input impactbeoordeing'!B22)=TRUE,"",'Input impactbeoordeing'!K22) ->  | F7: =IF(ISBLANK('Input impactbeoordeing'!B22)=TRUE,"",'Input impactbeoordeing'!AG22) ->  | M7: =IFERROR(VLOOKUP(L7,'Matrix Stof x impact'!$I$2:$K$22,3,FALSE),"") ->  | AF7: =IF(ISBLANK('Input impactbeoordeing'!B22)=TRUE,"",IF(D7>='Matrix Stof x impact'!$B$32,'Matrix Stof x impact'!$C$32,IF(D7>='Matrix Stof x impact'!$B$33,'Matrix Stof x impact'!$C$33,IF(D7>='Matrix Stof x impact'!$B$34,'Matrix Stof x impact'!$C$34,IF(D7>='Matrix Stof x impact'!$B$35,'Matrix Stof x impact'!$C$35,'Matrix Stof x impact'!$C$36))))) ->  | AG7: =IF(ISBLANK('Input impactbeoordeing'!B22)=TRUE,"",IF(E7='Matrix Stof x impact'!$A$40,'Matrix Stof x impact'!$B$40,IF(E7='Matrix Stof x impact'!$A$41,'Matrix Stof x impact'!$B$41,"ERROR"))) ->  | AI7: =IF(ISBLANK('Input impactbeoordeing'!B22)=TRUE,"",IF(C7="","",SUM(AF7:AH7))) -> 
B8: 4 | C8: =IF(ISBLANK('Input impactbeoordeing'!B23)=TRUE,"",'Input impactbeoordeing'!B23) ->  | D8: =IF(ISBLANK('Input impactbeoordeing'!B23)=TRUE,"",'Input impactbeoordeing'!D23) ->  | E8: =IF(ISBLANK('Input impactbeoordeing'!B23)=TRUE,"",'Input impactbeoordeing'!K23) ->  | F8: =IF(ISBLANK('Input impactbeoordeing'!B23)=TRUE,"",'Input impactbeoordeing'!AG23) ->  | M8: =IFERROR(VLOOKUP(L8,'Matrix Stof x impact'!$I$2:$K$22,3,FALSE),"") ->  | AF8: =IF(ISBLANK('Input impactbeoordeing'!B23)=TRUE,"",IF(D8>='Matrix Stof x impact'!$B$32,'Matrix Stof x impact'!$C$32,IF(D8>='Matrix Stof x impact'!$B$33,'Matrix Stof x impact'!$C$33,IF(D8>='Matrix Stof x impact'!$B$34,'Matrix Stof x impact'!$C$34,IF(D8>='Matrix Stof x impact'!$B$35,'Matrix Stof x impact'!$C$35,'Matrix Stof x impact'!$C$36))))) ->  | AG8: =IF(ISBLANK('Input impactbeoordeing'!B23)=TRUE,"",IF(E8='Matrix Stof x impact'!$A$40,'Matrix Stof x impact'!$B$40,IF(E8='Matrix Stof x impact'!$A$41,'Matrix Stof x impact'!$B$41,"ERROR"))) ->  | AI8: =IF(ISBLANK('Input impactbeoordeing'!B23)=TRUE,"",IF(C8="","",SUM(AF8:AH8))) -> 
B9: 5 | C9: =IF(ISBLANK('Input impactbeoordeing'!B24)=TRUE,"",'Input impactbeoordeing'!B24) ->  | D9: =IF(ISBLANK('Input impactbeoordeing'!B24)=TRUE,"",'Input impactbeoordeing'!D24) ->  | E9: =IF(ISBLANK('Input impactbeoordeing'!B24)=TRUE,"",'Input impactbeoordeing'!K24) ->  | F9: =IF(ISBLANK('Input impactbeoordeing'!B24)=TRUE,"",'Input impactbeoordeing'!AG24) ->  | M9: =IFERROR(VLOOKUP(L9,'Matrix Stof x impact'!$I$2:$K$22,3,FALSE),"") ->  | AF9: =IF(ISBLANK('Input impactbeoordeing'!B24)=TRUE,"",IF(D9>='Matrix Stof x impact'!$B$32,'Matrix Stof x impact'!$C$32,IF(D9>='Matrix Stof x impact'!$B$33,'Matrix Stof x impact'!$C$33,IF(D9>='Matrix Stof x impact'!$B$34,'Matrix Stof x impact'!$C$34,IF(D9>='Matrix Stof x impact'!$B$35,'Matrix Stof x impact'!$C$35,'Matrix Stof x impact'!$C$36))))) ->  | AG9: =IF(ISBLANK('Input impactbeoordeing'!B24)=TRUE,"",IF(E9='Matrix Stof x impact'!$A$40,'Matrix Stof x impact'!$B$40,IF(E9='Matrix Stof x impact'!$A$41,'Matrix Stof x impact'!$B$41,"ERROR"))) ->  | AI9: =IF(ISBLANK('Input impactbeoordeing'!B24)=TRUE,"",IF(C9="","",SUM(AF9:AH9))) -> 
B10: 6 | C10: =IF(ISBLANK('Input impactbeoordeing'!B25)=TRUE,"",'Input impactbeoordeing'!B25) ->  | D10: =IF(ISBLANK('Input impactbeoordeing'!B25)=TRUE,"",'Input impactbeoordeing'!D25) ->  | E10: =IF(ISBLANK('Input impactbeoordeing'!B25)=TRUE,"",'Input impactbeoordeing'!K25) ->  | F10: =IF(ISBLANK('Input impactbeoordeing'!B25)=TRUE,"",'Input impactbeoordeing'!AG25) ->  | M10: =IFERROR(VLOOKUP(L10,'Matrix Stof x impact'!$I$2:$K$22,3,FALSE),"") ->  | AF10: =IF(ISBLANK('Input impactbeoordeing'!B25)=TRUE,"",IF(D10>='Matrix Stof x impact'!$B$32,'Matrix Stof x impact'!$C$32,IF(D10>='Matrix Stof x impact'!$B$33,'Matrix Stof x impact'!$C$33,IF(D10>='Matrix Stof x impact'!$B$34,'Matrix Stof x impact'!$C$34,IF(D10>='Matrix Stof x impact'!$B$35,'Matrix Stof x impact'!$C$35,'Matrix Stof x impact'!$C$36))))) ->  | AG10: =IF(ISBLANK('Input impactbeoordeing'!B25)=TRUE,"",IF(E10='Matrix Stof x impact'!$A$40,'Matrix Stof x impact'!$B$40,IF(E10='Matrix Stof x impact'!$A$41,'Matrix Stof x impact'!$B$41,"ERROR"))) ->  | AI10: =IF(ISBLANK('Input impactbeoordeing'!B25)=TRUE,"",IF(C10="","",SUM(AF10:AH10))) -> 
B11: 7 | C11: =IF(ISBLANK('Input impactbeoordeing'!B26)=TRUE,"",'Input impactbeoordeing'!B26) ->  | D11: =IF(ISBLANK('Input impactbeoordeing'!B26)=TRUE,"",'Input impactbeoordeing'!D26) ->  | E11: =IF(ISBLANK('Input impactbeoordeing'!B26)=TRUE,"",'Input impactbeoordeing'!K26) ->  | F11: =IF(ISBLANK('Input impactbeoordeing'!B26)=TRUE,"",'Input impactbeoordeing'!AG26) ->  | M11: =IFERROR(VLOOKUP(L11,'Matrix Stof x impact'!$I$2:$K$22,3,FALSE),"") ->  | AF11: =IF(ISBLANK('Input impactbeoordeing'!B26)=TRUE,"",IF(D11>='Matrix Stof x impact'!$B$32,'Matrix Stof x impact'!$C$32,IF(D11>='Matrix Stof x impact'!$B$33,'Matrix Stof x impact'!$C$33,IF(D11>='Matrix Stof x impact'!$B$34,'Matrix Stof x impact'!$C$34,IF(D11>='Matrix Stof x impact'!$B$35,'Matrix Stof x impact'!$C$35,'Matrix Stof x impact'!$C$36))))) ->  | AG11: =IF(ISBLANK('Input impactbeoordeing'!B26)=TRUE,"",IF(E11='Matrix Stof x impact'!$A$40,'Matrix Stof x impact'!$B$40,IF(E11='Matrix Stof x impact'!$A$41,'Matrix Stof x impact'!$B$41,"ERROR"))) ->  | AI11: =IF(ISBLANK('Input impactbeoordeing'!B26)=TRUE,"",IF(C11="","",SUM(AF11:AH11))) -> 
B16: Criterium 1: Bereiken verbeterdoelstelling - streefwaarde impactbeoordeling
C17: Probleemparameter(s) | D17: Eenheid | E17: ='Input impactbeoordeing'!J18 -> Gewenste effluentconcentratie impactbeoordeling afvalwater | F17: Effluentconcentratie na implementatie bijkomende maatregelen | G17: Verwijderde vuilvracht door bijkomende maatregel | H17: Verwijderingsrendement maatregel | I17: Finaal geloosd volume | J17: Initieel geloosd volume water | L17: Code opmaak | M17: Beoordeling
G18: kg/jaar | H18: % | I18: m³/jaar | J18: m³/jaar
B19: 1 | C19: =IF(ISBLANK('Input impactbeoordeing'!B20)=TRUE,"",'Input impactbeoordeing'!B20) ->  | D19: =IF(ISBLANK('Input impactbeoordeing'!B20)=TRUE,"",'Input impactbeoordeing'!F20) ->  | E19: =IF(ISBLANK('Input impactbeoordeing'!B20)=TRUE,"",'Input impactbeoordeing'!J20) ->  | F19: =IF(C19="","",'Input bijkomende maatregelen'!F27) ->  | G19: =IF(C19="","",'Input bijkomende maatregelen'!I27) ->  | H19: =IFERROR(('Input impactbeoordeing'!AC20-'Input bijkomende maatregelen'!J27)/'Input impactbeoordeing'!AC20,"") ->  | I19: =IF(ISBLANK('Input impactbeoordeing'!B20)=TRUE,"",'Input bijkomende maatregelen'!$D$15) ->  | J19: =IF(ISBLANK('Input impactbeoordeing'!B20)=TRUE,"",'Input impactbeoordeing'!$C$9) ->  | L19: =IFERROR(IF(F19<=(E19/2),Expressielijsten!$D$6,IF(F19<=E19,Expressielijsten!$D$7,IF(AND(F19>E19,H19>0.75),Expressielijsten!$D$8,Expressielijsten!$D$9))),"") ->  | M19: =IFERROR(IF(F19<=(E19/2),Expressielijsten!$B$6,IF(F19<=E19,Expressielijsten!$B$7,IF(AND(F19>E19,H19>0.75),Expressielijsten!$B$8,Expressielijsten!$B$9))),"") -> 
B20: 2 | C20: =IF(ISBLANK('Input impactbeoordeing'!B21)=TRUE,"",'Input impactbeoordeing'!B21) ->  | D20: =IF(ISBLANK('Input impactbeoordeing'!B21)=TRUE,"",'Input impactbeoordeing'!F21) ->  | E20: =IF(ISBLANK('Input impactbeoordeing'!B21)=TRUE,"",'Input impactbeoordeing'!J21) ->  | F20: =IF(C20="","",'Input bijkomende maatregelen'!F28) ->  | G20: =IF(C20="","",'Input bijkomende maatregelen'!I28) ->  | H20: =IFERROR(('Input impactbeoordeing'!AC21-'Input bijkomende maatregelen'!J28)/'Input impactbeoordeing'!AC21,"") ->  | I20: =IF(ISBLANK('Input impactbeoordeing'!B21)=TRUE,"",'Input bijkomende maatregelen'!$D$15) ->  | J20: =IF(ISBLANK('Input impactbeoordeing'!B21)=TRUE,"",'Input impactbeoordeing'!$C$9) ->  | L20: =IFERROR(IF(F20<=(E20/2),Expressielijsten!$D$6,IF(F20<=E20,Expressielijsten!$D$7,IF(AND(F20>E20,H20>0.75),Expressielijsten!$D$8,Expressielijsten!$D$9))),"") ->  | M20: =IFERROR(IF(F20<=(E20/2),Expressielijsten!$B$6,IF(F20<=E20,Expressielijsten!$B$7,IF(AND(F20>E20,H20>0.75),Expressielijsten!$B$8,Expressielijsten!$B$9))),"") -> 
B21: 3 | C21: =IF(ISBLANK('Input impactbeoordeing'!B22)=TRUE,"",'Input impactbeoordeing'!B22) ->  | D21: =IF(ISBLANK('Input impactbeoordeing'!B22)=TRUE,"",'Input impactbeoordeing'!F22) ->  | E21: =IF(ISBLANK('Input impactbeoordeing'!B22)=TRUE,"",'Input impactbeoordeing'!J22) ->  | F21: =IF(C21="","",'Input bijkomende maatregelen'!F29) ->  | G21: =IF(C21="","",'Input bijkomende maatregelen'!I29) ->  | H21: =IFERROR(('Input impactbeoordeing'!AC22-'Input bijkomende maatregelen'!J29)/'Input impactbeoordeing'!AC22,"") ->  | I21: =IF(ISBLANK('Input impactbeoordeing'!B22)=TRUE,"",'Input bijkomende maatregelen'!$D$15) ->  | J21: =IF(ISBLANK('Input impactbeoordeing'!B22)=TRUE,"",'Input impactbeoordeing'!$C$9) ->  | L21: =IFERROR(IF(F21<=(E21/2),Expressielijsten!$D$6,IF(F21<=E21,Expressielijsten!$D$7,IF(AND(F21>E21,H21>0.75),Expressielijsten!$D$8,Expressielijsten!$D$9))),"") ->  | M21: =IFERROR(IF(F21<=(E21/2),Expressielijsten!$B$6,IF(F21<=E21,Expressielijsten!$B$7,IF(AND(F21>E21,H21>0.75),Expressielijsten!$B$8,Expressielijsten!$B$9))),"") -> 
B22: 4 | C22: =IF(ISBLANK('Input impactbeoordeing'!B23)=TRUE,"",'Input impactbeoordeing'!B23) ->  | D22: =IF(ISBLANK('Input impactbeoordeing'!B23)=TRUE,"",'Input impactbeoordeing'!F23) ->  | E22: =IF(ISBLANK('Input impactbeoordeing'!B23)=TRUE,"",'Input impactbeoordeing'!J23) ->  | F22: =IF(C22="","",'Input bijkomende maatregelen'!F30) ->  | G22: =IF(C22="","",'Input bijkomende maatregelen'!I30) ->  | H22: =IFERROR(('Input impactbeoordeing'!AC23-'Input bijkomende maatregelen'!J30)/'Input impactbeoordeing'!AC23,"") ->  | I22: =IF(ISBLANK('Input impactbeoordeing'!B23)=TRUE,"",'Input bijkomende maatregelen'!$D$15) ->  | J22: =IF(ISBLANK('Input impactbeoordeing'!B23)=TRUE,"",'Input impactbeoordeing'!$C$9) ->  | L22: =IFERROR(IF(F22<=(E22/2),Expressielijsten!$D$6,IF(F22<=E22,Expressielijsten!$D$7,IF(AND(F22>E22,H22>0.75),Expressielijsten!$D$8,Expressielijsten!$D$9))),"") ->  | M22: =IFERROR(IF(F22<=(E22/2),Expressielijsten!$B$6,IF(F22<=E22,Expressielijsten!$B$7,IF(AND(F22>E22,H22>0.75),Expressielijsten!$B$8,Expressielijsten!$B$9))),"") -> 
B23: 5 | C23: =IF(ISBLANK('Input impactbeoordeing'!B24)=TRUE,"",'Input impactbeoordeing'!B24) ->  | D23: =IF(ISBLANK('Input impactbeoordeing'!B24)=TRUE,"",'Input impactbeoordeing'!F24) ->  | E23: =IF(ISBLANK('Input impactbeoordeing'!B24)=TRUE,"",'Input impactbeoordeing'!J24) ->  | F23: =IF(C23="","",'Input bijkomende maatregelen'!F31) ->  | G23: =IF(C23="","",'Input bijkomende maatregelen'!I31) ->  | H23: =IFERROR(('Input impactbeoordeing'!AC24-'Input bijkomende maatregelen'!J31)/'Input impactbeoordeing'!AC24,"") ->  | I23: =IF(ISBLANK('Input impactbeoordeing'!B24)=TRUE,"",'Input bijkomende maatregelen'!$D$15) ->  | J23: =IF(ISBLANK('Input impactbeoordeing'!B24)=TRUE,"",'Input impactbeoordeing'!$C$9) ->  | L23: =IFERROR(IF(F23<=(E23/2),Expressielijsten!$D$6,IF(F23<=E23,Expressielijsten!$D$7,IF(AND(F23>E23,H23>0.75),Expressielijsten!$D$8,Expressielijsten!$D$9))),"") ->  | M23: =IFERROR(IF(F23<=(E23/2),Expressielijsten!$B$6,IF(F23<=E23,Expressielijsten!$B$7,IF(AND(F23>E23,H23>0.75),Expressielijsten!$B$8,Expressielijsten!$B$9))),"") -> 
B24: 6 | C24: =IF(ISBLANK('Input impactbeoordeing'!B25)=TRUE,"",'Input impactbeoordeing'!B25) ->  | D24: =IF(ISBLANK('Input impactbeoordeing'!B25)=TRUE,"",'Input impactbeoordeing'!F25) ->  | E24: =IF(ISBLANK('Input impactbeoordeing'!B25)=TRUE,"",'Input impactbeoordeing'!J25) ->  | F24: =IF(C24="","",'Input bijkomende maatregelen'!F32) ->  | G24: =IF(C24="","",'Input bijkomende maatregelen'!I32) ->  | H24: =IFERROR(('Input impactbeoordeing'!AC25-'Input bijkomende maatregelen'!J32)/'Input impactbeoordeing'!AC25,"") ->  | I24: =IF(ISBLANK('Input impactbeoordeing'!B25)=TRUE,"",'Input bijkomende maatregelen'!$D$15) ->  | J24: =IF(ISBLANK('Input impactbeoordeing'!B25)=TRUE,"",'Input impactbeoordeing'!$C$9) ->  | L24: =IFERROR(IF(F24<=(E24/2),Expressielijsten!$D$6,IF(F24<=E24,Expressielijsten!$D$7,IF(AND(F24>E24,H24>0.75),Expressielijsten!$D$8,Expressielijsten!$D$9))),"") ->  | M24: =IFERROR(IF(F24<=(E24/2),Expressielijsten!$B$6,IF(F24<=E24,Expressielijsten!$B$7,IF(AND(F24>E24,H24>0.75),Expressielijsten!$B$8,Expressielijsten!$B$9))),"") -> 
B25: 7 | C25: =IF(ISBLANK('Input impactbeoordeing'!B26)=TRUE,"",'Input impactbeoordeing'!B26) ->  | D25: =IF(ISBLANK('Input impactbeoordeing'!B26)=TRUE,"",'Input impactbeoordeing'!F26) ->  | E25: =IF(ISBLANK('Input impactbeoordeing'!B26)=TRUE,"",'Input impactbeoordeing'!J26) ->  | F25: =IF(C25="","",'Input bijkomende maatregelen'!F33) ->  | G25: =IF(C25="","",'Input bijkomende maatregelen'!I33) ->  | H25: =IFERROR(('Input impactbeoordeing'!AC26-'Input bijkomende maatregelen'!J33)/'Input impactbeoordeing'!AC26,"") ->  | I25: =IF(ISBLANK('Input impactbeoordeing'!B26)=TRUE,"",'Input bijkomende maatregelen'!$D$15) ->  | J25: =IF(ISBLANK('Input impactbeoordeing'!B26)=TRUE,"",'Input impactbeoordeing'!$C$9) ->  | L25: =IFERROR(IF(F25<=(E25/2),Expressielijsten!$D$6,IF(F25<=E25,Expressielijsten!$D$7,IF(AND(F25>E25,H25>0.75),Expressielijsten!$D$8,Expressielijsten!$D$9))),"") ->  | M25: =IFERROR(IF(F25<=(E25/2),Expressielijsten!$B$6,IF(F25<=E25,Expressielijsten!$B$7,IF(AND(F25>E25,H25>0.75),Expressielijsten!$B$8,Expressielijsten!$B$9))),"") -> 
B29: Criterium 2: Kosteneffectiviteit saneringstechniek | AF29: Berekening KE BBT model
C30: Probleemparameter(s) | D30: Stof x impactcategorie | E30: KE bijkomende maatregel | F30: =AS30 -> Toetscriterium KE | G30: Duiding toetscriterium | M30: Beoordeling | AH30: Berekening KE BBT (alg) | AJ30: Berekening BBT+ (alg) | AL30: Afwijking BBT | AO30: Stofcategorie | AP30: BBT (na index) | AQ30: BBT+ (na index) | AR30: BBT/BBT+ toetscriteria | AS30: Toetscriterium KE | AT30: Expressie toetscriterium | AY30: Index consumptieprijzen horende bij BBT NL model (BJ 2013 = 100)
E31: EUR/kg | F31: =AS31 -> EUR/kg | L31: Code opmaak | AF31: Stof | AG31: Bezwaarlijkheid stof | AH31: Bezwaarlijkheid < 0.01 | AI31: Bezwaarlijkheid >= 0.01 | AJ31: Bezwaarlijkheid < 0.01 | AK31: Bezwaarlijkheid >= 0.01 | AL31: BBT afwijkend | AM31: BBT | AN31: BBT+ | AS31: EUR/kg | AY31: 2018-01-01 | AZ31: 106.22
B32: 1 | C32: =IF(ISBLANK('Input impactbeoordeing'!B20)=TRUE,"",'Input impactbeoordeing'!B20) ->  | D32: =IF(ISBLANK('Input impactbeoordeing'!B20)=TRUE,"",M5) ->  | E32: ='Samenvatting econ kengetallen'!F44 ->  | G32: =AR32 -> Geen toetsing vereist - Cat 3 | J32: =AT32 -> KE afgeleid uit NL model | L32: =IF(ISBLANK('Input impactbeoordeing'!B20)=TRUE,"",IF(AR32="Bovenste kostencurve",IF(E32<AQ32,IF(E32<AP32,Expressielijsten!$D$18,Expressielijsten!$D$14),Expressielijsten!$D$15),IF(E32<F32,Expressielijsten!$D$16,Expressielijsten!$D$17))) ->  | M32: =IF(ISBLANK('Input impactbeoordeing'!B20)=TRUE,"",IF(AR32="Bovenste kostencurve",IF(E32<AQ32,IF(E32<AP32,Expressielijsten!$B$18,Expressielijsten!$B$14),Expressielijsten!$B$15),IF(E32<F32,Expressielijsten!$B$16,Expressielijsten!$B$17))) ->  | AF32: =C32 ->  | AG32: =F5 ->  | AH32: =198282.668*AG32^1.148887 ->  | AI32: =660.23*LN(AG32)+3948.9 ->  | AJ32: =1982826.68*AG32^1.148887 ->  | AK32: =6602.3*LN(AG32)+39489 ->  | AL32: =VLOOKUP($AF32,'Keuzelijst parameters'!$R$1:$U$378,2,FALSE) -> 0 | AM32: =IF(AL32="Ja",VLOOKUP($AF32,'Keuzelijst parameters'!$R$1:$U$378,3,FALSE),"") ->  | AN32: =IF(AL32="Ja",VLOOKUP($AF32,'Keuzelijst parameters'!$R$1:$U$378,4,FALSE),"") ->  | AO32: =IF(C5="","",M5) ->  | AP32: =IF(AL32="ja",AM32,IF(AG32<0.01,AH32,AI32))*$AZ$32/$AZ$31 ->  | AQ32: =IF(AL32="ja",AN32,IF(AG32<0.01,AJ32,AK32))*$AZ$32/$AZ$31 ->  | AR32: =IFERROR(VLOOKUP(AO32,'Criteria volgens stofcategorie'!$G$4:$AB$7,22,FALSE),"Geen toetsing vereist - Cat 3") -> Geen toetsing vereist - Cat 3 | AS32: =IF(AO32=1,AQ32,AP32) ->  | AT32: =IF(AL32="ja",Expressielijsten!$B$23,Expressielijsten!$B$24) -> KE afgeleid uit NL model | AY32: Ingegeven index | AZ32: ='Input impactbeoordeing'!A31 -> 134.44
B33: 2 | C33: =IF(ISBLANK('Input impactbeoordeing'!B21)=TRUE,"",'Input impactbeoordeing'!B21) ->  | D33: =IF(ISBLANK('Input impactbeoordeing'!B21)=TRUE,"",M6) ->  | E33: ='Samenvatting econ kengetallen'!F45 ->  | G33: =AR33 -> Geen toetsing vereist - Cat 3 | J33: =AT33 -> KE afgeleid uit NL model | L33: =IF(ISBLANK('Input impactbeoordeing'!B21)=TRUE,"",IF(AR33="Bovenste kostencurve",IF(E33<AQ33,IF(E33<AP33,Expressielijsten!$D$18,Expressielijsten!$D$14),Expressielijsten!$D$15),IF(E33<F33,Expressielijsten!$D$16,Expressielijsten!$D$17))) ->  | M33: =IF(ISBLANK('Input impactbeoordeing'!B21)=TRUE,"",IF(AR33="Bovenste kostencurve",IF(E33<AQ33,IF(E33<AP33,Expressielijsten!$B$18,Expressielijsten!$B$14),Expressielijsten!$B$15),IF(E33<F33,Expressielijsten!$B$16,Expressielijsten!$B$17))) ->  | AH33: =198282.668*AG33^1.148887 ->  | AI33: =660.23*LN(AG33)+3948.9 ->  | AJ33: =1982826.68*AG33^1.148887 ->  | AK33: =6602.3*LN(AG33)+39489 ->  | AL33: =VLOOKUP($AF33,'Keuzelijst parameters'!$R$1:$U$378,2,FALSE) -> 0 | AM33: =IF(AL33="Ja",VLOOKUP($AF33,'Keuzelijst parameters'!$R$1:$U$378,3,FALSE),"") ->  | AN33: =IF(AL33="Ja",VLOOKUP($AF33,'Keuzelijst parameters'!$R$1:$U$378,4,FALSE),"") ->  | AP33: =IF(AL33="ja",AM33,IF(AG33<0.01,AH33,AI33))*$AZ$32/$AZ$31 ->  | AQ33: =IF(AL33="ja",AN33,IF(AG33<0.01,AJ33,AK33))*$AZ$32/$AZ$31 ->  | AR33: =IFERROR(VLOOKUP(AO33,'Criteria volgens stofcategorie'!$G$4:$AB$7,22,FALSE),"Geen toetsing vereist - Cat 3") -> Geen toetsing vereist - Cat 3 | AS33: =IF(AO33=1,AQ33,AP33) ->  | AT33: =IF(AL33="ja",Expressielijsten!$B$23,Expressielijsten!$B$24) -> KE afgeleid uit NL model
B34: 3 | C34: =IF(ISBLANK('Input impactbeoordeing'!B22)=TRUE,"",'Input impactbeoordeing'!B22) ->  | D34: =IF(ISBLANK('Input impactbeoordeing'!B22)=TRUE,"",M7) ->  | E34: ='Samenvatting econ kengetallen'!F46 ->  | G34: Geen toetsing vereist - Cat 3 | J34: KE afgeleid uit NL model | L34: =IF(ISBLANK('Input impactbeoordeing'!B22)=TRUE,"",IF(AR34="Bovenste kostencurve",IF(E34<AQ34,IF(E34<AP34,Expressielijsten!$D$18,Expressielijsten!$D$14),Expressielijsten!$D$15),IF(E34<F34,Expressielijsten!$D$16,Expressielijsten!$D$17))) ->  | M34: =IF(ISBLANK('Input impactbeoordeing'!B22)=TRUE,"",IF(AR34="Bovenste kostencurve",IF(E34<AQ34,IF(E34<AP34,Expressielijsten!$B$18,Expressielijsten!$B$14),Expressielijsten!$B$15),IF(E34<F34,Expressielijsten!$B$16,Expressielijsten!$B$17))) ->  | AL34: =VLOOKUP($AF34,'Keuzelijst parameters'!$R$1:$U$378,2,FALSE) -> 0 | AM34: =IF(AL34="Ja",VLOOKUP($AF34,'Keuzelijst parameters'!$R$1:$U$378,3,FALSE),"") ->  | AN34: =IF(AL34="Ja",VLOOKUP($AF34,'Keuzelijst parameters'!$R$1:$U$378,4,FALSE),"") ->  | AR34: =IFERROR(VLOOKUP(AO34,'Criteria volgens stofcategorie'!$G$4:$AB$7,22,FALSE),"Geen toetsing vereist - Cat 3") -> Geen toetsing vereist - Cat 3 | AT34: =IF(AL34="ja",Expressielijsten!$B$23,Expressielijsten!$B$24) -> KE afgeleid uit NL model
B35: 4 | C35: =IF(ISBLANK('Input impactbeoordeing'!B23)=TRUE,"",'Input impactbeoordeing'!B23) ->  | D35: =IF(ISBLANK('Input impactbeoordeing'!B23)=TRUE,"",M8) ->  | E35: ='Samenvatting econ kengetallen'!F47 ->  | G35: Geen toetsing vereist - Cat 3 | J35: KE afgeleid uit NL model | L35: =IF(ISBLANK('Input impactbeoordeing'!B23)=TRUE,"",IF(AR35="Bovenste kostencurve",IF(E35<AQ35,IF(E35<AP35,Expressielijsten!$D$18,Expressielijsten!$D$14),Expressielijsten!$D$15),IF(E35<F35,Expressielijsten!$D$16,Expressielijsten!$D$17))) ->  | M35: =IF(ISBLANK('Input impactbeoordeing'!B23)=TRUE,"",IF(AR35="Bovenste kostencurve",IF(E35<AQ35,IF(E35<AP35,Expressielijsten!$B$18,Expressielijsten!$B$14),Expressielijsten!$B$15),IF(E35<F35,Expressielijsten!$B$16,Expressielijsten!$B$17))) ->  | AL35: =VLOOKUP($AF35,'Keuzelijst parameters'!$R$1:$U$378,2,FALSE) -> 0 | AM35: =IF(AL35="Ja",VLOOKUP($AF35,'Keuzelijst parameters'!$R$1:$U$378,3,FALSE),"") ->  | AN35: =IF(AL35="Ja",VLOOKUP($AF35,'Keuzelijst parameters'!$R$1:$U$378,4,FALSE),"") ->  | AR35: =IFERROR(VLOOKUP(AO35,'Criteria volgens stofcategorie'!$G$4:$AB$7,22,FALSE),"Geen toetsing vereist - Cat 3") -> Geen toetsing vereist - Cat 3 | AT35: =IF(AL35="ja",Expressielijsten!$B$23,Expressielijsten!$B$24) -> KE afgeleid uit NL model
B36: 5 | C36: =IF(ISBLANK('Input impactbeoordeing'!B24)=TRUE,"",'Input impactbeoordeing'!B24) ->  | D36: =IF(ISBLANK('Input impactbeoordeing'!B24)=TRUE,"",M9) ->  | E36: ='Samenvatting econ kengetallen'!F48 ->  | G36: Geen toetsing vereist - Cat 3 | J36: KE afgeleid uit NL model | L36: =IF(ISBLANK('Input impactbeoordeing'!B24)=TRUE,"",IF(AR36="Bovenste kostencurve",IF(E36<AQ36,IF(E36<AP36,Expressielijsten!$D$18,Expressielijsten!$D$14),Expressielijsten!$D$15),IF(E36<F36,Expressielijsten!$D$16,Expressielijsten!$D$17))) ->  | M36: =IF(ISBLANK('Input impactbeoordeing'!B24)=TRUE,"",IF(AR36="Bovenste kostencurve",IF(E36<AQ36,IF(E36<AP36,Expressielijsten!$B$18,Expressielijsten!$B$14),Expressielijsten!$B$15),IF(E36<F36,Expressielijsten!$B$16,Expressielijsten!$B$17))) ->  | AL36: =VLOOKUP($AF36,'Keuzelijst parameters'!$R$1:$U$378,2,FALSE) -> 0 | AM36: =IF(AL36="Ja",VLOOKUP($AF36,'Keuzelijst parameters'!$R$1:$U$378,3,FALSE),"") ->  | AN36: =IF(AL36="Ja",VLOOKUP($AF36,'Keuzelijst parameters'!$R$1:$U$378,4,FALSE),"") ->  | AR36: =IFERROR(VLOOKUP(AO36,'Criteria volgens stofcategorie'!$G$4:$AB$7,22,FALSE),"Geen toetsing vereist - Cat 3") -> Geen toetsing vereist - Cat 3 | AT36: =IF(AL36="ja",Expressielijsten!$B$23,Expressielijsten!$B$24) -> KE afgeleid uit NL model
B37: 6 | C37: =IF(ISBLANK('Input impactbeoordeing'!B25)=TRUE,"",'Input impactbeoordeing'!B25) ->  | D37: =IF(ISBLANK('Input impactbeoordeing'!B25)=TRUE,"",M10) ->  | E37: ='Samenvatting econ kengetallen'!F49 ->  | G37: Geen toetsing vereist - Cat 3 | J37: KE afgeleid uit NL model | L37: =IF(ISBLANK('Input impactbeoordeing'!B25)=TRUE,"",IF(AR37="Bovenste kostencurve",IF(E37<AQ37,IF(E37<AP37,Expressielijsten!$D$18,Expressielijsten!$D$14),Expressielijsten!$D$15),IF(E37<F37,Expressielijsten!$D$16,Expressielijsten!$D$17))) ->  | M37: =IF(ISBLANK('Input impactbeoordeing'!B25)=TRUE,"",IF(AR37="Bovenste kostencurve",IF(E37<AQ37,IF(E37<AP37,Expressielijsten!$B$18,Expressielijsten!$B$14),Expressielijsten!$B$15),IF(E37<F37,Expressielijsten!$B$16,Expressielijsten!$B$17))) ->  | AL37: =VLOOKUP($AF37,'Keuzelijst parameters'!$R$1:$U$378,2,FALSE) -> 0 | AM37: =IF(AL37="Ja",VLOOKUP($AF37,'Keuzelijst parameters'!$R$1:$U$378,3,FALSE),"") ->  | AN37: =IF(AL37="Ja",VLOOKUP($AF37,'Keuzelijst parameters'!$R$1:$U$378,4,FALSE),"") ->  | AR37: =IFERROR(VLOOKUP(AO37,'Criteria volgens stofcategorie'!$G$4:$AB$7,22,FALSE),"Geen toetsing vereist - Cat 3") -> Geen toetsing vereist - Cat 3 | AT37: =IF(AL37="ja",Expressielijsten!$B$23,Expressielijsten!$B$24) -> KE afgeleid uit NL model
B38: 7 | C38: =IF(ISBLANK('Input impactbeoordeing'!B26)=TRUE,"",'Input impactbeoordeing'!B26) ->  | D38: =IF(ISBLANK('Input impactbeoordeing'!B26)=TRUE,"",M11) ->  | E38: ='Samenvatting econ kengetallen'!F50 ->  | G38: Geen toetsing vereist - Cat 3 | J38: KE afgeleid uit NL model | L38: =IF(ISBLANK('Input impactbeoordeing'!B26)=TRUE,"",IF(AR38="Bovenste kostencurve",IF(E38<AQ38,IF(E38<AP38,Expressielijsten!$D$18,Expressielijsten!$D$14),Expressielijsten!$D$15),IF(E38<F38,Expressielijsten!$D$16,Expressielijsten!$D$17))) ->  | M38: =IF(ISBLANK('Input impactbeoordeing'!B26)=TRUE,"",IF(AR38="Bovenste kostencurve",IF(E38<AQ38,IF(E38<AP38,Expressielijsten!$B$18,Expressielijsten!$B$14),Expressielijsten!$B$15),IF(E38<F38,Expressielijsten!$B$16,Expressielijsten!$B$17))) ->  | AH38: =198282.668*AG38^1.148887 ->  | AI38: =660.23*LN(AG38)+3948.9 ->  | AJ38: =1982826.68*AG38^1.148887 ->  | AK38: =6602.3*LN(AG38)+39489 ->  | AL38: =VLOOKUP($AF38,'Keuzelijst parameters'!$R$1:$U$378,2,FALSE) -> 0 | AM38: =IF(AL38="Ja",VLOOKUP($AF38,'Keuzelijst parameters'!$R$1:$U$378,3,FALSE),"") ->  | AN38: =IF(AL38="Ja",VLOOKUP($AF38,'Keuzelijst parameters'!$R$1:$U$378,4,FALSE),"") ->  | AR38: =IFERROR(VLOOKUP(AO38,'Criteria volgens stofcategorie'!$G$4:$AB$7,22,FALSE),"Geen toetsing vereist - Cat 3") -> Geen toetsing vereist - Cat 3 | AT38: =IF(AL38="ja",Expressielijsten!$B$23,Expressielijsten!$B$24) -> KE afgeleid uit NL model
B42: Criterium 3: Economische draagkracht bedrijf
B43: Categorie stof met hoogste impact | D43: =MIN(M5:M10) -> 0 | AF43: Lijst selectie
B44: Toetscriterium stof met hoogste impact | D44: =VLOOKUP(D43,'Criteria volgens stofcategorie'!$G$3:$AB$7,22,FALSE) ->  | AF44: Vestiging & Holding
AF45: Vestiging
AF46: Holding
B47: Holding | D47: Financiële data van de holding | E47: Bijkomende maatregel (opex + ycc - baten) | F47: Ratio | G47: Criteria aanvaardbaar | H47: Criteria intermediair bovengrens | I47: Code | L47: Code opmaak | M47: Beoordeling
B48: Omzet | D48: =IFERROR('Samenvatting econ kengetallen'!$G$79,"Nog niet ingevuld") -> Nog niet ingevuld | E48: ='Samenvatting econ kengetallen'!$B$25 -> 0 | F48: =E48/D48 ->  | G48: =VLOOKUP($D$43,'Criteria volgens stofcategorie'!$G$4:$AB$7,10,FALSE) ->  | H48: =VLOOKUP($D$43,'Criteria volgens stofcategorie'!$G$4:$AB$7,12,FALSE) ->  | I48: =IF(F48<G48,Expressielijsten!$B$30,IF(F48<(H48+G48)/2,Expressielijsten!$B$31,IF(F48>=H48,Expressielijsten!$B$33,Expressielijsten!$B$32))) ->  | L48: =IF(D43=1,VLOOKUP(I51,Expressielijsten!A53:E117,5,FALSE),VLOOKUP(I51,Expressielijsten!A53:E117,4,FALSE)) ->  | M48: =IF(D43=1,VLOOKUP(I51,Expressielijsten!A53:C117,3,FALSE),VLOOKUP(I51,Expressielijsten!A53:C117,2,FALSE)) -> 
B49: Toegevoegde waarde | D49: =IFERROR('Samenvatting econ kengetallen'!$G$80,"Nog niet ingevuld") -> Nog niet ingevuld | E49: ='Samenvatting econ kengetallen'!$B$25 -> 0 | F49: =IF(D49<=0,1,E49/D49) ->  | G49: =VLOOKUP($D$43,'Criteria volgens stofcategorie'!$G$4:$AB$7,14,FALSE) ->  | H49: =VLOOKUP($D$43,'Criteria volgens stofcategorie'!$G$4:$AB$7,16,FALSE) ->  | I49: =IF(F49<G49,Expressielijsten!$B$37,IF(F49<(H49+G49)/2,Expressielijsten!$B$38,IF(F49>=H49,Expressielijsten!$B$40,Expressielijsten!$B$39))) -> 
B50: EBITDA | D50: =IFERROR('Samenvatting econ kengetallen'!$G$81,"Nog niet ingevuld") -> Nog niet ingevuld | E50: ='Samenvatting econ kengetallen'!$B$25 -> 0 | F50: =IF(D50<=0,1,E50/D50) ->  | G50: =VLOOKUP($D$43,'Criteria volgens stofcategorie'!$G$4:$AB$7,18,FALSE) ->  | H50: =VLOOKUP($D$43,'Criteria volgens stofcategorie'!$G$4:$AB$7,20,FALSE) ->  | I50: =IF(F50<G50,Expressielijsten!$B$44,IF(F50<(H50+G50)/2,Expressielijsten!$B$45,IF(F50>=H50,Expressielijsten!$B$47,Expressielijsten!$B$46))) -> 
I51: =I48+I49+I50 -> 
B54: Vestiging | D54: Financiële data van de vestiging | E54: Bijkomende maatregel (opex + ycc - baten) | F54: Ratio | G54: Criteria aanvaardbaar | H54: Criteria intermediair bovengrens | I54: Code | L54: Code opmaak | M54: Beoordeling
B55: Omzet | D55: =IFERROR('Samenvatting econ kengetallen'!$G$70,"Nog niet ingevuld") -> Nog niet ingevuld | E55: ='Samenvatting econ kengetallen'!$B$25 -> 0 | F55: =E55/D55 ->  | G55: =VLOOKUP($D$43,'Criteria volgens stofcategorie'!$G$4:$AB$7,10,FALSE) ->  | H55: =VLOOKUP($D$43,'Criteria volgens stofcategorie'!$G$4:$AB$7,12,FALSE) ->  | I55: =IF(F55<G55,Expressielijsten!$B$30,IF(F55<(H55+G55)/2,Expressielijsten!$B$31,IF(F55>=H55,Expressielijsten!$B$33,Expressielijsten!$B$32))) ->  | L55: =IF(D43=1,VLOOKUP(I58,Expressielijsten!A53:E117,5,FALSE),VLOOKUP(I58,Expressielijsten!A53:E117,4,FALSE)) ->  | M55: =IF(D43=1,VLOOKUP(I58,Expressielijsten!A53:C117,3,FALSE),VLOOKUP(I58,Expressielijsten!A53:C117,2,FALSE)) -> 
B56: Toegevoegde waarde | D56: =IFERROR('Samenvatting econ kengetallen'!$G$71,"Nog niet ingevuld") -> Nog niet ingevuld | E56: ='Samenvatting econ kengetallen'!$B$25 -> 0 | F56: =IF(D56<=0,1,E56/D56) ->  | G56: =VLOOKUP($D$43,'Criteria volgens stofcategorie'!$G$4:$AB$7,14,FALSE) ->  | H56: =VLOOKUP($D$43,'Criteria volgens stofcategorie'!$G$4:$AB$7,16,FALSE) ->  | I56: =IF(F56<G56,Expressielijsten!$B$37,IF(F56<(H56+G56)/2,Expressielijsten!$B$38,IF(F56>=H56,Expressielijsten!$B$40,Expressielijsten!$B$39))) -> 
B57: EBITDA | D57: =IFERROR('Samenvatting econ kengetallen'!$G$72,"Nog niet ingevuld") -> Nog niet ingevuld | E57: ='Samenvatting econ kengetallen'!$B$25 -> 0 | F57: =IF(D57<=0,1,E57/D57) ->  | G57: =VLOOKUP($D$43,'Criteria volgens stofcategorie'!$G$4:$AB$7,18,FALSE) ->  | H57: =VLOOKUP($D$43,'Criteria volgens stofcategorie'!$G$4:$AB$7,20,FALSE) ->  | I57: =IF(F57<G57,Expressielijsten!$B$44,IF(F57<(H57+G57)/2,Expressielijsten!$B$45,IF(F57>=H57,Expressielijsten!$B$47,Expressielijsten!$B$46))) -> 
I58: =I55+I56+I57 -> 
B63: Criterium 4: Vergelijking t.o.v. huidige maatregelen
C64: Probleemparameter(s) | D64: Totale vuilvracht | E64: Verwijderde vuilvracht huidige maatregelen | F64: Verwijderde vuilvracht bijkomende maatregelen | G64: Bijdrage bestaande maatregelen aan halen doelstelling toegestane vuilvracht | H64: Bijdrage bijkomende maatregelen aan halen doelstelling toegestane vuilvracht | I64: Toegestane vuilvracht | J64: KE bestaande maatregel | K64: KE bijkomende maatregelen | M64: Beoordeling
D65: kg/jaar | E65: kg/jaar | F65: kg/jaar | G65: % | H65: % | I65: kg/jaar | J65: EUR/kg | K65: EUR/kg
B66: 1 | C66: =IF(ISBLANK('Input impactbeoordeing'!B20)=TRUE,"",'Input impactbeoordeing'!B20) ->  | D66: =IF(ISBLANK('Input impactbeoordeing'!B20)=TRUE,"",IF(ISBLANK('Input huidige maatreg. (fac.)'!D17)=TRUE,"Inkomende vuilvracht niet gespecifieerd",'Input huidige maatreg. (fac.)'!H17)) ->  | E66: =IF(ISBLANK('Input impactbeoordeing'!B20)=TRUE,"",IF(ISBLANK('Input huidige maatreg. (fac.)'!D17)=TRUE,"Inkomende vuilvracht niet gespecifieerd",'Input huidige maatreg. (fac.)'!K17)) ->  | F66: ='Input bijkomende maatregelen'!I27 ->  | G66: =IF(ISBLANK('Input impactbeoordeing'!B20)=TRUE,"",IFERROR(E66/(D66-I66),"Inkomende vuilvracht niet gespecifieerd")) ->  | H66: =IF(ISBLANK('Input impactbeoordeing'!B20)=TRUE,"",IFERROR(F66/(D66-I66),"Inkomende vuilvracht niet gespecifieerd")) ->  | I66: =IF(ISBLANK('Input impactbeoordeing'!B20)=TRUE,"",'Input impactbeoordeing'!AD20) ->  | J66: ='Samenvatting econ kengetallen'!C44 ->  | K66: =E32 ->  | M66: =IF(ISBLANK('Input impactbeoordeing'!B20)=TRUE,"",_xlfn.CONCAT(IF(G66="Inkomende vuilvracht niet gespecifieerd","",IF(H66>G66,Expressielijsten!$B$122,Expressielijsten!$B$123)),"; ",IF(K66<J66,Expressielijsten!$B$124,Expressielijsten!$B$125))) -> 
B67: 2 | C67: =IF(ISBLANK('Input impactbeoordeing'!B21)=TRUE,"",'Input impactbeoordeing'!B21) ->  | D67: =IF(ISBLANK('Input impactbeoordeing'!B21)=TRUE,"",IF(ISBLANK('Input huidige maatreg. (fac.)'!D18)=TRUE,"Inkomende vuilvracht niet gespecifieerd",'Input huidige maatreg. (fac.)'!H18)) ->  | E67: =IF(ISBLANK('Input impactbeoordeing'!B21)=TRUE,"",IF(ISBLANK('Input huidige maatreg. (fac.)'!D18)=TRUE,"Inkomende vuilvracht niet gespecifieerd",'Input huidige maatreg. (fac.)'!K18)) ->  | F67: ='Input bijkomende maatregelen'!I28 ->  | G67: =IF(ISBLANK('Input impactbeoordeing'!B21)=TRUE,"",IFERROR(E67/(D67-I67),"Inkomende vuilvracht niet gespecifieerd")) ->  | H67: =IF(ISBLANK('Input impactbeoordeing'!B21)=TRUE,"",IFERROR(F67/(D67-I67),"Inkomende vuilvracht niet gespecifieerd")) ->  | I67: =IF(ISBLANK('Input impactbeoordeing'!B21)=TRUE,"",'Input impactbeoordeing'!AD21) ->  | J67: ='Samenvatting econ kengetallen'!C45 ->  | M67: =IF(ISBLANK('Input impactbeoordeing'!B21)=TRUE,"",_xlfn.CONCAT(IF(G67="Inkomende vuilvracht niet gespecifieerd","",IF(H67>G67,Expressielijsten!$B$122,Expressielijsten!$B$123)),"; ",IF(K67<J67,Expressielijsten!$B$124,Expressielijsten!$B$125))) -> 
B68: 3 | C68: =IF(ISBLANK('Input impactbeoordeing'!B22)=TRUE,"",'Input impactbeoordeing'!B22) ->  | D68: =IF(ISBLANK('Input impactbeoordeing'!B22)=TRUE,"",IF(ISBLANK('Input huidige maatreg. (fac.)'!D19)=TRUE,"Inkomende vuilvracht niet gespecifieerd",'Input huidige maatreg. (fac.)'!H19)) ->  | E68: =IF(ISBLANK('Input impactbeoordeing'!B22)=TRUE,"",IF(ISBLANK('Input huidige maatreg. (fac.)'!D19)=TRUE,"Inkomende vuilvracht niet gespecifieerd",'Input huidige maatreg. (fac.)'!K19)) ->  | F68: ='Input bijkomende maatregelen'!I29 ->  | G68: =IF(ISBLANK('Input impactbeoordeing'!B22)=TRUE,"",IFERROR(E68/(D68-I68),"Inkomende vuilvracht niet gespecifieerd")) ->  | H68: =IF(ISBLANK('Input impactbeoordeing'!B22)=TRUE,"",IFERROR(F68/(D68-I68),"Inkomende vuilvracht niet gespecifieerd")) ->  | I68: =IF(ISBLANK('Input impactbeoordeing'!B22)=TRUE,"",'Input impactbeoordeing'!AD22) ->  | J68: ='Samenvatting econ kengetallen'!C46 ->  | M68: =IF(ISBLANK('Input impactbeoordeing'!B22)=TRUE,"",_xlfn.CONCAT(IF(G68="Inkomende vuilvracht niet gespecifieerd","",IF(H68>G68,Expressielijsten!$B$122,Expressielijsten!$B$123)),"; ",IF(K68<J68,Expressielijsten!$B$124,Expressielijsten!$B$125))) -> 
B69: 4 | C69: =IF(ISBLANK('Input impactbeoordeing'!B23)=TRUE,"",'Input impactbeoordeing'!B23) ->  | D69: =IF(ISBLANK('Input impactbeoordeing'!B23)=TRUE,"",IF(ISBLANK('Input huidige maatreg. (fac.)'!D20)=TRUE,"Inkomende vuilvracht niet gespecifieerd",'Input huidige maatreg. (fac.)'!H20)) ->  | E69: =IF(ISBLANK('Input impactbeoordeing'!B23)=TRUE,"",IF(ISBLANK('Input huidige maatreg. (fac.)'!D20)=TRUE,"Inkomende vuilvracht niet gespecifieerd",'Input huidige maatreg. (fac.)'!K20)) ->  | F69: ='Input bijkomende maatregelen'!I30 ->  | G69: =IF(ISBLANK('Input impactbeoordeing'!B23)=TRUE,"",IFERROR(E69/(D69-I69),"Inkomende vuilvracht niet gespecifieerd")) ->  | H69: =IF(ISBLANK('Input impactbeoordeing'!B23)=TRUE,"",IFERROR(F69/(D69-I69),"Inkomende vuilvracht niet gespecifieerd")) ->  | I69: =IF(ISBLANK('Input impactbeoordeing'!B23)=TRUE,"",'Input impactbeoordeing'!AD23) ->  | J69: ='Samenvatting econ kengetallen'!C47 ->  | M69: =IF(ISBLANK('Input impactbeoordeing'!B23)=TRUE,"",_xlfn.CONCAT(IF(G69="Inkomende vuilvracht niet gespecifieerd","",IF(H69>G69,Expressielijsten!$B$122,Expressielijsten!$B$123)),"; ",IF(K69<J69,Expressielijsten!$B$124,Expressielijsten!$B$125))) -> 
B70: 5 | C70: =IF(ISBLANK('Input impactbeoordeing'!B24)=TRUE,"",'Input impactbeoordeing'!B24) ->  | D70: =IF(ISBLANK('Input impactbeoordeing'!B24)=TRUE,"",IF(ISBLANK('Input huidige maatreg. (fac.)'!D21)=TRUE,"Inkomende vuilvracht niet gespecifieerd",'Input huidige maatreg. (fac.)'!H21)) ->  | E70: =IF(ISBLANK('Input impactbeoordeing'!B24)=TRUE,"",IF(ISBLANK('Input huidige maatreg. (fac.)'!D21)=TRUE,"Inkomende vuilvracht niet gespecifieerd",'Input huidige maatreg. (fac.)'!K21)) ->  | F70: ='Input bijkomende maatregelen'!I31 ->  | G70: =IF(ISBLANK('Input impactbeoordeing'!B24)=TRUE,"",IFERROR(E70/(D70-I70),"Inkomende vuilvracht niet gespecifieerd")) ->  | H70: =IF(ISBLANK('Input impactbeoordeing'!B24)=TRUE,"",IFERROR(F70/(D70-I70),"Inkomende vuilvracht niet gespecifieerd")) ->  | I70: =IF(ISBLANK('Input impactbeoordeing'!B24)=TRUE,"",'Input impactbeoordeing'!AD24) ->  | J70: ='Samenvatting econ kengetallen'!C48 ->  | M70: =IF(ISBLANK('Input impactbeoordeing'!B24)=TRUE,"",_xlfn.CONCAT(IF(G70="Inkomende vuilvracht niet gespecifieerd","",IF(H70>G70,Expressielijsten!$B$122,Expressielijsten!$B$123)),"; ",IF(K70<J70,Expressielijsten!$B$124,Expressielijsten!$B$125))) -> 
B71: 6 | C71: =IF(ISBLANK('Input impactbeoordeing'!B25)=TRUE,"",'Input impactbeoordeing'!B25) ->  | D71: =IF(ISBLANK('Input impactbeoordeing'!B25)=TRUE,"",IF(ISBLANK('Input huidige maatreg. (fac.)'!D22)=TRUE,"Inkomende vuilvracht niet gespecifieerd",'Input huidige maatreg. (fac.)'!H22)) ->  | E71: =IF(ISBLANK('Input impactbeoordeing'!B25)=TRUE,"",IF(ISBLANK('Input huidige maatreg. (fac.)'!D22)=TRUE,"Inkomende vuilvracht niet gespecifieerd",'Input huidige maatreg. (fac.)'!K22)) ->  | F71: ='Input bijkomende maatregelen'!I32 ->  | G71: =IF(ISBLANK('Input impactbeoordeing'!B25)=TRUE,"",IFERROR(E71/(D71-I71),"Inkomende vuilvracht niet gespecifieerd")) ->  | H71: =IF(ISBLANK('Input impactbeoordeing'!B25)=TRUE,"",IFERROR(F71/(D71-I71),"Inkomende vuilvracht niet gespecifieerd")) ->  | I71: =IF(ISBLANK('Input impactbeoordeing'!B25)=TRUE,"",'Input impactbeoordeing'!AD25) ->  | J71: ='Samenvatting econ kengetallen'!C49 ->  | M71: =IF(ISBLANK('Input impactbeoordeing'!B25)=TRUE,"",_xlfn.CONCAT(IF(G71="Inkomende vuilvracht niet gespecifieerd","",IF(H71>G71,Expressielijsten!$B$122,Expressielijsten!$B$123)),"; ",IF(K71<J71,Expressielijsten!$B$124,Expressielijsten!$B$125))) -> 
B72: 7 | C72: =IF(ISBLANK('Input impactbeoordeing'!B26)=TRUE,"",'Input impactbeoordeing'!B26) ->  | D72: =IF(ISBLANK('Input impactbeoordeing'!B26)=TRUE,"",IF(ISBLANK('Input huidige maatreg. (fac.)'!D23)=TRUE,"Inkomende vuilvracht niet gespecifieerd",'Input huidige maatreg. (fac.)'!H23)) ->  | E72: =IF(ISBLANK('Input impactbeoordeing'!B26)=TRUE,"",IF(ISBLANK('Input huidige maatreg. (fac.)'!D23)=TRUE,"Inkomende vuilvracht niet gespecifieerd",'Input huidige maatreg. (fac.)'!K23)) ->  | F72: ='Input bijkomende maatregelen'!I33 ->  | G72: =IF(ISBLANK('Input impactbeoordeing'!B26)=TRUE,"",IFERROR(E72/(D72-I72),"Inkomende vuilvracht niet gespecifieerd")) ->  | H72: =IF(ISBLANK('Input impactbeoordeing'!B26)=TRUE,"",IFERROR(F72/(D72-I72),"Inkomende vuilvracht niet gespecifieerd")) ->  | I72: =IF(ISBLANK('Input impactbeoordeing'!B26)=TRUE,"",'Input impactbeoordeing'!AD26) ->  | J72: ='Samenvatting econ kengetallen'!C50 ->  | M72: =IF(ISBLANK('Input impactbeoordeing'!B26)=TRUE,"",_xlfn.CONCAT(IF(G72="Inkomende vuilvracht niet gespecifieerd","",IF(H72>G72,Expressielijsten!$B$122,Expressielijsten!$B$123)),"; ",IF(K72<J72,Expressielijsten!$B$124,Expressielijsten!$B$125))) -> 
B75: Criterium 5: Overzicht crossmedia-effecten
B77: ='Input bijkomende maatregelen'!B88 -> A Emissies naar water - opconcentratie reeds aanwezige polluent | E77: ='Input bijkomende maatregelen'!L90 -> Proc. Bijdrage onder realistische omstandigheden | F77: Significantiedrempel | L77: Code opmaak | M77: Beoordeling | AF77: Significantiedrempel cross media | AG77: 0.01
B78: 1 | C78: =IF(ISBLANK('Input impactbeoordeing'!B20)=TRUE,"",'Input impactbeoordeing'!B20) ->  | E78: =IF(C78="","",IF('Input bijkomende maatregelen'!L92="","niet van toepassing",'Input bijkomende maatregelen'!L92)) ->  | F78: =IF(ISBLANK('Input impactbeoordeing'!B20)=TRUE,"",IF(E78="niet van toepassing","-",$AG$77)) ->  | L78: =IF(ISBLANK('Input bijkomende maatregelen'!C92)=TRUE,"",IF(E78="niet van toepassing",1,IF(E78>F78,0,1))) -> 1 | M78: =IF(ISBLANK('Input bijkomende maatregelen'!C92)=TRUE,"",IF(E78="niet van toepassing",Expressielijsten!$B$131,IF(E78>F78,Expressielijsten!$B$130,Expressielijsten!$B$131))) -> Geen significant cross media effect te verwachten
B79: 2 | C79: =IF(ISBLANK('Input impactbeoordeing'!B21)=TRUE,"",'Input impactbeoordeing'!B21) ->  | E79: =IF(C79="","",IF('Input bijkomende maatregelen'!L93="","niet van toepassing",'Input bijkomende maatregelen'!L93)) ->  | F79: =IF(ISBLANK('Input impactbeoordeing'!B21)=TRUE,"",IF(E79="niet van toepassing","-",$AG$77)) ->  | L79: =IF(ISBLANK('Input bijkomende maatregelen'!C93)=TRUE,"",IF(E79="niet van toepassing",1,IF(E79>F79,0,1))) -> 1 | M79: =IF(ISBLANK('Input bijkomende maatregelen'!C93)=TRUE,"",IF(E79="niet van toepassing",Expressielijsten!$B$131,IF(E79>F79,Expressielijsten!$B$130,Expressielijsten!$B$131))) -> Geen significant cross media effect te verwachten
B80: 3 | C80: =IF(ISBLANK('Input impactbeoordeing'!B22)=TRUE,"",'Input impactbeoordeing'!B22) ->  | E80: =IF(C80="","",IF('Input bijkomende maatregelen'!L94="","niet van toepassing",'Input bijkomende maatregelen'!L94)) ->  | F80: =IF(ISBLANK('Input impactbeoordeing'!B22)=TRUE,"",IF(E80="niet van toepassing","-",$AG$77)) ->  | L80: =IF(ISBLANK('Input bijkomende maatregelen'!C94)=TRUE,"",IF(E80="niet van toepassing",1,IF(E80>F80,0,1))) -> 1 | M80: =IF(ISBLANK('Input bijkomende maatregelen'!C94)=TRUE,"",IF(E80="niet van toepassing",Expressielijsten!$B$131,IF(E80>F80,Expressielijsten!$B$130,Expressielijsten!$B$131))) -> Geen significant cross media effect te verwachten
B81: 4 | C81: =IF(ISBLANK('Input impactbeoordeing'!B23)=TRUE,"",'Input impactbeoordeing'!B23) ->  | E81: =IF(C81="","",IF('Input bijkomende maatregelen'!L95="","niet van toepassing",'Input bijkomende maatregelen'!L95)) ->  | F81: =IF(ISBLANK('Input impactbeoordeing'!B23)=TRUE,"",IF(E81="niet van toepassing","-",$AG$77)) ->  | L81: =IF(ISBLANK('Input bijkomende maatregelen'!C95)=TRUE,"",IF(E81="niet van toepassing",1,IF(E81>F81,0,1))) -> 1 | M81: =IF(ISBLANK('Input bijkomende maatregelen'!C95)=TRUE,"",IF(E81="niet van toepassing",Expressielijsten!$B$131,IF(E81>F81,Expressielijsten!$B$130,Expressielijsten!$B$131))) -> Geen significant cross media effect te verwachten
B82: 5 | C82: =IF(ISBLANK('Input impactbeoordeing'!B24)=TRUE,"",'Input impactbeoordeing'!B24) ->  | E82: =IF(C82="","",IF('Input bijkomende maatregelen'!L96="","niet van toepassing",'Input bijkomende maatregelen'!L96)) ->  | F82: =IF(ISBLANK('Input impactbeoordeing'!B24)=TRUE,"",IF(E82="niet van toepassing","-",$AG$77)) ->  | L82: =IF(ISBLANK('Input bijkomende maatregelen'!C96)=TRUE,"",IF(E82="niet van toepassing",1,IF(E82>F82,0,1))) -> 1 | M82: =IF(ISBLANK('Input bijkomende maatregelen'!C96)=TRUE,"",IF(E82="niet van toepassing",Expressielijsten!$B$131,IF(E82>F82,Expressielijsten!$B$130,Expressielijsten!$B$131))) -> Geen significant cross media effect te verwachten
B83: 6 | C83: =IF(ISBLANK('Input impactbeoordeing'!B25)=TRUE,"",'Input impactbeoordeing'!B25) ->  | E83: =IF(C83="","",IF('Input bijkomende maatregelen'!L97="","niet van toepassing",'Input bijkomende maatregelen'!L97)) ->  | F83: =IF(ISBLANK('Input impactbeoordeing'!B25)=TRUE,"",IF(E83="niet van toepassing","-",$AG$77)) ->  | L83: =IF(ISBLANK('Input bijkomende maatregelen'!C97)=TRUE,"",IF(E83="niet van toepassing",1,IF(E83>F83,0,1))) -> 1 | M83: =IF(ISBLANK('Input bijkomende maatregelen'!C97)=TRUE,"",IF(E83="niet van toepassing",Expressielijsten!$B$131,IF(E83>F83,Expressielijsten!$B$130,Expressielijsten!$B$131))) -> Geen significant cross media effect te verwachten
B84: 7 | C84: =IF(ISBLANK('Input impactbeoordeing'!B26)=TRUE,"",'Input impactbeoordeing'!B26) ->  | E84: =IF(C84="","",IF('Input bijkomende maatregelen'!L98="","niet van toepassing",'Input bijkomende maatregelen'!L98)) ->  | F84: =IF(ISBLANK('Input impactbeoordeing'!B26)=TRUE,"",IF(E84="niet van toepassing","-",$AG$77)) ->  | L84: =IF(ISBLANK('Input bijkomende maatregelen'!C98)=TRUE,"",IF(E84="niet van toepassing",1,IF(E84>F84,0,1))) -> 1 | M84: =IF(ISBLANK('Input bijkomende maatregelen'!C98)=TRUE,"",IF(E84="niet van toepassing",Expressielijsten!$B$131,IF(E84>F84,Expressielijsten!$B$130,Expressielijsten!$B$131))) -> Geen significant cross media effect te verwachten
B87: ='Input bijkomende maatregelen'!B100 -> B Emissies naar water - Toename lozing andere componenten | E87: ='Input bijkomende maatregelen'!L102 -> Proc. Bijdrage onder realistische omstandigheden | F87: Significantiedrempel | M87: Beoordeling
B88: =IF(ISBLANK('Input bijkomende maatregelen'!C104)=TRUE,"",'Input bijkomende maatregelen'!B104) ->  | C88: =IF(ISBLANK('Input bijkomende maatregelen'!C104)=TRUE,"",'Input bijkomende maatregelen'!C104) ->  | E88: =IF(ISBLANK('Input bijkomende maatregelen'!C104)=TRUE,"",IF('Input bijkomende maatregelen'!L104="","niet van toepassing",'Input bijkomende maatregelen'!L104)) ->  | F88: =IF(ISBLANK('Input bijkomende maatregelen'!C104)=TRUE,"",IF(E88="niet van toepassing","-",$AG$77)) ->  | L88: =IF(ISBLANK('Input bijkomende maatregelen'!C104)=TRUE,1,IF(E88="niet van toepassing",1,IF(E88>F88,0,1))) -> 1 | M88: =IF(ISBLANK('Input bijkomende maatregelen'!C104)=TRUE,"Geen effect",IF(E88="niet van toepassing",Expressielijsten!$B$131,IF(E88>F88,Expressielijsten!$B$130,Expressielijsten!$B$131))) -> Geen effect
B89: =IF(ISBLANK('Input bijkomende maatregelen'!C105)=TRUE,"",'Input bijkomende maatregelen'!B105) ->  | C89: =IF(ISBLANK('Input bijkomende maatregelen'!C105)=TRUE,"",'Input bijkomende maatregelen'!C105) ->  | E89: =IF(ISBLANK('Input bijkomende maatregelen'!C105)=TRUE,"",IF('Input bijkomende maatregelen'!L105="","niet van toepassing",'Input bijkomende maatregelen'!L105)) ->  | F89: =IF(ISBLANK('Input bijkomende maatregelen'!C105)=TRUE,"",IF(E89="niet van toepassing","-",$AG$77)) ->  | L89: =IF(ISBLANK('Input bijkomende maatregelen'!C105)=TRUE,"",IF(E89="niet van toepassing",1,IF(E89>F89,0,1))) ->  | M89: =IF(ISBLANK('Input bijkomende maatregelen'!C105)=TRUE,"",IF(E89="niet van toepassing",Expressielijsten!$B$131,IF(E89>F89,Expressielijsten!$B$130,Expressielijsten!$B$131))) -> 
B90: =IF(ISBLANK('Input bijkomende maatregelen'!C106)=TRUE,"",'Input bijkomende maatregelen'!B106) ->  | C90: =IF(ISBLANK('Input bijkomende maatregelen'!C106)=TRUE,"",'Input bijkomende maatregelen'!C106) ->  | E90: =IF(ISBLANK('Input bijkomende maatregelen'!C106)=TRUE,"",IF('Input bijkomende maatregelen'!L106="","niet van toepassing",'Input bijkomende maatregelen'!L106)) ->  | F90: =IF(ISBLANK('Input bijkomende maatregelen'!C106)=TRUE,"",IF(E90="niet van toepassing","-",$AG$77)) ->  | L90: =IF(ISBLANK('Input bijkomende maatregelen'!C106)=TRUE,"",IF(E90="niet van toepassing",1,IF(E90>F90,0,1))) ->  | M90: =IF(ISBLANK('Input bijkomende maatregelen'!C106)=TRUE,"",IF(E90="niet van toepassing",Expressielijsten!$B$131,IF(E90>F90,Expressielijsten!$B$130,Expressielijsten!$B$131))) -> 
B91: =IF(ISBLANK('Input bijkomende maatregelen'!C107)=TRUE,"",'Input bijkomende maatregelen'!B107) ->  | C91: =IF(ISBLANK('Input bijkomende maatregelen'!C107)=TRUE,"",'Input bijkomende maatregelen'!C107) ->  | E91: =IF(ISBLANK('Input bijkomende maatregelen'!C107)=TRUE,"",IF('Input bijkomende maatregelen'!L107="","niet van toepassing",'Input bijkomende maatregelen'!L107)) ->  | F91: =IF(ISBLANK('Input bijkomende maatregelen'!C107)=TRUE,"",IF(E91="niet van toepassing","-",$AG$77)) ->  | L91: =IF(ISBLANK('Input bijkomende maatregelen'!C107)=TRUE,"",IF(E91="niet van toepassing",1,IF(E91>F91,0,1))) ->  | M91: =IF(ISBLANK('Input bijkomende maatregelen'!C107)=TRUE,"",IF(E91="niet van toepassing",Expressielijsten!$B$131,IF(E91>F91,Expressielijsten!$B$130,Expressielijsten!$B$131))) -> 
B92: =IF(ISBLANK('Input bijkomende maatregelen'!C108)=TRUE,"",'Input bijkomende maatregelen'!B108) ->  | C92: =IF(ISBLANK('Input bijkomende maatregelen'!C108)=TRUE,"",'Input bijkomende maatregelen'!C108) ->  | E92: =IF(ISBLANK('Input bijkomende maatregelen'!C108)=TRUE,"",IF('Input bijkomende maatregelen'!L108="","niet van toepassing",'Input bijkomende maatregelen'!L108)) ->  | F92: =IF(ISBLANK('Input bijkomende maatregelen'!C108)=TRUE,"",IF(E92="niet van toepassing","-",$AG$77)) ->  | L92: =IF(ISBLANK('Input bijkomende maatregelen'!C108)=TRUE,"",IF(E92="niet van toepassing",1,IF(E92>F92,0,1))) ->  | M92: =IF(ISBLANK('Input bijkomende maatregelen'!C108)=TRUE,"",IF(E92="niet van toepassing",Expressielijsten!$B$131,IF(E92>F92,Expressielijsten!$B$130,Expressielijsten!$B$131))) -> 
B93: =IF(ISBLANK('Input bijkomende maatregelen'!C109)=TRUE,"",'Input bijkomende maatregelen'!B109) ->  | C93: =IF(ISBLANK('Input bijkomende maatregelen'!C109)=TRUE,"",'Input bijkomende maatregelen'!C109) ->  | E93: =IF(ISBLANK('Input bijkomende maatregelen'!C109)=TRUE,"",IF('Input bijkomende maatregelen'!L109="","niet van toepassing",'Input bijkomende maatregelen'!L109)) ->  | F93: =IF(ISBLANK('Input bijkomende maatregelen'!C109)=TRUE,"",IF(E93="niet van toepassing","-",$AG$77)) ->  | L93: =IF(ISBLANK('Input bijkomende maatregelen'!C109)=TRUE,"",IF(E93="niet van toepassing",1,IF(E93>F93,0,1))) ->  | M93: =IF(ISBLANK('Input bijkomende maatregelen'!C109)=TRUE,"",IF(E93="niet van toepassing",Expressielijsten!$B$131,IF(E93>F93,Expressielijsten!$B$130,Expressielijsten!$B$131))) -> 
B94: =IF(ISBLANK('Input bijkomende maatregelen'!C110)=TRUE,"",'Input bijkomende maatregelen'!B110) ->  | C94: =IF(ISBLANK('Input bijkomende maatregelen'!C110)=TRUE,"",'Input bijkomende maatregelen'!C110) ->  | E94: =IF(ISBLANK('Input bijkomende maatregelen'!C110)=TRUE,"",IF('Input bijkomende maatregelen'!L110="","niet van toepassing",'Input bijkomende maatregelen'!L110)) ->  | F94: =IF(ISBLANK('Input bijkomende maatregelen'!C110)=TRUE,"",IF(E94="niet van toepassing","-",$AG$77)) ->  | L94: =IF(ISBLANK('Input bijkomende maatregelen'!C110)=TRUE,"",IF(E94="niet van toepassing",1,IF(E94>F94,0,1))) ->  | M94: =IF(ISBLANK('Input bijkomende maatregelen'!C110)=TRUE,"",IF(E94="niet van toepassing",Expressielijsten!$B$131,IF(E94>F94,Expressielijsten!$B$130,Expressielijsten!$B$131))) -> 
C97: ='Input bijkomende maatregelen'!B112 -> C Emissies naar lucht | M97: Beoordeling
C98: =IF('Input bijkomende maatregelen'!E112="ja",'Input bijkomende maatregelen'!B113,"") ->  | L98: =IF('Input bijkomende maatregelen'!E112="Ja",0,1) -> 1 | M98: =IF('Input bijkomende maatregelen'!E112="Ja",Expressielijsten!$B$133,Expressielijsten!$B$134) -> Geen effect
C99: ='Input bijkomende maatregelen'!B114 -> D Overige | M99: Beoordeling
C100: =IF('Input bijkomende maatregelen'!E114="ja",'Input bijkomende maatregelen'!B115,"") ->  | L100: =IF('Input bijkomende maatregelen'!E114="ja",0,1) -> 1 | M100: =IF('Input bijkomende maatregelen'!E114="ja",Expressielijsten!$B$133,Expressielijsten!$B$134) -> Geen effect
B104: Criterium 6: Effect overige investeringen i.k.v. impactbeoordeling op economische draagkracht
B105: Categorie stof met hoogste impact | D105: =MIN(M5:M10) -> 0
B106: Toetscriterium stof met hoogste impact | D106: =VLOOKUP(D105,'Criteria volgens stofcategorie'!$G$3:$AB$7,22,FALSE) -> 
B109: Overzicht investeringen i.k.v. impactbeoordeling water | E109: Totale jaarlijkse kost
B110: Maatregel zoals ingevuld in deze tool | E110: ='Samenvatting econ kengetallen'!$B$25 -> 0
B111: Overige investeringen | E111: Totale jaarlijkse kost
B112: =IF(ISBLANK('Input overige investeringen'!F8)=TRUE,"",'Input overige investeringen'!A8) ->  | C112: =IF(ISBLANK('Input overige investeringen'!B8)=TRUE,"",'Input overige investeringen'!B8) ->  | E112: =IF(ISBLANK('Input overige investeringen'!F8)=TRUE,"",'Input overige investeringen'!J8) -> 
B113: =IF(ISBLANK('Input overige investeringen'!F9)=TRUE,"",'Input overige investeringen'!A9) ->  | C113: =IF(ISBLANK('Input overige investeringen'!B9)=TRUE,"",'Input overige investeringen'!B9) ->  | E113: =IF(ISBLANK('Input overige investeringen'!F9)=TRUE,"",'Input overige investeringen'!J9) -> 
B114: =IF(ISBLANK('Input overige investeringen'!F10)=TRUE,"",'Input overige investeringen'!A10) ->  | C114: =IF(ISBLANK('Input overige investeringen'!B10)=TRUE,"",'Input overige investeringen'!B10) ->  | E114: =IF(ISBLANK('Input overige investeringen'!F10)=TRUE,"",'Input overige investeringen'!J10) -> 
B115: =IF(ISBLANK('Input overige investeringen'!F11)=TRUE,"",'Input overige investeringen'!A11) ->  | C115: =IF(ISBLANK('Input overige investeringen'!B11)=TRUE,"",'Input overige investeringen'!B11) ->  | E115: =IF(ISBLANK('Input overige investeringen'!F11)=TRUE,"",'Input overige investeringen'!J11) -> 
B116: =IF(ISBLANK('Input overige investeringen'!F12)=TRUE,"",'Input overige investeringen'!A12) ->  | C116: =IF(ISBLANK('Input overige investeringen'!B12)=TRUE,"",'Input overige investeringen'!B12) ->  | E116: =IF(ISBLANK('Input overige investeringen'!F12)=TRUE,"",'Input overige investeringen'!J12) -> 
B117: =IF(ISBLANK('Input overige investeringen'!F13)=TRUE,"",'Input overige investeringen'!A13) ->  | C117: =IF(ISBLANK('Input overige investeringen'!B13)=TRUE,"",'Input overige investeringen'!B13) ->  | E117: =IF(ISBLANK('Input overige investeringen'!F13)=TRUE,"",'Input overige investeringen'!J13) -> 
B118: =IF(ISBLANK('Input overige investeringen'!F14)=TRUE,"",'Input overige investeringen'!A14) ->  | C118: =IF(ISBLANK('Input overige investeringen'!B14)=TRUE,"",'Input overige investeringen'!B14) ->  | E118: =IF(ISBLANK('Input overige investeringen'!F14)=TRUE,"",'Input overige investeringen'!J14) -> 
B119: =IF(ISBLANK('Input overige investeringen'!F15)=TRUE,"",'Input overige investeringen'!A15) ->  | C119: =IF(ISBLANK('Input overige investeringen'!B15)=TRUE,"",'Input overige investeringen'!B15) ->  | E119: =IF(ISBLANK('Input overige investeringen'!F15)=TRUE,"",'Input overige investeringen'!J15) -> 
B120: ='Input overige investeringen'!A16 -> Totaal overige investeringen i.k.v. impactbeoordeling afvalwater | E120: =IF(ISBLANK('Input overige investeringen'!J16)=TRUE,"",'Input overige investeringen'!J16) -> 0
B122: Som totale maatregelen i.k.v. impactbeoordeling afvalwater | E122: =E120+E110 -> 0
B125: Holding | D125: Financiële data van de holding | E125: Bijkomende maatregel + overige investeringen (opex + ycc - baten) | F125: Ratio | G125: Criteria aanvaardbaar | H125: Criteria intermediair bovengrens | I125: Code | L125: Code opmaak | M125: Beoordeling
B126: Omzet | D126: ='Samenvatting econ kengetallen'!$G$79 ->  | E126: =$E$122 -> 0 | F126: =E126/D126 ->  | G126: =VLOOKUP($D$43,'Criteria volgens stofcategorie'!$G$4:$AB$7,10,FALSE) ->  | H126: =VLOOKUP($D$43,'Criteria volgens stofcategorie'!$G$4:$AB$7,12,FALSE) ->  | I126: =IF(F126<G126,Expressielijsten!$B$30,IF(F126<(H126+G126)/2,Expressielijsten!$B$31,IF(F126>=H126,Expressielijsten!$B$33,Expressielijsten!$B$32))) ->  | L126: =IF(D105=1,VLOOKUP(I129,Expressielijsten!A53:E117,5,FALSE),VLOOKUP(I129,Expressielijsten!A53:E117,4,FALSE)) ->  | M126: =IF(D105=1,VLOOKUP(I129,Expressielijsten!A53:C117,3,FALSE),VLOOKUP(I129,Expressielijsten!A53:C117,2,FALSE)) -> 
B127: Toegevoegde waarde | D127: ='Samenvatting econ kengetallen'!$G$80 ->  | E127: =$E$122 -> 0 | F127: =IF(D127<=0,1,E127/D127) ->  | G127: =VLOOKUP($D$43,'Criteria volgens stofcategorie'!$G$4:$AB$7,14,FALSE) ->  | H127: =VLOOKUP($D$43,'Criteria volgens stofcategorie'!$G$4:$AB$7,16,FALSE) ->  | I127: =IF(F127<G127,Expressielijsten!$B$37,IF(F127<(H127+G127)/2,Expressielijsten!$B$38,IF(F127>=H127,Expressielijsten!$B$40,Expressielijsten!$B$39))) -> 
B128: EBITDA | D128: ='Samenvatting econ kengetallen'!$G$81 ->  | E128: =$E$122 -> 0 | F128: =IF(D128<=0,1,E128/D128) ->  | G128: =VLOOKUP($D$43,'Criteria volgens stofcategorie'!$G$4:$AB$7,18,FALSE) ->  | H128: =VLOOKUP($D$43,'Criteria volgens stofcategorie'!$G$4:$AB$7,20,FALSE) ->  | I128: =IF(F128<G128,Expressielijsten!$B$44,IF(F128<(H128+G128)/2,Expressielijsten!$B$45,IF(F128>=H128,Expressielijsten!$B$47,Expressielijsten!$B$46))) -> 
I129: =I126+I127+I128 -> 
B132: Vestiging | D132: Financiële data van de vestiging | E132: Bijkomende maatregel + overige investeringen (opex + ycc - baten) | F132: Ratio | G132: Criteria aanvaardbaar | H132: Criteria intermediair bovengrens | I132: Code | L132: Code opmaak | M132: Beoordeling
B133: Omzet | D133: ='Samenvatting econ kengetallen'!$G$70 ->  | E133: =$E$122 -> 0 | F133: =E133/D133 ->  | G133: =VLOOKUP($D$43,'Criteria volgens stofcategorie'!$G$4:$AB$7,10,FALSE) ->  | H133: =VLOOKUP($D$43,'Criteria volgens stofcategorie'!$G$4:$AB$7,12,FALSE) ->  | I133: =IF(F133<G133,Expressielijsten!$B$30,IF(F133<(H133+G133)/2,Expressielijsten!$B$31,IF(F133>=H133,Expressielijsten!$B$33,Expressielijsten!$B$32))) ->  | L133: =IF(D105=1,VLOOKUP(I136,Expressielijsten!A53:E117,5,FALSE),VLOOKUP(I136,Expressielijsten!A53:E117,4,FALSE)) ->  | M133: =IF(D105=1,VLOOKUP(I136,Expressielijsten!A53:C117,3,FALSE),VLOOKUP(I136,Expressielijsten!A53:C117,2,FALSE)) -> 
B134: Toegevoegde waarde | D134: ='Samenvatting econ kengetallen'!$G$71 ->  | E134: =$E$122 -> 0 | F134: =IF(D134<=0,1,E134/D134) ->  | G134: =VLOOKUP($D$43,'Criteria volgens stofcategorie'!$G$4:$AB$7,14,FALSE) ->  | H134: =VLOOKUP($D$43,'Criteria volgens stofcategorie'!$G$4:$AB$7,16,FALSE) ->  | I134: =IF(F134<G134,Expressielijsten!$B$37,IF(F134<(H134+G134)/2,Expressielijsten!$B$38,IF(F134>=H134,Expressielijsten!$B$40,Expressielijsten!$B$39))) -> 
B135: EBITDA | D135: ='Samenvatting econ kengetallen'!$G$72 ->  | E135: =$E$122 -> 0 | F135: =IF(D135<=0,1,E135/D135) ->  | G135: =VLOOKUP($D$43,'Criteria volgens stofcategorie'!$G$4:$AB$7,18,FALSE) ->  | H135: =VLOOKUP($D$43,'Criteria volgens stofcategorie'!$G$4:$AB$7,20,FALSE) ->  | I135: =IF(F135<G135,Expressielijsten!$B$44,IF(F135<(H135+G135)/2,Expressielijsten!$B$45,IF(F135>=H135,Expressielijsten!$B$47,Expressielijsten!$B$46))) -> 
I136: =I133+I134+I135 -> 

Sheet Expressielijsten (hidden)
A1: Criterium 0
A2: Zie tabblad stof x impactcategorie; zie ook dashboard beslissing cel M7
A4: Criterium 1
A5: Toetsing | B5: Expressie | D5: Codering - gunstigheid
A6: C effluent < 1/2 C impactbeoordeling | B6: Gunstig: Reductie door de beschouwde bijkomende maatregelen zou ruimschoots voldoende moeten zijn om vooropgestelde streefwaarde te halen | D6: 1
A7: C effluent < C impactbeoordeling | B7: Gunstig: Reductie door de beschouwde bijkomende maatregelen zou voldoende moeten zijn om vooropgestelde streefwaarde te halen | D7: 1
A8: C effluent > C impactbeoordeling AND VR% > 75% | B8: Gunstig: Reductie door de beschouwde bijkomende maatregelen is niet voldoende om de vooropgestelde streefwaarde te halen. De toegepaste maatregelen zorgen echter wel voor een significante reductie (>75%) van de vuilvrachtlozing voor deze parameter. | D8: 1
A9: C effluent > C impactbeoordeling AND VR% < 75% | B9: Te beoordelen: Reductie door de beschouwde bijkomende maatregelen is niet voldoende om de vooropgestelde streefwaarde te halen en de toegepaste maatregelen zorgen ook niet voor een significante reductie (>75%) van de vuilvrachtlozing voor deze parameter. In specifieke gevallen, kan echter geoordeeld worden dat ook een lager verwijderingsrendement acceptabel is. | D9: 0
A12: Criterium 2
A13: Toetsing | B13: Expressielijst | D13: Codering - gunstigheid
A14: Kosten Verdergaand dan BBT AND KE(maatregel) < KE BBT+NL | B14: Maatregel is KE voor deze parameter: Gelet op de impact van de stof op het ontvangende waterlichaam dient hier getoetst te worden aan de bovenste kosteneffectiviteitsdrempel. De kosteneffectiviteit van de bijkomende maatregel ligt onder deze drempel. Deze maatregel is dus kosteneffectief voor deze parameter. | D14: 1
A15: Kosten Verdergaand dan BBT AND KE(maatregel) > KE BBT+NL | B15: Maatregel is niet KE voor deze parameter: Gelet op de impact van de stof op het ontvangende waterlichaam dient hier getoetst te worden aan de bovenste kosteneffectiviteitsdrempel. De kosteneffectiviteit van de bijkomende maatregel ligt boven deze drempel. Deze maatregel is niet kosteneffectief voor deze parameter. | D15: 0
A16: Kosten gelijkgesteld met BBT AND KE(maatregel < KE BBT NL | B16: Maatregel is KE voor deze parameter: Gelet op de beperkte impact van de stof/lozing in het ontvangende waterlichaam dient hier getoetst te worden aan de onderste kosteneffectiviteitsdrempel. De kosteneffectiviteit van de bijkomende maatregel ligt onder deze drempel. Deze maatregel is dus kosteneffectief voor deze parameter. | D16: 1
A17: Kosten gelijkgesteld met BBT AND KE(maatregel > KE BBT NL) | B17: Maatregel is niet KE voor deze parameter: Gelet op de beperkte impact van de stof/lozing in het ontvangende waterlichaam dient hier getoetst te worden aan de onderste kosteneffectiviteitsdrempel. De kosteneffectiviteit van de bijkomende maatregel ligt boven deze drempel. Deze maatregel is dus niet kosteneffectief voor deze parameter. | D17: 0
A18: Kosten Verdergaand dan BBT AND KE(maatregel) < KE BBT NL | B18: Maatregel is zeer KE voor deze parameter: Gelet op de impact van de stof op het ontvangende waterlichaam dient hier getoetst te worden aan de bovenste kosteneffectiviteitsdrempel. De kosteneffectiviteit van de bijkomende maatregel ligt onder deze drempel. Bijkomstig ligt de kosteneffectiviteit ook onder de drempel die gelijkgesteld wordt met BBT maatregelen. Deze maatregel is dus zeer kosteneffectief voor deze parameter. | D18: 1
D19: 1
A20: Criterium 2 expressies BBT/BBT+
A21: Onderste kostencurve | B21: Maximale bijkomende kosten gelijkgesteld met BBT
A22: Bovenste kostencurve | B22: Maximale bijkomende kosten verdergaand dan BBT (10 x BBT)
A23: Afwijking kostencurve | B23: KE afgeleid uit praktijkvoorbeelden
A24: Geen afwijking kostencurve | B24: KE afgeleid uit NL model
A28: Criterium 3 - interpretatie toetswaarde omzet
A29: Toetsing | B29: Omzetcode
A30: Kosten/omzet < 0.5% | B30: 0
A31: Kosten/omzet 0.5-2.75% | B31: 1
A32: Kosten/omzet 2.75-5% | B32: 10
A33: Kosten/omzet > 5% | B33: 100
A35: Criterium 3- interpretatie toetswaarde toegevoegde waarde
A36: Toetsing | B36: Omzetcode
A37: Kosten/toegevoegde waarde <2% | B37: 0
A38: kosten/toegevoegde waarde 2-26% | B38: 1
A39: Kosten/toegevoegde waarde 26-50% | B39: 10
A40: Kosten/toegevoegde waarde >50% | B40: 100
A42: Criterium 3- interpretatie toetswaarde EBIDTA
A43: Toetsing | B43: Omzetcode
A44: Kosten/EBIDTA <10% | B44: 0
A45: Kosten/EBIDTA 10-45% | B45: 1
A46: Kosten/EBIDTA 45-100% | B46: 10
A47: Kosten/EBIDTA >100% | B47: 100
A51: Criterium 3 - interpretatie somcode | G51: Coderingsmatrix
A52: Somcode | B52: Interpretatie BBT | C52: Interpretatie BBT+ | D52: Codering - gunstigheid BBT | E52: Codering - gunstigheid verdergaand dan BBT | F52: Column1 | G52: Omzet - codering | H52: expressie | I52: Toegevoegde waarde - codering | J52: expressie2 | K52: EBIDTA - codering | L52: Column3
A53: =Expressielijsten!G53+Expressielijsten!I53+K53 -> 0 | B53: Maatregel haalbaar | C53: Maatregel haalbaar | D53: 1 | E53: 1 | G53: =$B$30 -> 0 | H53: =$A$30 -> Kosten/omzet < 0.5% | I53: =$B$37 -> 0 | J53: =$A$37 -> Kosten/toegevoegde waarde <2% | K53: =$B$44 -> 0 | L53: =$A$44 -> Kosten/EBIDTA <10%
A54: =Expressielijsten!G54+Expressielijsten!I54+K54 -> 1 | B54: Maatregel haalbaar: één van de toetscriteria bevindt zich in de intermediaire zone, maar wel in het ondergebied. Hierdoor kan de maatregel alsnog als haalbaar beschouwd kan worden. | C54: Maatregel haalbaar: één van de toetscriteria bevindt zich in de intermediaire zone, maar wel in het ondergebied. Hierdoor kan de maatregel alsnog als haalbaar beschouwd kan worden. | D54: 1 | E54: 1 | G54: =$B$30 -> 0 | H54: =$A$30 -> Kosten/omzet < 0.5% | I54: =$B$38 -> 1 | J54: =$A$38 -> kosten/toegevoegde waarde 2-26% | K54: =$B$44 -> 0 | L54: =$A$44 -> Kosten/EBIDTA <10%
A55: =Expressielijsten!G55+Expressielijsten!I55+K55 -> 10 | B55: Maatregel onhaalbaar: ten minste één van de toetscriteria bevindt zich in het bovengebied van de intermediaire zone. Hierdoor kan de maatregel als onhaalbaar beschouwd worden. | C55: Maatregel haalbaar: Gelet op de stof x impactcategorie (1) is de maatregel als haalbaar te beschouwen, ondanks het feit dat ten minste één van de toetscriteria zich in het bovengebied van de intermediaire zone bevindt. | D55: 0 | E55: 1 | G55: 0 | H55: =$A$30 -> Kosten/omzet < 0.5% | I55: =$B$39 -> 10 | J55: =$A$39 -> Kosten/toegevoegde waarde 26-50% | K55: 0 | L55: Kosten/EBIDTA <10%
A56: =Expressielijsten!G56+Expressielijsten!I56+K56 -> 100 | B56: Maatregel onhaalbaar: ten minste één van de toetscriteria bevindt zich in de onhaalbare zone | C56: Maatregel onhaalbaar: ten minste één van de toetscriteria bevindt zich in de onhaalbare zone | D56: 0 | E56: 0 | G56: 0 | H56: =$A$30 -> Kosten/omzet < 0.5% | I56: =$B$40 -> 100 | J56: =$A$40 -> Kosten/toegevoegde waarde >50% | K56: 0 | L56: Kosten/EBIDTA <10%
A57: =Expressielijsten!G57+Expressielijsten!I57+K57 -> 1 | B57: Maatregel haalbaar: één van de toetscriteria ligt in de intermediaire zone, maar in het ondergebied van de zone waardoor de maatregel alsnog als haalbaar beschouwd kan worden | C57: Maatregel haalbaar: één van de toetscriteria ligt in de intermediaire zone, maar in het ondergebied van de zone waardoor de maatregel alsnog als haalbaar beschouwd kan worden | D57: 1 | E57: 1 | G57: =$B$31 -> 1 | H57: =$A$31 -> Kosten/omzet 0.5-2.75% | I57: =$B$37 -> 0 | J57: =$A$37 -> Kosten/toegevoegde waarde <2% | K57: 0 | L57: Kosten/EBIDTA <10%
A58: =Expressielijsten!G58+Expressielijsten!I58+K58 -> 2 | B58: Maatregel haalbaar: twee toetscriteria liggen in de intermediaire zone, maar in het ondergebied van de zone waardoor de maatregel alsnog als haalbaar beschouwd kan worden | C58: Maatregel haalbaar: twee toetscriteria liggen in de intermediaire zone, maar in het ondergebied van de zone waardoor de maatregel alsnog als haalbaar beschouwd kan worden | D58: 1 | E58: 1 | G58: =$B$31 -> 1 | H58: =$A$31 -> Kosten/omzet 0.5-2.75% | I58: =$B$38 -> 1 | J58: =$A$38 -> kosten/toegevoegde waarde 2-26% | K58: 0 | L58: Kosten/EBIDTA <10%
A59: =Expressielijsten!G59+Expressielijsten!I59+K59 -> 11 | B59: Maatregel onhaalbaar: ten minste één van de toetscriteria bevindt zich in het bovengebied van de intermediaire zone. Hierdoor kan de maatregel als onhaalbaar beschouwd worden. | C59: Maatregel haalbaar: Gelet op de stof x impactcategorie (1) is de maatregel als haalbaar te beschouwen, ondanks het feit dat ten minste één van de toetscriteria zich in het bovengebied van de intermediaire zone bevindt. | D59: 0 | E59: 1 | G59: 1 | H59: =$A$31 -> Kosten/omzet 0.5-2.75% | I59: =$B$39 -> 10 | J59: =$A$39 -> Kosten/toegevoegde waarde 26-50% | K59: 0 | L59: Kosten/EBIDTA <10%
A60: =Expressielijsten!G60+Expressielijsten!I60+K60 -> 101 | B60: Maatregel onhaalbaar: ten minste één van de toetscriteria bevindt zich in de onhaalbare zone | C60: Maatregel onhaalbaar: ten minste één van de toetscriteria bevindt zich in de onhaalbare zone | D60: 0 | E60: 0 | G60: 1 | H60: =$A$31 -> Kosten/omzet 0.5-2.75% | I60: =$B$40 -> 100 | J60: =$A$40 -> Kosten/toegevoegde waarde >50% | K60: 0 | L60: Kosten/EBIDTA <10%
A61: =Expressielijsten!G61+Expressielijsten!I61+K61 -> 10 | B61: Maatregel onhaalbaar: ten minste één van de toetscriteria bevindt zich in het bovengebied van de intermediaire zone. Hierdoor kan de maatregel als onhaalbaar beschouwd worden. | C61: Maatregel haalbaar: Gelet op de stof x impactcategorie (1) is de maatregel als haalbaar te beschouwen, ondanks het feit dat ten minste één van de toetscriteria zich in het bovengebied van de intermediaire zone bevindt. | D61: 0 | E61: 1 | G61: =$B$32 -> 10 | H61: =$A$32 -> Kosten/omzet 2.75-5% | I61: =$B$37 -> 0 | J61: =$A$37 -> Kosten/toegevoegde waarde <2% | K61: 0 | L61: Kosten/EBIDTA <10%
A62: =Expressielijsten!G62+Expressielijsten!I62+K62 -> 11 | B62: Maatregel onhaalbaar: ten minste één van de toetscriteria bevindt zich in het bovengebied van de intermediaire zone. Hierdoor kan de maatregel als onhaalbaar beschouwd worden. | C62: Maatregel haalbaar: Gelet op de stof x impactcategorie (1) is de maatregel als haalbaar te beschouwen, ondanks het feit dat ten minste één van de toetscriteria zich in het bovengebied van de intermediaire zone bevindt. | D62: 0 | E62: 1 | G62: =$B$32 -> 10 | H62: =$A$32 -> Kosten/omzet 2.75-5% | I62: =$B$38 -> 1 | J62: =$A$38 -> kosten/toegevoegde waarde 2-26% | K62: 0 | L62: Kosten/EBIDTA <10%
A63: =Expressielijsten!G63+Expressielijsten!I63+K63 -> 20 | B63: Maatregel onhaalbaar: ten minste één van de toetscriteria bevindt zich in het bovengebied van de intermediaire zone. Hierdoor kan de maatregel als onhaalbaar beschouwd worden. | C63: Maatregel onhaalbaar: ten minste twee toetscriteria bevinden zich in het bovengebied van de intermediaire zone. Hierdoor kan de maatregel als onhaalbaar beschouwd worden. | D63: 0 | E63: 0 | G63: 10 | H63: =$A$32 -> Kosten/omzet 2.75-5% | I63: =$B$39 -> 10 | J63: =$A$39 -> Kosten/toegevoegde waarde 26-50% | K63: 0 | L63: Kosten/EBIDTA <10%
A64: =Expressielijsten!G64+Expressielijsten!I64+K64 -> 110 | B64: Maatregel onhaalbaar: ten minste één van de toetscriteria bevindt zich in de onhaalbare zone | C64: Maatregel onhaalbaar: ten minste één van de toetscriteria bevindt zich in de onhaalbare zone | D64: 0 | E64: 0 | G64: 10 | H64: =$A$32 -> Kosten/omzet 2.75-5% | I64: =$B$40 -> 100 | J64: =$A$40 -> Kosten/toegevoegde waarde >50% | K64: 0 | L64: Kosten/EBIDTA <10%
A65: =Expressielijsten!G65+Expressielijsten!I65+K65 -> 100 | B65: Maatregel onhaalbaar: ten minste één van de toetscriteria bevindt zich in de onhaalbare zone | C65: Maatregel onhaalbaar: ten minste één van de toetscriteria bevindt zich in de onhaalbare zone | D65: 0 | E65: 0 | G65: =$B$33 -> 100 | H65: =$A$33 -> Kosten/omzet > 5% | I65: =$B$37 -> 0 | J65: =$A$37 -> Kosten/toegevoegde waarde <2% | K65: 0 | L65: Kosten/EBIDTA <10%
A66: =Expressielijsten!G66+Expressielijsten!I66+K66 -> 101 | B66: Maatregel onhaalbaar: ten minste één van de toetscriteria bevindt zich in de onhaalbare zone | C66: Maatregel onhaalbaar: ten minste één van de toetscriteria bevindt zich in de onhaalbare zone | D66: 0 | E66: 0 | G66: =$B$33 -> 100 | H66: =$A$33 -> Kosten/omzet > 5% | I66: =$B$38 -> 1 | J66: =$A$38 -> kosten/toegevoegde waarde 2-26% | K66: 0 | L66: Kosten/EBIDTA <10%
A67: =Expressielijsten!G67+Expressielijsten!I67+K67 -> 110 | B67: Maatregel onhaalbaar: ten minste één van de toetscriteria bevindt zich in de onhaalbare zone | C67: Maatregel onhaalbaar: ten minste één van de toetscriteria bevindt zich in de onhaalbare zone | D67: 0 | E67: 0 | G67: 100 | H67: =$A$33 -> Kosten/omzet > 5% | I67: =$B$39 -> 10 | J67: =$A$39 -> Kosten/toegevoegde waarde 26-50% | K67: 0 | L67: Kosten/EBIDTA <10%
A68: =Expressielijsten!G68+Expressielijsten!I68+K68 -> 200 | B68: Maatregel onhaalbaar: ten minste één van de toetscriteria bevindt zich in de onhaalbare zone | C68: Maatregel onhaalbaar: ten minste één van de toetscriteria bevindt zich in de onhaalbare zone | D68: 0 | E68: 0 | G68: 100 | H68: =$A$33 -> Kosten/omzet > 5% | I68: =$B$40 -> 100 | J68: =$A$40 -> Kosten/toegevoegde waarde >50% | K68: 0 | L68: Kosten/EBIDTA <10%
A69: =Expressielijsten!G69+Expressielijsten!I69+K69 -> 1 | B69: Maatregel haalbaar: één van de toetscriteria ligt in de intermediaire zone, maar in het ondergebied van de zone waardoor de maatregel alsnog als haalbaar beschouwd kan worden | C69: Maatregel haalbaar: één van de toetscriteria ligt in de intermediaire zone, maar in het ondergebied van de zone waardoor de maatregel alsnog als haalbaar beschouwd kan worden | D69: 1 | E69: 1 | G69: =$B$30 -> 0 | H69: =$A$30 -> Kosten/omzet < 0.5% | I69: =$B$37 -> 0 | J69: =$A$37 -> Kosten/toegevoegde waarde <2% | K69: =$B$45 -> 1 | L69: =$A$45 -> Kosten/EBIDTA 10-45%
A70: =Expressielijsten!G70+Expressielijsten!I70+K70 -> 2 | B70: Maatregel haalbaar: twee toetscriteria liggen in de intermediaire zone, maar in het ondergebied van de zone waardoor de maatregel alsnog als haalbaar beschouwd kan worden | C70: Maatregel haalbaar: twee toetscriteria liggen in de intermediaire zone, maar in het ondergebied van de zone waardoor de maatregel alsnog als haalbaar beschouwd kan worden | D70: 1 | E70: 1 | G70: =$B$30 -> 0 | H70: =$A$30 -> Kosten/omzet < 0.5% | I70: =$B$38 -> 1 | J70: =$A$38 -> kosten/toegevoegde waarde 2-26% | K70: =$B$45 -> 1 | L70: =$A$45 -> Kosten/EBIDTA 10-45%
A71: =Expressielijsten!G71+Expressielijsten!I71+K71 -> 11 | B71: Maatregel onhaalbaar: ten minste één van de toetscriteria bevindt zich in het bovengebied van de intermediaire zone. Hierdoor kan de maatregel als onhaalbaar beschouwd worden. | C71: Maatregel haalbaar: Gelet op de stof x impactcategorie (1) is de maatregel als haalbaar te beschouwen, ondanks het feit dat ten minste één van de toetscriteria zich in het bovengebied van de intermediaire zone bevindt. | D71: 0 | E71: 1 | G71: 0 | H71: =$A$30 -> Kosten/omzet < 0.5% | I71: =$B$39 -> 10 | J71: =$A$39 -> Kosten/toegevoegde waarde 26-50% | K71: 1 | L71: Kosten/EBIDTA 10-45%
A72: =Expressielijsten!G72+Expressielijsten!I72+K72 -> 101 | B72: Maatregel onhaalbaar: ten minste één van de toetscriteria bevindt zich in de onhaalbare zone | C72: Maatregel onhaalbaar: ten minste één van de toetscriteria bevindt zich in de onhaalbare zone | D72: 0 | E72: 0 | G72: 0 | H72: =$A$30 -> Kosten/omzet < 0.5% | I72: =$B$40 -> 100 | J72: =$A$40 -> Kosten/toegevoegde waarde >50% | K72: 1 | L72: Kosten/EBIDTA 10-45%
A73: =Expressielijsten!G73+Expressielijsten!I73+K73 -> 2 | B73: Maatregel haalbaar: twee toetscriteria liggen in de intermediaire zone, maar in het ondergebied van de zone waardoor de maatregel alsnog als haalbaar beschouwd kan worden | C73: Maatregel haalbaar: twee toetscriteria liggen in de intermediaire zone, maar in het ondergebied van de zone waardoor de maatregel alsnog als haalbaar beschouwd kan worden | D73: 1 | E73: 1 | G73: =$B$31 -> 1 | H73: =$A$31 -> Kosten/omzet 0.5-2.75% | I73: =$B$37 -> 0 | J73: =$A$37 -> Kosten/toegevoegde waarde <2% | K73: 1 | L73: Kosten/EBIDTA 10-45%
A74: =Expressielijsten!G74+Expressielijsten!I74+K74 -> 3 | B74: Maatregel onhaalbaar: de drie toetscriteria liggen in de intermedaire zone | C74: Maatregel haalbaar: Gelet op de stof x impactcategorie (1) is de maatregel als haalbaar te beschouwen, ondanks het feit dat alle toetscriteria zich in de intermediaire zone bevinden. | D74: 0 | E74: 1 | G74: =$B$31 -> 1 | H74: =$A$31 -> Kosten/omzet 0.5-2.75% | I74: =$B$38 -> 1 | J74: =$A$38 -> kosten/toegevoegde waarde 2-26% | K74: 1 | L74: Kosten/EBIDTA 10-45%
A75: =Expressielijsten!G75+Expressielijsten!I75+K75 -> 12 | B75: Maatregel onhaalbaar: ten minste één van de toetscriteria bevindt zich in het bovengebied van de intermediaire zone. Hierdoor kan de maatregel als onhaalbaar beschouwd worden. | C75: Maatregel onhaalbaar: één toetscriterium bevindt zich in het bovengebied van de intermediaire zone en de twee andere in het ondergebied van de intermediaire zone. Hierdoor kan de maatregel als onhaalbaar beschouwd worden. | D75: 0 | E75: 0 | G75: 1 | H75: =$A$31 -> Kosten/omzet 0.5-2.75% | I75: =$B$39 -> 10 | J75: =$A$39 -> Kosten/toegevoegde waarde 26-50% | K75: 1 | L75: Kosten/EBIDTA 10-45%
A76: =Expressielijsten!G76+Expressielijsten!I76+K76 -> 102 | B76: Maatregel onhaalbaar: ten minste één van de toetscriteria bevindt zich in de onhaalbare zone | C76: Maatregel onhaalbaar: ten minste één van de toetscriteria bevindt zich in de onhaalbare zone | D76: 0 | E76: 0 | G76: 1 | H76: =$A$31 -> Kosten/omzet 0.5-2.75% | I76: =$B$40 -> 100 | J76: =$A$40 -> Kosten/toegevoegde waarde >50% | K76: 1 | L76: Kosten/EBIDTA 10-45%
A77: =Expressielijsten!G77+Expressielijsten!I77+K77 -> 11 | B77: Maatregel onhaalbaar: ten minste één van de toetscriteria bevindt zich in het bovengebied van de intermediaire zone. Hierdoor kan de maatregel als onhaalbaar beschouwd worden. | C77: Maatregel haalbaar: Gelet op de stof x impactcategorie (1) is de maatregel als haalbaar te beschouwen, ondanks het feit dat ten minste één van de toetscriteria zich in het bovengebied van de intermediaire zone bevindt. | D77: 0 | E77: 1 | G77: =$B$32 -> 10 | H77: =$A$32 -> Kosten/omzet 2.75-5% | I77: =$B$37 -> 0 | J77: =$A$37 -> Kosten/toegevoegde waarde <2% | K77: 1 | L77: Kosten/EBIDTA 10-45%
A78: =Expressielijsten!G78+Expressielijsten!I78+K78 -> 12 | B78: Maatregel onhaalbaar: ten minste één van de toetscriteria bevindt zich in het bovengebied van de intermediaire zone. Hierdoor kan de maatregel als onhaalbaar beschouwd worden. | C78: Maatregel onhaalbaar: één toetscriterium bevindt zich in het bovengebied van de intermediaire zone en de twee andere in het ondergebied van de intermediaire zone. Hierdoor kan de maatregel als onhaalbaar beschouwd worden. | D78: 0 | E78: 0 | G78: =$B$32 -> 10 | H78: =$A$32 -> Kosten/omzet 2.75-5% | I78: =$B$38 -> 1 | J78: =$A$38 -> kosten/toegevoegde waarde 2-26% | K78: 1 | L78: Kosten/EBIDTA 10-45%
A79: =Expressielijsten!G79+Expressielijsten!I79+K79 -> 21 | B79: Maatregel onhaalbaar: ten minste één van de toetscriteria bevindt zich in het bovengebied van de intermediaire zone. Hierdoor kan de maatregel als onhaalbaar beschouwd worden. | C79: Maatregel onhaalbaar: ten minste twee toetscriteria bevinden zich in het bovengebied van de intermediaire zone. Hierdoor kan de maatregel als onhaalbaar beschouwd worden. | D79: 0 | E79: 0 | G79: 10 | H79: =$A$32 -> Kosten/omzet 2.75-5% | I79: =$B$39 -> 10 | J79: =$A$39 -> Kosten/toegevoegde waarde 26-50% | K79: 1 | L79: Kosten/EBIDTA 10-45%
A80: =Expressielijsten!G80+Expressielijsten!I80+K80 -> 111 | B80: Maatregel onhaalbaar: ten minste één van de toetscriteria bevindt zich in de onhaalbare zone | C80: Maatregel onhaalbaar: ten minste één van de toetscriteria bevindt zich in de onhaalbare zone | D80: 0 | E80: 0 | G80: 10 | H80: =$A$32 -> Kosten/omzet 2.75-5% | I80: =$B$40 -> 100 | J80: =$A$40 -> Kosten/toegevoegde waarde >50% | K80: 1 | L80: Kosten/EBIDTA 10-45%
A81: =Expressielijsten!G81+Expressielijsten!I81+K81 -> 101 | B81: Maatregel onhaalbaar: ten minste één van de toetscriteria bevindt zich in de onhaalbare zone | C81: Maatregel onhaalbaar: ten minste één van de toetscriteria bevindt zich in de onhaalbare zone | D81: 0 | E81: 0 | G81: =$B$33 -> 100 | H81: =$A$33 -> Kosten/omzet > 5% | I81: =$B$37 -> 0 | J81: =$A$37 -> Kosten/toegevoegde waarde <2% | K81: 1 | L81: Kosten/EBIDTA 10-45%
A82: =Expressielijsten!G82+Expressielijsten!I82+K82 -> 102 | B82: Maatregel onhaalbaar: ten minste één van de toetscriteria bevindt zich in de onhaalbare zone | C82: Maatregel onhaalbaar: ten minste één van de toetscriteria bevindt zich in de onhaalbare zone | D82: 0 | E82: 0 | G82: =$B$33 -> 100 | H82: =$A$33 -> Kosten/omzet > 5% | I82: =$B$38 -> 1 | J82: =$A$38 -> kosten/toegevoegde waarde 2-26% | K82: 1 | L82: Kosten/EBIDTA 10-45%
A83: =Expressielijsten!G83+Expressielijsten!I83+K83 -> 111 | B83: Maatregel onhaalbaar: ten minste één van de toetscriteria bevindt zich in de onhaalbare zone | C83: Maatregel onhaalbaar: ten minste één van de toetscriteria bevindt zich in de onhaalbare zone | D83: 0 | E83: 0 | G83: 100 | H83: =$A$33 -> Kosten/omzet > 5% | I83: =$B$39 -> 10 | J83: =$A$39 -> Kosten/toegevoegde waarde 26-50% | K83: 1 | L83: Kosten/EBIDTA 10-45%
A84: =Expressielijsten!G84+Expressielijsten!I84+K84 -> 201 | B84: Maatregel onhaalbaar: ten minste één van de toetscriteria bevindt zich in de onhaalbare zone | C84: Maatregel onhaalbaar: ten minste één van de toetscriteria bevindt zich in de onhaalbare zone | D84: 0 | E84: 0 | G84: 100 | H84: =$A$33 -> Kosten/omzet > 5% | I84: =$B$40 -> 100 | J84: =$A$40 -> Kosten/toegevoegde waarde >50% | K84: 1 | L84: Kosten/EBIDTA 10-45%
A85: =Expressielijsten!G85+Expressielijsten!I85+K85 -> 10 | B85: Maatregel onhaalbaar: ten minste één van de toetscriteria bevindt zich in het bovengebied van de intermediaire zone. Hierdoor kan de maatregel als onhaalbaar beschouwd worden. | C85: Maatregel haalbaar: Gelet op de stof x impactcategorie (1) is de maatregel als haalbaar te beschouwen, ondanks het feit dat ten minste één van de toetscriteria zich in het bovengebied van de intermediaire zone bevindt. | D85: 0 | E85: 1 | G85: =$B$30 -> 0 | H85: =$A$30 -> Kosten/omzet < 0.5% | I85: =$B$37 -> 0 | J85: =$A$37 -> Kosten/toegevoegde waarde <2% | K85: =$B$46 -> 10 | L85: =$A$46 -> Kosten/EBIDTA 45-100%
A86: =Expressielijsten!G86+Expressielijsten!I86+K86 -> 11 | B86: Maatregel onhaalbaar: ten minste één van de toetscriteria bevindt zich in het bovengebied van de intermediaire zone. Hierdoor kan de maatregel als onhaalbaar beschouwd worden. | C86: Maatregel haalbaar: Gelet op de stof x impactcategorie (1) is de maatregel als haalbaar te beschouwen, ondanks het feit dat ten minste één van de toetscriteria zich in het bovengebied van de intermediaire zone bevindt. | D86: 0 | E86: 1 | G86: =$B$30 -> 0 | H86: =$A$30 -> Kosten/omzet < 0.5% | I86: =$B$38 -> 1 | J86: =$A$38 -> kosten/toegevoegde waarde 2-26% | K86: =$B$46 -> 10 | L86: =$A$46 -> Kosten/EBIDTA 45-100%
A87: =Expressielijsten!G87+Expressielijsten!I87+K87 -> 20 | B87: Maatregel onhaalbaar: ten minste één van de toetscriteria bevindt zich in het bovengebied van de intermediaire zone. Hierdoor kan de maatregel als onhaalbaar beschouwd worden. | C87: Maatregel onhaalbaar: ten minste twee toetscriteria bevinden zich in het bovengebied van de intermediaire zone. Hierdoor kan de maatregel als onhaalbaar beschouwd worden. | D87: 0 | E87: 0 | G87: 0 | H87: =$A$30 -> Kosten/omzet < 0.5% | I87: =$B$39 -> 10 | J87: =$A$39 -> Kosten/toegevoegde waarde 26-50% | K87: 10 | L87: Kosten/EBIDTA 45-100%
A88: =Expressielijsten!G88+Expressielijsten!I88+K88 -> 110 | B88: Maatregel onhaalbaar: ten minste één van de toetscriteria bevindt zich in de onhaalbare zone | C88: Maatregel onhaalbaar: ten minste één van de toetscriteria bevindt zich in de onhaalbare zone | D88: 0 | E88: 0 | G88: 0 | H88: =$A$30 -> Kosten/omzet < 0.5% | I88: =$B$40 -> 100 | J88: =$A$40 -> Kosten/toegevoegde waarde >50% | K88: 10 | L88: Kosten/EBIDTA 45-100%
A89: =Expressielijsten!G89+Expressielijsten!I89+K89 -> 11 | B89: Maatregel onhaalbaar: ten minste één van de toetscriteria bevindt zich in het bovengebied van de intermediaire zone. Hierdoor kan de maatregel als onhaalbaar beschouwd worden. | C89: Maatregel haalbaar: Gelet op de stof x impactcategorie (1) is de maatregel als haalbaar te beschouwen, ondanks het feit dat ten minste één van de toetscriteria zich in het bovengebied van de intermediaire zone bevindt. | D89: 0 | E89: 1 | G89: =$B$31 -> 1 | H89: =$A$31 -> Kosten/omzet 0.5-2.75% | I89: =$B$37 -> 0 | J89: =$A$37 -> Kosten/toegevoegde waarde <2% | K89: 10 | L89: Kosten/EBIDTA 45-100%
A90: =Expressielijsten!G90+Expressielijsten!I90+K90 -> 12 | B90: Maatregel onhaalbaar: ten minste één van de toetscriteria bevindt zich in het bovengebied van de intermediaire zone. Hierdoor kan de maatregel als onhaalbaar beschouwd worden. | C90: Maatregel onhaalbaar: één toetscriterium bevindt zich in het bovengebied van de intermediaire zone en de twee andere in het ondergebied van de intermediaire zone. Hierdoor kan de maatregel als onhaalbaar beschouwd worden. | D90: 0 | E90: 0 | G90: =$B$31 -> 1 | H90: =$A$31 -> Kosten/omzet 0.5-2.75% | I90: =$B$38 -> 1 | J90: =$A$38 -> kosten/toegevoegde waarde 2-26% | K90: 10 | L90: Kosten/EBIDTA 45-100%
A91: =Expressielijsten!G91+Expressielijsten!I91+K91 -> 21 | B91: Maatregel onhaalbaar: ten minste één van de toetscriteria bevindt zich in het bovengebied van de intermediaire zone. Hierdoor kan de maatregel als onhaalbaar beschouwd worden. | C91: Maatregel onhaalbaar: ten minste twee toetscriteria bevinden zich in het bovengebied van de intermediaire zone. Hierdoor kan de maatregel als onhaalbaar beschouwd worden. | D91: 0 | E91: 0 | G91: 1 | H91: =$A$31 -> Kosten/omzet 0.5-2.75% | I91: =$B$39 -> 10 | J91: =$A$39 -> Kosten/toegevoegde waarde 26-50% | K91: 10 | L91: Kosten/EBIDTA 45-100%
A92: =Expressielijsten!G92+Expressielijsten!I92+K92 -> 111 | B92: Maatregel onhaalbaar: ten minste één van de toetscriteria bevindt zich in de onhaalbare zone | C92: Maatregel onhaalbaar: ten minste één van de toetscriteria bevindt zich in de onhaalbare zone | D92: 0 | E92: 0 | G92: 1 | H92: =$A$31 -> Kosten/omzet 0.5-2.75% | I92: =$B$40 -> 100 | J92: =$A$40 -> Kosten/toegevoegde waarde >50% | K92: 10 | L92: Kosten/EBIDTA 45-100%
A93: =Expressielijsten!G93+Expressielijsten!I93+K93 -> 20 | B93: Maatregel onhaalbaar: ten minste één van de toetscriteria bevindt zich in het bovengebied van de intermediaire zone. Hierdoor kan de maatregel als onhaalbaar beschouwd worden. | C93: Maatregel onhaalbaar: ten minste twee toetscriteria bevinden zich in het bovengebied van de intermediaire zone. Hierdoor kan de maatregel als onhaalbaar beschouwd worden. | D93: 0 | E93: 0 | G93: =$B$32 -> 10 | H93: =$A$32 -> Kosten/omzet 2.75-5% | I93: =$B$37 -> 0 | J93: =$A$37 -> Kosten/toegevoegde waarde <2% | K93: 10 | L93: Kosten/EBIDTA 45-100%
A94: =Expressielijsten!G94+Expressielijsten!I94+K94 -> 21 | B94: Maatregel onhaalbaar: ten minste één van de toetscriteria bevindt zich in het bovengebied van de intermediaire zone. Hierdoor kan de maatregel als onhaalbaar beschouwd worden. | C94: Maatregel onhaalbaar: ten minste twee toetscriteria bevinden zich in het bovengebied van de intermediaire zone. Hierdoor kan de maatregel als onhaalbaar beschouwd worden. | D94: 0 | E94: 0 | G94: =$B$32 -> 10 | H94: =$A$32 -> Kosten/omzet 2.75-5% | I94: =$B$38 -> 1 | J94: =$A$38 -> kosten/toegevoegde waarde 2-26% | K94: 10 | L94: Kosten/EBIDTA 45-100%
A95: =Expressielijsten!G95+Expressielijsten!I95+K95 -> 30 | B95: Maatregel onhaalbaar: ten minste één van de toetscriteria bevindt zich in het bovengebied van de intermediaire zone. Hierdoor kan de maatregel als onhaalbaar beschouwd worden. | C95: Maatregel onhaalbaar: ten minste twee toetscriteria bevinden zich in het bovengebied van de intermediaire zone. Hierdoor kan de maatregel als onhaalbaar beschouwd worden. | D95: 0 | E95: 0 | G95: 10 | H95: =$A$32 -> Kosten/omzet 2.75-5% | I95: =$B$39 -> 10 | J95: =$A$39 -> Kosten/toegevoegde waarde 26-50% | K95: 10 | L95: Kosten/EBIDTA 45-100%
A96: =Expressielijsten!G96+Expressielijsten!I96+K96 -> 120 | B96: Maatregel onhaalbaar: ten minste één van de toetscriteria bevindt zich in de onhaalbare zone | C96: Maatregel onhaalbaar: ten minste één van de toetscriteria bevindt zich in de onhaalbare zone | D96: 0 | E96: 0 | G96: 10 | H96: =$A$32 -> Kosten/omzet 2.75-5% | I96: =$B$40 -> 100 | J96: =$A$40 -> Kosten/toegevoegde waarde >50% | K96: 10 | L96: Kosten/EBIDTA 45-100%
A97: =Expressielijsten!G97+Expressielijsten!I97+K97 -> 110 | B97: Maatregel onhaalbaar: ten minste één van de toetscriteria bevindt zich in de onhaalbare zone | C97: Maatregel onhaalbaar: ten minste één van de toetscriteria bevindt zich in de onhaalbare zone | D97: 0 | E97: 0 | G97: =$B$33 -> 100 | H97: =$A$33 -> Kosten/omzet > 5% | I97: =$B$37 -> 0 | J97: =$A$37 -> Kosten/toegevoegde waarde <2% | K97: 10 | L97: Kosten/EBIDTA 45-100%
A98: =Expressielijsten!G98+Expressielijsten!I98+K98 -> 111 | B98: Maatregel onhaalbaar: ten minste één van de toetscriteria bevindt zich in de onhaalbare zone | C98: Maatregel onhaalbaar: ten minste één van de toetscriteria bevindt zich in de onhaalbare zone | D98: 0 | E98: 0 | G98: =$B$33 -> 100 | H98: =$A$33 -> Kosten/omzet > 5% | I98: =$B$38 -> 1 | J98: =$A$38 -> kosten/toegevoegde waarde 2-26% | K98: 10 | L98: Kosten/EBIDTA 45-100%
A99: =Expressielijsten!G99+Expressielijsten!I99+K99 -> 120 | B99: Maatregel onhaalbaar: ten minste één van de toetscriteria bevindt zich in de onhaalbare zone | C99: Maatregel onhaalbaar: ten minste één van de toetscriteria bevindt zich in de onhaalbare zone | D99: 0 | E99: 0 | G99: 100 | H99: =$A$33 -> Kosten/omzet > 5% | I99: =$B$39 -> 10 | J99: =$A$39 -> Kosten/toegevoegde waarde 26-50% | K99: 10 | L99: Kosten/EBIDTA 45-100%
A100: =Expressielijsten!G100+Expressielijsten!I100+K100 -> 210 | B100: Maatregel onhaalbaar: ten minste één van de toetscriteria bevindt zich in de onhaalbare zone | C100: Maatregel onhaalbaar: ten minste één van de toetscriteria bevindt zich in de onhaalbare zone | D100: 0 | E100: 0 | G100: 100 | H100: =$A$33 -> Kosten/omzet > 5% | I100: =$B$40 -> 100 | J100: =$A$40 -> Kosten/toegevoegde waarde >50% | K100: 10 | L100: Kosten/EBIDTA 45-100%
A101: =Expressielijsten!G101+Expressielijsten!I101+K101 -> 100 | B101: Maatregel onhaalbaar: ten minste één van de toetscriteria bevindt zich in de onhaalbare zone | C101: Maatregel onhaalbaar: ten minste één van de toetscriteria bevindt zich in de onhaalbare zone | D101: 0 | E101: 0 | G101: =$B$30 -> 0 | H101: =$A$30 -> Kosten/omzet < 0.5% | I101: =$B$37 -> 0 | J101: =$A$37 -> Kosten/toegevoegde waarde <2% | K101: =$B$47 -> 100 | L101: =$A$47 -> Kosten/EBIDTA >100%
A102: =Expressielijsten!G102+Expressielijsten!I102+K102 -> 101 | B102: Maatregel onhaalbaar: ten minste één van de toetscriteria bevindt zich in de onhaalbare zone | C102: Maatregel onhaalbaar: ten minste één van de toetscriteria bevindt zich in de onhaalbare zone | D102: 0 | E102: 0 | G102: =$B$30 -> 0 | H102: =$A$30 -> Kosten/omzet < 0.5% | I102: =$B$38 -> 1 | J102: =$A$38 -> kosten/toegevoegde waarde 2-26% | K102: =$B$47 -> 100 | L102: =$A$47 -> Kosten/EBIDTA >100%
A103: =Expressielijsten!G103+Expressielijsten!I103+K103 -> 110 | B103: Maatregel onhaalbaar: ten minste één van de toetscriteria bevindt zich in de onhaalbare zone | C103: Maatregel onhaalbaar: ten minste één van de toetscriteria bevindt zich in de onhaalbare zone | D103: 0 | E103: 0 | G103: 0 | H103: =$A$30 -> Kosten/omzet < 0.5% | I103: =$B$39 -> 10 | J103: =$A$39 -> Kosten/toegevoegde waarde 26-50% | K103: 100 | L103: Kosten/EBIDTA >100%
A104: =Expressielijsten!G104+Expressielijsten!I104+K104 -> 200 | B104: Maatregel onhaalbaar: ten minste één van de toetscriteria bevindt zich in de onhaalbare zone | C104: Maatregel onhaalbaar: ten minste één van de toetscriteria bevindt zich in de onhaalbare zone | D104: 0 | E104: 0 | G104: 0 | H104: =$A$30 -> Kosten/omzet < 0.5% | I104: =$B$40 -> 100 | J104: =$A$40 -> Kosten/toegevoegde waarde >50% | K104: 100 | L104: Kosten/EBIDTA >100%
A105: =Expressielijsten!G105+Expressielijsten!I105+K105 -> 101 | B105: Maatregel onhaalbaar: ten minste één van de toetscriteria bevindt zich in de onhaalbare zone | C105: Maatregel onhaalbaar: ten minste één van de toetscriteria bevindt zich in de onhaalbare zone | D105: 0 | E105: 0 | G105: =$B$31 -> 1 | H105: =$A$31 -> Kosten/omzet 0.5-2.75% | I105: =$B$37 -> 0 | J105: =$A$37 -> Kosten/toegevoegde waarde <2% | K105: 100 | L105: Kosten/EBIDTA >100%
A106: =Expressielijsten!G106+Expressielijsten!I106+K106 -> 102 | B106: Maatregel onhaalbaar: ten minste één van de toetscriteria bevindt zich in de onhaalbare zone | C106: Maatregel onhaalbaar: ten minste één van de toetscriteria bevindt zich in de onhaalbare zone | D106: 0 | E106: 0 | G106: =$B$31 -> 1 | H106: =$A$31 -> Kosten/omzet 0.5-2.75% | I106: =$B$38 -> 1 | J106: =$A$38 -> kosten/toegevoegde waarde 2-26% | K106: 100 | L106: Kosten/EBIDTA >100%
A107: =Expressielijsten!G107+Expressielijsten!I107+K107 -> 111 | B107: Maatregel onhaalbaar: ten minste één van de toetscriteria bevindt zich in de onhaalbare zone | C107: Maatregel onhaalbaar: ten minste één van de toetscriteria bevindt zich in de onhaalbare zone | D107: 0 | E107: 0 | G107: 1 | H107: =$A$31 -> Kosten/omzet 0.5-2.75% | I107: =$B$39 -> 10 | J107: =$A$39 -> Kosten/toegevoegde waarde 26-50% | K107: 100 | L107: Kosten/EBIDTA >100%
A108: =Expressielijsten!G108+Expressielijsten!I108+K108 -> 201 | B108: Maatregel onhaalbaar: ten minste één van de toetscriteria bevindt zich in de onhaalbare zone | C108: Maatregel onhaalbaar: ten minste één van de toetscriteria bevindt zich in de onhaalbare zone | D108: 0 | E108: 0 | G108: 1 | H108: =$A$31 -> Kosten/omzet 0.5-2.75% | I108: =$B$40 -> 100 | J108: =$A$40 -> Kosten/toegevoegde waarde >50% | K108: 100 | L108: Kosten/EBIDTA >100%
A109: =Expressielijsten!G109+Expressielijsten!I109+K109 -> 110 | B109: Maatregel onhaalbaar: ten minste één van de toetscriteria bevindt zich in de onhaalbare zone | C109: Maatregel onhaalbaar: ten minste één van de toetscriteria bevindt zich in de onhaalbare zone | D109: 0 | E109: 0 | G109: =$B$32 -> 10 | H109: =$A$32 -> Kosten/omzet 2.75-5% | I109: =$B$37 -> 0 | J109: =$A$37 -> Kosten/toegevoegde waarde <2% | K109: 100 | L109: Kosten/EBIDTA >100%
A110: =Expressielijsten!G110+Expressielijsten!I110+K110 -> 111 | B110: Maatregel onhaalbaar: ten minste één van de toetscriteria bevindt zich in de onhaalbare zone | C110: Maatregel onhaalbaar: ten minste één van de toetscriteria bevindt zich in de onhaalbare zone | D110: 0 | E110: 0 | G110: =$B$32 -> 10 | H110: =$A$32 -> Kosten/omzet 2.75-5% | I110: =$B$38 -> 1 | J110: =$A$38 -> kosten/toegevoegde waarde 2-26% | K110: 100 | L110: Kosten/EBIDTA >100%
A111: =Expressielijsten!G111+Expressielijsten!I111+K111 -> 120 | B111: Maatregel onhaalbaar: ten minste één van de toetscriteria bevindt zich in de onhaalbare zone | C111: Maatregel onhaalbaar: ten minste één van de toetscriteria bevindt zich in de onhaalbare zone | D111: 0 | E111: 0 | G111: 10 | H111: =$A$32 -> Kosten/omzet 2.75-5% | I111: =$B$39 -> 10 | J111: =$A$39 -> Kosten/toegevoegde waarde 26-50% | K111: 100 | L111: Kosten/EBIDTA >100%
A112: =Expressielijsten!G112+Expressielijsten!I112+K112 -> 210 | B112: Maatregel onhaalbaar: ten minste één van de toetscriteria bevindt zich in de onhaalbare zone | C112: Maatregel onhaalbaar: ten minste één van de toetscriteria bevindt zich in de onhaalbare zone | D112: 0 | E112: 0 | G112: 10 | H112: =$A$32 -> Kosten/omzet 2.75-5% | I112: =$B$40 -> 100 | J112: =$A$40 -> Kosten/toegevoegde waarde >50% | K112: 100 | L112: Kosten/EBIDTA >100%
A113: =Expressielijsten!G113+Expressielijsten!I113+K113 -> 200 | B113: Maatregel onhaalbaar: ten minste één van de toetscriteria bevindt zich in de onhaalbare zone | C113: Maatregel onhaalbaar: ten minste één van de toetscriteria bevindt zich in de onhaalbare zone | D113: 0 | E113: 0 | G113: =$B$33 -> 100 | H113: =$A$33 -> Kosten/omzet > 5% | I113: =$B$37 -> 0 | J113: =$A$37 -> Kosten/toegevoegde waarde <2% | K113: 100 | L113: Kosten/EBIDTA >100%
A114: =Expressielijsten!G114+Expressielijsten!I114+K114 -> 201 | B114: Maatregel onhaalbaar: ten minste één van de toetscriteria bevindt zich in de onhaalbare zone | C114: Maatregel onhaalbaar: ten minste één van de toetscriteria bevindt zich in de onhaalbare zone | D114: 0 | E114: 0 | G114: =$B$33 -> 100 | H114: =$A$33 -> Kosten/omzet > 5% | I114: =$B$38 -> 1 | J114: =$A$38 -> kosten/toegevoegde waarde 2-26% | K114: 100 | L114: Kosten/EBIDTA >100%
A115: =Expressielijsten!G115+Expressielijsten!I115+K115 -> 210 | B115: Maatregel onhaalbaar: ten minste één van de toetscriteria bevindt zich in de onhaalbare zone | C115: Maatregel onhaalbaar: ten minste één van de toetscriteria bevindt zich in de onhaalbare zone | D115: 0 | E115: 0 | G115: 100 | H115: =$A$33 -> Kosten/omzet > 5% | I115: =$B$39 -> 10 | J115: =$A$39 -> Kosten/toegevoegde waarde 26-50% | K115: 100 | L115: Kosten/EBIDTA >100%
A116: =Expressielijsten!G116+Expressielijsten!I116+K116 -> 300 | B116: Maatregel onhaalbaar: ten minste één van de toetscriteria bevindt zich in de onhaalbare zone | C116: Maatregel onhaalbaar: ten minste één van de toetscriteria bevindt zich in de onhaalbare zone | D116: 0 | E116: 0 | G116: 100 | H116: =$A$33 -> Kosten/omzet > 5% | I116: =$B$40 -> 100 | J116: =$A$40 -> Kosten/toegevoegde waarde >50% | K116: 100 | L116: Kosten/EBIDTA >100%
A120: Criterium 4
A121: Toetsing | B121: Expressielijst
A122: VV reductie bijkomende maatregel > VV reductie huidige maatregel | B122: Bijkomende maatregelen zorgen voor een grotere bijdrage aan de vuilvrachtreductie dan de bestaande maatregelen
A123: VV reductie bijkomende maatregel < VV reductie huidige maatregel | B123: Bijkomende maatregelen zorgen niet voor een grotere bijdrage aan de vuilvrachtreductie dan de bestaande maatregelen
A124: KE bijkomende maatregel (EUR) < KE huidige maatregelen | B124: De kosteneffectiviteit van de bijkomende maatregelen is gunstiger dan die van de bestaande maatregelen
A125: KE bijkomende maatregel (EUR) > KE huidige maatregelen | B125: De kosteneffectiviteit van de bijkomende maatregelen is niet gunstiger dan die van de bestaande maatregelen
A128: Criterium 5 cross media effecten
A129: Toetsing | B129: Expressielijst
A130: Bijdrage > drempel | B130: Significant cross media effect te verwachten
A131: Bijdrage < drempel | B131: Geen significant cross media effect te verwachten
A133: Overige: Ja | B133: Evalueer effecten
A134: Overige: nee | B134: Geen effect

Sheet Matrix Stof x impact (hidden)
A1: Bijdrage | E1: Deze kolom te checken door VMM | F1: Prio cat
A2: Bovengrens | B2: Ondergrens | C2: Waterrelevante stof Vlaanderen | D2: Duidelijke verslechtering klasse | E2: Prio categorie | F2: Bijdrage | G2: ZZS/PGS/PS (ja=10, nee=20) | H2: Duidelijke achteruitgang/verslechtering klasse | I2: Unieke code | J2: Prio cat_OLD | K2: Priocat_NEW
A3: >100% | B3: 0.2 | C3: Ja | D3: Ja | E3: 1 | F3: =IF(B3>=$B$32,$C$32,IF(B3>=$B$33,$C$33,IF(B3>=$B$34,$C$34,IF(B3>=$B$35,$C$35,$C$36)))) -> 100 | G3: =IF(C3=$A$40,$B$40,IF(C3=$A$41,$B$41,"ERROR")) -> 10 | H3: =IF(D3=$A$45,$B$45,IF(D3=$A$46,$B$46,IF(D3=$A$47,$B$47,"ERROR"))) -> 0 | I3: =F3+G3+H3 -> 110 | J3: =E3 -> 1 | K3: 1
A4: >100% | B4: 0.2 | C4: Nee | D4: Ja | E4: 1 | F4: =IF(B4>=$B$32,$C$32,IF(B4>=$B$33,$C$33,IF(B4>=$B$34,$C$34,IF(B4>=$B$35,$C$35,$C$36)))) -> 100 | G4: =IF(C4=$A$40,$B$40,IF(C4=$A$41,$B$41,"ERROR")) -> 20 | H4: =IF(D4=$A$45,$B$45,IF(D4=$A$46,$B$46,IF(D4=$A$47,$B$47,"ERROR"))) -> 0 | I4: 120 | J4: =E4 -> 1 | K4: 1
A5: >100% | B5: 0.2 | C5: Ja | D5: Nee | E5: 1 | F5: 100 | G5: 10 | H5: 0 | I5: 110 | J5: =E5 -> 1 | K5: 1
A6: >100% | B6: 0.2 | C6: Nee | D6: Nee | E6: 1 | F6: 100 | G6: 20 | H6: 0 | I6: 120 | J6: =E6 -> 1 | K6: 1
A7: 0.2 | B7: 0.1 | C7: Ja | D7: Ja | E7: 1 | F7: 200 | G7: 10 | H7: 0 | I7: 210 | J7: =E7 -> 1 | K7: 1
A8: 0.2 | B8: 0.1 | C8: Nee | D8: Ja | E8: 2 | F8: 200 | G8: 20 | H8: 0 | I8: 220 | J8: 2 | K8: 1
A9: 0.2 | B9: 0.1 | C9: Ja | D9: Nee | E9: 2 | F9: 200 | G9: 10 | H9: 0 | I9: 210 | J9: 2 | K9: 1
A10: 0.2 | B10: 0.1 | C10: Nee | D10: Nee | E10: 2 | F10: 200 | G10: 20 | H10: 0 | I10: 220 | J10: 2 | K10: 1
A11: 0.1 | B11: 0.05 | C11: Ja | D11: Niet bepaald | E11: 2 | F11: 300 | G11: 10 | H11: 0 | I11: 310 | J11: 2 | K11: 1
A12: 0.1 | B12: 0.05 | C12: Nee | D12: Niet bepaald | E12: 3 | F12: 300 | G12: 20 | H12: 0 | I12: 320 | J12: 3 | K12: 2
A13: 0.1 | B13: 0.05 | C13: Ja | D13: Niet bepaald | E13: 2 | F13: 300 | G13: 10 | H13: 0 | I13: 310 | J13: 2 | K13: 1
A14: 0.1 | B14: 0.05 | C14: Nee | D14: Niet bepaald | E14: 3 | F14: 300 | G14: 20 | H14: 0 | I14: 320 | J14: 3 | K14: 2
A15: 0.05 | B15: 0.01 | C15: Ja | D15: Niet bepaald | E15: 3 | F15: 400 | G15: 10 | H15: 0 | I15: 410 | J15: 3 | K15: 1
A16: 0.05 | B16: 0.01 | C16: Nee | D16: Niet bepaald | E16: 4 | F16: 400 | G16: 20 | H16: 0 | I16: 420 | J16: 4 | K16: 2
A17: 0.05 | B17: 0.01 | C17: Ja | D17: Niet bepaald | E17: 3 | F17: 400 | G17: 10 | H17: 0 | I17: 410 | J17: 3 | K17: 1
A18: 0.05 | B18: 0.01 | C18: Nee | D18: Niet bepaald | E18: 4 | F18: 400 | G18: 20 | H18: 0 | I18: 420 | J18: 4 | K18: 2 | L18: Checken of je in impacttool dan doorverwezen wordt naar BBT + of niet in dit geval
A19: 0.01 | B19: 0 | C19: Ja | D19: Niet bepaald | E19: 5 | F19: 500 | G19: 10 | H19: 0 | I19: 510 | J19: 5 | K19: 3 | L19: Checken of je in impacttool dan doorverwezen wordt naar BBT + of niet in dit geval
A20: 0.01 | B20: 0 | C20: Nee | D20: Niet bepaald | E20: 5 | F20: 500 | G20: 20 | H20: 0 | I20: 520 | J20: 5 | K20: 3 | L20: Checken of je in impacttool dan doorverwezen wordt naar BBT + of niet in dit geval
A21: 0.01 | B21: 0 | C21: Ja | D21: Niet bepaald | E21: 5 | F21: 500 | G21: 10 | H21: 0 | I21: 510 | J21: 5 | K21: 3 | L21: Checken of je in impacttool dan doorverwezen wordt naar BBT + of niet in dit geval
A22: 0.01 | B22: 0 | C22: Nee | D22: Niet bepaald | E22: 5 | F22: 500 | G22: 20 | H22: 0 | I22: 520 | J22: 5 | K22: 3 | L22: Checken of je in impacttool dan doorverwezen wordt naar BBT + of niet in dit geval
A30: Codering bijdrage
A31: Bovengrens | B31: Ondergrens
A32: 1 | B32: 0.2 | C32: 100
A33: 0.2 | B33: 0.1 | C33: 200
A34: 0.1 | B34: 0.05 | C34: 300
A35: 0.05 | B35: 0.01 | C35: 400
A36: 0.01 | B36: 0 | C36: 500
A39: Codering speciale categorie
A40: Ja | B40: 10
A41: Nee | B41: 20
A44: Codering achteruitgang | C44: (OLD)
A45: Ja | B45: 0 | C45: 1
A46: Nee | B46: 0 | C46: 2
A47: Niet bepaald | B47: 0 | C47: 2

Sheet Info per OWL (hidden)
A1: Code | B1: Naam waterlichaam | C1: Afstroomzone | D1: Categorie | E1: Type | F1: Stroomgebiedsdistrict | G1: Bekken | H1: Prioritering Code
A2: L107_10 | B2: KEMMELBEEK | C2: A0_VL05_2 | D2: rivier | E2: Bk | F2: Schelde | G2: Ijzer | H2: 4
A3: L107_104 | B3: NEERBEEK | C3: A0_VL17_48 | D3: rivier | E3: Bk | F3: Schelde | G3: Leie | H3: 5
A4: L107_105 | B4: PALINGBEEK | C4: A0_VL17_48 | D4: rivier | E4: Bk | F4: Schelde | G4: Leie | H4: 5
A5: L107_11 | B5: WANEBEEK | C5: A0_VL05_2 | D5: rivier | E5: Bk | F5: Schelde | G5: Ijzer | H5: 4
A6: L107_112 | B6: LA HAUTE PLANCHE | C6: A0_VL17_48 | D6: rivier | E6: Bk | F6: Schelde | G6: Leie | H6: 5
A7: L107_113 | B7: DOUVEBEEK | C7: A0_G_L107_113 | D7: rivier | E7: Bk | F7: Schelde | G7: Leie | H7: 6
A8: L107_116 | B8: GROTE SPIERE | C8: A0_G_L107_116 | D8: rivier | E8: Bk | F8: Schelde | G8: Boven-Schelde | H8: 5
A9: L107_12 | B9: VLETERBEEK | C9: A0_VL05_12 | D9: rivier | E9: Bk | F9: Schelde | G9: Ijzer | H9: 4
A10: L107_120 | B10: SCHEEBEEK | C10: A0_VL17_204 | D10: rivier | E10: Bk | F10: Schelde | G10: Boven-Schelde | H10: 5
A11: L107_122 | B11: HET GELEED | C11: A0_VL08_173 | D11: rivier | E11: Pb | F11: Schelde | G11: Brugse Polders | H11: 6
A12: L107_123 | B12: KANAAL VAN BRUGGE NAAR SLUIS | C12: A0_G_L107_123 | D12: rivier | E12: Pz | F12: Schelde | G12: Brugse Polders | H12: 6
A13: L107_124 | B13: RONSELAREBEEK | C13: A0_VL08_173 | D13: rivier | E13: Pb | F13: Schelde | G13: Brugse Polders | H13: 6
A14: L107_130 | B14: KLEINE GEUL | C14: A0_VL05_17 | D14: rivier | E14: Pb | F14: Schelde | G14: Brugse Polders | H14: 6
A15: L107_131 | B15: LISSEWEEGSEVAART | C15: A0_VL17_186 | D15: rivier | E15: Pb | F15: Schelde | G15: Brugse Polders | H15: 6
A16: L107_133 | B16: BLANKENBERGSEVAART L1 | C16: A0_VL08_16 | D16: rivier | E16: Pb | F16: Schelde | G16: Brugse Polders | H16: 4
A17: L107_135 | B17: JABBEEKSE BEEK | C17: A0_VL08_164 | D17: rivier | E17: Bk | F17: Schelde | G17: Brugse Polders | H17: 5
A18: L107_136 | B18: HOGE WATERING | C18: A0_VL08_173 | D18: rivier | E18: Pz | F18: Schelde | G18: Brugse Polders | H18: 6
A19: L107_140 | B19: SCHELLEVLIET | C19: A0_VL08_164 | D19: rivier | E19: Pb | F19: Schelde | G19: Brugse Polders | H19: 5
A20: L107_143 | B20: GROOT ZWIN - NOORDGELEED | C20: A0_VL08_164 | D20: rivier | E20: Pb | F20: Schelde | G20: Brugse Polders | H20: 5
A21: L107_149 | B21: PROVINCIEGELEED | C21: A0_VL11_19 | D21: rivier | E21: Pb | F21: Schelde | G21: Ijzer | H21: 6
A22: L107_150 | B22: GRANINGATEVLIET | C22: A0_VL05_6 | D22: rivier | E22: Pb | F22: Schelde | G22: Ijzer | H22: 6
A23: L107_16 | B23: HARINGEBEEK | C23: A0_VL08_7 | D23: rivier | E23: Bk | F23: Schelde | G23: Ijzer | H23: 5
A24: L107_202 | B24: OOSTPOLDERKREEK | C24: A0_VL08_172 | D24: rivier | E24: Pb | F24: Schelde | G24: Gentse Kanalen | H24: 4
A25: L107_209 | B25: ZWARTESLUISBEEK L1 | C25: A0_VL08_27 | D25: rivier | E25: Pz | F25: Schelde | G25: Gentse Kanalen | H25: 3
A26: L107_213 | B26: EEKLOSE WATERGANG | C26: A0_VL08_173 | D26: rivier | E26: Pb | F26: Schelde | G26: Brugse Polders | H26: 6
A27: L107_218 | B27: SLEIDINGSVAARDEKEN | C27: A0_VL05_152 | D27: rivier | E27: Bk | F27: Schelde | G27: Gentse Kanalen | H27: 3
A28: L107_225 | B28: KEUTELBEEK | C28: A0_VL08_164 | D28: rivier | E28: Bk | F28: Schelde | G28: Brugse Polders | H28: 5
A29: L107_234 | B29: POEKEBEEK L1 | C29: A0_VL21_26 | D29: rivier | E29: Bk | F29: Schelde | G29: Gentse Kanalen | H29: 3
A30: L107_235 | B30: REIGERBEEK | C30: A0_VL21_26 | D30: rivier | E30: Bk | F30: Schelde | G30: Gentse Kanalen | H30: 3
A31: L107_236 | B31: NEERSCHUURBEEK | C31: A0_VL21_26 | D31: rivier | E31: Bk | F31: Schelde | G31: Gentse Kanalen | H31: 3
A32: L107_237 | B32: SPEIBEEK | C32: A0_VL05_53 | D32: rivier | E32: Bk | F32: Schelde | G32: Leie | H32: 4
A33: L107_239 | B33: OUDE MANDEL L1 | C33: A0_VL05_53 | D33: rivier | E33: Bk | F33: Schelde | G33: Leie | H33: 4
A34: L107_240 | B34: ZOUBEEK | C34: A0_VL05_50 | D34: rivier | E34: Bk | F34: Schelde | G34: Leie | H34: 5
A35: L107_241 | B35: KATTEBEEK | C35: A0_VL17_54 | D35: rivier | E35: Bk | F35: Schelde | G35: Leie | H35: 5
A36: L107_242 | B36: DUIVEBEEK | C36: A0_VL17_54 | D36: rivier | E36: Bk | F36: Schelde | G36: Leie | H36: 5
A37: L107_246 | B37: STAMPKOTBEEK - MOLENBEEK | C37: A0_VL05_62 | D37: rivier | E37: Bk | F37: Schelde | G37: Boven-Schelde | H37: 4
A38: L107_247 | B38: STAMPKOTBEEK - WALLEBEEK | C38: A0_VL05_62 | D38: rivier | E38: Bk | F38: Schelde | G38: Boven-Schelde | H38: 4
A39: L107_253 | B39: STAMPKOTBEEK - MUNKBOSBEEK | C39: A0_VL05_58 | D39: rivier | E39: Bk | F39: Schelde | G39: Boven-Schelde | H39: 5
A40: L107_254 | B40: MOLENBEEK - BEIAARDBEEK | C40: A0_VL17_204 | D40: rivier | E40: Bk | F40: Schelde | G40: Boven-Schelde | H40: 5
A41: L107_266 | B41: PEERDESTOKBEEK | C41: A0_VL11_63 | D41: rivier | E41: Bk | F41: Schelde | G41: Boven-Schelde | H41: 3
A42: L107_272 | B42: OPHASSELTBEEK | C42: A0_VL05_73 | D42: rivier | E42: Bk | F42: Schelde | G42: Dender | H42: 3
A43: L107_273 | B43: MOLENBEEK - PACHTBOSBEEK L1 | C43: A0_VL05_73 | D43: rivier | E43: Bk | F43: Schelde | G43: Dender | H43: 3
A44: L107_274 | B44: MOLENBEEK - KALSTERBEEK | C44: A0_VL05_67 | D44: rivier | E44: Bk | F44: Schelde | G44: Dender | H44: 5
A45: L107_275 | B45: TER ERPENBEEK | C45: A0_VL21_74 | D45: rivier | E45: Bk | F45: Schelde | G45: Dender | H45: 3
A46: L107_276 | B46: MOLENBEEK - GRAADBEEK | C46: A0_VL08_71 | D46: rivier | E46: Bk | F46: Schelde | G46: Dender | H46: 5
A47: L107_277 | B47: WILDEBEEK | C47: A0_VL05_70 | D47: rivier | E47: Bk | F47: Schelde | G47: Dender | H47: 5
A48: L107_279 | B48: MOLENBEEK - VOGELENZANGBEEK | C48: A0_VL17_206 | D48: rivier | E48: Bk | F48: Schelde | G48: Dender | H48: 5
A49: L107_282 | B49: MOLENBEEK - GONDEBEEK | C49: A0_VL11_40 | D49: rivier | E49: Bk | F49: Schelde | G49: Beneden-Schelde | H49: 5
A50: L107_287 | B50: MOLENBEEK - GROTE BEEK | C50: A0_VL05_32 | D50: rivier | E50: Bk | F50: Schelde | G50: Beneden-Schelde | H50: 4
A51: L107_289 | B51: DAMSLOOT | C51: A0_VL11_40 | D51: rivier | E51: Bk | F51: Schelde | G51: Beneden-Schelde | H51: 5
A52: L107_296 | B52: VOORSTESLOOT | C52: A0_VL11_40 | D52: rivier | E52: Bk | F52: Schelde | G52: Beneden-Schelde | H52: 5
A53: L107_299 | B53: VONDELBEEK L1 | C53: A0_VL05_75 | D53: rivier | E53: Bk | F53: Schelde | G53: Dender | H53: 6
A54: L107_3 | B54: BROENBEEK | C54: A0_VL11_10 | D54: rivier | E54: Bk | F54: Schelde | G54: Ijzer | H54: 6
A55: L107_305 | B55: ZELEBEEK | C55: A0_VL08_39 | D55: rivier | E55: Bk | F55: Schelde | G55: Beneden-Schelde | H55: 4
A56: L107_325 | B56: GROTE ASTBEEK | C56: A0_VL05_175 | D56: rivier | E56: Bk | F56: Schelde | G56: Gentse Kanalen | H56: 4
A57: L107_328 | B57: ZUIDELIJKE WATERGANG | C57: A0_VL05_34 | D57: rivier | E57: Pb | F57: Schelde | G57: Beneden-Schelde | H57: 4
A58: L107_329 | B58: BLOKSTRAATBEEK | C58: A0_VL11_37 | D58: rivier | E58: Pz | F58: Schelde | G58: Beneden-Schelde | H58: 5
A59: L107_33 | B59: BOMMELAREVAART | C59: A0_VL11_13 | D59: rivier | E59: Pb | F59: Schelde | G59: Ijzer | H59: 6
A60: L107_330 | B60: WATERLOOP VAN DE HOGE LANDEN L1 | C60: A0_VL11_37 | D60: rivier | E60: Bk | F60: Schelde | G60: Beneden-Schelde | H60: 5
A61: L107_333 | B61: DOORLOOP | C61: A0_VL17_43 | D61: rivier | E61: Pb | F61: Schelde | G61: Beneden-Schelde | H61: 5
A62: L107_335 | B62: MOLENBEEK - BEVERBEEK | C62: A0_VL17_206 | D62: rivier | E62: Bk | F62: Schelde | G62: Dender | H62: 5
A63: L107_336 | B63: DE RIJT | C63: A0_VL17_206 | D63: rivier | E63: Bk | F63: Schelde | G63: Dender | H63: 5
A64: L107_34 | B64: RINGSLOT | C64: A0_G_L107_34 | D64: rivier | E64: Pb | F64: Schelde | G64: Ijzer | H64: 5
A65: L107_37 | B65: LANGGELEED | C65: A0_VL17_15 | D65: rivier | E65: Pb | F65: Schelde | G65: Ijzer | H65: 5
A66: L107_4 | B66: KORVERSBEEK | C66: A0_VL11_10 | D66: rivier | E66: Bk | F66: Schelde | G66: Ijzer | H66: 6
A67: L107_40 | B67: STENENSLUISVAART | C67: A0_VL21_1 | D67: rivier | E67: Pz | F67: Schelde | G67: Ijzer | H67: 3
A68: L107_403 | B68: MOLENBEEK - NEERPEDEBEEK | C68: A0_G_L107_403 | D68: rivier | E68: Bk | F68: Schelde | G68: Beneden-Schelde | H68: 5
A69: L107_404 | B69: LOTBEEK | C69: A0_VL08_92 | D69: rivier | E69: Bk | F69: Schelde | G69: Dijle Zenne | H69: 4
A70: L107_407 | B70: GROEBENGRACHT | C70: A0_VL08_92 | D70: rivier | E70: Bk | F70: Schelde | G70: Dijle Zenne | H70: 4
A71: L107_409 | B71: KLEINE MAALBEEK | C71: A0_VL11_91 | D71: rivier | E71: Bk | F71: Schelde | G71: Dijle Zenne | H71: 4
A72: L107_411 | B72: MOLENBEEK - PARKBEEK | C72: A0_VL21_79 | D72: rivier | E72: Bk | F72: Schelde | G72: Dijle Zenne | H72: 4
A73: L107_413 | B73: TANGEBEEK | C73: A0_VL05_93 | D73: rivier | E73: Bk | F73: Schelde | G73: Dijle Zenne | H73: 5
A74: L107_417 | B74: DE GROTE LAAK | C74: A0_VL05_81 | D74: rivier | E74: Bk | F74: Schelde | G74: Dijle Zenne | H74: 4
A75: L107_418 | B75: MENE | C75: A0_VL21_107 | D75: rivier | E75: Bk | F75: Schelde | G75: Demer | H75: 3
A76: L107_421 | B76: GENOVEVABEEK | C76: A0_VL21_107 | D76: rivier | E76: Bk | F76: Schelde | G76: Demer | H76: 3
A77: L107_422 | B77: 'S HERTOGENGRACHT | C77: A0_VL21_107 | D77: rivier | E77: Bk | F77: Schelde | G77: Demer | H77: 3
A78: L107_423 | B78: BEGIJNEBEEK L1 | C78: A0_VL20_96 | D78: rivier | E78: Bk | F78: Schelde | G78: Demer | H78: 3
A79: L107_424 | B79: VIJVERSLOOP | C79: A0_VL20_96 | D79: rivier | E79: Bk | F79: Schelde | G79: Demer | H79: 3
A80: L107_431 | B80: ST-ODULPHUSBEEK | C80: A0_VL11_109 | D80: rivier | E80: Bk | F80: Schelde | G80: Demer | H80: 3
A81: L107_432 | B81: DORMAALBEEK | C81: A0_VL11_109 | D81: rivier | E81: Bk | F81: Schelde | G81: Demer | H81: 3
A82: L107_433 | B82: BEVERBEEK | C82: A0_VL08_72 | D82: rivier | E82: Bk | F82: Schelde | G82: Dender | H82: 3
A83: L107_434 | B83: SCHEIBEEK | C83: A0_VL08_72 | D83: rivier | E83: Bk | F83: Schelde | G83: Dender | H83: 3
A84: L107_435 | B84: AREBEEK | C84: A0_VL08_72 | D84: rivier | E84: Bk | F84: Schelde | G84: Dender | H84: 3
A85: L107_439 | B85: IJSE L1 | C85: A0_VL11_83 | D85: rivier | E85: Bk | F85: Schelde | G85: Dijle Zenne | H85: 3
A86: L107_441 | B86: LANGEGRACHT | C86: A0_VL11_83 | D86: rivier | E86: Bk | F86: Schelde | G86: Dijle Zenne | H86: 3
A87: L107_449 | B87: VOER (BERTEM) | C87: A0_VL05_87 | D87: rivier | E87: Bk | F87: Schelde | G87: Dijle Zenne | H87: 3
A88: L107_451 | B88: GROTE LAAK - GROTE LOOP - MESTENLOOP | C88: A0_VL05_103 | D88: rivier | E88: BkK | F88: Schelde | G88: Demer | H88: 4
A89: L107_452 | B89: LAARBEEK | C89: A0_VL05_103 | D89: rivier | E89: Bk | F89: Schelde | G89: Demer | H89: 4
A90: L107_453 | B90: ZWARTEBEEK (SCHERPENHEUVEL-ZICHEM) | C90: A0_VL05_103 | D90: rivier | E90: BkK | F90: Schelde | G90: Demer | H90: 4
A91: L107_454 | B91: KLEINEBEEK - RIJSELSESTRAATVLIET | C91: A0_VL21_97 | D91: rivier | E91: BkK | F91: Schelde | G91: Demer | H91: 3
A92: L107_462 | B92: LEMINGSBEEK | C92: A0_VL05_89 | D92: rivier | E92: Bk | F92: Schelde | G92: Dijle Zenne | H92: 3
A93: L107_463 | B93: AABEEK (MECHELEN) | C93: A0_VL08_95 | D93: rivier | E93: Bk | F93: Schelde | G93: Dijle Zenne | H93: 5
A94: L107_464 | B94: LEYBEEK | C94: A0_VL08_95 | D94: rivier | E94: Bk | F94: Schelde | G94: Dijle Zenne | H94: 5
A95: L107_47 | B95: ZARRENBEEK L1 | C95: A0_VL05_180 | D95: rivier | E95: Bk | F95: Schelde | G95: Ijzer | H95: 6
A96: L107_48 | B96: KANAAL VAN ESEN | C96: A0_VL05_3 | D96: rivier | E96: Pz | F96: Schelde | G96: Ijzer | H96: 6
A97: L107_5 | B97: BOLLAERTBEEK | C97: A0_VL05_5 | D97: rivier | E97: Bk | F97: Schelde | G97: Ijzer | H97: 5
A98: L107_56 | B98: REYGAERTSVLIET | C98: A0_VL05_6 | D98: rivier | E98: Pb | F98: Schelde | G98: Ijzer | H98: 6
A99: L107_6 | B99: DIKKEBUSBEEK | C99: A0_VL05_166 | D99: rivier | E99: Bk | F99: Schelde | G99: Ijzer | H99: 5
A100: L107_60 | B100: GROOTGELEED | C100: A0_VL11_11 | D100: rivier | E100: Pb | F100: Schelde | G100: Ijzer | H100: 5
A101: L107_600 | B101: LEYLOOP | C101: A0_G_L107_600 | D101: rivier | E101: BkK | F101: Maas | G101: Maas | H101: 4
A102: L107_601 | B102: DE AA (RAVELS) | C102: A0_G_L107_601 | D102: rivier | E102: BkK | F102: Maas | G102: Maas | H102: 4
A103: L107_602 | B103: BLAUWPUTTEN EN LEILOOP | C103: A0_VL11_145 | D103: rivier | E103: BkK | F103: Maas | G103: Maas | H103: 3
A104: L107_603 | B104: HEERLESE LOOP | C104: A0_VL11_145 | D104: rivier | E104: BkK | F104: Maas | G104: Maas | H104: 3
A105: L107_607 | B105: MERKSKE L1 | C105: A0_VL05_146 | D105: rivier | E105: BkK | F105: Maas | G105: Maas | H105: 2
A106: L107_609 | B106: KLEINE MARK | C106: A0_VL11_145 | D106: rivier | E106: BkK | F106: Maas | G106: Maas | H106: 3
A107: L107_61 | B107: VAARTDIJKGELEED | C107: A0_VL11_11 | D107: rivier | E107: Pz | F107: Schelde | G107: Ijzer | H107: 5
A108: L107_610 | B108: MARK L1 | C108: A0_VL11_145 | D108: rivier | E108: BkK | F108: Maas | G108: Maas | H108: 3
A109: L107_613 | B109: SLUISKENSVIJVER | C109: A0_VL05_148 | D109: rivier | E109: BkK | F109: Maas | G109: Maas | H109: 3
A110: L107_614 | B110: WEERIJSEBEEK L1 | C110: A0_VL05_148 | D110: rivier | E110: BkK | F110: Maas | G110: Maas | H110: 3
A111: L107_615 | B111: KLEINE BEEK (WUUSTWEZEL) | C111: A0_VL05_148 | D111: rivier | E111: BkK | F111: Maas | G111: Maas | H111: 3
A112: L107_629 | B112: KLEIN WILBOEREBEEK | C112: A0_VL21_129 | D112: rivier | E112: BkK | F112: Schelde | G112: Nete | H112: 2
A113: L107_63 | B113: BOERGONJEVAART | C113: A0_VL11_11 | D113: rivier | E113: Pz | F113: Schelde | G113: Ijzer | H113: 5
A114: L107_631 | B114: MOLENBEEK - BOLLAAK L1 | C114: A0_VL21_129 | D114: rivier | E114: BkK | F114: Schelde | G114: Nete | H114: 2
A115: L107_632 | B115: DE DELFTE BEEK | C115: A0_VL21_129 | D115: rivier | E115: BkK | F115: Schelde | G115: Nete | H115: 2
A116: L107_633 | B116: BOSBEEK - DIEPTELOOP | C116: A0_VL05_121 | D116: rivier | E116: BkK | F116: Schelde | G116: Nete | H116: 3
A117: L107_638 | B117: GROTE CALIE | C117: A0_VL11_120 | D117: rivier | E117: BkK | F117: Schelde | G117: Nete | H117: 3
A118: L107_640 | B118: DE AA - NATTENLOOP | C118: A0_VL11_120 | D118: rivier | E118: BkK | F118: Schelde | G118: Nete | H118: 3
A119: L107_644 | B119: ITTERBEEK (DUFFEL) | C119: A0_VL08_132 | D119: rivier | E119: Bk | F119: Schelde | G119: Nete | H119: 4
A120: L107_648 | B120: BRUINBEEK | C120: A0_VL11_88 | D120: rivier | E120: Bk | F120: Schelde | G120: Dijle Zenne | H120: 3
A121: L107_650 | B121: REEHAGENBEEK | C121: A0_VL11_88 | D121: rivier | E121: Bk | F121: Schelde | G121: Dijle Zenne | H121: 3
A122: L107_654 | B122: LARUMSE LOOP | C122: A0_VL11_127 | D122: rivier | E122: BkK | F122: Schelde | G122: Nete | H122: 2
A123: L107_655 | B123: DALEMANSLOOP | C123: A0_VL11_127 | D123: rivier | E123: BkK | F123: Schelde | G123: Nete | H123: 2
A124: L107_656 | B124: BEGGELBEEK | C124: A0_VL08_132 | D124: rivier | E124: Bk | F124: Schelde | G124: Nete | H124: 4
A125: L107_66 | B125: KERKBEEK | C125: A0_VL05_18 | D125: rivier | E125: Bk | F125: Schelde | G125: Brugse Polders | H125: 4
A126: L107_664 | B126: MOLENBEEK - ZIJP | C126: A0_VL05_30 | D126: rivier | E126: Bk | F126: Schelde | G126: Beneden-Schelde | H126: 3
A127: L107_665 | B127: BOUWBEEK | C127: A0_VL05_30 | D127: rivier | E127: Bk | F127: Schelde | G127: Beneden-Schelde | H127: 3
A128: L107_67 | B128: LIJSTERBEEK | C128: A0_VL05_18 | D128: rivier | E128: Bk | F128: Schelde | G128: Brugse Polders | H128: 4
A129: L107_677 | B129: DIEPE BEEK | C129: A0_VL17_29 | D129: rivier | E129: BkK | F129: Schelde | G129: Beneden-Schelde | H129: 3
A130: L107_681 | B130: KOUDE BEEK | C130: A0_VL17_29 | D130: rivier | E130: BkK | F130: Schelde | G130: Beneden-Schelde | H130: 3
A131: L107_684 | B131: SCHOON SCHIJN | C131: A0_VL20_36 | D131: rivier | E131: Pz | F131: Schelde | G131: Beneden-Schelde | H131: 4
A132: L107_688 | B132: LAARSE BEEK | C132: A0_VL17_35 | D132: rivier | E132: BkK | F132: Schelde | G132: Beneden-Schelde | H132: 4
A133: L107_695 | B133: VARENDONKSE BEEK | C133: A0_VL05_124 | D133: rivier | E133: BkK | F133: Schelde | G133: Nete | H133: 4
A134: L107_702 | B134: MILLEGEMLOOP | C134: A0_VL11_128 | D134: rivier | E134: BkK | F134: Schelde | G134: Nete | H134: 3
A135: L107_705 | B135: SCHEPPELIJKE NETE | C135: A0_VL11_128 | D135: rivier | E135: BkK | F135: Schelde | G135: Nete | H135: 3
A136: L107_706 | B136: MOLSE NETE L1 | C136: A0_VL11_128 | D136: rivier | E136: BkK | F136: Schelde | G136: Nete | H136: 3
A137: L107_708 | B137: GROTE NETE L1 | C137: A0_VL11_123 | D137: rivier | E137: BkK | F137: Schelde | G137: Nete | H137: 2
A138: L107_722 | B138: WAMP L1 | C138: A0_VL05_130 | D138: rivier | E138: BkK | F138: Schelde | G138: Nete | H138: 2
A139: L107_723 | B139: RODE LOOP | C139: A0_VL05_130 | D139: rivier | E139: BkK | F139: Schelde | G139: Nete | H139: 2
A140: L107_729 | B140: STAPKENSLOOP | C140: A0_VL05_131 | D140: rivier | E140: BkK | F140: Schelde | G140: Nete | H140: 3
A141: L107_735 | B141: GESTELBEEK | C141: A0_VL08_132 | D141: rivier | E141: BkK | F141: Schelde | G141: Nete | H141: 4
A142: L107_740 | B142: BERGEBEEK | C142: A0_VL08_125 | D142: rivier | E142: Bk | F142: Schelde | G142: Nete | H142: 4
A143: L107_741 | B143: SPILLEBEEK | C143: A0_G_L107_741 | D143: rivier | E143: BkK | F143: Maas | G143: Maas | H143: 4
A144: L107_742 | B144: PLATTE BEEK | C144: A0_VL05_121 | D144: rivier | E144: BkK | F144: Schelde | G144: Nete | H144: 3
A145: L107_78 | B145: DEVEBEEK L1 | C145: A0_VL05_44 | D145: rivier | E145: Bk | F145: Schelde | G145: Leie | H145: 6
A146: L107_8 | B146: IEPERLEE | C146: A0_VL05_166 | D146: rivier | E146: Bk | F146: Schelde | G146: Ijzer | H146: 6
A147: L107_809 | B147: KLEINE HERK L1 | C147: A0_VL05_108 | D147: rivier | E147: Bk | F147: Schelde | G147: Demer | H147: 3
A148: L107_810 | B148: WINTERBEEK (KORTESSEM) | C148: A0_VL05_113 | D148: rivier | E148: Bk | F148: Schelde | G148: Demer | H148: 3
A149: L107_812 | B149: MOMBEEK L1 | C149: A0_VL05_113 | D149: rivier | E149: Bk | F149: Schelde | G149: Demer | H149: 3
A150: L107_814 | B150: STEENLAAK | C150: A0_VL11_205 | D150: rivier | E150: BkK | F150: Schelde | G150: Demer | H150: 3
A151: L107_82 | B151: BABILLEBEEK | C151: A0_VL05_51 | D151: rivier | E151: Bk | F151: Schelde | G151: Leie | H151: 6
A152: L107_824 | B152: ROELBEEK | C152: A0_VL05_105 | D152: rivier | E152: Bk | F152: Schelde | G152: Demer | H152: 4
A153: L107_83 | B153: ROOBEEK | C153: A0_VL05_51 | D153: rivier | E153: Bk | F153: Schelde | G153: Leie | H153: 6
A154: L107_836 | B154: LAAMBEEK | C154: A0_VL05_110 | D154: rivier | E154: BkK | F154: Schelde | G154: Demer | H154: 2
A155: L107_839 | B155: ZONDERIKBEEK | C155: A0_VL11_205 | D155: rivier | E155: BkK | F155: Schelde | G155: Demer | H155: 3
A156: L107_84 | B156: KROMMEBEEK | C156: A0_VL05_51 | D156: rivier | E156: Bk | F156: Schelde | G156: Leie | H156: 6
A157: L107_846 | B157: KAATSBEEK | C157: A0_VL05_99 | D157: rivier | E157: BkK | F157: Schelde | G157: Demer | H157: 3
A158: L107_847 | B158: WINTERBEEK (BILZEN) | C158: A0_VL05_98 | D158: rivier | E158: Bk | F158: Schelde | G158: Demer | H158: 3
A159: L107_848 | B159: DEMER L1 | C159: A0_VL05_98 | D159: rivier | E159: Bk | F159: Schelde | G159: Demer | H159: 3
A160: L107_852 | B160: MUNSTERBEEK L1 | C160: A0_VL05_114 | D160: rivier | E160: BkK | F160: Schelde | G160: Demer | H160: 2
A161: L107_853 | B161: ZUTENDAALBEEK | C161: A0_VL05_114 | D161: rivier | E161: BkK | F161: Schelde | G161: Demer | H161: 2
A162: L107_854 | B162: BOLLISENBEEK | C162: A0_VL05_136 | D162: rivier | E162: BkK | F162: Maas | G162: Maas | H162: 3
A163: L107_855 | B163: DOMMEL L1 | C163: A0_VL05_136 | D163: rivier | E163: BkK | F163: Maas | G163: Maas | H163: 3
A164: L107_856 | B164: HOLVENLOOP | C164: A0_VL05_136 | D164: rivier | E164: BkK | F164: Maas | G164: Maas | H164: 3
A165: L107_857 | B165: EINDERGATLOOP | C165: A0_VL05_136 | D165: rivier | E165: BkK | F165: Maas | G165: Maas | H165: 3
A166: L107_858 | B166: WARMBEEK L1 | C166: A0_VL17_147 | D166: rivier | E166: BkK | F166: Maas | G166: Maas | H166: 2
A167: L107_859 | B167: PRINSENLOOP | C167: A0_G_L107_859 | D167: rivier | E167: BkK | F167: Maas | G167: Maas | H167: 2
A168: L107_861 | B168: ABEEK L1 | C168: A0_VL11_133 | D168: rivier | E168: BkK | F168: Maas | G168: Maas | H168: 3
A169: L107_866 | B169: LOSSING L1 | C169: A0_VL05_141 | D169: rivier | E169: BkK | F169: Maas | G169: Maas | H169: 3
A170: L107_869 | B170: SOERBEEK | C170: A0_VL11_133 | D170: rivier | E170: BkK | F170: Maas | G170: Maas | H170: 3
A171: L107_876 | B171: BOSBEEK L1 | C171: A0_VL05_135 | D171: rivier | E171: BkK | F171: Maas | G171: Maas | H171: 3
A172: L107_879 | B172: VRIETSELBEEK - OUDE MAAS (DILSEN) | C172: A0_VL11_203 | D172: rivier | E172: BkK | F172: Maas | G172: Maas | H172: 4
A173: L107_883 | B173: ZIEPBEEK | C173: A0_VL11_203 | D173: rivier | E173: BkK | F173: Maas | G173: Maas | H173: 4
A174: L107_885 | B174: HEESWATER | C174: A0_VL22_208 | D174: rivier | E174: Bk | F174: Maas | G174: Beneden-Schelde | H174: 3
A175: L107_890 | B175: BEEK - DE BUTH (TONGEREN) | C175: A0_VL21_139 | D175: rivier | E175: Bk | F175: Maas | G175: Maas | H175: 5
A176: L107_891 | B176: VOER (VOEREN) | C176: A0_G_L107_891 | D176: rivier | E176: Bk | F176: Maas | G176: Maas | H176: 4
A177: L107_892 | B177: BEEK (VOEREN) | C177: A0_G_L107_892 | D177: rivier | E177: Bk | F177: Maas | G177: Maas | H177: 4
A178: L107_893 | B178: GULP | C178: A0_G_L107_893 | D178: rivier | E178: Bk | F178: Maas | G178: Maas | H178: 4
A179: L107_91 | B179: PLAATSBEEK | C179: A0_VL17_49 | D179: rivier | E179: Bk | F179: Schelde | G179: Leie | H179: 5
A180: L107_92 | B180: MAALBEEK (LEIEBEKKEN) | C180: A0_VL05_45 | D180: rivier | E180: Bk | F180: Schelde | G180: Leie | H180: 4
A181: L107_97 | B181: KASSELRIJBEEK - WEST | C181: A0_VL05_45 | D181: rivier | E181: Bk | F181: Schelde | G181: Leie | H181: 4
A182: L107_98 | B182: GAVERBEEK | C182: A0_VL05_45 | D182: rivier | E182: Bk | F182: Schelde | G182: Leie | H182: 4
A183: L110_1100 | B183: ZILVERBEEK | C183: A0_G_L110_1100 | D183: rivier | E183: Bk | F183: Schelde | G183: Dijle Zenne | H183: 2
A184: L111_1001 | B184: MARTJEVAART - LEKKERBOTERBEEK | C184: A0_VL11_10 | D184: rivier | E184: Bk | F184: Schelde | G184: Ijzer | H184: 6
A185: L111_1003 | B185: GELUWEBEEK | C185: A0_VL17_48 | D185: rivier | E185: Bk | F185: Schelde | G185: Leie | H185: 5
A186: L111_1004 | B186: RIJTGRACHT | C186: A0_VL17_204 | D186: rivier | E186: Bk | F186: Schelde | G186: Boven-Schelde | H186: 5
A187: L111_1005 | B187: KALSIJDEADER | C187: A0_VL08_173 | D187: rivier | E187: Pb | F187: Schelde | G187: Brugse Polders | H187: 6
A188: L111_1006 | B188: HOOFDSLOOT | C188: A0_VL08_164 | D188: rivier | E188: Bk | F188: Schelde | G188: Brugse Polders | H188: 5
A189: L111_1007 | B189: STEGERSZWIN | C189: A0_VL08_164 | D189: rivier | E189: Pb | F189: Schelde | G189: Brugse Polders | H189: 5
A190: L111_1010 | B190: OOSTKERKEVAART | C190: A0_VL11_13 | D190: rivier | E190: Pb | F190: Schelde | G190: Ijzer | H190: 6
A191: L111_1011 | B191: BOEREKREEK | C191: A0_VL08_172 | D191: rivier | E191: Pb | F191: Schelde | G191: Gentse Kanalen | H191: 4
A192: L111_1014 | B192: MEREBEEK | C192: A0_VL05_24 | D192: rivier | E192: Bk | F192: Schelde | G192: Gentse Kanalen | H192: 3
A193: L111_1015 | B193: OUDE AVAART | C193: A0_VL11_13 | D193: rivier | E193: Pb | F193: Schelde | G193: Ijzer | H193: 6
A194: L111_1016 | B194: WANTEBEEK | C194: A0_VL21_26 | D194: rivier | E194: Bk | F194: Schelde | G194: Gentse Kanalen | H194: 3
A195: L111_1018 | B195: LEEBEEK | C195: A0_VL05_58 | D195: rivier | E195: Bk | F195: Schelde | G195: Boven-Schelde | H195: 5
A196: L111_1019 | B196: MOLENBEEK - MARKEBEEK | C196: A0_VL17_60 | D196: rivier | E196: Bk | F196: Schelde | G196: Boven-Schelde | H196: 3
A197: L111_1020 | B197: OOSSEBEEK | C197: A0_VL17_204 | D197: rivier | E197: Bk | F197: Schelde | G197: Boven-Schelde | H197: 5
A198: L111_1021 | B198: ZWALMBEEK | C198: A0_VL11_63 | D198: rivier | E198: Bk | F198: Schelde | G198: Boven-Schelde | H198: 3
A199: L111_1022 | B199: MOLENBEEK (RONSE) | C199: A0_G_L111_1022 | D199: rivier | E199: Bk | F199: Schelde | G199: Boven-Schelde | H199: 5
A200: L111_1024 | B200: BAVEGEMSE BEEK | C200: A0_VL21_33 | D200: rivier | E200: Bk | F200: Schelde | G200: Beneden-Schelde | H200: 4
... 316 more rows

Sheet Keuzelijst parameters (hidden)
A1: Parameter ID | B1: Parameter Symbool | C1: Parameter | D1: Parameter ID | E1: Parameter Symbool | F1: Eenheid | G1: Eenheid uniform | H1: Waterrelevante stoffen Vlaanderen | I1: Categorie Stofgroep | J1: MKN - JG | K1: MKN - Max | L1: MKN - WL specifiek | M1: Toetswaarde selectie (JG of Max) | N1: Toetswaarde (G-M | O1: Toetswaarde (M-O) | P1: Toetswaarde (O-S) | R1: Parameter | S1: Afwijkende KE (ja/nee) | T1: KE BBT 2020 | U1: KE BBT + 2020 | W1: parameter | X1: Afkorting | Y1: Meetonzekerheid | Z1: Opmerking
A2: 252 | B2: MCPA | C2: (4-Chloor-2-methylfenoxy)azijnzuur | D2: 252 | E2: MCPA | F2: ng/L | G2: ng/L | H2: Nee | J2: =IFERROR(VLOOKUP(B2,'MKN - JG'!$B:$J,7,FALSE),"") -> 700 | K2: =IFERROR(VLOOKUP(B2,'MKN - Max'!B:J,7,FALSE),"") -> 20000 | M2: =IF(L2="ja","Vul MKN aan",IF(J2<>"",J2,K2)) -> 700 | N2: =M2 -> 700 | P2: =N2*5 -> 3500 | R2: =C2 -> (4-Chloor-2-methylfenoxy)azijnzuur | W2: =C2 -> (4-Chloor-2-methylfenoxy)azijnzuur | X2: =B2 -> MCPA | Y2: 1.5
A3: 308 | B3: 111CEa | C3: 1,1,1-Trichloorethaan | D3: 308 | E3: 111CEa | F3: µg/L | G3: µg/L | H3: Nee | J3: =IFERROR(VLOOKUP(B3,'MKN - JG'!$B:$J,7,FALSE),"") -> 20 | K3: =IFERROR(VLOOKUP(B3,'MKN - Max'!B:J,7,FALSE),"") -> 50 | M3: 20 | N3: 20 | P3: 100 | R3: 1,1,1-Trichloorethaan | W3: 1,1,1-Trichloorethaan | X3: 111CEa | Y3: 1.5
A4: 309 | B4: 1122CEa | C4: 1,1,2,2-Tetrachloorethaan | D4: 309 | E4: 1122CEa | F4: µg/L | G4: µg/L | H4: Nee | J4: =IFERROR(VLOOKUP(B4,'MKN - JG'!$B:$J,7,FALSE),"") -> 100 | K4: =IFERROR(VLOOKUP(B4,'MKN - Max'!B:J,7,FALSE),"") -> 900 | M4: 100 | N4: 100 | P4: 500 | R4: 1,1,2,2-Tetrachloorethaan | W4: 1,1,2,2-Tetrachloorethaan | X4: 1122CEa | Y4: 1.5
A5: 310 | B5: 112CEa | C5: 1,1,2-Trichloorethaan | D5: 310 | E5: 112CEa | F5: µg/L | G5: µg/L | H5: Nee | J5: =IFERROR(VLOOKUP(B5,'MKN - JG'!$B:$J,7,FALSE),"") -> 20 | K5: =IFERROR(VLOOKUP(B5,'MKN - Max'!B:J,7,FALSE),"") -> 300 | M5: 20 | N5: 20 | P5: 100 | R5: 1,1,2-Trichloorethaan | W5: 1,1,2-Trichloorethaan | X5: 112CEa | Y5: 1.5
A6: 502 | B6: 112CTFEa | C6: 1,1,2-Trichloortrifluorethaan | D6: 502 | E6: 112CTFEa | F6: µg/L | G6: µg/L | H6: Nee | J6: =IFERROR(VLOOKUP(B6,'MKN - JG'!$B:$J,7,FALSE),"") -> 7 | K6: =IFERROR(VLOOKUP(B6,'MKN - Max'!B:J,7,FALSE),"") -> 70 | M6: 7 | N6: 7 | P6: 35 | R6: 1,1,2-Trichloortrifluorethaan | W6: 1,1,2-Trichloortrifluorethaan | X6: 112CTFEa | Y6: 1.5 | Z6: MOZ aangevuld
A7: 311 | B7: 11CEa | C7: 1,1-Dichloorethaan | D7: 311 | E7: 11CEa | F7: µg/L | G7: µg/L | H7: Nee | J7: =IFERROR(VLOOKUP(B7,'MKN - JG'!$B:$J,7,FALSE),"") -> 100 | K7: =IFERROR(VLOOKUP(B7,'MKN - Max'!B:J,7,FALSE),"") -> 8000 | M7: 100 | N7: 100 | P7: 500 | R7: 1,1-Dichloorethaan | W7: 1,1-Dichloorethaan | X7: 11CEa | Y7: 1.5
A8: 312 | B8: 11CEe | C8: 1,1-Dichlooretheen | D8: 312 | E8: 11CEe | F8: µg/L | G8: µg/L | H8: Nee | J8: =IFERROR(VLOOKUP(B8,'MKN - JG'!$B:$J,7,FALSE),"") -> 50 | K8: =IFERROR(VLOOKUP(B8,'MKN - Max'!B:J,7,FALSE),"") -> 500 | M8: 50 | N8: 50 | P8: 250 | R8: 1,1-Dichlooretheen | W8: 1,1-Dichlooretheen | X8: 11CEe | Y8: 1.5
A9: 316 | B9: 1245CBz | C9: 1,2,4,5-Tetrachloorbenzeen | D9: 316 | E9: 1245CBz | F9: ng/L | G9: ng/L | H9: Nee | J9: =IFERROR(VLOOKUP(B9,'MKN - JG'!$B:$J,7,FALSE),"") -> 9000 | K9: =IFERROR(VLOOKUP(B9,'MKN - Max'!B:J,7,FALSE),"") -> 30000 | M9: 9000 | N9: 9000 | P9: 45000 | R9: 1,2,4,5-Tetrachloorbenzeen | W9: 1,2,4,5-Tetrachloorbenzeen | X9: 1245CBz | Y9: 1.5
A10: 471 | B10: 12BEa | C10: 1,2-Dibroomethaan | D10: 471 | E10: 12BEa | F10: µg/L | G10: µg/L | H10: Nee | J10: =IFERROR(VLOOKUP(B10,'MKN - JG'!$B:$J,7,FALSE),"") -> 0.003 | K10: =IFERROR(VLOOKUP(B10,'MKN - Max'!B:J,7,FALSE),"") -> 0.4 | M10: 0.003 | N10: 0.003 | P10: 0.015 | R10: 1,2-Dibroomethaan | W10: 1,2-Dibroomethaan | X10: 12BEa | Y10: 1.5
A11: 319 | B11: 12CEa | C11: 1,2-Dichloorethaan | D11: 319 | E11: 12CEa | F11: µg/L | G11: µg/L | H11: Ja | I11: PS | J11: =IFERROR(VLOOKUP(B11,'MKN - JG'!$B:$J,7,FALSE),"") -> 10 | K11: =IFERROR(VLOOKUP(B11,'MKN - Max'!B:J,7,FALSE),"") ->  | M11: 10 | N11: 10 | P11: 50 | R11: 1,2-Dichloorethaan | W11: 1,2-Dichloorethaan | X11: 12CEa | Y11: 1.5
A12: 320 | B12: 12CEe | C12: 1,2-Dichlooretheen | D12: 320 | E12: 12CEe | F12: µg/L | G12: µg/L | H12: Nee | J12: =IFERROR(VLOOKUP(B12,'MKN - JG'!$B:$J,7,FALSE),"") -> 10 | K12: =IFERROR(VLOOKUP(B12,'MKN - Max'!B:J,7,FALSE),"") -> 100 | M12: 10 | N12: 10 | P12: 50 | R12: 1,2-Dichlooretheen | W12: 1,2-Dichlooretheen | X12: 12CEe | Y12: 1.5
A13: 321 | B13: 12CPa | C13: 1,2-Dichloorpropaan | D13: 321 | E13: 12CPa | F13: µg/L | G13: µg/L | H13: Nee | J13: =IFERROR(VLOOKUP(B13,'MKN - JG'!$B:$J,7,FALSE),"") -> 400 | K13: =IFERROR(VLOOKUP(B13,'MKN - Max'!B:J,7,FALSE),"") -> 1000 | M13: 400 | N13: 400 | P13: 2000 | R13: 1,2-Dichloorpropaan | W13: 1,2-Dichloorpropaan | X13: 12CPa | Y13: 1.5
A14: 323 | B14: 13C2Pol | C14: 1,3-Dichloor-2-propanol | D14: 323 | E14: 13C2Pol | F14: µg/L | G14: µg/L | H14: Nee | J14: =IFERROR(VLOOKUP(B14,'MKN - JG'!$B:$J,7,FALSE),"") -> 100 | K14: =IFERROR(VLOOKUP(B14,'MKN - Max'!B:J,7,FALSE),"") -> 2000 | M14: 100 | N14: 100 | P14: 500 | R14: 1,3-Dichloor-2-propanol | W14: 1,3-Dichloor-2-propanol | X14: 13C2Pol | Y14: 1.5 | Z14: MOZ aangevuld
A15: 895 | B15: ct13CPe | C15: 1,3-Dichloorpropeen (cis+trans) | D15: 895 | E15: ct13CPe | F15: µg/L | G15: µg/L | H15: Nee | J15: =IFERROR(VLOOKUP(B15,'MKN - JG'!$B:$J,7,FALSE),"") -> 2 | K15: =IFERROR(VLOOKUP(B15,'MKN - Max'!B:J,7,FALSE),"") -> 20 | M15: 2 | N15: 2 | P15: 10 | R15: 1,3-Dichloorpropeen (cis+trans) | W15: 1,3-Dichloorpropeen (cis+trans) | X15: ct13CPe | Y15: 1.5
A16: 330 | B16: 1C24NiBz | C16: 1-Chloor-2,4-dinitrobenzeen | D16: 330 | E16: 1C24NiBz | F16: µg/L | G16: µg/L | H16: Nee | J16: =IFERROR(VLOOKUP(B16,'MKN - JG'!$B:$J,7,FALSE),"") -> 5 | K16: =IFERROR(VLOOKUP(B16,'MKN - Max'!B:J,7,FALSE),"") -> 20 | M16: 5 | N16: 5 | P16: 25 | R16: 1-Chloor-2,4-dinitrobenzeen | W16: 1-Chloor-2,4-dinitrobenzeen | X16: 1C24NiBz | Y16: 1.5
A17: 343 | B17: 23CPe | C17: 2,3-Dichloorpropeen | D17: 343 | E17: 23CPe | F17: µg/L | G17: µg/L | H17: Nee | J17: =IFERROR(VLOOKUP(B17,'MKN - JG'!$B:$J,7,FALSE),"") -> 2 | K17: =IFERROR(VLOOKUP(B17,'MKN - Max'!B:J,7,FALSE),"") -> 20 | M17: 2 | N17: 2 | P17: 10 | R17: 2,3-Dichloorpropeen | W17: 2,3-Dichloorpropeen | X17: 23CPe | Y17: 1.5 | Z17: MOZ aangevuld
A18: 229 | B18: 245-T | C18: 2,4,5-Trichloorfenoxyazijnzuur | D18: 229 | E18: 245-T | F18: ng/L | G18: ng/L | H18: Nee | J18: =IFERROR(VLOOKUP(B18,'MKN - JG'!$B:$J,7,FALSE),"") -> 2000 | K18: =IFERROR(VLOOKUP(B18,'MKN - Max'!B:J,7,FALSE),"") -> 20000 | M18: 2000 | N18: 2000 | P18: 10000 | R18: 2,4,5-Trichloorfenoxyazijnzuur | W18: 2,4,5-Trichloorfenoxyazijnzuur | X18: 245-T | Y18: 1.5
A19: 473 | B19: 246C135Az | C19: 2,4,6-Trichloor-1,3,5-triazine | D19: 473 | E19: 246C135Az | F19: µg/L | G19: µg/L | H19: Nee | J19: =IFERROR(VLOOKUP(B19,'MKN - JG'!$B:$J,7,FALSE),"") -> 0.1 | K19: =IFERROR(VLOOKUP(B19,'MKN - Max'!B:J,7,FALSE),"") ->  | M19: 0.1 | N19: 0.1 | P19: 0.5 | R19: 2,4,6-Trichloor-1,3,5-triazine | W19: 2,4,6-Trichloor-1,3,5-triazine | X19: 246C135Az | Y19: 1.5 | Z19: MOZ aangevuld
A20: 346 | B20: 24CFol | C20: 2,4-Dichloorfenol | D20: 346 | E20: 24CFol | F20: ng/L | G20: ng/L | H20: Nee | J20: =IFERROR(VLOOKUP(B20,'MKN - JG'!$B:$J,7,FALSE),"") -> 2000 | K20: =IFERROR(VLOOKUP(B20,'MKN - Max'!B:J,7,FALSE),"") -> 70000 | M20: 2000 | N20: 2000 | P20: 10000 | R20: 2,4-Dichloorfenol | S20: ja | T20: 911 | U20: 9106 | W20: 2,4-Dichloorfenol | X20: 24CFol | Y20: 1.5
A21: 230 | B21: 24-D | C21: 2,4-Dichloorfenoxyazijnzuur | D21: 230 | E21: 24-D | F21: ng/L | G21: ng/L | H21: Nee | J21: =IFERROR(VLOOKUP(B21,'MKN - JG'!$B:$J,7,FALSE),"") -> 20000 | K21: =IFERROR(VLOOKUP(B21,'MKN - Max'!B:J,7,FALSE),"") -> 200000 | M21: 20000 | N21: 20000 | P21: 100000 | R21: 2,4-Dichloorfenoxyazijnzuur | W21: 2,4-Dichloorfenoxyazijnzuur | X21: 24-D | Y21: 1.5
A22: 348 | B22: 2Am4CFol | C22: 2-Amino-4-chloorfenol | D22: 348 | E22: 2Am4CFol | F22: µg/L | G22: µg/L | H22: Nee | J22: =IFERROR(VLOOKUP(B22,'MKN - JG'!$B:$J,7,FALSE),"") -> 10 | K22: =IFERROR(VLOOKUP(B22,'MKN - Max'!B:J,7,FALSE),"") ->  | M22: 10 | N22: 10 | P22: 50 | R22: 2-Amino-4-chloorfenol | S22: ja | T22: 911 | U22: 9106 | W22: 2-Amino-4-chloorfenol | X22: 2Am4CFol | Y22: 1.5
A23: 349 | B23: 2C13Bdn | C23: 2-Chloor-1,3-butadieen | D23: 349 | E23: 2C13Bdn | F23: µg/L | G23: µg/L | H23: Nee | J23: =IFERROR(VLOOKUP(B23,'MKN - JG'!$B:$J,7,FALSE),"") -> 10 | K23: =IFERROR(VLOOKUP(B23,'MKN - Max'!B:J,7,FALSE),"") ->  | M23: 10 | N23: 10 | P23: 50 | R23: 2-Chloor-1,3-butadieen | W23: 2-Chloor-1,3-butadieen | X23: 2C13Bdn | Y23: 1.5 | Z23: MOZ aangevuld
A24: 351 | B24: 2CEol | C24: 2-Chloorethanol | D24: 351 | E24: 2CEol | F24: µg/L | G24: µg/L | H24: Nee | J24: =IFERROR(VLOOKUP(B24,'MKN - JG'!$B:$J,7,FALSE),"") -> 30 | K24: =IFERROR(VLOOKUP(B24,'MKN - Max'!B:J,7,FALSE),"") -> 300 | M24: 30 | N24: 30 | P24: 150 | R24: 2-Chloorethanol | W24: 2-Chloorethanol | X24: 2CEol | Y24: 1.5 | Z24: MOZ aangevuld
A25: 358 | B25: 3CPe | C25: 3-Chloorpropeen | D25: 358 | E25: 3CPe | F25: µg/L | G25: µg/L | H25: Nee | J25: =IFERROR(VLOOKUP(B25,'MKN - JG'!$B:$J,7,FALSE),"") -> 3 | K25: =IFERROR(VLOOKUP(B25,'MKN - Max'!B:J,7,FALSE),"") -> 30 | M25: 3 | N25: 3 | P25: 15 | R25: 3-Chloorpropeen | W25: 3-Chloorpropeen | X25: 3CPe | Y25: 1.5 | Z25: MOZ aangevuld
A26: 361 | B26: 4C2NiAn | C26: 4-Chloor-2-nitroaniline | D26: 361 | E26: 4C2NiAn | F26: µg/L | G26: µg/L | H26: Nee | J26: =IFERROR(VLOOKUP(B26,'MKN - JG'!$B:$J,7,FALSE),"") -> 2 | K26: =IFERROR(VLOOKUP(B26,'MKN - Max'!B:J,7,FALSE),"") -> 20 | M26: 2 | N26: 2 | P26: 10 | R26: 4-Chloor-2-nitroaniline | W26: 4-Chloor-2-nitroaniline | X26: 4C2NiAn | Y26: 1.5 | Z26: MOZ aangevuld
A27: 363 | B27: 4C3MyFol | C27: 4-Chloor-3-methylfenol | D27: 363 | E27: 4C3MyFol | F27: ng/L | G27: ng/L | H27: Nee | J27: =IFERROR(VLOOKUP(B27,'MKN - JG'!$B:$J,7,FALSE),"") -> 9000 | K27: =IFERROR(VLOOKUP(B27,'MKN - Max'!B:J,7,FALSE),"") -> 90000 | M27: 9000 | N27: 9000 | P27: 45000 | R27: 4-Chloor-3-methylfenol | S27: ja | T27: 911 | U27: 9106 | W27: 4-Chloor-3-methylfenol | X27: 4C3MyFol | Y27: 1.5
A28: 418 | B28: Acenaft | C28: Acenafteen | D28: 418 | E28: Acenaft | F28: ng/L | G28: ng/L | H28: Ja | I28: VMM stroomgebiedspecifieke stoffen - VMM prio - PAK | J28: =IFERROR(VLOOKUP(B28,'MKN - JG'!$B:$J,7,FALSE),"") -> 60 | K28: =IFERROR(VLOOKUP(B28,'MKN - Max'!B:J,7,FALSE),"") ->  | M28: 60 | N28: 60 | P28: 300 | R28: Acenafteen | S28: ja | T28: 2269 | U28: =T28*10 -> 22690 | W28: Acenafteen | X28: Acenaft | Y28: 1.5
A29: 511 | B29: Acenaftyl | C29: Acenaftyleen | D29: 511 | E29: Acenaftyl | F29: ng/L | G29: ng/L | H29: Ja | I29: VMM stroomgebiedspecifieke stoffen - VMM prio - PAK | J29: =IFERROR(VLOOKUP(B29,'MKN - JG'!$B:$J,7,FALSE),"") -> 4000 | K29: =IFERROR(VLOOKUP(B29,'MKN - Max'!B:J,7,FALSE),"") ->  | M29: 4000 | N29: 4000 | P29: 20000 | R29: Acenaftyleen | S29: ja | T29: 2269 | U29: =T29*10 -> 22690 | W29: Acenaftyleen | X29: Acenaftyl | Y29: 1.5
A30: 1523 | B30: Aclonifen | C30: Aclonifen | D30: 1523 | E30: Aclonifen | F30: ng/L | G30: ng/L | H30: Ja | I30: PS | J30: =IFERROR(VLOOKUP(B30,'MKN - JG'!$B:$J,7,FALSE),"") -> 120 | K30: =IFERROR(VLOOKUP(B30,'MKN - Max'!B:J,7,FALSE),"") -> 120 | M30: 120 | N30: 120 | P30: 600 | R30: Aclonifen | W30: Aclonifen | X30: Aclonifen | Y30: 1.5 | Z30: MOZ aangevuld
A31: 284 | B31: AOX | C31: Adsorbeerbare organohalogenen | D31: 284 | E31: AOX | F31: µgCl/L | G31: µg/L | H31: Nee | J31: =IFERROR(VLOOKUP(B31,'MKN - JG'!$B:$J,7,FALSE),"") -> 40 | K31: =IFERROR(VLOOKUP(B31,'MKN - Max'!B:J,7,FALSE),"") ->  | M31: 40 | N31: 40 | P31: 200 | R31: Adsorbeerbare organohalogenen | S31: nee | T31: 1000 | U31: 10000 | W31: Adsorbeerbare organohalogenen | X31: AOX | Y31: 1.5
A32: 751 | B32: Alachloor | C32: Alachloor | D32: 751 | E32: Alachloor | F32: ng/L | G32: ng/L | H32: Ja | I32: PS | J32: =IFERROR(VLOOKUP(B32,'MKN - JG'!$B:$J,7,FALSE),"") -> 300 | K32: =IFERROR(VLOOKUP(B32,'MKN - Max'!B:J,7,FALSE),"") -> 700 | M32: 300 | N32: 300 | P32: 1500 | R32: Alachloor | W32: Alachloor | X32: Alachloor | Y32: 1.5
A33: 996 | B33: ADEIdrin | C33: Aldrin+Dieldrin+Endrin+Isodrin | D33: 996 | E33: ADEIdrin | F33: ng/L | G33: ng/L | H33: Ja | I33: VS | J33: =IFERROR(VLOOKUP(B33,'MKN - JG'!$B:$J,7,FALSE),"") -> 10 | K33: =IFERROR(VLOOKUP(B33,'MKN - Max'!B:J,7,FALSE),"") ->  | M33: 10 | N33: 10 | P33: 50 | R33: Aldrin+Dieldrin+Endrin+Isodrin | W33: Aldrin+Dieldrin+Endrin+Isodrin | X33: ADEIdrin | Y33: 1.5
A34: 1204 | B34: a+bEndoS | C34: alfa+beta Endosulfan | D34: 1204 | E34: a+bEndoS | F34: ng/L | G34: ng/L | H34: Ja | I34: PGS | J34: =IFERROR(VLOOKUP(B34,'MKN - JG'!$B:$J,7,FALSE),"") -> 5 | K34: =IFERROR(VLOOKUP(B34,'MKN - Max'!B:J,7,FALSE),"") -> 10 | M34: =IF(L34="ja","Vul MKN aan",IF(J34<>"",J34,K34)) -> 5 | N34: =M34 -> 5 | P34: =N34*5 -> 25 | R34: =C34 -> alfa+beta Endosulfan | W34: =C34 -> alfa+beta Endosulfan | X34: =B34 -> a+bEndoS | Y34: 1.5
A35: 1205 | B35: a+b+d+gHCHS | C35: alfa+beta+gamma+delta Hexachloorcyclohexaan | D35: 1205 | E35: a+b+d+gHCHS | F35: ng/L | G35: ng/L | H35: Ja | I35: PGS | J35: =IFERROR(VLOOKUP(B35,'MKN - JG'!$B:$J,7,FALSE),"") -> 20 | K35: =IFERROR(VLOOKUP(B35,'MKN - Max'!B:J,7,FALSE),"") -> 40 | M35: 20 | N35: 20 | P35: 100 | R35: alfa+beta+gamma+delta Hexachloorcyclohexaan | W35: alfa+beta+gamma+delta Hexachloorcyclohexaan | X35: a+b+d+gHCHS | Y35: 1.5
A36: 770 | B36: aaCTol | C36: alfa-alfa-Dichloortolueen | D36: 770 | E36: aaCTol | F36: µg/L | G36: µg/L | H36: Nee | J36: =IFERROR(VLOOKUP(B36,'MKN - JG'!$B:$J,7,FALSE),"") -> 5 | K36: =IFERROR(VLOOKUP(B36,'MKN - Max'!B:J,7,FALSE),"") ->  | M36: 5 | N36: 5 | P36: 25 | R36: alfa-alfa-Dichloortolueen | W36: alfa-alfa-Dichloortolueen | X36: aaCTol | Y36: 1.5 | Z36: MOZ aangevuld
A37: 724 | B37: aCTol | C37: alfa-Chloortolueen | D37: 724 | E37: aCTol | F37: µg/L | G37: µg/L | H37: Nee | J37: =IFERROR(VLOOKUP(B37,'MKN - JG'!$B:$J,7,FALSE),"") -> 1 | K37: =IFERROR(VLOOKUP(B37,'MKN - Max'!B:J,7,FALSE),"") -> 10 | M37: 1 | N37: 1 | P37: 5 | R37: alfa-Chloortolueen | W37: alfa-Chloortolueen | X37: aCTol | Y37: 1.5 | Z37: MOZ aangevuld
A38: 949 | B38: Alk c | C38: Alkanen, gechloreerde | D38: 949 | E38: Alk c | F38: µg/L | G38: µg/L | H38: Nee | J38: =IFERROR(VLOOKUP(B38,'MKN - JG'!$B:$J,7,FALSE),"") -> 0.4 | K38: =IFERROR(VLOOKUP(B38,'MKN - Max'!B:J,7,FALSE),"") -> 1.4 | M38: 0.4 | N38: 0.4 | P38: 2 | R38: Alkanen, gechloreerde | W38: Alkanen, gechloreerde | X38: Alk c | Y38: 1.5 | Z38: MOZ aangevuld
A39: 19 | B39: NH3 | C39: Ammoniak | D39: 19 | E39: NH3 | F39: mgN/L | G39: mg/L | H39: Nee | J39: =IFERROR(VLOOKUP(B39,'MKN - JG'!$B:$J,7,FALSE),"") -> 0.02467 | K39: =IFERROR(VLOOKUP(B39,'MKN - Max'!B:J,7,FALSE),"") -> 0.08224 | M39: 0.02467 | N39: 0.02467 | P39: 0.12335 | R39: Ammoniak | W39: Ammoniak | X39: NH3 | Y39: 1.2
A40: 419 | B40: Ant | C40: Anthraceen | D40: 419 | E40: Ant | F40: ng/L | G40: ng/L | H40: Ja | I40: PGS | J40: =IFERROR(VLOOKUP(B40,'MKN - JG'!$B:$J,7,FALSE),"") -> 100 | K40: =IFERROR(VLOOKUP(B40,'MKN - Max'!B:J,7,FALSE),"") -> 100 | M40: 100 | N40: 100 | P40: 500 | R40: Anthraceen | W40: Anthraceen | X40: Ant | Y40: 1.5
A41: 134 | B41: Sb t | C41: Antimoon, totaal | D41: 134 | E41: Sb t | F41: µg/L | G41: µg/L | H41: Nee | J41: =IFERROR(VLOOKUP(B41,'MKN - JG'!$B:$J,7,FALSE),"") -> 100 | K41: =IFERROR(VLOOKUP(B41,'MKN - Max'!B:J,7,FALSE),"") ->  | M41: 100 | N41: 100 | P41: 500 | R41: Antimoon, totaal | W41: Antimoon, totaal | X41: Sb t | Y41: 1.3
A42: 137 | B42: As t | C42: Arseen, totaal | D42: 137 | E42: As t | F42: µg/L | G42: µg/L | H42: Ja | I42: VMM stroomgebiedspecifieke stoffen - VMM prio - >5% OW | J42: =IFERROR(VLOOKUP(B42,'MKN - JG'!$B:$J,7,FALSE),"") -> 5 | K42: =IFERROR(VLOOKUP(B42,'MKN - Max'!B:J,7,FALSE),"") ->  | M42: 5 | N42: 5 | P42: 25 | R42: Arseen, totaal | W42: Arseen, totaal | X42: As t | Y42: 1.3
A43: 268 | B43: Atraz | C43: Atrazine | D43: 268 | E43: Atraz | F43: ng/L | G43: ng/L | H43: Ja | I43: PS | J43: =IFERROR(VLOOKUP(B43,'MKN - JG'!$B:$J,7,FALSE),"") -> 600 | K43: =IFERROR(VLOOKUP(B43,'MKN - Max'!B:J,7,FALSE),"") -> 2000 | M43: 600 | N43: 600 | P43: 3000 | R43: Atrazine | W43: Atrazine | X43: Atraz | Y43: 1.5
A44: 393 | B44: AzinfosEy | C44: Azinfos-ethyl | D44: 393 | E44: AzinfosEy | F44: ng/L | G44: ng/L | H44: Nee | J44: =IFERROR(VLOOKUP(B44,'MKN - JG'!$B:$J,7,FALSE),"") -> 10 | K44: =IFERROR(VLOOKUP(B44,'MKN - Max'!B:J,7,FALSE),"") -> 100 | M44: 10 | N44: 10 | P44: 50 | R44: Azinfos-ethyl | W44: Azinfos-ethyl | X44: AzinfosEy | Y44: 1.5
A45: 394 | B45: AzinfosMy | C45: Azinfos-methyl | D45: 394 | E45: AzinfosMy | F45: ng/L | G45: ng/L | H45: Nee | J45: =IFERROR(VLOOKUP(B45,'MKN - JG'!$B:$J,7,FALSE),"") -> 2 | K45: =IFERROR(VLOOKUP(B45,'MKN - Max'!B:J,7,FALSE),"") -> 10 | M45: 2 | N45: 2 | P45: 10 | R45: Azinfos-methyl | W45: Azinfos-methyl | X45: AzinfosMy | Y45: 1.5
A46: 140 | B46: Ba t | C46: Barium, totaal | D46: 140 | E46: Ba t | F46: µg/L | G46: µg/L | H46: Nee | J46: =IFERROR(VLOOKUP(B46,'MKN - JG'!$B:$J,7,FALSE),"") -> 70 | K46: =IFERROR(VLOOKUP(B46,'MKN - Max'!B:J,7,FALSE),"") ->  | M46: 70 | N46: 70 | P46: 350 | R46: Barium, totaal | W46: Barium, totaal | X46: Ba t | Y46: 1.3
A47: 456 | B47: Bentazone | C47: Bentazone | D47: 456 | E47: Bentazone | F47: ng/L | G47: ng/L | H47: Nee | J47: =IFERROR(VLOOKUP(B47,'MKN - JG'!$B:$J,7,FALSE),"") -> 50000 | K47: =IFERROR(VLOOKUP(B47,'MKN - Max'!B:J,7,FALSE),"") -> 500000 | M47: 50000 | N47: 50000 | P47: 250000 | R47: Bentazone | W47: Bentazone | X47: Bentazone | Y47: 1.5
A48: 212 | B48: Benzeen | C48: Benzeen | D48: 212 | E48: Benzeen | F48: µg/L | G48: µg/L | H48: Ja | I48: PS | J48: =IFERROR(VLOOKUP(B48,'MKN - JG'!$B:$J,7,FALSE),"") -> 10 | K48: =IFERROR(VLOOKUP(B48,'MKN - Max'!B:J,7,FALSE),"") -> 50 | M48: 10 | N48: 10 | P48: 50 | R48: Benzeen | S48: ja | T48: 1000 | U48: 10000 | W48: Benzeen | X48: Benzeen | Y48: 1.5
A49: 435 | B49: Bzdine | C49: Benzidine | D49: 435 | E49: Bzdine | F49: µg/L | G49: µg/L | H49: Nee | J49: =IFERROR(VLOOKUP(B49,'MKN - JG'!$B:$J,7,FALSE),"") -> 0.6 | K49: =IFERROR(VLOOKUP(B49,'MKN - Max'!B:J,7,FALSE),"") -> 6 | M49: 0.6 | N49: 0.6 | P49: 3 | R49: Benzidine | W49: Benzidine | X49: Bzdine | Y49: 1.5 | Z49: MOZ aangevuld
A50: 420 | B50: B(a)A | C50: Benzo(a)anthraceen | D50: 420 | E50: B(a)A | F50: ng/L | G50: ng/L | H50: Ja | I50: VMM stroomgebiedspecifieke stoffen - VMM prio - Toekomstige P(G)S | J50: =IFERROR(VLOOKUP(B50,'MKN - JG'!$B:$J,7,FALSE),"") -> 300 | K50: =IFERROR(VLOOKUP(B50,'MKN - Max'!B:J,7,FALSE),"") ->  | M50: 300 | N50: 300 | P50: 1500 | R50: Benzo(a)anthraceen | S50: ja | T50: 2269 | U50: =T50*10 -> 22690 | W50: Benzo(a)anthraceen | X50: B(a)A | Y50: 1.5
A51: 421 | B51: B(a)P | C51: Benzo(a)pyreen | D51: 421 | E51: B(a)P | F51: ng/L | G51: ng/L | H51: Ja | I51: PGS | J51: =IFERROR(VLOOKUP(B51,'MKN - JG'!$B:$J,7,FALSE),"") -> 0.17 | K51: =IFERROR(VLOOKUP(B51,'MKN - Max'!B:J,7,FALSE),"") -> 270 | M51: 0.17 | N51: 0.17 | P51: 0.85 | R51: Benzo(a)pyreen | S51: ja | T51: 2269 | U51: =T51*10 -> 22690 | W51: Benzo(a)pyreen | X51: B(a)P | Y51: 1.5
A52: 422 | B52: B(b)Flu | C52: Benzo(b)fluorantheen | D52: 422 | E52: B(b)Flu | F52: ng/L | G52: ng/L | H52: Ja | I52: PGS | J52: =IFERROR(VLOOKUP(B52,'MKN - JG'!$B:$J,7,FALSE),"") ->  | K52: =IFERROR(VLOOKUP(B52,'MKN - Max'!B:J,7,FALSE),"") -> 17 | M52: 17 | N52: 17 | P52: 85 | R52: Benzo(b)fluorantheen | S52: ja | T52: 2269 | U52: =T52*10 -> 22690 | W52: Benzo(b)fluorantheen | X52: B(b)Flu | Y52: 1.5
A53: 423 | B53: B(ghi)Pe | C53: Benzo(g,h,i)peryleen | D53: 423 | E53: B(ghi)Pe | F53: ng/L | G53: ng/L | H53: Ja | I53: PGS | J53: =IFERROR(VLOOKUP(B53,'MKN - JG'!$B:$J,7,FALSE),"") ->  | K53: =IFERROR(VLOOKUP(B53,'MKN - Max'!B:J,7,FALSE),"") -> 8.2 | M53: 8.2 | N53: 8.2 | P53: 41 | R53: Benzo(g,h,i)peryleen | S53: ja | T53: 2269 | U53: =T53*10 -> 22690 | W53: Benzo(g,h,i)peryleen | X53: B(ghi)Pe | Y53: 1.5
A54: 424 | B54: B(k)Flu | C54: Benzo(k)fluorantheen | D54: 424 | E54: B(k)Flu | F54: ng/L | G54: ng/L | H54: Ja | I54: PGS | J54: =IFERROR(VLOOKUP(B54,'MKN - JG'!$B:$J,7,FALSE),"") ->  | K54: =IFERROR(VLOOKUP(B54,'MKN - Max'!B:J,7,FALSE),"") -> 17 | M54: 17 | N54: 17 | P54: 85 | R54: Benzo(k)fluorantheen | S54: ja | T54: 2269 | U54: =T54*10 -> 22690 | W54: Benzo(k)fluorantheen | X54: B(k)Flu | Y54: 1.5
A55: 143 | B55: Be t | C55: Berylium, totaal | D55: 143 | E55: Be t | F55: µg/L | G55: µg/L | H55: Nee | J55: =IFERROR(VLOOKUP(B55,'MKN - JG'!$B:$J,7,FALSE),"") -> 0.1 | K55: =IFERROR(VLOOKUP(B55,'MKN - Max'!B:J,7,FALSE),"") ->  | M55: 0.1 | N55: 0.1 | P55: 0.5 | R55: Berylium, totaal | W55: Berylium, totaal | X55: Be t | Y55: 1.3
A56: 1522 | B56: Bifenox | C56: Bifenox | D56: 1522 | E56: Bifenox | F56: ng/L | G56: ng/L | H56: Ja | I56: PS | J56: =IFERROR(VLOOKUP(B56,'MKN - JG'!$B:$J,7,FALSE),"") -> 12 | K56: =IFERROR(VLOOKUP(B56,'MKN - Max'!B:J,7,FALSE),"") -> 40 | M56: 12 | N56: 12 | P56: 60 | R56: Bifenox | W56: Bifenox | X56: Bifenox | Y56: 1.5 | Z56: MOZ aangevuld
A57: 287 | B57: BZV5 | C57: Biochemisch zuurstofverbruik na 5d. | D57: 287 | E57: BZV5 | F57: mgO2/L | G57: mg/L | H57: Ja | I57: VMM stroomgebiedspecifieke stoffen - VMM prio - >5% OW | J57: =IFERROR(VLOOKUP(B57,'MKN - JG'!$B:$J,7,FALSE),"") ->  | L57: ja | R57: Biochemisch zuurstofverbruik na 5d. | S57: nee | T57: 5 | U57: =T57*10 -> 50 | W57: Biochemisch zuurstofverbruik na 5d. | X57: BZV5 | Y57: 1.4
A58: 478 | B58: b2CiPyEt | C58: bis-(2-Chloorisopropyl)-ether | D58: 478 | E58: b2CiPyEt | F58: µg/L | G58: µg/L | H58: Nee | J58: =IFERROR(VLOOKUP(B58,'MKN - JG'!$B:$J,7,FALSE),"") -> 10 | K58: =IFERROR(VLOOKUP(B58,'MKN - Max'!B:J,7,FALSE),"") ->  | M58: =IF(L58="ja","Vul MKN aan",IF(J58<>"",J58,K58)) -> 10 | N58: =M58 -> 10 | P58: =N58*5 -> 50 | R58: bis-(2-Chloorisopropyl)-ether | W58: bis-(2-Chloorisopropyl)-ether | X58: b2CiPyEt | Y58: 1.5 | Z58: MOZ aangevuld
A59: 59 | B59: b2EyHyFt | C59: bis-(2-ethylhexyl)-ftalaat | D59: 59 | E59: b2EyHyFt | F59: µg/L | G59: µg/L | H59: Ja | I59: PGS | J59: =IFERROR(VLOOKUP(B59,'MKN - JG'!$B:$J,7,FALSE),"") -> 1.3 | K59: =IFERROR(VLOOKUP(B59,'MKN - Max'!B:J,7,FALSE),"") ->  | M59: =IF(L59="ja","Vul MKN aan",IF(J59<>"",J59,K59)) -> 1.3 | N59: =M59 -> 1.3 | P59: =N59*5 -> 6.5 | R59: bis-(2-ethylhexyl)-ftalaat | W59: bis-(2-ethylhexyl)-ftalaat | X59: b2EyHyFt | Y59: 1.5
A60: 900 | B60: bFol-A | C60: bisfenol A | D60: 900 | E60: bFol-A | F60: µg/L | G60: µg/L | H60: Ja | I60: VMM stroomgebiedspecifieke stoffen - VMM prio - Toekomstige P(G)S | J60: =IFERROR(VLOOKUP(B60,'MKN - JG'!$B:$J,7,FALSE),"") -> 1.5 | K60: =IFERROR(VLOOKUP(B60,'MKN - Max'!B:J,7,FALSE),"") ->  | M60: =IF(L60="ja","Vul MKN aan",IF(J60<>"",J60,K60)) -> 1.5 | N60: =M60 -> 1.5 | P60: =N60*5 -> 7.5 | R60: bisfenol A | S60: ja | T60: 911 | U60: 9106 | W60: bisfenol A | X60: bFol-A | Y60: 1.5 | Z60: MOZ aangevuld
A61: 146 | B61: B t | C61: Boor, totaal | D61: 146 | E61: B t | F61: µg/L | G61: µg/L | H61: Ja | I61: VMM stroomgebiedspecifieke stoffen - VMM prio - >5% OW | J61: =IFERROR(VLOOKUP(B61,'MKN - JG'!$B:$J,7,FALSE),"") -> 700 | K61: =IFERROR(VLOOKUP(B61,'MKN - Max'!B:J,7,FALSE),"") ->  | M61: =IF(L61="ja","Vul MKN aan",IF(J61<>"",J61,K61)) -> 700 | N61: =M61 -> 700 | P61: =N61*5 -> 3500 | R61: Boor, totaal | W61: Boor, totaal | X61: B t | Y61: 1.3
A62: 149 | B62: Cd t | C62: Cadmium, totaal | D62: 149 | E62: Cd t | F62: µg/L | G62: µg/L | H62: Ja | I62: PGS | J62: =IFERROR(VLOOKUP(B62,'MKN - JG'!$B:$J,7,FALSE),"") -> 0.8 | K62: =IFERROR(VLOOKUP(B62,'MKN - Max'!B:J,7,FALSE),"") -> 4.5 | M62: =IF(L62="ja","Vul MKN aan",IF(J62<>"",J62,K62)) -> 0.8 | N62: =M62 -> 0.8 | P62: =N62*5 -> 4 | R62: Cadmium, totaal | S62: ja | T62: 2269 | U62: 38297 | W62: Cadmium, totaal | X62: Cd t | Y62: 1.3
A63: 288 | B63: CZV | C63: Chemisch zuurstofverbruik | D63: 288 | E63: CZV | F63: mgO2/L | G63: mg/L | H63: Ja | I63: VMM stroomgebiedspecifieke stoffen - VMM prio - >5% OW | J63: =IFERROR(VLOOKUP(B63,'MKN - JG'!$B:$J,7,FALSE),"") ->  | L63: ja | R63: Chemisch zuurstofverbruik | S63: nee | T63: 2 | U63: 20 | W63: Chemisch zuurstofverbruik | X63: CZV | Y63: 1.4
A64: 1206 | B64: CAnS | C64: Chlooranilines | D64: 1206 | E64: CAnS | F64: µg/L | G64: µg/L | H64: Nee | J64: =IFERROR(VLOOKUP(B64,'MKN - JG'!$B:$J,7,FALSE),"") -> 1 | K64: =IFERROR(VLOOKUP(B64,'MKN - Max'!B:J,7,FALSE),"") -> 5 | M64: =IF(L64="ja","Vul MKN aan",IF(J64<>"",J64,K64)) -> 1 | N64: =M64 -> 1 | P64: =N64*5 -> 5 | R64: Chlooranilines | W64: Chlooranilines | X64: CAnS | Y64: 1.5
A65: 372 | B65: CHAc | C65: Chloorazijnzuur | D65: 372 | E65: CHAc | F65: µg/L | G65: µg/L | H65: Nee | J65: =IFERROR(VLOOKUP(B65,'MKN - JG'!$B:$J,7,FALSE),"") -> 0.6 | K65: =IFERROR(VLOOKUP(B65,'MKN - Max'!B:J,7,FALSE),"") -> 3 | M65: 0.6 | N65: 0.6 | P65: 3 | R65: Chloorazijnzuur | W65: Chloorazijnzuur | X65: CHAc | Y65: 1.5 | Z65: MOZ aangevuld
A66: 373 | B66: CBz | C66: Chloorbenzeen | D66: 373 | E66: CBz | F66: µg/L | G66: µg/L | H66: Nee | J66: =IFERROR(VLOOKUP(B66,'MKN - JG'!$B:$J,7,FALSE),"") -> 6 | K66: =IFERROR(VLOOKUP(B66,'MKN - Max'!B:J,7,FALSE),"") -> 40 | M66: 6 | N66: 6 | P66: 30 | R66: =C66 -> Chloorbenzeen | W66: =C66 -> Chloorbenzeen | X66: =B66 -> CBz | Y66: 1.5
A67: 233 | B67: Cdaan | C67: Chloordaan | D67: 233 | E67: Cdaan | F67: ng/L | G67: ng/L | H67: Nee | J67: =IFERROR(VLOOKUP(B67,'MKN - JG'!$B:$J,7,FALSE),"") -> 2 | K67: =IFERROR(VLOOKUP(B67,'MKN - Max'!B:J,7,FALSE),"") -> 40 | M67: 2 | N67: 2 | P67: 10 | R67: Chloordaan | W67: Chloordaan | X67: Cdaan | Y67: 1.5
A68: 1208 | B68: CFolS | C68: Chloorfenolen | D68: 1208 | E68: CFolS | F68: ng/L | G68: ng/L | H68: Nee | J68: =IFERROR(VLOOKUP(B68,'MKN - JG'!$B:$J,7,FALSE),"") -> 20000 | K68: =IFERROR(VLOOKUP(B68,'MKN - Max'!B:J,7,FALSE),"") -> 120000 | M68: 20000 | N68: 20000 | P68: 100000 | R68: Chloorfenolen | S68: ja | T68: 911 | U68: 9106 | W68: Chloorfenolen | X68: CFolS | Y68: 1.5
A69: 675 | B69: Cfvinfos | C69: Chloorfenvinfos | D69: 675 | E69: Cfvinfos | F69: ng/L | G69: ng/L | H69: Ja | I69: PS | J69: =IFERROR(VLOOKUP(B69,'MKN - JG'!$B:$J,7,FALSE),"") -> 100 | K69: =IFERROR(VLOOKUP(B69,'MKN - Max'!B:J,7,FALSE),"") -> 300 | M69: 100 | N69: 100 | P69: 500 | R69: Chloorfenvinfos | W69: Chloorfenvinfos | X69: Cfvinfos | Y69: 1.5
A70: 481 | B70: CNaft | C70: Chloornaftalenen (technisch) | D70: 481 | E70: CNaft | F70: µg/L | G70: µg/L | H70: Nee | J70: =IFERROR(VLOOKUP(B70,'MKN - JG'!$B:$J,7,FALSE),"") -> 1 | K70: =IFERROR(VLOOKUP(B70,'MKN - Max'!B:J,7,FALSE),"") -> 40 | M70: 1 | N70: 1 | P70: 5 | R70: Chloornaftalenen (technisch) | W70: Chloornaftalenen (technisch) | X70: CNaft | Y70: 1.5
A71: 1210 | B71: 1C2+3+4NiBzS | C71: Chloornitrobenzenen | D71: 1210 | E71: 1C2+3+4NiBzS | F71: µg/L | G71: µg/L | H71: Nee | J71: =IFERROR(VLOOKUP(B71,'MKN - JG'!$B:$J,7,FALSE),"") -> 3 | K71: =IFERROR(VLOOKUP(B71,'MKN - Max'!B:J,7,FALSE),"") -> 60 | M71: 3 | N71: 3 | P71: 15 | R71: Chloornitrobenzenen | W71: Chloornitrobenzenen | X71: 1C2+3+4NiBzS | Y71: 1.5 | Z71: MOZ aangevuld
A72: 482 | B72: CNiTol | C72: Chloornitrotoluenen | D72: 482 | E72: CNiTol | F72: µg/L | G72: µg/L | H72: Nee | J72: =IFERROR(VLOOKUP(B72,'MKN - JG'!$B:$J,7,FALSE),"") -> 3 | K72: =IFERROR(VLOOKUP(B72,'MKN - Max'!B:J,7,FALSE),"") -> 40 | M72: 3 | N72: 3 | P72: 15 | R72: Chloornitrotoluenen | W72: Chloornitrotoluenen | X72: CNiTol | Y72: 1.5 | Z72: MOZ aangevuld
A73: 686 | B73: CpfosEy | C73: Chloorpyrifos-ethyl | D73: 686 | E73: CpfosEy | F73: ng/L | G73: ng/L | H73: Ja | I73: PS | J73: =IFERROR(VLOOKUP(B73,'MKN - JG'!$B:$J,7,FALSE),"") -> 30 | K73: =IFERROR(VLOOKUP(B73,'MKN - Max'!B:J,7,FALSE),"") -> 100 | M73: 30 | N73: 30 | P73: 150 | R73: Chloorpyrifos-ethyl | W73: Chloorpyrifos-ethyl | X73: CpfosEy | Y73: 1.5
A74: 1212 | B74: CTolS | C74: Chloortoluenen | D74: 1212 | E74: CTolS | F74: µg/L | G74: µg/L | H74: Nee | J74: =IFERROR(VLOOKUP(B74,'MKN - JG'!$B:$J,7,FALSE),"") -> 3 | K74: =IFERROR(VLOOKUP(B74,'MKN - Max'!B:J,7,FALSE),"") -> 200 | M74: 3 | N74: 3 | P74: 15 | R74: Chloortoluenen | W74: Chloortoluenen | X74: CTolS | Y74: 1.5
A75: 484 | B75: CTine | C75: Chloortoluidinen | D75: 484 | E75: CTine | F75: µg/L | G75: µg/L | H75: Nee | J75: =IFERROR(VLOOKUP(B75,'MKN - JG'!$B:$J,7,FALSE),"") -> 8 | K75: =IFERROR(VLOOKUP(B75,'MKN - Max'!B:J,7,FALSE),"") -> 60 | M75: 8 | N75: 8 | P75: 40 | R75: Chloortoluidinen | W75: Chloortoluidinen | X75: CTine | Y75: 1.5
A76: 753 | B76: Cdazon | C76: Chloridazon | D76: 753 | E76: Cdazon | F76: ng/L | G76: ng/L | H76: Nee | J76: =IFERROR(VLOOKUP(B76,'MKN - JG'!$B:$J,7,FALSE),"") -> 10000 | K76: =IFERROR(VLOOKUP(B76,'MKN - Max'!B:J,7,FALSE),"") -> 20000 | M76: 10000 | N76: 10000 | P76: 50000 | R76: Chloridazon | W76: Chloridazon | X76: Cdazon | Y76: 1.5
A77: 4 | B77: Cl- | C77: Chloride | D77: 4 | E77: Cl- | F77: mg/L | G77: mg/L | H77: Ja | I77: VMM stroomgebiedspecifieke stoffen - VMM prio - >5% OW | L77: ja | R77: Chloride | W77: Chloride | X77: Cl- | Y77: 1.3
A78: 155 | B78: Cr t | C78: Chroom, totaal | D78: 155 | E78: Cr t | F78: µg/L | G78: µg/L | H78: Nee | J78: =IFERROR(VLOOKUP(B78,'MKN - JG'!$B:$J,7,FALSE),"") -> 50 | K78: =IFERROR(VLOOKUP(B78,'MKN - Max'!B:J,7,FALSE),"") ->  | M78: =IF(L78="ja","Vul MKN aan",IF(J78<>"",J78,K78)) -> 50 | N78: =M78 -> 50 | P78: =N78*5 -> 250 | R78: Chroom, totaal | W78: Chroom, totaal | X78: Cr t | Y78: 1.3
A79: 425 | B79: Chr | C79: Chryseen | D79: 425 | E79: Chr | F79: ng/L | G79: ng/L | H79: Ja | I79: VMM stroomgebiedspecifieke stoffen - VMM prio - Toekomstige P(G)S | J79: =IFERROR(VLOOKUP(B79,'MKN - JG'!$B:$J,7,FALSE),"") -> 1000 | K79: =IFERROR(VLOOKUP(B79,'MKN - Max'!B:J,7,FALSE),"") ->  | M79: 1000 | N79: 1000 | P79: 5000 | R79: Chryseen | S79: ja | T79: 2269 | U79: =T79*10 -> 22690 | W79: Chryseen | X79: Chr | Y79: 1.5
A80: 486 | B80: Cumafos | C80: Cumafos | D80: 486 | E80: Cumafos | F80: ng/L | G80: ng/L | H80: Nee | J80: =IFERROR(VLOOKUP(B80,'MKN - JG'!$B:$J,7,FALSE),"") -> 1 | K80: =IFERROR(VLOOKUP(B80,'MKN - Max'!B:J,7,FALSE),"") -> 10 | M80: 1 | N80: 1 | P80: 5 | R80: Cumafos | W80: Cumafos | X80: Cumafos | Y80: 1.5
A81: 26 | B81: CN- t | C81: Cyaniden, totaal | D81: 26 | E81: CN- t | F81: µg/L | G81: µg/L | H81: Nee | J81: =IFERROR(VLOOKUP(B81,'MKN - JG'!$B:$J,7,FALSE),"") -> 50 | K81: =IFERROR(VLOOKUP(B81,'MKN - Max'!B:J,7,FALSE),"") -> 75 | M81: 50 | N81: 50 | P81: 250 | R81: Cyaniden, totaal | W81: Cyaniden, totaal | X81: CN- t | Y81: 1.3
A82: 1506 | B82: Cybutrine | C82: Cybutrine | D82: 1506 | E82: Cybutrine | F82: ng/L | G82: ng/L | H82: Ja | I82: PS | J82: =IFERROR(VLOOKUP(B82,'MKN - JG'!$B:$J,7,FALSE),"") -> 2.5 | K82: =IFERROR(VLOOKUP(B82,'MKN - Max'!B:J,7,FALSE),"") -> 16 | M82: 2.5 | N82: 2.5 | P82: 12.5 | R82: Cybutrine | W82: Cybutrine | X82: Cybutrine | Y82: 1.5 | Z82: MOZ aangevuld
A83: 1075 | B83: Cypmethrin | C83: Cypermethrin | D83: 1075 | E83: Cypmethrin | F83: ng/L | G83: ng/L | H83: Ja | I83: PS | J83: =IFERROR(VLOOKUP(B83,'MKN - JG'!$B:$J,7,FALSE),"") -> 0.08 | K83: =IFERROR(VLOOKUP(B83,'MKN - Max'!B:J,7,FALSE),"") -> 0.6 | M83: 0.08 | N83: 0.08 | P83: 0.4 | R83: Cypermethrin | W83: Cypermethrin | X83: Cypmethrin | Y83: 1.5 | Z83: MOZ aangevuld
A84: 907 | B84: DDT t | C84: DDT, totaal | D84: 907 | E84: DDT t | F84: ng/L | G84: ng/L | H84: Ja | I84: VS | J84: =IFERROR(VLOOKUP(B84,'MKN - JG'!$B:$J,7,FALSE),"") -> 25 | K84: =IFERROR(VLOOKUP(B84,'MKN - Max'!B:J,7,FALSE),"") ->  | M84: 25 | N84: 25 | P84: 125 | R84: DDT, totaal | W84: DDT, totaal | X84: DDT t | Y84: 1.5
A85: 898 | B85: Demeton | C85: Demeton | D85: 898 | E85: Demeton | F85: ng/L | G85: ng/L | H85: Nee | J85: =IFERROR(VLOOKUP(B85,'MKN - JG'!$B:$J,7,FALSE),"") -> 50 | K85: =IFERROR(VLOOKUP(B85,'MKN - Max'!B:J,7,FALSE),"") -> 500 | M85: 50 | N85: 50 | P85: 250 | R85: Demeton | W85: Demeton | X85: Demeton | Y85: 1.5
A86: 426 | B86: dBz(ah)An | C86: Dibenzo(a,h)anthraceen | D86: 426 | E86: dBz(ah)An | F86: ng/L | G86: ng/L | H86: Ja | I86: VMM stroomgebiedspecifieke stoffen - VMM prio - Toekomstige P(G)S | J86: =IFERROR(VLOOKUP(B86,'MKN - JG'!$B:$J,7,FALSE),"") -> 500 | K86: =IFERROR(VLOOKUP(B86,'MKN - Max'!B:J,7,FALSE),"") ->  | M86: 500 | N86: 500 | P86: 2500 | R86: Dibenzo(a,h)anthraceen | S86: ja | T86: 2269 | U86: =T86*10 -> 22690 | W86: Dibenzo(a,h)anthraceen | X86: dBz(ah)An | Y86: 1.5
A87: 1216 | B87: DBySn som | C87: Dibutyltinverbindingen | D87: 1216 | E87: DBySn som | F87: ngSn/L | G87: ng/L | H87: Nee | J87: =IFERROR(VLOOKUP(B87,'MKN - JG'!$B:$J,7,FALSE),"") -> 80 | K87: =IFERROR(VLOOKUP(B87,'MKN - Max'!B:J,7,FALSE),"") -> 700 | M87: 80 | N87: 80 | P87: 400 | R87: Dibutyltinverbindingen | W87: Dibutyltinverbindingen | X87: DBySn som | Y87: 1.5 | Z87: MOZ aangevuld
A88: 888 | B88: DCAn t | C88: Dichlooranilines, totaal | D88: 888 | E88: DCAn t | F88: µg/L | G88: µg/L | H88: Nee | J88: =IFERROR(VLOOKUP(B88,'MKN - JG'!$B:$J,7,FALSE),"") -> 0.2 | K88: =IFERROR(VLOOKUP(B88,'MKN - Max'!B:J,7,FALSE),"") -> 0.6 | M88: 0.2 | N88: 0.2 | P88: 1 | R88: Dichlooranilines, totaal | W88: Dichlooranilines, totaal | X88: DCAn t | Y88: 1.5 | Z88: MOZ aangevuld
A89: 1218 | B89: CBzsom | C89: Dichloorbenzenen | D89: 1218 | E89: CBzsom | F89: µg/L | G89: µg/L | H89: Nee | J89: =IFERROR(VLOOKUP(B89,'MKN - JG'!$B:$J,7,FALSE),"") -> 20 | K89: =IFERROR(VLOOKUP(B89,'MKN - Max'!B:J,7,FALSE),"") -> 70 | M89: 20 | N89: 20 | P89: 100 | R89: Dichloorbenzenen | W89: Dichloorbenzenen | X89: CBzsom | Y89: 1.5
A90: 886 | B90: DCBzdines | C90: Dichloorbenzidines | D90: 886 | E90: DCBzdines | F90: µg/L | G90: µg/L | H90: Nee | J90: =IFERROR(VLOOKUP(B90,'MKN - JG'!$B:$J,7,FALSE),"") -> 0.5 | K90: =IFERROR(VLOOKUP(B90,'MKN - Max'!B:J,7,FALSE),"") -> 5 | M90: 0.5 | N90: 0.5 | P90: 2.5 | R90: Dichloorbenzidines | W90: Dichloorbenzidines | X90: DCBzdines | Y90: 1.5 | Z90: MOZ aangevuld
A91: 379 | B91: DCMa | C91: Dichloormethaan | D91: 379 | E91: DCMa | F91: µg/L | G91: µg/L | H91: Ja | I91: PS | J91: =IFERROR(VLOOKUP(B91,'MKN - JG'!$B:$J,7,FALSE),"") -> 20 | K91: =IFERROR(VLOOKUP(B91,'MKN - Max'!B:J,7,FALSE),"") ->  | M91: 20 | N91: 20 | P91: 100 | R91: Dichloormethaan | W91: Dichloormethaan | X91: DCMa | Y91: 1.5
A92: 1219 | B92: diCNiBzsom | C92: Dichloornitrobenzenen | D92: 1219 | E92: diCNiBzsom | F92: µg/L | G92: µg/L | H92: Nee | J92: =IFERROR(VLOOKUP(B92,'MKN - JG'!$B:$J,7,FALSE),"") -> 3 | K92: =IFERROR(VLOOKUP(B92,'MKN - Max'!B:J,7,FALSE),"") -> 60 | M92: 3 | N92: 3 | P92: 15 | R92: Dichloornitrobenzenen | W92: Dichloornitrobenzenen | X92: diCNiBzsom | Y92: 1.5 | Z92: MOZ aangevuld
A93: 234 | B93: 24-DP | C93: Dichloorprop | D93: 234 | E93: 24-DP | F93: ng/L | G93: ng/L | H93: Nee | J93: =IFERROR(VLOOKUP(B93,'MKN - JG'!$B:$J,7,FALSE),"") -> 20000 | K93: =IFERROR(VLOOKUP(B93,'MKN - Max'!B:J,7,FALSE),"") -> 200000 | M93: 20000 | N93: 20000 | P93: 100000 | R93: Dichloorprop | W93: Dichloorprop | X93: 24-DP | Y93: 1.5
A94: 391 | B94: DCvos | C94: Dichloorvos | D94: 391 | E94: DCvos | F94: ng/L | G94: ng/L | H94: Ja | I94: PS | J94: =IFERROR(VLOOKUP(B94,'MKN - JG'!$B:$J,7,FALSE),"") -> 0.6 | K94: =IFERROR(VLOOKUP(B94,'MKN - Max'!B:J,7,FALSE),"") -> 0.7 | M94: 0.6 | N94: 0.6 | P94: 3 | R94: Dichloorvos | W94: Dichloorvos | X94: DCvos | Y94: 1.5
A95: 1464 | B95: Dicofol | C95: Dicofol | D95: 1464 | E95: Dicofol | F95: ng/L | G95: ng/L | H95: Ja | I95: PGS | J95: =IFERROR(VLOOKUP(B95,'MKN - JG'!$B:$J,7,FALSE),"") -> 1.3 | K95: =IFERROR(VLOOKUP(B95,'MKN - Max'!B:J,7,FALSE),"") ->  | M95: 1.3 | N95: 1.3 | P95: 6.5 | R95: Dicofol | W95: Dicofol | X95: Dicofol | Y95: 1.5 | Z95: MOZ aangevuld
A96: 496 | B96: DEyAm | C96: Diethylamine | D96: 496 | E96: DEyAm | F96: µg/L | G96: µg/L | H96: Nee | J96: =IFERROR(VLOOKUP(B96,'MKN - JG'!$B:$J,7,FALSE),"") -> 30 | K96: =IFERROR(VLOOKUP(B96,'MKN - Max'!B:J,7,FALSE),"") -> 200 | M96: 30 | N96: 30 | P96: 150 | R96: Diethylamine | W96: Diethylamine | X96: DEyAm | Y96: 1.5 | Z96: MOZ aangevuld
A97: 498 | B97: DFy | C97: Difenyl | D97: 498 | E97: DFy | F97: µg/L | G97: µg/L | H97: Nee | J97: =IFERROR(VLOOKUP(B97,'MKN - JG'!$B:$J,7,FALSE),"") -> 2 | K97: =IFERROR(VLOOKUP(B97,'MKN - Max'!B:J,7,FALSE),"") -> 10 | M97: 2 | N97: 2 | P97: 10 | R97: Difenyl | W97: Difenyl | X97: DFy | Y97: 1.5 | Z97: MOZ aangevuld
A98: 1020 | B98: Dflucan | C98: Diflufenican | D98: 1020 | E98: Dflucan | F98: ng/L | G98: ng/L | H98: Nee | J98: =IFERROR(VLOOKUP(B98,'MKN - JG'!$B:$J,7,FALSE),"") -> 30 | K98: =IFERROR(VLOOKUP(B98,'MKN - Max'!B:J,7,FALSE),"") -> 50 | M98: 30 | N98: 30 | P98: 150 | R98: =C98 -> Diflufenican | W98: =C98 -> Diflufenican | X98: =B98 -> Dflucan | Y98: 1.5 | Z98: MOZ aangevuld
A99: 1231 | B99: DiMetamid | C99: Dimethenamid | D99: 1231 | E99: DiMetamid | F99: µg/L | G99: µg/L | H99: Nee | J99: =IFERROR(VLOOKUP(B99,'MKN - JG'!$B:$J,7,FALSE),"") -> 1.5 | K99: =IFERROR(VLOOKUP(B99,'MKN - Max'!B:J,7,FALSE),"") -> 6.7 | M99: 1.5 | N99: 1.5 | P99: 7.5 | R99: Dimethenamid | W99: Dimethenamid | X99: DiMetamid | Y99: 1.5 | Z99: MOZ aangevuld
A100: 396 | B100: Dmetoat | C100: Dimethoaat | D100: 396 | E100: Dmetoat | F100: ng/L | G100: ng/L | H100: Nee | J100: =IFERROR(VLOOKUP(B100,'MKN - JG'!$B:$J,7,FALSE),"") -> 20 | K100: =IFERROR(VLOOKUP(B100,'MKN - Max'!B:J,7,FALSE),"") -> 200 | M100: 20 | N100: 20 | P100: 100 | R100: Dimethoaat | W100: Dimethoaat | X100: Dmetoat | Y100: 1.5
A101: 497 | B101: DMyAm | C101: Dimethylamine | D101: 497 | E101: DMyAm | F101: µg/L | G101: µg/L | H101: Nee | J101: =IFERROR(VLOOKUP(B101,'MKN - JG'!$B:$J,7,FALSE),"") -> 6 | K101: =IFERROR(VLOOKUP(B101,'MKN - Max'!B:J,7,FALSE),"") -> 80 | M101: 6 | N101: 6 | P101: 30 | R101: Dimethylamine | W101: Dimethylamine | X101: DMyAm | Y101: 1.5 | Z101: MOZ aangevuld
A102: 397 | B102: Dsulfoton | C102: Disulfoton | D102: 397 | E102: Dsulfoton | F102: ng/L | G102: ng/L | H102: Nee | J102: =IFERROR(VLOOKUP(B102,'MKN - JG'!$B:$J,7,FALSE),"") -> 10 | K102: =IFERROR(VLOOKUP(B102,'MKN - Max'!B:J,7,FALSE),"") -> 70 | M102: 10 | N102: 10 | P102: 50 | R102: Disulfoton | W102: Disulfoton | X102: Dsulfoton | Y102: 1.5 | Z102: MOZ aangevuld
A103: 273 | B103: Diuron | C103: Diuron | D103: 273 | E103: Diuron | F103: ng/L | G103: ng/L | H103: Ja | I103: PS | J103: =IFERROR(VLOOKUP(B103,'MKN - JG'!$B:$J,7,FALSE),"") -> 200 | K103: =IFERROR(VLOOKUP(B103,'MKN - Max'!B:J,7,FALSE),"") -> 1800 | M103: 200 | N103: 200 | P103: 1000 | R103: Diuron | W103: Diuron | X103: Diuron | Y103: 1.5
A104: 779 | B104: eCHydrine | C104: Epichloorhydrine | D104: 779 | E104: eCHydrine | F104: µg/L | G104: µg/L | H104: Nee | J104: =IFERROR(VLOOKUP(B104,'MKN - JG'!$B:$J,7,FALSE),"") -> 10 | K104: =IFERROR(VLOOKUP(B104,'MKN - Max'!B:J,7,FALSE),"") -> 100 | M104: 10 | N104: 10 | P104: 50 | R104: Epichloorhydrine | W104: Epichloorhydrine | X104: eCHydrine | Y104: 1.5 | Z104: MOZ aangevuld
A105: 213 | B105: EyBz | C105: Ethylbenzeen | D105: 213 | E105: EyBz | F105: µg/L | G105: µg/L | H105: Nee | J105: =IFERROR(VLOOKUP(B105,'MKN - JG'!$B:$J,7,FALSE),"") -> 5 | K105: =IFERROR(VLOOKUP(B105,'MKN - Max'!B:J,7,FALSE),"") -> 50 | M105: 5 | N105: 5 | P105: 25 | R105: Ethylbenzeen | S105: ja | T105: 1000 | U105: 10000 | W105: Ethylbenzeen | X105: EyBz | Y105: 1.5
A106: 428 | B106: Fen | C106: Fenantreen | D106: 428 | E106: Fen | F106: ng/L | G106: ng/L | H106: ja | I106: VMM stroomgebiedspecifieke stoffen - VMM prio - PAK | J106: =IFERROR(VLOOKUP(B106,'MKN - JG'!$B:$J,7,FALSE),"") -> 100 | K106: =IFERROR(VLOOKUP(B106,'MKN - Max'!B:J,7,FALSE),"") ->  | M106: 100 | N106: 100 | P106: 500 | R106: Fenantreen | S106: ja | T106: 2269 | U106: =T106*10 -> 22690 | W106: Fenantreen | X106: Fen | Y106: 1.5
A107: 399 | B107: Fenithion | C107: Fenitrothion | D107: 399 | E107: Fenithion | F107: ng/L | G107: ng/L | H107: Nee | J107: =IFERROR(VLOOKUP(B107,'MKN - JG'!$B:$J,7,FALSE),"") -> 0.9 | K107: =IFERROR(VLOOKUP(B107,'MKN - Max'!B:J,7,FALSE),"") -> 2 | M107: 0.9 | N107: 0.9 | P107: 4.5 | R107: Fenitrothion | W107: Fenitrothion | X107: Fenithion | Y107: 1.5
A108: 500 | B108: Fenthion | C108: Fenthion | D108: 500 | E108: Fenthion | F108: ng/L | G108: ng/L | H108: Nee | J108: =IFERROR(VLOOKUP(B108,'MKN - JG'!$B:$J,7,FALSE),"") -> 0.2 | K108: =IFERROR(VLOOKUP(B108,'MKN - Max'!B:J,7,FALSE),"") -> 2 | M108: 0.2 | N108: 0.2 | P108: 1 | R108: Fenthion | W108: Fenthion | X108: Fenthion | Y108: 1.5
A109: 976 | B109: Flucet | C109: Flufenacet | D109: 976 | E109: Flucet | F109: ng/L | G109: ng/L | H109: Nee | J109: =IFERROR(VLOOKUP(B109,'MKN - JG'!$B:$J,7,FALSE),"") -> 40 | K109: =IFERROR(VLOOKUP(B109,'MKN - Max'!B:J,7,FALSE),"") -> 200 | M109: 40 | N109: 40 | P109: 200 | R109: Flufenacet | W109: Flufenacet | X109: Flucet | Y109: 1.5 | Z109: MOZ aangevuld
A110: 429 | B110: Flu | C110: Fluorantheen | D110: 429 | E110: Flu | F110: ng/L | G110: ng/L | H110: Ja | I110: PS | J110: =IFERROR(VLOOKUP(B110,'MKN - JG'!$B:$J,7,FALSE),"") -> 6.3 | K110: =IFERROR(VLOOKUP(B110,'MKN - Max'!B:J,7,FALSE),"") -> 120 | M110: 6.3 | N110: 6.3 | P110: 31.5 | R110: Fluorantheen | S110: ja | T110: 2269 | U110: =T110*10 -> 22690 | W110: Fluorantheen | X110: Flu | Y110: 1.5
A111: 430 | B111: Fluoreen | C111: Fluoreen | D111: 430 | E111: Fluoreen | F111: ng/L | G111: ng/L | H111: Ja | I111: VMM stroomgebiedspecifieke stoffen - VMM prio - PAK | J111: =IFERROR(VLOOKUP(B111,'MKN - JG'!$B:$J,7,FALSE),"") -> 2000 | K111: =IFERROR(VLOOKUP(B111,'MKN - Max'!B:J,7,FALSE),"") ->  | M111: 2000 | N111: 2000 | P111: 10000 | R111: Fluoreen | S111: ja | T111: 2269 | U111: =T111*10 -> 22690 | W111: Fluoreen | X111: Fluoreen | Y111: 1.5
A112: 1328 | B112: F- o | C112: Fluoride, opgelost | D112: 1328 | E112: F- o | F112: mg/L | G112: mg/L | H112: Nee | J112: =IFERROR(VLOOKUP(B112,'MKN - JG'!$B:$J,7,FALSE),"") -> 0.9 | K112: =IFERROR(VLOOKUP(B112,'MKN - Max'!B:J,7,FALSE),"") ->  | M112: 0.9 | N112: 0.9 | P112: 4.5 | R112: Fluoride, opgelost | W112: Fluoride, opgelost | X112: F- o | Y112: 1.3
A113: 29 | B113: P t | C113: Fosfor, totaal | D113: 29 | E113: P t | F113: mgP/L | G113: mg/L | H113: Ja | I113: VMM stroomgebiedspecifieke stoffen - VMM prio - >5% OW | L113: ja | R113: Fosfor, totaal | S113: ja | T113: 20 | U113: 200 | W113: Fosfor, totaal | X113: P t | Y113: 1.3
A114: 400 | B114: Foxim | C114: Foxim | D114: 400 | E114: Foxim | F114: µg/L | G114: µg/L | H114: Nee | J114: =IFERROR(VLOOKUP(B114,'MKN - JG'!$B:$J,7,FALSE),"") -> 0.02 | K114: =IFERROR(VLOOKUP(B114,'MKN - Max'!B:J,7,FALSE),"") -> 0.2 | M114: =IF(L114="ja","Vul MKN aan",IF(J114<>"",J114,K114)) -> 0.02 | N114: =M114 -> 0.02 | P114: =N114*5 -> 0.1 | R114: Foxim | W114: Foxim | X114: Foxim | Y114: 1.5 | Z114: MOZ aangevuld
A115: 82 | B115: EC 20 | C115: Geleidbaarheid (20°C) | D115: 82 | E115: EC 20 | F115: µS/cm | G115: µS/cm | H115: Nee | L115: ja | R115: Geleidbaarheid (20°C) | W115: Geleidbaarheid (20°C) | X115: EC 20 | Y115: 1.2
A116: 948 | B116: HpC+Epx | C116: Heptachloor+epoxyde | D116: 948 | E116: HpC+Epx | F116: ng/L | G116: ng/L | H116: Ja | I116: PGS | J116: =IFERROR(VLOOKUP(B116,'MKN - JG'!$B:$J,7,FALSE),"") -> 0.0002 | K116: =IFERROR(VLOOKUP(B116,'MKN - Max'!B:J,7,FALSE),"") -> 0.3 | M116: =IF(L116="ja","Vul MKN aan",IF(J116<>"",J116,K116)) -> 0.0002 | N116: =M116 -> 0.0002 | P116: =N116*5 -> 0.001 | R116: Heptachloor+epoxyde | W116: Heptachloor+epoxyde | X116: HpC+Epx | Y116: 1.5
A117: 939 | B117: HBCD | C117: Hexabroomcyclododecaan | D117: 939 | E117: HBCD | F117: µg/L | G117: µg/L | H117: Ja | I117: PGS | J117: =IFERROR(VLOOKUP(B117,'MKN - JG'!$B:$J,7,FALSE),"") -> 0.0016 | K117: =IFERROR(VLOOKUP(B117,'MKN - Max'!B:J,7,FALSE),"") -> 0.5 | M117: 0.0016 | N117: 0.0016 | P117: 0.008 | R117: Hexabroomcyclododecaan | W117: Hexabroomcyclododecaan | X117: HBCD | Y117: 1.5
A118: 244 | B118: HCBz | C118: Hexachloorbenzeen | D118: 244 | E118: HCBz | F118: ng/L | G118: ng/L | H118: Ja | I118: PGS | J118: =IFERROR(VLOOKUP(B118,'MKN - JG'!$B:$J,7,FALSE),"") -> 0.044 | K118: =IFERROR(VLOOKUP(B118,'MKN - Max'!B:J,7,FALSE),"") -> 50 | M118: 0.044 | N118: 0.044 | P118: 0.22 | R118: Hexachloorbenzeen | W118: Hexachloorbenzeen | X118: HCBz | Y118: 1.5
A119: 245 | B119: HCBdn | C119: Hexachloorbutadieen | D119: 245 | E119: HCBdn | F119: ng/L | G119: ng/L | H119: Ja | I119: PGS | J119: =IFERROR(VLOOKUP(B119,'MKN - JG'!$B:$J,7,FALSE),"") -> 0.55 | K119: =IFERROR(VLOOKUP(B119,'MKN - Max'!B:J,7,FALSE),"") -> 600 | M119: 0.55 | N119: 0.55 | P119: 2.75 | R119: Hexachloorbutadieen | W119: Hexachloorbutadieen | X119: HCBdn | Y119: 1.5
A120: 381 | B120: HCEa | C120: Hexachloorethaan | D120: 381 | E120: HCEa | F120: µg/L | G120: µg/L | J120: =IFERROR(VLOOKUP(B120,'MKN - JG'!$B:$J,7,FALSE),"") -> 3 | K120: =IFERROR(VLOOKUP(B120,'MKN - Max'!B:J,7,FALSE),"") -> 80 | M120: 3 | N120: 3 | P120: 15 | R120: Hexachloorethaan | W120: Hexachloorethaan | X120: HCEa | Y120: 1.5
A121: 1440 | B121: Imcloprid | C121: Imidacloprid | D121: 1440 | E121: Imcloprid | F121: µg/L | G121: µg/L | H121: Nee | J121: =IFERROR(VLOOKUP(B121,'MKN - JG'!$B:$J,7,FALSE),"") -> 0.008 | K121: =IFERROR(VLOOKUP(B121,'MKN - Max'!B:J,7,FALSE),"") -> 0.2 | M121: 0.008 | N121: 0.008 | P121: 0.04 | R121: Imidacloprid | W121: Imidacloprid | X121: Imcloprid | Y121: 1.5 | Z121: MOZ aangevuld
A122: 221 | B122: iPyBz | C122: Isopropylbenzeen | D122: 221 | E122: iPyBz | F122: µg/L | G122: µg/L | H122: Nee | J122: =IFERROR(VLOOKUP(B122,'MKN - JG'!$B:$J,7,FALSE),"") -> 1 | K122: =IFERROR(VLOOKUP(B122,'MKN - Max'!B:J,7,FALSE),"") -> 10 | M122: 1 | N122: 1 | P122: 5 | R122: Isopropylbenzeen | W122: Isopropylbenzeen | X122: iPyBz | Y122: 1.5
A123: 274 | B123: Iproturon | C123: Isoproturon | D123: 274 | E123: Iproturon | F123: ng/L | G123: ng/L | H123: Ja | I123: PS | J123: =IFERROR(VLOOKUP(B123,'MKN - JG'!$B:$J,7,FALSE),"") -> 300 | K123: =IFERROR(VLOOKUP(B123,'MKN - Max'!B:J,7,FALSE),"") -> 1000 | M123: 300 | N123: 300 | P123: 1500 | R123: Isoproturon | W123: Isoproturon | X123: Iproturon | Y123: 1.5
A124: 162 | B124: Co t | C124: Kobalt, totaal | D124: 162 | E124: Co t | F124: µg/L | G124: µg/L | H124: Ja | I124: VMM stroomgebiedspecifieke stoffen - VMM prio - >5% OW | J124: =IFERROR(VLOOKUP(B124,'MKN - JG'!$B:$J,7,FALSE),"") -> 0.6 | K124: =IFERROR(VLOOKUP(B124,'MKN - Max'!B:J,7,FALSE),"") ->  | M124: 0.6 | N124: 0.6 | P124: 3 | R124: Kobalt, totaal | S124: ja | T124: 450 | U124: 4500 | W124: Kobalt, totaal | X124: Co t | Y124: 1.3
A125: 165 | B125: Cu t | C125: Koper, totaal | D125: 165 | E125: Cu t | F125: µg/L | G125: µg/L | H125: Nee | J125: =IFERROR(VLOOKUP(B125,'MKN - JG'!$B:$J,7,FALSE),"") -> 50 | K125: =IFERROR(VLOOKUP(B125,'MKN - Max'!B:J,7,FALSE),"") ->  | M125: 50 | N125: 50 | P125: 250 | R125: Koper, totaal | S125: ja | T125: 450 | U125: 4500 | W125: Koper, totaal | X125: Cu t | Y125: 1.3
A126: 168 | B126: Hg t | C126: Kwik, totaal | D126: 168 | E126: Hg t | F126: µg/L | G126: µg/L | H126: Ja | I126: PGS | J126: =IFERROR(VLOOKUP(B126,'MKN - JG'!$B:$J,7,FALSE),"") -> 7e-05 | K126: =IFERROR(VLOOKUP(B126,'MKN - Max'!B:J,7,FALSE),"") -> 0.15 | M126: 7e-05 | N126: 7e-05 | P126: 0.00035 | R126: Kwik, totaal | S126: ja | T126: 10264 | U126: 102642 | W126: Kwik, totaal | X126: Hg t | Y126: 1.4
A127: 275 | B127: Linuron | C127: Linuron | D127: 275 | E127: Linuron | F127: ng/L | G127: ng/L | H127: Nee | J127: =IFERROR(VLOOKUP(B127,'MKN - JG'!$B:$J,7,FALSE),"") -> 300 | K127: =IFERROR(VLOOKUP(B127,'MKN - Max'!B:J,7,FALSE),"") -> 700 | M127: 300 | N127: 300 | P127: 1500 | R127: Linuron | W127: Linuron | X127: Linuron | Y127: 1.5
A128: 171 | B128: Pb t | C128: Lood, totaal | D128: 171 | E128: Pb t | F128: µg/L | G128: µg/L | H128: Ja | I128: PS | J128: =IFERROR(VLOOKUP(B128,'MKN - JG'!$B:$J,7,FALSE),"") -> 50 | K128: =IFERROR(VLOOKUP(B128,'MKN - Max'!B:J,7,FALSE),"") -> 97.22 | M128: 50 | N128: 50 | P128: 250 | R128: Lood, totaal | S128: ja | T128: 800 | U128: 8000 | W128: Lood, totaal | X128: Pb t | Y128: 1.3
A129: 401 | B129: Malathion | C129: Malathion | D129: 401 | E129: Malathion | F129: ng/L | G129: ng/L | H129: Nee | J129: =IFERROR(VLOOKUP(B129,'MKN - JG'!$B:$J,7,FALSE),"") -> 0.8 | K129: =IFERROR(VLOOKUP(B129,'MKN - Max'!B:J,7,FALSE),"") -> 3 | M129: 0.8 | N129: 0.8 | P129: 4 | R129: Malathion | W129: Malathion | X129: Malathion | Y129: 1.5
A130: 253 | B130: MCPP | C130: Mecoprop | D130: 253 | E130: MCPP | F130: ng/L | G130: ng/L | H130: Nee | J130: =IFERROR(VLOOKUP(B130,'MKN - JG'!$B:$J,7,FALSE),"") -> 10000 | K130: =IFERROR(VLOOKUP(B130,'MKN - Max'!B:J,7,FALSE),"") -> 40000 | M130: 10000 | N130: 10000 | P130: 50000 | R130: =C130 -> Mecoprop | W130: =C130 -> Mecoprop | X130: =B130 -> MCPP | Y130: 1.5
A131: 402 | B131: Methamfos | C131: Methamidofos | D131: 402 | E131: Methamfos | F131: µg/L | G131: µg/L | H131: Nee | J131: =IFERROR(VLOOKUP(B131,'MKN - JG'!$B:$J,7,FALSE),"") -> 0.3 | K131: =IFERROR(VLOOKUP(B131,'MKN - Max'!B:J,7,FALSE),"") -> 3 | M131: 0.3 | N131: 0.3 | P131: 1.5 | R131: Methamidofos | W131: Methamidofos | X131: Methamfos | Y131: 1.5 | Z131: MOZ aangevuld
A132: 392 | B132: Mevinfos | C132: Mevinfos | D132: 392 | E132: Mevinfos | F132: ng/L | G132: ng/L | H132: Nee | J132: =IFERROR(VLOOKUP(B132,'MKN - JG'!$B:$J,7,FALSE),"") -> 2 | K132: =IFERROR(VLOOKUP(B132,'MKN - Max'!B:J,7,FALSE),"") -> 20 | M132: 2 | N132: 2 | P132: 10 | R132: Mevinfos | W132: Mevinfos | X132: Mevinfos | Y132: 1.5
A133: 177 | B133: Mo t | C133: Molybdeen, totaal | D133: 177 | E133: Mo t | F133: µg/L | G133: µg/L | H133: Nee | J133: =IFERROR(VLOOKUP(B133,'MKN - JG'!$B:$J,7,FALSE),"") -> 350 | K133: =IFERROR(VLOOKUP(B133,'MKN - Max'!B:J,7,FALSE),"") ->  | M133: 350 | N133: 350 | P133: 1750 | R133: Molybdeen, totaal | W133: Molybdeen, totaal | X133: Mo t | Y133: 1.3
A134: 278 | B134: Mlinuron | C134: Monolinuron | D134: 278 | E134: Mlinuron | F134: ng/L | G134: ng/L | H134: Nee | J134: =IFERROR(VLOOKUP(B134,'MKN - JG'!$B:$J,7,FALSE),"") -> 300 | K134: =IFERROR(VLOOKUP(B134,'MKN - Max'!B:J,7,FALSE),"") -> 10000 | M134: 300 | N134: 300 | P134: 1500 | R134: Monolinuron | W134: Monolinuron | X134: Mlinuron | Y134: 1.5
A135: 432 | B135: Naft | C135: Naftaleen | D135: 432 | E135: Naft | F135: ng/L | G135: ng/L | H135: Ja | I135: PS | J135: =IFERROR(VLOOKUP(B135,'MKN - JG'!$B:$J,7,FALSE),"") -> 2000 | K135: =IFERROR(VLOOKUP(B135,'MKN - Max'!B:J,7,FALSE),"") -> 130000 | M135: 2000 | N135: 2000 | P135: 10000 | R135: Naftaleen | S135: ja | T135: 3493 | U135: 34925 | W135: Naftaleen | X135: Naft | Y135: 1.5
A136: 180 | B136: Ni t | C136: Nikkel, totaal | D136: 180 | E136: Ni t | F136: µg/L | G136: µg/L | H136: Ja | I136: PS | J136: =IFERROR(VLOOKUP(B136,'MKN - JG'!$B:$J,7,FALSE),"") -> 30 | K136: =IFERROR(VLOOKUP(B136,'MKN - Max'!B:J,7,FALSE),"") -> 51 | M136: 30 | N136: 30 | P136: 150 | R136: Nikkel, totaal | S136: ja | T136: 450 | U136: 4500 | W136: Nikkel, totaal | X136: Ni t | Y136: 1.3
A137: 9 | B137: NO2- | C137: Nitriet | D137: 9 | E137: NO2- | F137: mgN/L | G137: mg/L | H137: Ja | I137: VMM stroomgebiedspecifieke stoffen - VMM prio - >5% OW | J137: =IFERROR(VLOOKUP(B137,'MKN - JG'!$B:$J,7,FALSE),"") -> 0.2 | K137: =IFERROR(VLOOKUP(B137,'MKN - Max'!B:J,7,FALSE),"") -> 0.6 | M137: 0.2 | N137: 0.2 | P137: 1 | R137: Nitriet | W137: Nitriet | X137: NO2- | Y137: 1.3
A138: 972 | B138: NyFol | C138: Nonylfenol | D138: 972 | E138: NyFol | F138: ng/L | G138: ng/L | H138: Ja | I138: PGS | J138: =IFERROR(VLOOKUP(B138,'MKN - JG'!$B:$J,7,FALSE),"") -> 300 | K138: =IFERROR(VLOOKUP(B138,'MKN - Max'!B:J,7,FALSE),"") -> 2000 | M138: 300 | N138: 300 | P138: 1500 | R138: Nonylfenol | S138: ja | T138: 911 | U138: 9106 | W138: Nonylfenol | X138: NyFol | Y138: 1.5
A139: 1223 | B139: OyFolsom | C139: Octylfenolen | D139: 1223 | E139: OyFolsom | F139: ng/L | G139: ng/L | H139: Ja | I139: PS | J139: =IFERROR(VLOOKUP(B139,'MKN - JG'!$B:$J,7,FALSE),"") -> 100 | K139: =IFERROR(VLOOKUP(B139,'MKN - Max'!B:J,7,FALSE),"") ->  | M139: 100 | N139: 100 | P139: 500 | R139: Octylfenolen | S139: ja | T139: 911 | U139: 9106 | W139: Octylfenolen | X139: OyFolsom | Y139: 1.5
A140: 403 | B140: Omethoaat | C140: Omethoaat | D140: 403 | E140: Omethoaat | F140: µg/L | G140: µg/L | H140: Nee | J140: =IFERROR(VLOOKUP(B140,'MKN - JG'!$B:$J,7,FALSE),"") -> 0.02 | K140: =IFERROR(VLOOKUP(B140,'MKN - Max'!B:J,7,FALSE),"") -> 0.2 | M140: 0.02 | N140: 0.02 | P140: 0.1 | R140: Omethoaat | W140: Omethoaat | X140: Omethoaat | Y140: 1.5 | Z140: MOZ aangevuld
A141: 404 | B141: ODemeton-My | C141: Oxydemeton-methyl | D141: 404 | E141: ODemeton-My | F141: ng/L | G141: ng/L | H141: Nee | J141: =IFERROR(VLOOKUP(B141,'MKN - JG'!$B:$J,7,FALSE),"") -> 400 | K141: =IFERROR(VLOOKUP(B141,'MKN - Max'!B:J,7,FALSE),"") -> 4000 | M141: 400 | N141: 400 | P141: 2000 | R141: Oxydemeton-methyl | W141: Oxydemeton-methyl | X141: ODemeton-My | Y141: 1.5 | Z141: MOZ aangevuld
A142: 531 | B142: PathionEy | C142: Parathion-ethyl | D142: 531 | E142: PathionEy | F142: ng/L | G142: ng/L | H142: Nee | J142: =IFERROR(VLOOKUP(B142,'MKN - JG'!$B:$J,7,FALSE),"") -> 0.2 | K142: =IFERROR(VLOOKUP(B142,'MKN - Max'!B:J,7,FALSE),"") -> 4 | M142: 0.2 | N142: 0.2 | P142: 1 | R142: Parathion-ethyl | W142: Parathion-ethyl | X142: PathionEy | Y142: 1.5
A143: 508 | B143: PathionMy | C143: Parathion-methyl | D143: 508 | E143: PathionMy | F143: ng/L | G143: ng/L | H143: Nee | J143: =IFERROR(VLOOKUP(B143,'MKN - JG'!$B:$J,7,FALSE),"") -> 10 | K143: =IFERROR(VLOOKUP(B143,'MKN - Max'!B:J,7,FALSE),"") -> 20 | M143: 10 | N143: 10 | P143: 50 | R143: Parathion-methyl | W143: Parathion-methyl | X143: PathionMy | Y143: 1.5
A144: 756 | B144: PCBz | C144: Pentachloorbenzeen | D144: 756 | E144: PCBz | F144: ng/L | G144: ng/L | H144: Ja | I144: PGS | J144: =IFERROR(VLOOKUP(B144,'MKN - JG'!$B:$J,7,FALSE),"") -> 7 | K144: =IFERROR(VLOOKUP(B144,'MKN - Max'!B:J,7,FALSE),"") ->  | M144: 7 | N144: 7 | P144: 35 | R144: Pentachloorbenzeen | W144: Pentachloorbenzeen | X144: PCBz | Y144: 1.5
A145: 259 | B145: PCFol | C145: Pentachloorfenol | D145: 259 | E145: PCFol | F145: ng/L | G145: ng/L | H145: Ja | I145: PS | J145: =IFERROR(VLOOKUP(B145,'MKN - JG'!$B:$J,7,FALSE),"") -> 400 | K145: =IFERROR(VLOOKUP(B145,'MKN - Max'!B:J,7,FALSE),"") -> 1000 | M145: 400 | N145: 400 | P145: 2000 | R145: Pentachloorfenol | S145: ja | T145: 911 | U145: 9106 | W145: Pentachloorfenol | X145: PCFol | Y145: 1.5
A146: 1044 | B146: PFOS | C146: perfluoroctaansulfonzuur (PFOS) | D146: 1044 | E146: PFOS | F146: ng/L | G146: ng/L | H146: Ja | I146: PGS | J146: =IFERROR(VLOOKUP(B146,'MKN - JG'!$B:$J,7,FALSE),"") -> 0.65 | K146: =IFERROR(VLOOKUP(B146,'MKN - Max'!B:J,7,FALSE),"") -> 36000 | M146: 0.65 | N146: 0.65 | P146: 3.25 | R146: perfluoroctaansulfonzuur (PFOS) | W146: perfluoroctaansulfonzuur (PFOS) | X146: PFOS | Y146: 1.5
A147: 1388 | B147: BDE t (6) | C147: Polybroomdifenylether, totaal (6) | D147: 1388 | E147: BDE t (6) | F147: ng/L | G147: ng/L | H147: Ja | I147: PGS | J147: =IFERROR(VLOOKUP(B147,'MKN - JG'!$B:$J,7,FALSE),"") -> 4.9e-05 | K147: =IFERROR(VLOOKUP(B147,'MKN - Max'!B:J,7,FALSE),"") -> 140 | M147: 4.9e-05 | N147: 4.9e-05 | P147: 0.000245 | R147: Polybroomdifenylether, totaal (6) | W147: Polybroomdifenylether, totaal (6) | X147: BDE t (6) | Y147: 1.5
A148: 445 | B148: PCB t | C148: Polychloorbifenyl, totaal | D148: 445 | E148: PCB t | F148: ng/L | G148: ng/L | H148: Ja | I148: PS - dioxine | J148: =IFERROR(VLOOKUP(B148,'MKN - JG'!$B:$J,7,FALSE),"") -> 2 | K148: =IFERROR(VLOOKUP(B148,'MKN - Max'!B:J,7,FALSE),"") -> 20 | M148: 2 | N148: 2 | P148: 10 | R148: Polychloorbifenyl, totaal | W148: Polychloorbifenyl, totaal | X148: PCB t | Y148: 1.5
A149: 263 | B149: 44DDT | C149: pp'Dichloordifenyltrichloorethaan | D149: 263 | E149: 44DDT | F149: ng/L | G149: ng/L | H149: Ja | I149: VS | J149: =IFERROR(VLOOKUP(B149,'MKN - JG'!$B:$J,7,FALSE),"") -> 10 | K149: =IFERROR(VLOOKUP(B149,'MKN - Max'!B:J,7,FALSE),"") ->  | M149: 10 | N149: 10 | P149: 50 | R149: pp'Dichloordifenyltrichloorethaan | W149: pp'Dichloordifenyltrichloorethaan | X149: 44DDT | Y149: 1.5
A150: 231 | B150: Propanil | C150: Propanil | D150: 231 | E150: Propanil | F150: ng/L | G150: ng/L | H150: Nee | J150: =IFERROR(VLOOKUP(B150,'MKN - JG'!$B:$J,7,FALSE),"") -> 200 | K150: =IFERROR(VLOOKUP(B150,'MKN - Max'!B:J,7,FALSE),"") -> 3000 | M150: 200 | N150: 200 | P150: 1000 | R150: Propanil | W150: Propanil | X150: Propanil | Y150: 1.5
A151: 434 | B151: Pyr | C151: Pyreen | D151: 434 | E151: Pyr | F151: ng/L | G151: ng/L | H151: Ja | I151: VMM stroomgebiedspecifieke stoffen - VMM prio - PAK | J151: =IFERROR(VLOOKUP(B151,'MKN - JG'!$B:$J,7,FALSE),"") -> 40 | K151: =IFERROR(VLOOKUP(B151,'MKN - Max'!B:J,7,FALSE),"") ->  | M151: 40 | N151: 40 | P151: 200 | R151: Pyreen | S151: ja | T151: 2269 | U151: =T151*10 -> 22690 | W151: Pyreen | X151: Pyr | Y151: 1.5
A152: 1038 | B152: Quinofen | C152: Quinoxyfen | D152: 1038 | E152: Quinofen | F152: ng/L | G152: ng/L | H152: Ja | I152: PGS | J152: =IFERROR(VLOOKUP(B152,'MKN - JG'!$B:$J,7,FALSE),"") -> 150 | K152: =IFERROR(VLOOKUP(B152,'MKN - Max'!B:J,7,FALSE),"") -> 2700 | M152: 150 | N152: 150 | P152: 750 | R152: Quinoxyfen | W152: Quinoxyfen | X152: Quinofen | Y152: 1.5 | Z152: MOZ aangevuld
A153: 183 | B153: Se t | C153: Seleen, totaal | D153: 183 | E153: Se t | F153: µg/L | G153: µg/L | H153: Nee | J153: =IFERROR(VLOOKUP(B153,'MKN - JG'!$B:$J,7,FALSE),"") -> 3 | K153: =IFERROR(VLOOKUP(B153,'MKN - Max'!B:J,7,FALSE),"") ->  | M153: 3 | N153: 3 | P153: 15 | R153: Seleen, totaal | W153: Seleen, totaal | X153: Se t | Y153: 1.3
A154: 280 | B154: Simaz | C154: Simazine | D154: 280 | E154: Simaz | F154: ng/L | G154: ng/L | H154: Ja | I154: PS | J154: =IFERROR(VLOOKUP(B154,'MKN - JG'!$B:$J,7,FALSE),"") -> 1000 | K154: =IFERROR(VLOOKUP(B154,'MKN - Max'!B:J,7,FALSE),"") -> 4000 | M154: 1000 | N154: 1000 | P154: 5000 | R154: Simazine | W154: Simazine | X154: Simaz | Y154: 1.5
A155: 31 | B155: N t | C155: Stikstof, totaal | D155: 31 | E155: N t | F155: mgN/L | G155: mg/L | H155: Ja | I155: VMM stroomgebiedspecifieke stoffen - VMM prio - >5% OW | L155: ja | R155: Stikstof, totaal | S155: ja | T155: 6 | U155: 60 | W155: Stikstof, totaal | X155: N t | Y155: 1.3
A156: 14 | B156: SO4= | C156: Sulfaat | D156: 14 | E156: SO4= | F156: mg/L | G156: mg/L | H156: Ja | I156: VMM stroomgebiedspecifieke stoffen - VMM prio - >5% OW | L156: ja | R156: Sulfaat | S156: nee | T156: 2.1 | U156: 21 | W156: Sulfaat | X156: SO4= | Y156: 1.3
A157: 618 | B157: AISurf | C157: Surfactanten, anionische | D157: 618 | E157: AISurf | F157: mg/L | G157: mg/L | H157: Nee | J157: =IFERROR(VLOOKUP(B157,'MKN - JG'!$B:$J,7,FALSE),"") -> 0.1 | K157: =IFERROR(VLOOKUP(B157,'MKN - Max'!B:J,7,FALSE),"") ->  | M157: =IF(L157="ja","Vul MKN aan",IF(J157<>"",J157,K157)) -> 0.1 | N157: =M157 -> 0.1 | P157: =N157*5 -> 0.5 | R157: Surfactanten, anionische | W157: Surfactanten, anionische | X157: AISurf | Y157: 1.5
A158: 1767 | B158: Surf KID+NID | C158: Surfactanten, Kationische + Niet-ionogen | D158: 1767 | E158: Surf KID+NID | F158: mg/L | G158: mg/L | H158: Nee | J158: =IFERROR(VLOOKUP(B158,'MKN - JG'!$B:$J,7,FALSE),"") -> 1 | K158: =IFERROR(VLOOKUP(B158,'MKN - Max'!B:J,7,FALSE),"") ->  | M158: 1 | N158: 1 | P158: 5 | R158: Surfactanten, Kationische + Niet-ionogen | W158: Surfactanten, Kationische + Niet-ionogen | X158: Surf KID+NID | Y158: 1.5
A159: 517 | B159: Te t | C159: Tellurium, totaal | D159: 517 | E159: Te t | F159: µg/L | G159: µg/L | H159: Nee | J159: =IFERROR(VLOOKUP(B159,'MKN - JG'!$B:$J,7,FALSE),"") -> 100 | K159: =IFERROR(VLOOKUP(B159,'MKN - Max'!B:J,7,FALSE),"") ->  | M159: 100 | N159: 100 | P159: 500 | R159: Tellurium, totaal | W159: Tellurium, totaal | X159: Te t | Y159: 1.3
A160: 282 | B160: Terbutryn | C160: Terbutryn | D160: 282 | E160: Terbutryn | F160: ng/L | G160: ng/L | H160: Ja | I160: PS | J160: =IFERROR(VLOOKUP(B160,'MKN - JG'!$B:$J,7,FALSE),"") -> 65 | K160: =IFERROR(VLOOKUP(B160,'MKN - Max'!B:J,7,FALSE),"") -> 340 | M160: 65 | N160: 65 | P160: 325 | R160: Terbutryn | W160: Terbutryn | X160: Terbutryn | Y160: 1.5
A161: 281 | B161: TrByaz | C161: Terbutylazine | D161: 281 | E161: TrByaz | F161: µg/L | G161: µg/L | H161: Nee | J161: =IFERROR(VLOOKUP(B161,'MKN - JG'!$B:$J,7,FALSE),"") -> 0.32 | K161: =IFERROR(VLOOKUP(B161,'MKN - Max'!B:J,7,FALSE),"") -> 1.8 | M161: 0.32 | N161: 0.32 | P161: 1.6 | R161: Terbutylazine | W161: Terbutylazine | X161: TrByaz | Y161: 1.5 | Z161: MOZ aangevuld
A162: 410 | B162: TtBySn | C162: Tetrabutyltin | D162: 410 | E162: TtBySn | F162: ngSn/L | G162: ng/L | H162: Nee | J162: =IFERROR(VLOOKUP(B162,'MKN - JG'!$B:$J,7,FALSE),"") -> 4.1 | K162: =IFERROR(VLOOKUP(B162,'MKN - Max'!B:J,7,FALSE),"") -> 41 | M162: 4.1 | N162: 4.1 | P162: 20.5 | R162: =C162 -> Tetrabutyltin | W162: =C162 -> Tetrabutyltin | X162: =B162 -> TtBySn | Y162: 1.5 | Z162: MOZ aangevuld
A163: 382 | B163: TtCEe | C163: Tetrachlooretheen | D163: 382 | E163: TtCEe | F163: µg/L | G163: µg/L | H163: Ja | I163: VS | J163: =IFERROR(VLOOKUP(B163,'MKN - JG'!$B:$J,7,FALSE),"") -> 10 | K163: =IFERROR(VLOOKUP(B163,'MKN - Max'!B:J,7,FALSE),"") ->  | M163: 10 | N163: 10 | P163: 50 | R163: Tetrachlooretheen | W163: Tetrachlooretheen | X163: TtCEe | Y163: 1.5
A164: 383 | B164: TtCMa | C164: Tetrachloormethaan | D164: 383 | E164: TtCMa | F164: µg/L | G164: µg/L | H164: Ja | I164: VS | J164: =IFERROR(VLOOKUP(B164,'MKN - JG'!$B:$J,7,FALSE),"") -> 12 | K164: =IFERROR(VLOOKUP(B164,'MKN - Max'!B:J,7,FALSE),"") ->  | M164: 12 | N164: 12 | P164: 60 | R164: Tetrachloormethaan | W164: Tetrachloormethaan | X164: TtCMa | Y164: 1.5
A165: 190 | B165: Tl t | C165: Thallium, totaal | D165: 190 | E165: Tl t | F165: µg/L | G165: µg/L | H165: Ja | I165: VMM stroomgebiedspecifieke stoffen - VMM prio - >5% OW | J165: =IFERROR(VLOOKUP(B165,'MKN - JG'!$B:$J,7,FALSE),"") -> 0.2 | K165: =IFERROR(VLOOKUP(B165,'MKN - Max'!B:J,7,FALSE),"") ->  | M165: 0.2 | N165: 0.2 | P165: 1 | R165: Thallium, totaal | W165: Thallium, totaal | X165: Tl t | Y165: 1.3
A166: 193 | B166: Sn t | C166: Tin, totaal | D166: 193 | E166: Sn t | F166: µg/L | G166: µg/L | H166: Nee | J166: =IFERROR(VLOOKUP(B166,'MKN - JG'!$B:$J,7,FALSE),"") -> 40 | K166: =IFERROR(VLOOKUP(B166,'MKN - Max'!B:J,7,FALSE),"") ->  | M166: 40 | N166: 40 | P166: 200 | R166: Tin, totaal | W166: Tin, totaal | X166: Sn t | Y166: 1.3
A167: 196 | B167: Ti t | C167: Titaan, totaal | D167: 196 | E167: Ti t | F167: µg/L | G167: µg/L | H167: Nee | J167: =IFERROR(VLOOKUP(B167,'MKN - JG'!$B:$J,7,FALSE),"") -> 100 | K167: =IFERROR(VLOOKUP(B167,'MKN - Max'!B:J,7,FALSE),"") ->  | M167: 100 | N167: 100 | P167: 500 | R167: Titaan, totaal | W167: Titaan, totaal | X167: Ti t | Y167: 1.3
A168: 223 | B168: Tolueen | C168: Tolueen | D168: 223 | E168: Tolueen | F168: µg/L | G168: µg/L | H168: Nee | J168: =IFERROR(VLOOKUP(B168,'MKN - JG'!$B:$J,7,FALSE),"") -> 90 | K168: =IFERROR(VLOOKUP(B168,'MKN - Max'!B:J,7,FALSE),"") -> 700 | M168: 90 | N168: 90 | P168: 450 | R168: Tolueen | S168: ja | T168: 1000 | U168: 10000 | W168: Tolueen | X168: Tolueen | Y168: 1.5
A169: 406 | B169: Triazofos | C169: Triazofos | D169: 406 | E169: Triazofos | F169: ng/L | G169: ng/L | H169: Nee | J169: =IFERROR(VLOOKUP(B169,'MKN - JG'!$B:$J,7,FALSE),"") -> 30 | K169: =IFERROR(VLOOKUP(B169,'MKN - Max'!B:J,7,FALSE),"") ->  | M169: 30 | N169: 30 | P169: 150 | R169: Triazofos | W169: Triazofos | X169: Triazofos | Y169: 1.5
A170: 520 | B170: TBP | C170: Tributylfosfaat | D170: 520 | E170: TBP | F170: ng/L | G170: ng/L | H170: Nee | J170: =IFERROR(VLOOKUP(B170,'MKN - JG'!$B:$J,7,FALSE),"") -> 40000 | K170: =IFERROR(VLOOKUP(B170,'MKN - Max'!B:J,7,FALSE),"") -> 100000 | M170: 40000 | N170: 40000 | P170: 200000 | R170: Tributylfosfaat | W170: Tributylfosfaat | X170: TBP | Y170: 1.5 | Z170: MOZ aangevuld
A171: 670 | B171: TBySn | C171: Tributyltin | D171: 670 | E171: TBySn | F171: ngSn/L | G171: ng/L | H171: Ja | I171: PGS | J171: =IFERROR(VLOOKUP(B171,'MKN - JG'!$B:$J,7,FALSE),"") -> 0.081 | K171: =IFERROR(VLOOKUP(B171,'MKN - Max'!B:J,7,FALSE),"") -> 0.61 | M171: 0.081 | N171: 0.081 | P171: 0.405 | R171: Tributyltin | W171: Tributyltin | X171: TBySn | Y171: 1.5 | Z171: MOZ aangevuld
A172: 521 | B172: TCAcyde | C172: Trichlooracetaldehyde-hydraat | D172: 521 | E172: TCAcyde | F172: µg/L | G172: µg/L | H172: Nee | J172: =IFERROR(VLOOKUP(B172,'MKN - JG'!$B:$J,7,FALSE),"") -> 500 | K172: =IFERROR(VLOOKUP(B172,'MKN - Max'!B:J,7,FALSE),"") -> 5000 | M172: 500 | N172: 500 | P172: 2500 | R172: Trichlooracetaldehyde-hydraat | W172: Trichlooracetaldehyde-hydraat | X172: TCAcyde | Y172: 1.5 | Z172: MOZ aangevuld
A173: 522 | B173: TCBz | C173: Trichloorbenzenen | D173: 522 | E173: TCBz | F173: µg/L | G173: µg/L | H173: Ja | I173: PS | J173: =IFERROR(VLOOKUP(B173,'MKN - JG'!$B:$J,7,FALSE),"") -> 0.4 | K173: =IFERROR(VLOOKUP(B173,'MKN - Max'!B:J,7,FALSE),"") ->  | M173: 0.4 | N173: 0.4 | P173: 2 | R173: Trichloorbenzenen | W173: Trichloorbenzenen | X173: TCBz | Y173: 1.5
A174: 385 | B174: TCEe | C174: Trichlooretheen | D174: 385 | E174: TCEe | F174: µg/L | G174: µg/L | H174: Ja | I174: VS | J174: =IFERROR(VLOOKUP(B174,'MKN - JG'!$B:$J,7,FALSE),"") -> 10 | K174: =IFERROR(VLOOKUP(B174,'MKN - Max'!B:J,7,FALSE),"") ->  | M174: 10 | N174: 10 | P174: 50 | R174: Trichlooretheen | W174: Trichlooretheen | X174: TCEe | Y174: 1.5
A175: 1228 | B175: triCFolsom | C175: Trichloorfenolen | D175: 1228 | E175: triCFolsom | F175: ng/L | G175: ng/L | H175: Nee | J175: =IFERROR(VLOOKUP(B175,'MKN - JG'!$B:$J,7,FALSE),"") -> 6000 | K175: =IFERROR(VLOOKUP(B175,'MKN - Max'!B:J,7,FALSE),"") -> 20000 | M175: 6000 | N175: 6000 | P175: 30000 | R175: Trichloorfenolen | S175: ja | T175: 911 | U175: 9106 | W175: Trichloorfenolen | X175: triCFolsom | Y175: 1.5
A176: 407 | B176: TCfon | C176: Trichloorfon | D176: 407 | E176: TCfon | F176: µg/L | G176: µg/L | H176: Nee | J176: =IFERROR(VLOOKUP(B176,'MKN - JG'!$B:$J,7,FALSE),"") -> 0.001 | K176: =IFERROR(VLOOKUP(B176,'MKN - Max'!B:J,7,FALSE),"") -> 0.01 | M176: 0.001 | N176: 0.001 | P176: 0.005 | R176: Trichloorfon | W176: Trichloorfon | X176: TCfon | Y176: 1.5 | Z176: MOZ aangevuld
A177: 388 | B177: TCMa | C177: Trichloormethaan | D177: 388 | E177: TCMa | F177: µg/L | G177: µg/L | H177: Ja | I177: PS | J177: =IFERROR(VLOOKUP(B177,'MKN - JG'!$B:$J,7,FALSE),"") -> 2.5 | K177: =IFERROR(VLOOKUP(B177,'MKN - Max'!B:J,7,FALSE),"") ->  | M177: 2.5 | N177: 2.5 | P177: 12.5 | R177: Trichloormethaan | W177: Trichloormethaan | X177: TCMa | Y177: 1.5
A178: 1229 | B178: TFySn som | C178: Trifenyltinacetaat, chloride, hydroxide | D178: 1229 | E178: TFySn som | F178: ngSn/L | G178: ng/L | H178: Nee | J178: =IFERROR(VLOOKUP(B178,'MKN - JG'!$B:$J,7,FALSE),"") -> 0.3 | K178: =IFERROR(VLOOKUP(B178,'MKN - Max'!B:J,7,FALSE),"") -> 3 | M178: 0.3 | N178: 0.3 | P178: 1.5 | R178: Trifenyltinacetaat, chloride, hydroxide | W178: Trifenyltinacetaat, chloride, hydroxide | X178: TFySn som | Y178: 1.5 | Z178: MOZ aangevuld
A179: 417 | B179: Tfluralin | C179: Trifluralin | D179: 417 | E179: Tfluralin | F179: ng/L | G179: ng/L | H179: Ja | I179: PGS | J179: =IFERROR(VLOOKUP(B179,'MKN - JG'!$B:$J,7,FALSE),"") -> 30 | K179: =IFERROR(VLOOKUP(B179,'MKN - Max'!B:J,7,FALSE),"") ->  | M179: 30 | N179: 30 | P179: 150 | R179: Trifluralin | W179: Trifluralin | X179: Tfluralin | Y179: 1.5
A180: 525 | B180: U t | C180: Uranium, totaal | D180: 525 | E180: U t | F180: µg/L | G180: µg/L | H180: Ja | I180: VMM stroomgebiedspecifieke stoffen - VMM prio - >5% OW | J180: =IFERROR(VLOOKUP(B180,'MKN - JG'!$B:$J,7,FALSE),"") -> 1 | K180: =IFERROR(VLOOKUP(B180,'MKN - Max'!B:J,7,FALSE),"") ->  | M180: 1 | N180: 1 | P180: 5 | R180: Uranium, totaal | W180: Uranium, totaal | X180: U t | Y180: 1.3
A181: 199 | B181: V t | C181: Vanadium, totaal | D181: 199 | E181: V t | F181: µg/L | G181: µg/L | H181: Ja | I181: VMM stroomgebiedspecifieke stoffen - VMM prio - >5% OW | J181: =IFERROR(VLOOKUP(B181,'MKN - JG'!$B:$J,7,FALSE),"") -> 5 | K181: =IFERROR(VLOOKUP(B181,'MKN - Max'!B:J,7,FALSE),"") ->  | M181: 5 | N181: 5 | P181: 25 | R181: Vanadium, totaal | W181: Vanadium, totaal | X181: V t | Y181: 1.3
A182: 570 | B182: VinCl | C182: Vinylchloride | D182: 570 | E182: VinCl | F182: µg/L | G182: µg/L | H182: Nee | J182: =IFERROR(VLOOKUP(B182,'MKN - JG'!$B:$J,7,FALSE),"") -> 0.09 | K182: =IFERROR(VLOOKUP(B182,'MKN - Max'!B:J,7,FALSE),"") ->  | M182: 0.09 | N182: 0.09 | P182: 0.45 | R182: Vinylchloride | W182: Vinylchloride | X182: VinCl | Y182: 1.5
A183: 526 | B183: ompXyl | C183: Xylenen (o+m+p) | D183: 526 | E183: ompXyl | F183: µg/L | G183: µg/L | H183: Nee | J183: =IFERROR(VLOOKUP(B183,'MKN - JG'!$B:$J,7,FALSE),"") -> 4 | K183: =IFERROR(VLOOKUP(B183,'MKN - Max'!B:J,7,FALSE),"") -> 40 | M183: 4 | N183: 4 | P183: 20 | R183: Xylenen (o+m+p) | S183: ja | T183: 1000 | U183: 10000 | W183: Xylenen (o+m+p) | X183: ompXyl | Y183: 1.5
A184: 202 | B184: Ag t | C184: Zilver, totaal | D184: 202 | E184: Ag t | F184: µg/L | G184: µg/L | H184: Ja | I184: VMM stroomgebiedspecifieke stoffen - VMM prio - Toekomstige P(G)S | J184: =IFERROR(VLOOKUP(B184,'MKN - JG'!$B:$J,7,FALSE),"") -> 0.4 | K184: =IFERROR(VLOOKUP(B184,'MKN - Max'!B:J,7,FALSE),"") ->  | M184: 0.4 | N184: 0.4 | P184: 2 | R184: Zilver, totaal | W184: Zilver, totaal | X184: Ag t | Y184: 1.3
A185: 205 | B185: Zn t | C185: Zink, totaal | D185: 205 | E185: Zn t | F185: µg/L | G185: µg/L | H185: Ja | I185: VMM stroomgebiedspecifieke stoffen - VMM prio - >5% OW | J185: =IFERROR(VLOOKUP(B185,'MKN - JG'!$B:$J,7,FALSE),"") -> 200 | K185: =IFERROR(VLOOKUP(B185,'MKN - Max'!B:J,7,FALSE),"") ->  | M185: 200 | N185: 200 | P185: 1000 | R185: Zink, totaal | S185: ja | T185: 450 | U185: 4500 | W185: Zink, totaal | X185: Zn t | Y185: 1.3
A186: 113 | B186: ZS | C186: Zwevende stoffen | D186: 113 | E186: ZS | F186: mg/L | G186: mg/L | H186: Nee | J186: =IFERROR(VLOOKUP(B186,'MKN - JG'!$B:$J,7,FALSE),"") ->  | L186: ja | R186: Zwevende stoffen | W186: Zwevende stoffen | X186: ZS | Y186: 1.4
A187: 2000 | B187: IP | C187: Indeno(1,2,3-cd)Pyreen | D187: 2000 | E187: IP | F187: ng/L | G187: ng/L | H187: ja | I187: PGS | R187: Indeno(1,2,3-cd)Pyreen | W187: Indeno(1,2,3-cd)Pyreen | X187: IP
A188: =IF(ISBLANK('Input impactbeoordeing'!A37)=TRUE,"",'Input impactbeoordeing'!A37) -> E1 | B188: =C188 ->  | C188: =IF(ISBLANK('Input impactbeoordeing'!B37)=TRUE,"",'Input impactbeoordeing'!B37) ->  | E188: =C188 ->  | F188: =IF(ISBLANK('Input impactbeoordeing'!D37)=TRUE,"",'Input impactbeoordeing'!D37) ->  | G188: =F188 ->  | H188: =IF(C188="","","Nee") ->  | M188: =IF(ISBLANK('Input impactbeoordeing'!C37)=TRUE,"",'Input impactbeoordeing'!C37) -> 
A189: =IF(ISBLANK('Input impactbeoordeing'!A38)=TRUE,"",'Input impactbeoordeing'!A38) -> E2 | B189: =C189 ->  | C189: =IF(ISBLANK('Input impactbeoordeing'!B38)=TRUE,"",'Input impactbeoordeing'!B38) ->  | E189: =C189 ->  | F189: =IF(ISBLANK('Input impactbeoordeing'!D38)=TRUE,"",'Input impactbeoordeing'!D38) ->  | G189: =F189 ->  | H189: =IF(C189="","","Nee") ->  | M189: =IF(ISBLANK('Input impactbeoordeing'!C38)=TRUE,"",'Input impactbeoordeing'!C38) -> 
A190: =IF(ISBLANK('Input impactbeoordeing'!A39)=TRUE,"",'Input impactbeoordeing'!A39) -> E3 | C190: =IF(ISBLANK('Input impactbeoordeing'!B39)=TRUE,"",'Input impactbeoordeing'!B39) ->  | F190: =IF(ISBLANK('Input impactbeoordeing'!D39)=TRUE,"",'Input impactbeoordeing'!D39) ->  | M190: =IF(ISBLANK('Input impactbeoordeing'!C39)=TRUE,"",'Input impactbeoordeing'!C39) -> 
A191: =IF(ISBLANK('Input impactbeoordeing'!A40)=TRUE,"",'Input impactbeoordeing'!A40) -> E4 | C191: =IF(ISBLANK('Input impactbeoordeing'!B40)=TRUE,"",'Input impactbeoordeing'!B40) ->  | F191: =IF(ISBLANK('Input impactbeoordeing'!D40)=TRUE,"",'Input impactbeoordeing'!D40) ->  | M191: =IF(ISBLANK('Input impactbeoordeing'!C40)=TRUE,"",'Input impactbeoordeing'!C40) -> 
A192: =IF(ISBLANK('Input impactbeoordeing'!A41)=TRUE,"",'Input impactbeoordeing'!A41) -> E5 | C192: =IF(ISBLANK('Input impactbeoordeing'!B41)=TRUE,"",'Input impactbeoordeing'!B41) ->  | F192: =IF(ISBLANK('Input impactbeoordeing'!D41)=TRUE,"",'Input impactbeoordeing'!D41) ->  | M192: =IF(ISBLANK('Input impactbeoordeing'!C41)=TRUE,"",'Input impactbeoordeing'!C41) -> 
A193: =IF(ISBLANK('Input impactbeoordeing'!A42)=TRUE,"",'Input impactbeoordeing'!A42) -> E6 | C193: =IF(ISBLANK('Input impactbeoordeing'!B42)=TRUE,"",'Input impactbeoordeing'!B42) ->  | F193: =IF(ISBLANK('Input impactbeoordeing'!D42)=TRUE,"",'Input impactbeoordeing'!D42) ->  | M193: =IF(ISBLANK('Input impactbeoordeing'!C42)=TRUE,"",'Input impactbeoordeing'!C42) -> 
A194: =IF(ISBLANK('Input impactbeoordeing'!A43)=TRUE,"",'Input impactbeoordeing'!A43) -> E7 | C194: =IF(ISBLANK('Input impactbeoordeing'!B43)=TRUE,"",'Input impactbeoordeing'!B43) ->  | F194: =IF(ISBLANK('Input impactbeoordeing'!D43)=TRUE,"",'Input impactbeoordeing'!D43) ->  | M194: =IF(ISBLANK('Input impactbeoordeing'!C43)=TRUE,"",'Input impactbeoordeing'!C43) -> 

Sheet Toetswaarden spec wl (hidden)
A1: Code | B1: Naam waterlichaam | C1: Parameter | D1: Parameter ID | E1: Parameter Symbool | F1: WL + PAR combo | G1: Toets | H1: Eenheid | I1: toetswaarde stap 4 | J1: toetscriterium stap 5 | K1: toetswaarde stap 5 - halen doelstellingen | L1: toetswaarde stap 5 - achteruitgang (goed-matig) | M1: toetswaarde stap 5 - achteruitgang (matig-ontoereikend) | N1: toetswaarde stap 5 - achteruitgang (ontoereikend-slecht)
A2: L107_10 | B2: KEMMELBEEK | C2: Biochemisch zuurstofverbruik na 5d. | D2: 287 | E2: BZV5 | F2: =_xlfn.CONCAT(A2,E2) -> L107_10BZV5 | G2: 90 percentiel | H2: mgO2/L | I2: 6 | J2: maximum | K2: 9 | L2: 9 | M2: 15 | N2: 37.5
A3: L107_104 | B3: NEERBEEK | C3: Biochemisch zuurstofverbruik na 5d. | D3: 287 | E3: BZV5 | F3: =_xlfn.CONCAT(A3,E3) -> L107_104BZV5 | G3: 90 percentiel | H3: mgO2/L | I3: 6 | J3: maximum | K3: 9 | L3: 9 | M3: 15 | N3: 37.5
A4: L107_105 | B4: PALINGBEEK | C4: Biochemisch zuurstofverbruik na 5d. | D4: 287 | E4: BZV5 | F4: L107_105BZV5 | G4: 90 percentiel | H4: mgO2/L | I4: 6 | J4: maximum | K4: 9 | L4: 9 | M4: 15 | N4: 37.5
A5: L107_11 | B5: WANEBEEK | C5: Biochemisch zuurstofverbruik na 5d. | D5: 287 | E5: BZV5 | F5: L107_11BZV5 | G5: 90 percentiel | H5: mgO2/L | I5: 6 | J5: maximum | K5: 9 | L5: 9 | M5: 15 | N5: 37.5
A6: L107_112 | B6: LA HAUTE PLANCHE | C6: Biochemisch zuurstofverbruik na 5d. | D6: 287 | E6: BZV5 | F6: L107_112BZV5 | G6: 90 percentiel | H6: mgO2/L | I6: 6 | J6: maximum | K6: 9 | L6: 9 | M6: 15 | N6: 37.5
A7: L107_113 | B7: DOUVEBEEK | C7: Biochemisch zuurstofverbruik na 5d. | D7: 287 | E7: BZV5 | F7: L107_113BZV5 | G7: 90 percentiel | H7: mgO2/L | I7: 6 | J7: maximum | K7: 9 | L7: 9 | M7: 15 | N7: 37.5
A8: L107_116 | B8: GROTE SPIERE | C8: Biochemisch zuurstofverbruik na 5d. | D8: 287 | E8: BZV5 | F8: L107_116BZV5 | G8: 90 percentiel | H8: mgO2/L | I8: 6 | J8: maximum | K8: 9 | L8: 9 | M8: 15 | N8: 37.5
A9: L107_12 | B9: VLETERBEEK | C9: Biochemisch zuurstofverbruik na 5d. | D9: 287 | E9: BZV5 | F9: L107_12BZV5 | G9: 90 percentiel | H9: mgO2/L | I9: 6 | J9: maximum | K9: 9 | L9: 9 | M9: 15 | N9: 37.5
A10: L107_120 | B10: SCHEEBEEK | C10: Biochemisch zuurstofverbruik na 5d. | D10: 287 | E10: BZV5 | F10: L107_120BZV5 | G10: 90 percentiel | H10: mgO2/L | I10: 6 | J10: maximum | K10: 9 | L10: 9 | M10: 15 | N10: 37.5
A11: L107_122 | B11: HET GELEED | C11: Biochemisch zuurstofverbruik na 5d. | D11: 287 | E11: BZV5 | F11: L107_122BZV5 | G11: 90 percentiel | H11: mgO2/L | I11: 6 | J11: maximum | K11: 9 | L11: 9 | M11: 15 | N11: 37.5
A12: L107_123 | B12: KANAAL VAN BRUGGE NAAR SLUIS | C12: Biochemisch zuurstofverbruik na 5d. | D12: 287 | E12: BZV5 | F12: L107_123BZV5 | G12: 90 percentiel | H12: mgO2/L | I12: 6 | J12: maximum | K12: 9 | L12: 9 | M12: 15 | N12: 37.5
A13: L107_124 | B13: RONSELAREBEEK | C13: Biochemisch zuurstofverbruik na 5d. | D13: 287 | E13: BZV5 | F13: L107_124BZV5 | G13: 90 percentiel | H13: mgO2/L | I13: 6 | J13: maximum | K13: 9 | L13: 9 | M13: 15 | N13: 37.5
A14: L107_130 | B14: KLEINE GEUL | C14: Biochemisch zuurstofverbruik na 5d. | D14: 287 | E14: BZV5 | F14: L107_130BZV5 | G14: 90 percentiel | H14: mgO2/L | I14: 6 | J14: maximum | K14: 9 | L14: 9 | M14: 15 | N14: 37.5
A15: L107_131 | B15: LISSEWEEGSEVAART | C15: Biochemisch zuurstofverbruik na 5d. | D15: 287 | E15: BZV5 | F15: L107_131BZV5 | G15: 90 percentiel | H15: mgO2/L | I15: 6 | J15: maximum | K15: 9 | L15: 9 | M15: 15 | N15: 37.5
A16: L107_133 | B16: BLANKENBERGSEVAART L1 | C16: Biochemisch zuurstofverbruik na 5d. | D16: 287 | E16: BZV5 | F16: L107_133BZV5 | G16: 90 percentiel | H16: mgO2/L | I16: 6 | J16: maximum | K16: 9 | L16: 9 | M16: 15 | N16: 37.5
A17: L107_135 | B17: JABBEEKSE BEEK | C17: Biochemisch zuurstofverbruik na 5d. | D17: 287 | E17: BZV5 | F17: L107_135BZV5 | G17: 90 percentiel | H17: mgO2/L | I17: 6 | J17: maximum | K17: 9 | L17: 9 | M17: 15 | N17: 37.5
A18: L107_136 | B18: HOGE WATERING | C18: Biochemisch zuurstofverbruik na 5d. | D18: 287 | E18: BZV5 | F18: L107_136BZV5 | G18: 90 percentiel | H18: mgO2/L | I18: 6 | J18: maximum | K18: 9 | L18: 9 | M18: 15 | N18: 37.5
A19: L107_140 | B19: SCHELLEVLIET | C19: Biochemisch zuurstofverbruik na 5d. | D19: 287 | E19: BZV5 | F19: L107_140BZV5 | G19: 90 percentiel | H19: mgO2/L | I19: 6 | J19: maximum | K19: 9 | L19: 9 | M19: 15 | N19: 37.5
A20: L107_143 | B20: GROOT ZWIN - NOORDGELEED | C20: Biochemisch zuurstofverbruik na 5d. | D20: 287 | E20: BZV5 | F20: L107_143BZV5 | G20: 90 percentiel | H20: mgO2/L | I20: 6 | J20: maximum | K20: 9 | L20: 9 | M20: 15 | N20: 37.5
A21: L107_149 | B21: PROVINCIEGELEED | C21: Biochemisch zuurstofverbruik na 5d. | D21: 287 | E21: BZV5 | F21: L107_149BZV5 | G21: 90 percentiel | H21: mgO2/L | I21: 6 | J21: maximum | K21: 9 | L21: 9 | M21: 15 | N21: 37.5
A22: L107_150 | B22: GRANINGATEVLIET | C22: Biochemisch zuurstofverbruik na 5d. | D22: 287 | E22: BZV5 | F22: L107_150BZV5 | G22: 90 percentiel | H22: mgO2/L | I22: 6 | J22: maximum | K22: 9 | L22: 9 | M22: 15 | N22: 37.5
A23: L107_16 | B23: HARINGEBEEK | C23: Biochemisch zuurstofverbruik na 5d. | D23: 287 | E23: BZV5 | F23: L107_16BZV5 | G23: 90 percentiel | H23: mgO2/L | I23: 6 | J23: maximum | K23: 9 | L23: 9 | M23: 15 | N23: 37.5
A24: L107_202 | B24: OOSTPOLDERKREEK | C24: Biochemisch zuurstofverbruik na 5d. | D24: 287 | E24: BZV5 | F24: L107_202BZV5 | G24: 90 percentiel | H24: mgO2/L | I24: 6 | J24: maximum | K24: 9 | L24: 9 | M24: 15 | N24: 37.5
A25: L107_209 | B25: ZWARTESLUISBEEK L1 | C25: Biochemisch zuurstofverbruik na 5d. | D25: 287 | E25: BZV5 | F25: L107_209BZV5 | G25: 90 percentiel | H25: mgO2/L | I25: 6 | J25: maximum | K25: 9 | L25: 9 | M25: 15 | N25: 37.5
A26: L107_213 | B26: EEKLOSE WATERGANG | C26: Biochemisch zuurstofverbruik na 5d. | D26: 287 | E26: BZV5 | F26: L107_213BZV5 | G26: 90 percentiel | H26: mgO2/L | I26: 6 | J26: maximum | K26: 9 | L26: 9 | M26: 15 | N26: 37.5
A27: L107_218 | B27: SLEIDINGSVAARDEKEN | C27: Biochemisch zuurstofverbruik na 5d. | D27: 287 | E27: BZV5 | F27: L107_218BZV5 | G27: 90 percentiel | H27: mgO2/L | I27: 6 | J27: maximum | K27: 9 | L27: 9 | M27: 15 | N27: 37.5
A28: L107_225 | B28: KEUTELBEEK | C28: Biochemisch zuurstofverbruik na 5d. | D28: 287 | E28: BZV5 | F28: L107_225BZV5 | G28: 90 percentiel | H28: mgO2/L | I28: 6 | J28: maximum | K28: 9 | L28: 9 | M28: 15 | N28: 37.5
A29: L107_234 | B29: POEKEBEEK L1 | C29: Biochemisch zuurstofverbruik na 5d. | D29: 287 | E29: BZV5 | F29: L107_234BZV5 | G29: 90 percentiel | H29: mgO2/L | I29: 6 | J29: maximum | K29: 9 | L29: 9 | M29: 15 | N29: 37.5
A30: L107_235 | B30: REIGERBEEK | C30: Biochemisch zuurstofverbruik na 5d. | D30: 287 | E30: BZV5 | F30: L107_235BZV5 | G30: 90 percentiel | H30: mgO2/L | I30: 6 | J30: maximum | K30: 9 | L30: 9 | M30: 15 | N30: 37.5
A31: L107_236 | B31: NEERSCHUURBEEK | C31: Biochemisch zuurstofverbruik na 5d. | D31: 287 | E31: BZV5 | F31: L107_236BZV5 | G31: 90 percentiel | H31: mgO2/L | I31: 6 | J31: maximum | K31: 9 | L31: 9 | M31: 15 | N31: 37.5
A32: L107_237 | B32: SPEIBEEK | C32: Biochemisch zuurstofverbruik na 5d. | D32: 287 | E32: BZV5 | F32: L107_237BZV5 | G32: 90 percentiel | H32: mgO2/L | I32: 6 | J32: maximum | K32: 9 | L32: 9 | M32: 15 | N32: 37.5
A33: L107_239 | B33: OUDE MANDEL L1 | C33: Biochemisch zuurstofverbruik na 5d. | D33: 287 | E33: BZV5 | F33: L107_239BZV5 | G33: 90 percentiel | H33: mgO2/L | I33: 6 | J33: maximum | K33: 9 | L33: 9 | M33: 15 | N33: 37.5
A34: L107_240 | B34: ZOUBEEK | C34: Biochemisch zuurstofverbruik na 5d. | D34: 287 | E34: BZV5 | F34: L107_240BZV5 | G34: 90 percentiel | H34: mgO2/L | I34: 6 | J34: maximum | K34: 9 | L34: 9 | M34: 15 | N34: 37.5
A35: L107_241 | B35: KATTEBEEK | C35: Biochemisch zuurstofverbruik na 5d. | D35: 287 | E35: BZV5 | F35: L107_241BZV5 | G35: 90 percentiel | H35: mgO2/L | I35: 6 | J35: maximum | K35: 9 | L35: 9 | M35: 15 | N35: 37.5
A36: L107_242 | B36: DUIVEBEEK | C36: Biochemisch zuurstofverbruik na 5d. | D36: 287 | E36: BZV5 | F36: L107_242BZV5 | G36: 90 percentiel | H36: mgO2/L | I36: 6 | J36: maximum | K36: 9 | L36: 9 | M36: 15 | N36: 37.5
A37: L107_246 | B37: STAMPKOTBEEK - MOLENBEEK | C37: Biochemisch zuurstofverbruik na 5d. | D37: 287 | E37: BZV5 | F37: L107_246BZV5 | G37: 90 percentiel | H37: mgO2/L | I37: 6 | J37: maximum | K37: 9 | L37: 9 | M37: 15 | N37: 37.5
A38: L107_247 | B38: STAMPKOTBEEK - WALLEBEEK | C38: Biochemisch zuurstofverbruik na 5d. | D38: 287 | E38: BZV5 | F38: L107_247BZV5 | G38: 90 percentiel | H38: mgO2/L | I38: 6 | J38: maximum | K38: 9 | L38: 9 | M38: 15 | N38: 37.5
A39: L107_253 | B39: STAMPKOTBEEK - MUNKBOSBEEK | C39: Biochemisch zuurstofverbruik na 5d. | D39: 287 | E39: BZV5 | F39: L107_253BZV5 | G39: 90 percentiel | H39: mgO2/L | I39: 6 | J39: maximum | K39: 9 | L39: 9 | M39: 15 | N39: 37.5
A40: L107_254 | B40: MOLENBEEK - BEIAARDBEEK | C40: Biochemisch zuurstofverbruik na 5d. | D40: 287 | E40: BZV5 | F40: L107_254BZV5 | G40: 90 percentiel | H40: mgO2/L | I40: 6 | J40: maximum | K40: 9 | L40: 9 | M40: 15 | N40: 37.5
A41: L107_266 | B41: PEERDESTOKBEEK | C41: Biochemisch zuurstofverbruik na 5d. | D41: 287 | E41: BZV5 | F41: L107_266BZV5 | G41: 90 percentiel | H41: mgO2/L | I41: 6 | J41: maximum | K41: 9 | L41: 9 | M41: 15 | N41: 37.5
A42: L107_272 | B42: OPHASSELTBEEK | C42: Biochemisch zuurstofverbruik na 5d. | D42: 287 | E42: BZV5 | F42: L107_272BZV5 | G42: 90 percentiel | H42: mgO2/L | I42: 6 | J42: maximum | K42: 9 | L42: 9 | M42: 15 | N42: 37.5
A43: L107_273 | B43: MOLENBEEK - PACHTBOSBEEK L1 | C43: Biochemisch zuurstofverbruik na 5d. | D43: 287 | E43: BZV5 | F43: L107_273BZV5 | G43: 90 percentiel | H43: mgO2/L | I43: 6 | J43: maximum | K43: 9 | L43: 9 | M43: 15 | N43: 37.5
A44: L107_274 | B44: MOLENBEEK - KALSTERBEEK | C44: Biochemisch zuurstofverbruik na 5d. | D44: 287 | E44: BZV5 | F44: L107_274BZV5 | G44: 90 percentiel | H44: mgO2/L | I44: 6 | J44: maximum | K44: 9 | L44: 9 | M44: 15 | N44: 37.5
A45: L107_275 | B45: TER ERPENBEEK | C45: Biochemisch zuurstofverbruik na 5d. | D45: 287 | E45: BZV5 | F45: L107_275BZV5 | G45: 90 percentiel | H45: mgO2/L | I45: 6 | J45: maximum | K45: 9 | L45: 9 | M45: 15 | N45: 37.5
A46: L107_276 | B46: MOLENBEEK - GRAADBEEK | C46: Biochemisch zuurstofverbruik na 5d. | D46: 287 | E46: BZV5 | F46: L107_276BZV5 | G46: 90 percentiel | H46: mgO2/L | I46: 6 | J46: maximum | K46: 9 | L46: 9 | M46: 15 | N46: 37.5
A47: L107_277 | B47: WILDEBEEK | C47: Biochemisch zuurstofverbruik na 5d. | D47: 287 | E47: BZV5 | F47: L107_277BZV5 | G47: 90 percentiel | H47: mgO2/L | I47: 6 | J47: maximum | K47: 9 | L47: 9 | M47: 15 | N47: 37.5
A48: L107_279 | B48: MOLENBEEK - VOGELENZANGBEEK | C48: Biochemisch zuurstofverbruik na 5d. | D48: 287 | E48: BZV5 | F48: L107_279BZV5 | G48: 90 percentiel | H48: mgO2/L | I48: 6 | J48: maximum | K48: 9 | L48: 9 | M48: 15 | N48: 37.5
A49: L107_282 | B49: MOLENBEEK - GONDEBEEK | C49: Biochemisch zuurstofverbruik na 5d. | D49: 287 | E49: BZV5 | F49: L107_282BZV5 | G49: 90 percentiel | H49: mgO2/L | I49: 6 | J49: maximum | K49: 9 | L49: 9 | M49: 15 | N49: 37.5
A50: L107_287 | B50: MOLENBEEK - GROTE BEEK | C50: Biochemisch zuurstofverbruik na 5d. | D50: 287 | E50: BZV5 | F50: L107_287BZV5 | G50: 90 percentiel | H50: mgO2/L | I50: 6 | J50: maximum | K50: 9 | L50: 9 | M50: 15 | N50: 37.5
A51: L107_289 | B51: DAMSLOOT | C51: Biochemisch zuurstofverbruik na 5d. | D51: 287 | E51: BZV5 | F51: L107_289BZV5 | G51: 90 percentiel | H51: mgO2/L | I51: 6 | J51: maximum | K51: 9 | L51: 9 | M51: 15 | N51: 37.5
A52: L107_296 | B52: VOORSTESLOOT | C52: Biochemisch zuurstofverbruik na 5d. | D52: 287 | E52: BZV5 | F52: L107_296BZV5 | G52: 90 percentiel | H52: mgO2/L | I52: 6 | J52: maximum | K52: 9 | L52: 9 | M52: 15 | N52: 37.5
A53: L107_299 | B53: VONDELBEEK L1 | C53: Biochemisch zuurstofverbruik na 5d. | D53: 287 | E53: BZV5 | F53: L107_299BZV5 | G53: 90 percentiel | H53: mgO2/L | I53: 6 | J53: maximum | K53: 9 | L53: 9 | M53: 15 | N53: 37.5
A54: L107_3 | B54: BROENBEEK | C54: Biochemisch zuurstofverbruik na 5d. | D54: 287 | E54: BZV5 | F54: L107_3BZV5 | G54: 90 percentiel | H54: mgO2/L | I54: 6 | J54: maximum | K54: 9 | L54: 9 | M54: 15 | N54: 37.5
A55: L107_305 | B55: ZELEBEEK | C55: Biochemisch zuurstofverbruik na 5d. | D55: 287 | E55: BZV5 | F55: L107_305BZV5 | G55: 90 percentiel | H55: mgO2/L | I55: 6 | J55: maximum | K55: 9 | L55: 9 | M55: 15 | N55: 37.5
A56: L107_325 | B56: GROTE ASTBEEK | C56: Biochemisch zuurstofverbruik na 5d. | D56: 287 | E56: BZV5 | F56: L107_325BZV5 | G56: 90 percentiel | H56: mgO2/L | I56: 6 | J56: maximum | K56: 9 | L56: 9 | M56: 15 | N56: 37.5
A57: L107_328 | B57: ZUIDELIJKE WATERGANG | C57: Biochemisch zuurstofverbruik na 5d. | D57: 287 | E57: BZV5 | F57: L107_328BZV5 | G57: 90 percentiel | H57: mgO2/L | I57: 6 | J57: maximum | K57: 9 | L57: 9 | M57: 15 | N57: 37.5
A58: L107_329 | B58: BLOKSTRAATBEEK | C58: Biochemisch zuurstofverbruik na 5d. | D58: 287 | E58: BZV5 | F58: L107_329BZV5 | G58: 90 percentiel | H58: mgO2/L | I58: 6 | J58: maximum | K58: 9 | L58: 9 | M58: 15 | N58: 37.5
A59: L107_33 | B59: BOMMELAREVAART | C59: Biochemisch zuurstofverbruik na 5d. | D59: 287 | E59: BZV5 | F59: L107_33BZV5 | G59: 90 percentiel | H59: mgO2/L | I59: 6 | J59: maximum | K59: 9 | L59: 9 | M59: 15 | N59: 37.5
A60: L107_330 | B60: WATERLOOP VAN DE HOGE LANDEN L1 | C60: Biochemisch zuurstofverbruik na 5d. | D60: 287 | E60: BZV5 | F60: L107_330BZV5 | G60: 90 percentiel | H60: mgO2/L | I60: 6 | J60: maximum | K60: 9 | L60: 9 | M60: 15 | N60: 37.5
A61: L107_333 | B61: DOORLOOP | C61: Biochemisch zuurstofverbruik na 5d. | D61: 287 | E61: BZV5 | F61: L107_333BZV5 | G61: 90 percentiel | H61: mgO2/L | I61: 6 | J61: maximum | K61: 9 | L61: 9 | M61: 15 | N61: 37.5
A62: L107_335 | B62: MOLENBEEK - BEVERBEEK | C62: Biochemisch zuurstofverbruik na 5d. | D62: 287 | E62: BZV5 | F62: L107_335BZV5 | G62: 90 percentiel | H62: mgO2/L | I62: 6 | J62: maximum | K62: 9 | L62: 9 | M62: 15 | N62: 37.5
A63: L107_336 | B63: DE RIJT | C63: Biochemisch zuurstofverbruik na 5d. | D63: 287 | E63: BZV5 | F63: L107_336BZV5 | G63: 90 percentiel | H63: mgO2/L | I63: 6 | J63: maximum | K63: 9 | L63: 9 | M63: 15 | N63: 37.5
A64: L107_34 | B64: RINGSLOT | C64: Biochemisch zuurstofverbruik na 5d. | D64: 287 | E64: BZV5 | F64: L107_34BZV5 | G64: 90 percentiel | H64: mgO2/L | I64: 6 | J64: maximum | K64: 9 | L64: 9 | M64: 15 | N64: 37.5
A65: L107_37 | B65: LANGGELEED | C65: Biochemisch zuurstofverbruik na 5d. | D65: 287 | E65: BZV5 | F65: L107_37BZV5 | G65: 90 percentiel | H65: mgO2/L | I65: 6 | J65: maximum | K65: 9 | L65: 9 | M65: 15 | N65: 37.5
A66: L107_4 | B66: KORVERSBEEK | C66: Biochemisch zuurstofverbruik na 5d. | D66: 287 | E66: BZV5 | F66: L107_4BZV5 | G66: 90 percentiel | H66: mgO2/L | I66: 6 | J66: maximum | K66: 9 | L66: 9 | M66: 15 | N66: 37.5
A67: L107_40 | B67: STENENSLUISVAART | C67: Biochemisch zuurstofverbruik na 5d. | D67: 287 | E67: BZV5 | F67: =_xlfn.CONCAT(A67,E67) -> L107_40BZV5 | G67: 90 percentiel | H67: mgO2/L | I67: 6 | J67: maximum | K67: 9 | L67: 9 | M67: 15 | N67: 37.5
A68: L107_403 | B68: MOLENBEEK - NEERPEDEBEEK | C68: Biochemisch zuurstofverbruik na 5d. | D68: 287 | E68: BZV5 | F68: L107_403BZV5 | G68: 90 percentiel | H68: mgO2/L | I68: 6 | J68: maximum | K68: 9 | L68: 9 | M68: 15 | N68: 37.5
A69: L107_404 | B69: LOTBEEK | C69: Biochemisch zuurstofverbruik na 5d. | D69: 287 | E69: BZV5 | F69: L107_404BZV5 | G69: 90 percentiel | H69: mgO2/L | I69: 6 | J69: maximum | K69: 9 | L69: 9 | M69: 15 | N69: 37.5
A70: L107_407 | B70: GROEBENGRACHT | C70: Biochemisch zuurstofverbruik na 5d. | D70: 287 | E70: BZV5 | F70: L107_407BZV5 | G70: 90 percentiel | H70: mgO2/L | I70: 6 | J70: maximum | K70: 9 | L70: 9 | M70: 15 | N70: 37.5
A71: L107_409 | B71: KLEINE MAALBEEK | C71: Biochemisch zuurstofverbruik na 5d. | D71: 287 | E71: BZV5 | F71: L107_409BZV5 | G71: 90 percentiel | H71: mgO2/L | I71: 6 | J71: maximum | K71: 9 | L71: 9 | M71: 15 | N71: 37.5
A72: L107_411 | B72: MOLENBEEK - PARKBEEK | C72: Biochemisch zuurstofverbruik na 5d. | D72: 287 | E72: BZV5 | F72: L107_411BZV5 | G72: 90 percentiel | H72: mgO2/L | I72: 6 | J72: maximum | K72: 9 | L72: 9 | M72: 15 | N72: 37.5
A73: L107_413 | B73: TANGEBEEK | C73: Biochemisch zuurstofverbruik na 5d. | D73: 287 | E73: BZV5 | F73: L107_413BZV5 | G73: 90 percentiel | H73: mgO2/L | I73: 6 | J73: maximum | K73: 9 | L73: 9 | M73: 15 | N73: 37.5
A74: L107_417 | B74: DE GROTE LAAK | C74: Biochemisch zuurstofverbruik na 5d. | D74: 287 | E74: BZV5 | F74: L107_417BZV5 | G74: 90 percentiel | H74: mgO2/L | I74: 6 | J74: maximum | K74: 9 | L74: 9 | M74: 15 | N74: 37.5
A75: L107_418 | B75: MENE | C75: Biochemisch zuurstofverbruik na 5d. | D75: 287 | E75: BZV5 | F75: L107_418BZV5 | G75: 90 percentiel | H75: mgO2/L | I75: 6 | J75: maximum | K75: 9 | L75: 9 | M75: 15 | N75: 37.5
A76: L107_421 | B76: GENOVEVABEEK | C76: Biochemisch zuurstofverbruik na 5d. | D76: 287 | E76: BZV5 | F76: L107_421BZV5 | G76: 90 percentiel | H76: mgO2/L | I76: 6 | J76: maximum | K76: 9 | L76: 9 | M76: 15 | N76: 37.5
A77: L107_422 | B77: 'S HERTOGENGRACHT | C77: Biochemisch zuurstofverbruik na 5d. | D77: 287 | E77: BZV5 | F77: L107_422BZV5 | G77: 90 percentiel | H77: mgO2/L | I77: 6 | J77: maximum | K77: 9 | L77: 9 | M77: 15 | N77: 37.5
A78: L107_423 | B78: BEGIJNEBEEK L1 | C78: Biochemisch zuurstofverbruik na 5d. | D78: 287 | E78: BZV5 | F78: L107_423BZV5 | G78: 90 percentiel | H78: mgO2/L | I78: 6 | J78: maximum | K78: 9 | L78: 9 | M78: 15 | N78: 37.5
A79: L107_424 | B79: VIJVERSLOOP | C79: Biochemisch zuurstofverbruik na 5d. | D79: 287 | E79: BZV5 | F79: L107_424BZV5 | G79: 90 percentiel | H79: mgO2/L | I79: 6 | J79: maximum | K79: 9 | L79: 9 | M79: 15 | N79: 37.5
A80: L107_431 | B80: ST-ODULPHUSBEEK | C80: Biochemisch zuurstofverbruik na 5d. | D80: 287 | E80: BZV5 | F80: L107_431BZV5 | G80: 90 percentiel | H80: mgO2/L | I80: 6 | J80: maximum | K80: 9 | L80: 9 | M80: 15 | N80: 37.5
A81: L107_432 | B81: DORMAALBEEK | C81: Biochemisch zuurstofverbruik na 5d. | D81: 287 | E81: BZV5 | F81: L107_432BZV5 | G81: 90 percentiel | H81: mgO2/L | I81: 6 | J81: maximum | K81: 9 | L81: 9 | M81: 15 | N81: 37.5
A82: L107_433 | B82: BEVERBEEK | C82: Biochemisch zuurstofverbruik na 5d. | D82: 287 | E82: BZV5 | F82: L107_433BZV5 | G82: 90 percentiel | H82: mgO2/L | I82: 6 | J82: maximum | K82: 9 | L82: 9 | M82: 15 | N82: 37.5
A83: L107_434 | B83: SCHEIBEEK | C83: Biochemisch zuurstofverbruik na 5d. | D83: 287 | E83: BZV5 | F83: L107_434BZV5 | G83: 90 percentiel | H83: mgO2/L | I83: 6 | J83: maximum | K83: 9 | L83: 9 | M83: 15 | N83: 37.5
A84: L107_435 | B84: AREBEEK | C84: Biochemisch zuurstofverbruik na 5d. | D84: 287 | E84: BZV5 | F84: L107_435BZV5 | G84: 90 percentiel | H84: mgO2/L | I84: 6 | J84: maximum | K84: 9 | L84: 9 | M84: 15 | N84: 37.5
A85: L107_439 | B85: IJSE L1 | C85: Biochemisch zuurstofverbruik na 5d. | D85: 287 | E85: BZV5 | F85: L107_439BZV5 | G85: 90 percentiel | H85: mgO2/L | I85: 6 | J85: maximum | K85: 9 | L85: 9 | M85: 15 | N85: 37.5
A86: L107_441 | B86: LANGEGRACHT | C86: Biochemisch zuurstofverbruik na 5d. | D86: 287 | E86: BZV5 | F86: L107_441BZV5 | G86: 90 percentiel | H86: mgO2/L | I86: 6 | J86: maximum | K86: 9 | L86: 9 | M86: 15 | N86: 37.5
A87: L107_449 | B87: VOER (BERTEM) | C87: Biochemisch zuurstofverbruik na 5d. | D87: 287 | E87: BZV5 | F87: L107_449BZV5 | G87: 90 percentiel | H87: mgO2/L | I87: 6 | J87: maximum | K87: 9 | L87: 9 | M87: 15 | N87: 37.5
A88: L107_451 | B88: GROTE LAAK - GROTE LOOP - MESTENLOOP | C88: Biochemisch zuurstofverbruik na 5d. | D88: 287 | E88: BZV5 | F88: L107_451BZV5 | G88: 90 percentiel | H88: mgO2/L | I88: 6 | J88: maximum | K88: 9 | L88: 9 | M88: 15 | N88: 37.5
A89: L107_452 | B89: LAARBEEK | C89: Biochemisch zuurstofverbruik na 5d. | D89: 287 | E89: BZV5 | F89: L107_452BZV5 | G89: 90 percentiel | H89: mgO2/L | I89: 6 | J89: maximum | K89: 9 | L89: 9 | M89: 15 | N89: 37.5
A90: L107_453 | B90: ZWARTEBEEK (SCHERPENHEUVEL-ZICHEM) | C90: Biochemisch zuurstofverbruik na 5d. | D90: 287 | E90: BZV5 | F90: L107_453BZV5 | G90: 90 percentiel | H90: mgO2/L | I90: 6 | J90: maximum | K90: 9 | L90: 9 | M90: 15 | N90: 37.5
A91: L107_454 | B91: KLEINEBEEK - RIJSELSESTRAATVLIET | C91: Biochemisch zuurstofverbruik na 5d. | D91: 287 | E91: BZV5 | F91: L107_454BZV5 | G91: 90 percentiel | H91: mgO2/L | I91: 6 | J91: maximum | K91: 9 | L91: 9 | M91: 15 | N91: 37.5
A92: L107_462 | B92: LEMINGSBEEK | C92: Biochemisch zuurstofverbruik na 5d. | D92: 287 | E92: BZV5 | F92: L107_462BZV5 | G92: 90 percentiel | H92: mgO2/L | I92: 6 | J92: maximum | K92: 9 | L92: 9 | M92: 15 | N92: 37.5
A93: L107_463 | B93: AABEEK (MECHELEN) | C93: Biochemisch zuurstofverbruik na 5d. | D93: 287 | E93: BZV5 | F93: L107_463BZV5 | G93: 90 percentiel | H93: mgO2/L | I93: 6 | J93: maximum | K93: 9 | L93: 9 | M93: 15 | N93: 37.5
A94: L107_464 | B94: LEYBEEK | C94: Biochemisch zuurstofverbruik na 5d. | D94: 287 | E94: BZV5 | F94: L107_464BZV5 | G94: 90 percentiel | H94: mgO2/L | I94: 6 | J94: maximum | K94: 9 | L94: 9 | M94: 15 | N94: 37.5
A95: L107_47 | B95: ZARRENBEEK L1 | C95: Biochemisch zuurstofverbruik na 5d. | D95: 287 | E95: BZV5 | F95: L107_47BZV5 | G95: 90 percentiel | H95: mgO2/L | I95: 6 | J95: maximum | K95: 9 | L95: 9 | M95: 15 | N95: 37.5
A96: L107_48 | B96: KANAAL VAN ESEN | C96: Biochemisch zuurstofverbruik na 5d. | D96: 287 | E96: BZV5 | F96: L107_48BZV5 | G96: 90 percentiel | H96: mgO2/L | I96: 6 | J96: maximum | K96: 9 | L96: 9 | M96: 15 | N96: 37.5
A97: L107_5 | B97: BOLLAERTBEEK | C97: Biochemisch zuurstofverbruik na 5d. | D97: 287 | E97: BZV5 | F97: L107_5BZV5 | G97: 90 percentiel | H97: mgO2/L | I97: 6 | J97: maximum | K97: 9 | L97: 9 | M97: 15 | N97: 37.5
A98: L107_56 | B98: REYGAERTSVLIET | C98: Biochemisch zuurstofverbruik na 5d. | D98: 287 | E98: BZV5 | F98: L107_56BZV5 | G98: 90 percentiel | H98: mgO2/L | I98: 6 | J98: maximum | K98: 9 | L98: 9 | M98: 15 | N98: 37.5
A99: L107_6 | B99: DIKKEBUSBEEK | C99: Biochemisch zuurstofverbruik na 5d. | D99: 287 | E99: BZV5 | F99: L107_6BZV5 | G99: 90 percentiel | H99: mgO2/L | I99: 6 | J99: maximum | K99: 9 | L99: 9 | M99: 15 | N99: 37.5
A100: L107_60 | B100: GROOTGELEED | C100: Biochemisch zuurstofverbruik na 5d. | D100: 287 | E100: BZV5 | F100: L107_60BZV5 | G100: 90 percentiel | H100: mgO2/L | I100: 6 | J100: maximum | K100: 9 | L100: 9 | M100: 15 | N100: 37.5
A101: L107_600 | B101: LEYLOOP | C101: Biochemisch zuurstofverbruik na 5d. | D101: 287 | E101: BZV5 | F101: L107_600BZV5 | G101: 90 percentiel | H101: mgO2/L | I101: 6 | J101: maximum | K101: 9 | L101: 9 | M101: 15 | N101: 37.5
A102: L107_601 | B102: DE AA (RAVELS) | C102: Biochemisch zuurstofverbruik na 5d. | D102: 287 | E102: BZV5 | F102: L107_601BZV5 | G102: 90 percentiel | H102: mgO2/L | I102: 6 | J102: maximum | K102: 9 | L102: 9 | M102: 15 | N102: 37.5
A103: L107_602 | B103: BLAUWPUTTEN EN LEILOOP | C103: Biochemisch zuurstofverbruik na 5d. | D103: 287 | E103: BZV5 | F103: L107_602BZV5 | G103: 90 percentiel | H103: mgO2/L | I103: 6 | J103: maximum | K103: 9 | L103: 9 | M103: 15 | N103: 37.5
A104: L107_603 | B104: HEERLESE LOOP | C104: Biochemisch zuurstofverbruik na 5d. | D104: 287 | E104: BZV5 | F104: L107_603BZV5 | G104: 90 percentiel | H104: mgO2/L | I104: 6 | J104: maximum | K104: 9 | L104: 9 | M104: 15 | N104: 37.5
A105: L107_607 | B105: MERKSKE L1 | C105: Biochemisch zuurstofverbruik na 5d. | D105: 287 | E105: BZV5 | F105: L107_607BZV5 | G105: 90 percentiel | H105: mgO2/L | I105: 6 | J105: maximum | K105: 9 | L105: 9 | M105: 15 | N105: 37.5
A106: L107_609 | B106: KLEINE MARK | C106: Biochemisch zuurstofverbruik na 5d. | D106: 287 | E106: BZV5 | F106: L107_609BZV5 | G106: 90 percentiel | H106: mgO2/L | I106: 6 | J106: maximum | K106: 9 | L106: 9 | M106: 15 | N106: 37.5
A107: L107_61 | B107: VAARTDIJKGELEED | C107: Biochemisch zuurstofverbruik na 5d. | D107: 287 | E107: BZV5 | F107: L107_61BZV5 | G107: 90 percentiel | H107: mgO2/L | I107: 6 | J107: maximum | K107: 9 | L107: 9 | M107: 15 | N107: 37.5
A108: L107_610 | B108: MARK L1 | C108: Biochemisch zuurstofverbruik na 5d. | D108: 287 | E108: BZV5 | F108: L107_610BZV5 | G108: 90 percentiel | H108: mgO2/L | I108: 6 | J108: maximum | K108: 9 | L108: 9 | M108: 15 | N108: 37.5
A109: L107_613 | B109: SLUISKENSVIJVER | C109: Biochemisch zuurstofverbruik na 5d. | D109: 287 | E109: BZV5 | F109: L107_613BZV5 | G109: 90 percentiel | H109: mgO2/L | I109: 6 | J109: maximum | K109: 9 | L109: 9 | M109: 15 | N109: 37.5
A110: L107_614 | B110: WEERIJSEBEEK L1 | C110: Biochemisch zuurstofverbruik na 5d. | D110: 287 | E110: BZV5 | F110: L107_614BZV5 | G110: 90 percentiel | H110: mgO2/L | I110: 6 | J110: maximum | K110: 9 | L110: 9 | M110: 15 | N110: 37.5
A111: L107_615 | B111: KLEINE BEEK (WUUSTWEZEL) | C111: Biochemisch zuurstofverbruik na 5d. | D111: 287 | E111: BZV5 | F111: L107_615BZV5 | G111: 90 percentiel | H111: mgO2/L | I111: 6 | J111: maximum | K111: 9 | L111: 9 | M111: 15 | N111: 37.5
A112: L107_629 | B112: KLEIN WILBOEREBEEK | C112: Biochemisch zuurstofverbruik na 5d. | D112: 287 | E112: BZV5 | F112: L107_629BZV5 | G112: 90 percentiel | H112: mgO2/L | I112: 6 | J112: maximum | K112: 9 | L112: 9 | M112: 15 | N112: 37.5
A113: L107_63 | B113: BOERGONJEVAART | C113: Biochemisch zuurstofverbruik na 5d. | D113: 287 | E113: BZV5 | F113: L107_63BZV5 | G113: 90 percentiel | H113: mgO2/L | I113: 6 | J113: maximum | K113: 9 | L113: 9 | M113: 15 | N113: 37.5
A114: L107_631 | B114: MOLENBEEK - BOLLAAK L1 | C114: Biochemisch zuurstofverbruik na 5d. | D114: 287 | E114: BZV5 | F114: L107_631BZV5 | G114: 90 percentiel | H114: mgO2/L | I114: 6 | J114: maximum | K114: 9 | L114: 9 | M114: 15 | N114: 37.5
A115: L107_632 | B115: DE DELFTE BEEK | C115: Biochemisch zuurstofverbruik na 5d. | D115: 287 | E115: BZV5 | F115: L107_632BZV5 | G115: 90 percentiel | H115: mgO2/L | I115: 6 | J115: maximum | K115: 9 | L115: 9 | M115: 15 | N115: 37.5
A116: L107_633 | B116: BOSBEEK - DIEPTELOOP | C116: Biochemisch zuurstofverbruik na 5d. | D116: 287 | E116: BZV5 | F116: L107_633BZV5 | G116: 90 percentiel | H116: mgO2/L | I116: 6 | J116: maximum | K116: 9 | L116: 9 | M116: 15 | N116: 37.5
A117: L107_638 | B117: GROTE CALIE | C117: Biochemisch zuurstofverbruik na 5d. | D117: 287 | E117: BZV5 | F117: L107_638BZV5 | G117: 90 percentiel | H117: mgO2/L | I117: 6 | J117: maximum | K117: 9 | L117: 9 | M117: 15 | N117: 37.5
A118: L107_640 | B118: DE AA - NATTENLOOP | C118: Biochemisch zuurstofverbruik na 5d. | D118: 287 | E118: BZV5 | F118: L107_640BZV5 | G118: 90 percentiel | H118: mgO2/L | I118: 6 | J118: maximum | K118: 9 | L118: 9 | M118: 15 | N118: 37.5
A119: L107_644 | B119: ITTERBEEK (DUFFEL) | C119: Biochemisch zuurstofverbruik na 5d. | D119: 287 | E119: BZV5 | F119: L107_644BZV5 | G119: 90 percentiel | H119: mgO2/L | I119: 6 | J119: maximum | K119: 9 | L119: 9 | M119: 15 | N119: 37.5
A120: L107_648 | B120: BRUINBEEK | C120: Biochemisch zuurstofverbruik na 5d. | D120: 287 | E120: BZV5 | F120: L107_648BZV5 | G120: 90 percentiel | H120: mgO2/L | I120: 6 | J120: maximum | K120: 9 | L120: 9 | M120: 15 | N120: 37.5
A121: L107_650 | B121: REEHAGENBEEK | C121: Biochemisch zuurstofverbruik na 5d. | D121: 287 | E121: BZV5 | F121: L107_650BZV5 | G121: 90 percentiel | H121: mgO2/L | I121: 6 | J121: maximum | K121: 9 | L121: 9 | M121: 15 | N121: 37.5
A122: L107_654 | B122: LARUMSE LOOP | C122: Biochemisch zuurstofverbruik na 5d. | D122: 287 | E122: BZV5 | F122: L107_654BZV5 | G122: 90 percentiel | H122: mgO2/L | I122: 6 | J122: maximum | K122: 9 | L122: 9 | M122: 15 | N122: 37.5
A123: L107_655 | B123: DALEMANSLOOP | C123: Biochemisch zuurstofverbruik na 5d. | D123: 287 | E123: BZV5 | F123: L107_655BZV5 | G123: 90 percentiel | H123: mgO2/L | I123: 6 | J123: maximum | K123: 9 | L123: 9 | M123: 15 | N123: 37.5
A124: L107_656 | B124: BEGGELBEEK | C124: Biochemisch zuurstofverbruik na 5d. | D124: 287 | E124: BZV5 | F124: L107_656BZV5 | G124: 90 percentiel | H124: mgO2/L | I124: 6 | J124: maximum | K124: 9 | L124: 9 | M124: 15 | N124: 37.5
A125: L107_66 | B125: KERKBEEK | C125: Biochemisch zuurstofverbruik na 5d. | D125: 287 | E125: BZV5 | F125: L107_66BZV5 | G125: 90 percentiel | H125: mgO2/L | I125: 6 | J125: maximum | K125: 9 | L125: 9 | M125: 15 | N125: 37.5
A126: L107_664 | B126: MOLENBEEK - ZIJP | C126: Biochemisch zuurstofverbruik na 5d. | D126: 287 | E126: BZV5 | F126: L107_664BZV5 | G126: 90 percentiel | H126: mgO2/L | I126: 6 | J126: maximum | K126: 9 | L126: 9 | M126: 15 | N126: 37.5
A127: L107_665 | B127: BOUWBEEK | C127: Biochemisch zuurstofverbruik na 5d. | D127: 287 | E127: BZV5 | F127: L107_665BZV5 | G127: 90 percentiel | H127: mgO2/L | I127: 6 | J127: maximum | K127: 9 | L127: 9 | M127: 15 | N127: 37.5
A128: L107_67 | B128: LIJSTERBEEK | C128: Biochemisch zuurstofverbruik na 5d. | D128: 287 | E128: BZV5 | F128: L107_67BZV5 | G128: 90 percentiel | H128: mgO2/L | I128: 6 | J128: maximum | K128: 9 | L128: 9 | M128: 15 | N128: 37.5
A129: L107_677 | B129: DIEPE BEEK | C129: Biochemisch zuurstofverbruik na 5d. | D129: 287 | E129: BZV5 | F129: L107_677BZV5 | G129: 90 percentiel | H129: mgO2/L | I129: 6 | J129: maximum | K129: 9 | L129: 9 | M129: 15 | N129: 37.5
A130: L107_681 | B130: KOUDE BEEK | C130: Biochemisch zuurstofverbruik na 5d. | D130: 287 | E130: BZV5 | F130: L107_681BZV5 | G130: 90 percentiel | H130: mgO2/L | I130: 6 | J130: maximum | K130: 9 | L130: 9 | M130: 15 | N130: 37.5
A131: L107_684 | B131: SCHOON SCHIJN | C131: Biochemisch zuurstofverbruik na 5d. | D131: 287 | E131: BZV5 | F131: =_xlfn.CONCAT(A131,E131) -> L107_684BZV5 | G131: 90 percentiel | H131: mgO2/L | I131: 6 | J131: maximum | K131: 9 | L131: 9 | M131: 15 | N131: 37.5
A132: L107_688 | B132: LAARSE BEEK | C132: Biochemisch zuurstofverbruik na 5d. | D132: 287 | E132: BZV5 | F132: L107_688BZV5 | G132: 90 percentiel | H132: mgO2/L | I132: 6 | J132: maximum | K132: 9 | L132: 9 | M132: 15 | N132: 37.5
A133: L107_695 | B133: VARENDONKSE BEEK | C133: Biochemisch zuurstofverbruik na 5d. | D133: 287 | E133: BZV5 | F133: L107_695BZV5 | G133: 90 percentiel | H133: mgO2/L | I133: 6 | J133: maximum | K133: 9 | L133: 9 | M133: 15 | N133: 37.5
A134: L107_702 | B134: MILLEGEMLOOP | C134: Biochemisch zuurstofverbruik na 5d. | D134: 287 | E134: BZV5 | F134: L107_702BZV5 | G134: 90 percentiel | H134: mgO2/L | I134: 6 | J134: maximum | K134: 9 | L134: 9 | M134: 15 | N134: 37.5
A135: L107_705 | B135: SCHEPPELIJKE NETE | C135: Biochemisch zuurstofverbruik na 5d. | D135: 287 | E135: BZV5 | F135: L107_705BZV5 | G135: 90 percentiel | H135: mgO2/L | I135: 6 | J135: maximum | K135: 9 | L135: 9 | M135: 15 | N135: 37.5
A136: L107_706 | B136: MOLSE NETE L1 | C136: Biochemisch zuurstofverbruik na 5d. | D136: 287 | E136: BZV5 | F136: L107_706BZV5 | G136: 90 percentiel | H136: mgO2/L | I136: 6 | J136: maximum | K136: 9 | L136: 9 | M136: 15 | N136: 37.5
A137: L107_708 | B137: GROTE NETE L1 | C137: Biochemisch zuurstofverbruik na 5d. | D137: 287 | E137: BZV5 | F137: L107_708BZV5 | G137: 90 percentiel | H137: mgO2/L | I137: 6 | J137: maximum | K137: 9 | L137: 9 | M137: 15 | N137: 37.5
A138: L107_722 | B138: WAMP L1 | C138: Biochemisch zuurstofverbruik na 5d. | D138: 287 | E138: BZV5 | F138: L107_722BZV5 | G138: 90 percentiel | H138: mgO2/L | I138: 6 | J138: maximum | K138: 9 | L138: 9 | M138: 15 | N138: 37.5
A139: L107_723 | B139: RODE LOOP | C139: Biochemisch zuurstofverbruik na 5d. | D139: 287 | E139: BZV5 | F139: L107_723BZV5 | G139: 90 percentiel | H139: mgO2/L | I139: 6 | J139: maximum | K139: 9 | L139: 9 | M139: 15 | N139: 37.5
A140: L107_729 | B140: STAPKENSLOOP | C140: Biochemisch zuurstofverbruik na 5d. | D140: 287 | E140: BZV5 | F140: L107_729BZV5 | G140: 90 percentiel | H140: mgO2/L | I140: 6 | J140: maximum | K140: 9 | L140: 9 | M140: 15 | N140: 37.5
A141: L107_735 | B141: GESTELBEEK | C141: Biochemisch zuurstofverbruik na 5d. | D141: 287 | E141: BZV5 | F141: L107_735BZV5 | G141: 90 percentiel | H141: mgO2/L | I141: 6 | J141: maximum | K141: 9 | L141: 9 | M141: 15 | N141: 37.5
A142: L107_740 | B142: BERGEBEEK | C142: Biochemisch zuurstofverbruik na 5d. | D142: 287 | E142: BZV5 | F142: L107_740BZV5 | G142: 90 percentiel | H142: mgO2/L | I142: 6 | J142: maximum | K142: 9 | L142: 9 | M142: 15 | N142: 37.5
A143: L107_741 | B143: SPILLEBEEK | C143: Biochemisch zuurstofverbruik na 5d. | D143: 287 | E143: BZV5 | F143: L107_741BZV5 | G143: 90 percentiel | H143: mgO2/L | I143: 6 | J143: maximum | K143: 9 | L143: 9 | M143: 15 | N143: 37.5
A144: L107_742 | B144: PLATTE BEEK | C144: Biochemisch zuurstofverbruik na 5d. | D144: 287 | E144: BZV5 | F144: L107_742BZV5 | G144: 90 percentiel | H144: mgO2/L | I144: 6 | J144: maximum | K144: 9 | L144: 9 | M144: 15 | N144: 37.5
A145: L107_78 | B145: DEVEBEEK L1 | C145: Biochemisch zuurstofverbruik na 5d. | D145: 287 | E145: BZV5 | F145: L107_78BZV5 | G145: 90 percentiel | H145: mgO2/L | I145: 6 | J145: maximum | K145: 9 | L145: 9 | M145: 15 | N145: 37.5
A146: L107_8 | B146: IEPERLEE | C146: Biochemisch zuurstofverbruik na 5d. | D146: 287 | E146: BZV5 | F146: L107_8BZV5 | G146: 90 percentiel | H146: mgO2/L | I146: 6 | J146: maximum | K146: 9 | L146: 9 | M146: 15 | N146: 37.5
A147: L107_809 | B147: KLEINE HERK L1 | C147: Biochemisch zuurstofverbruik na 5d. | D147: 287 | E147: BZV5 | F147: L107_809BZV5 | G147: 90 percentiel | H147: mgO2/L | I147: 6 | J147: maximum | K147: 9 | L147: 9 | M147: 15 | N147: 37.5
A148: L107_810 | B148: WINTERBEEK (KORTESSEM) | C148: Biochemisch zuurstofverbruik na 5d. | D148: 287 | E148: BZV5 | F148: L107_810BZV5 | G148: 90 percentiel | H148: mgO2/L | I148: 6 | J148: maximum | K148: 9 | L148: 9 | M148: 15 | N148: 37.5
A149: L107_812 | B149: MOMBEEK L1 | C149: Biochemisch zuurstofverbruik na 5d. | D149: 287 | E149: BZV5 | F149: L107_812BZV5 | G149: 90 percentiel | H149: mgO2/L | I149: 6 | J149: maximum | K149: 9 | L149: 9 | M149: 15 | N149: 37.5
A150: L107_814 | B150: STEENLAAK | C150: Biochemisch zuurstofverbruik na 5d. | D150: 287 | E150: BZV5 | F150: L107_814BZV5 | G150: 90 percentiel | H150: mgO2/L | I150: 6 | J150: maximum | K150: 9 | L150: 9 | M150: 15 | N150: 37.5
A151: L107_82 | B151: BABILLEBEEK | C151: Biochemisch zuurstofverbruik na 5d. | D151: 287 | E151: BZV5 | F151: L107_82BZV5 | G151: 90 percentiel | H151: mgO2/L | I151: 6 | J151: maximum | K151: 9 | L151: 9 | M151: 15 | N151: 37.5
A152: L107_824 | B152: ROELBEEK | C152: Biochemisch zuurstofverbruik na 5d. | D152: 287 | E152: BZV5 | F152: L107_824BZV5 | G152: 90 percentiel | H152: mgO2/L | I152: 6 | J152: maximum | K152: 9 | L152: 9 | M152: 15 | N152: 37.5
A153: L107_83 | B153: ROOBEEK | C153: Biochemisch zuurstofverbruik na 5d. | D153: 287 | E153: BZV5 | F153: L107_83BZV5 | G153: 90 percentiel | H153: mgO2/L | I153: 6 | J153: maximum | K153: 9 | L153: 9 | M153: 15 | N153: 37.5
A154: L107_836 | B154: LAAMBEEK | C154: Biochemisch zuurstofverbruik na 5d. | D154: 287 | E154: BZV5 | F154: L107_836BZV5 | G154: 90 percentiel | H154: mgO2/L | I154: 6 | J154: maximum | K154: 9 | L154: 9 | M154: 15 | N154: 37.5
A155: L107_839 | B155: ZONDERIKBEEK | C155: Biochemisch zuurstofverbruik na 5d. | D155: 287 | E155: BZV5 | F155: L107_839BZV5 | G155: 90 percentiel | H155: mgO2/L | I155: 6 | J155: maximum | K155: 9 | L155: 9 | M155: 15 | N155: 37.5
A156: L107_84 | B156: KROMMEBEEK | C156: Biochemisch zuurstofverbruik na 5d. | D156: 287 | E156: BZV5 | F156: L107_84BZV5 | G156: 90 percentiel | H156: mgO2/L | I156: 6 | J156: maximum | K156: 9 | L156: 9 | M156: 15 | N156: 37.5
A157: L107_846 | B157: KAATSBEEK | C157: Biochemisch zuurstofverbruik na 5d. | D157: 287 | E157: BZV5 | F157: L107_846BZV5 | G157: 90 percentiel | H157: mgO2/L | I157: 6 | J157: maximum | K157: 9 | L157: 9 | M157: 15 | N157: 37.5
A158: L107_847 | B158: WINTERBEEK (BILZEN) | C158: Biochemisch zuurstofverbruik na 5d. | D158: 287 | E158: BZV5 | F158: L107_847BZV5 | G158: 90 percentiel | H158: mgO2/L | I158: 6 | J158: maximum | K158: 9 | L158: 9 | M158: 15 | N158: 37.5
A159: L107_848 | B159: DEMER L1 | C159: Biochemisch zuurstofverbruik na 5d. | D159: 287 | E159: BZV5 | F159: L107_848BZV5 | G159: 90 percentiel | H159: mgO2/L | I159: 6 | J159: maximum | K159: 9 | L159: 9 | M159: 15 | N159: 37.5
A160: L107_852 | B160: MUNSTERBEEK L1 | C160: Biochemisch zuurstofverbruik na 5d. | D160: 287 | E160: BZV5 | F160: L107_852BZV5 | G160: 90 percentiel | H160: mgO2/L | I160: 6 | J160: maximum | K160: 9 | L160: 9 | M160: 15 | N160: 37.5
A161: L107_853 | B161: ZUTENDAALBEEK | C161: Biochemisch zuurstofverbruik na 5d. | D161: 287 | E161: BZV5 | F161: L107_853BZV5 | G161: 90 percentiel | H161: mgO2/L | I161: 6 | J161: maximum | K161: 9 | L161: 9 | M161: 15 | N161: 37.5
A162: L107_854 | B162: BOLLISENBEEK | C162: Biochemisch zuurstofverbruik na 5d. | D162: 287 | E162: BZV5 | F162: L107_854BZV5 | G162: 90 percentiel | H162: mgO2/L | I162: 6 | J162: maximum | K162: 9 | L162: 9 | M162: 15 | N162: 37.5
A163: L107_855 | B163: DOMMEL L1 | C163: Biochemisch zuurstofverbruik na 5d. | D163: 287 | E163: BZV5 | F163: L107_855BZV5 | G163: 90 percentiel | H163: mgO2/L | I163: 6 | J163: maximum | K163: 9 | L163: 9 | M163: 15 | N163: 37.5
A164: L107_856 | B164: HOLVENLOOP | C164: Biochemisch zuurstofverbruik na 5d. | D164: 287 | E164: BZV5 | F164: L107_856BZV5 | G164: 90 percentiel | H164: mgO2/L | I164: 6 | J164: maximum | K164: 9 | L164: 9 | M164: 15 | N164: 37.5
A165: L107_857 | B165: EINDERGATLOOP | C165: Biochemisch zuurstofverbruik na 5d. | D165: 287 | E165: BZV5 | F165: L107_857BZV5 | G165: 90 percentiel | H165: mgO2/L | I165: 6 | J165: maximum | K165: 9 | L165: 9 | M165: 15 | N165: 37.5
A166: L107_858 | B166: WARMBEEK L1 | C166: Biochemisch zuurstofverbruik na 5d. | D166: 287 | E166: BZV5 | F166: L107_858BZV5 | G166: 90 percentiel | H166: mgO2/L | I166: 6 | J166: maximum | K166: 9 | L166: 9 | M166: 15 | N166: 37.5
A167: L107_859 | B167: PRINSENLOOP | C167: Biochemisch zuurstofverbruik na 5d. | D167: 287 | E167: BZV5 | F167: L107_859BZV5 | G167: 90 percentiel | H167: mgO2/L | I167: 6 | J167: maximum | K167: 9 | L167: 9 | M167: 15 | N167: 37.5
A168: L107_861 | B168: ABEEK L1 | C168: Biochemisch zuurstofverbruik na 5d. | D168: 287 | E168: BZV5 | F168: L107_861BZV5 | G168: 90 percentiel | H168: mgO2/L | I168: 6 | J168: maximum | K168: 9 | L168: 9 | M168: 15 | N168: 37.5
A169: L107_866 | B169: LOSSING L1 | C169: Biochemisch zuurstofverbruik na 5d. | D169: 287 | E169: BZV5 | F169: L107_866BZV5 | G169: 90 percentiel | H169: mgO2/L | I169: 6 | J169: maximum | K169: 9 | L169: 9 | M169: 15 | N169: 37.5
A170: L107_869 | B170: SOERBEEK | C170: Biochemisch zuurstofverbruik na 5d. | D170: 287 | E170: BZV5 | F170: L107_869BZV5 | G170: 90 percentiel | H170: mgO2/L | I170: 6 | J170: maximum | K170: 9 | L170: 9 | M170: 15 | N170: 37.5
A171: L107_876 | B171: BOSBEEK L1 | C171: Biochemisch zuurstofverbruik na 5d. | D171: 287 | E171: BZV5 | F171: L107_876BZV5 | G171: 90 percentiel | H171: mgO2/L | I171: 6 | J171: maximum | K171: 9 | L171: 9 | M171: 15 | N171: 37.5
A172: L107_879 | B172: VRIETSELBEEK - OUDE MAAS (DILSEN) | C172: Biochemisch zuurstofverbruik na 5d. | D172: 287 | E172: BZV5 | F172: L107_879BZV5 | G172: 90 percentiel | H172: mgO2/L | I172: 6 | J172: maximum | K172: 9 | L172: 9 | M172: 15 | N172: 37.5
A173: L107_883 | B173: ZIEPBEEK | C173: Biochemisch zuurstofverbruik na 5d. | D173: 287 | E173: BZV5 | F173: L107_883BZV5 | G173: 90 percentiel | H173: mgO2/L | I173: 6 | J173: maximum | K173: 9 | L173: 9 | M173: 15 | N173: 37.5
A174: L107_885 | B174: HEESWATER | C174: Biochemisch zuurstofverbruik na 5d. | D174: 287 | E174: BZV5 | F174: L107_885BZV5 | G174: 90 percentiel | H174: mgO2/L | I174: 6 | J174: maximum | K174: 9 | L174: 9 | M174: 15 | N174: 37.5
A175: L107_890 | B175: BEEK - DE BUTH (TONGEREN) | C175: Biochemisch zuurstofverbruik na 5d. | D175: 287 | E175: BZV5 | F175: L107_890BZV5 | G175: 90 percentiel | H175: mgO2/L | I175: 6 | J175: maximum | K175: 9 | L175: 9 | M175: 15 | N175: 37.5
A176: L107_891 | B176: VOER (VOEREN) | C176: Biochemisch zuurstofverbruik na 5d. | D176: 287 | E176: BZV5 | F176: L107_891BZV5 | G176: 90 percentiel | H176: mgO2/L | I176: 6 | J176: maximum | K176: 9 | L176: 9 | M176: 15 | N176: 37.5
A177: L107_892 | B177: BEEK (VOEREN) | C177: Biochemisch zuurstofverbruik na 5d. | D177: 287 | E177: BZV5 | F177: L107_892BZV5 | G177: 90 percentiel | H177: mgO2/L | I177: 6 | J177: maximum | K177: 9 | L177: 9 | M177: 15 | N177: 37.5
A178: L107_893 | B178: GULP | C178: Biochemisch zuurstofverbruik na 5d. | D178: 287 | E178: BZV5 | F178: L107_893BZV5 | G178: 90 percentiel | H178: mgO2/L | I178: 6 | J178: maximum | K178: 9 | L178: 9 | M178: 15 | N178: 37.5
A179: L107_91 | B179: PLAATSBEEK | C179: Biochemisch zuurstofverbruik na 5d. | D179: 287 | E179: BZV5 | F179: L107_91BZV5 | G179: 90 percentiel | H179: mgO2/L | I179: 6 | J179: maximum | K179: 9 | L179: 9 | M179: 15 | N179: 37.5
A180: L107_92 | B180: MAALBEEK (LEIEBEKKEN) | C180: Biochemisch zuurstofverbruik na 5d. | D180: 287 | E180: BZV5 | F180: L107_92BZV5 | G180: 90 percentiel | H180: mgO2/L | I180: 6 | J180: maximum | K180: 9 | L180: 9 | M180: 15 | N180: 37.5
A181: L107_97 | B181: KASSELRIJBEEK - WEST | C181: Biochemisch zuurstofverbruik na 5d. | D181: 287 | E181: BZV5 | F181: L107_97BZV5 | G181: 90 percentiel | H181: mgO2/L | I181: 6 | J181: maximum | K181: 9 | L181: 9 | M181: 15 | N181: 37.5
A182: L107_98 | B182: GAVERBEEK | C182: Biochemisch zuurstofverbruik na 5d. | D182: 287 | E182: BZV5 | F182: L107_98BZV5 | G182: 90 percentiel | H182: mgO2/L | I182: 6 | J182: maximum | K182: 9 | L182: 9 | M182: 15 | N182: 37.5
A183: L110_1100 | B183: ZILVERBEEK | C183: Biochemisch zuurstofverbruik na 5d. | D183: 287 | E183: BZV5 | F183: L110_1100BZV5 | G183: 90 percentiel | H183: mgO2/L | I183: 6 | J183: maximum | K183: 9 | L183: 9 | M183: 15 | N183: 37.5
A184: L111_1001 | B184: MARTJEVAART - LEKKERBOTERBEEK | C184: Biochemisch zuurstofverbruik na 5d. | D184: 287 | E184: BZV5 | F184: L111_1001BZV5 | G184: 90 percentiel | H184: mgO2/L | I184: 6 | J184: maximum | K184: 9 | L184: 9 | M184: 15 | N184: 37.5
A185: L111_1003 | B185: GELUWEBEEK | C185: Biochemisch zuurstofverbruik na 5d. | D185: 287 | E185: BZV5 | F185: L111_1003BZV5 | G185: 90 percentiel | H185: mgO2/L | I185: 6 | J185: maximum | K185: 9 | L185: 9 | M185: 15 | N185: 37.5
A186: L111_1004 | B186: RIJTGRACHT | C186: Biochemisch zuurstofverbruik na 5d. | D186: 287 | E186: BZV5 | F186: L111_1004BZV5 | G186: 90 percentiel | H186: mgO2/L | I186: 6 | J186: maximum | K186: 9 | L186: 9 | M186: 15 | N186: 37.5
A187: L111_1005 | B187: KALSIJDEADER | C187: Biochemisch zuurstofverbruik na 5d. | D187: 287 | E187: BZV5 | F187: L111_1005BZV5 | G187: 90 percentiel | H187: mgO2/L | I187: 6 | J187: maximum | K187: 9 | L187: 9 | M187: 15 | N187: 37.5
A188: L111_1006 | B188: HOOFDSLOOT | C188: Biochemisch zuurstofverbruik na 5d. | D188: 287 | E188: BZV5 | F188: L111_1006BZV5 | G188: 90 percentiel | H188: mgO2/L | I188: 6 | J188: maximum | K188: 9 | L188: 9 | M188: 15 | N188: 37.5
A189: L111_1007 | B189: STEGERSZWIN | C189: Biochemisch zuurstofverbruik na 5d. | D189: 287 | E189: BZV5 | F189: L111_1007BZV5 | G189: 90 percentiel | H189: mgO2/L | I189: 6 | J189: maximum | K189: 9 | L189: 9 | M189: 15 | N189: 37.5
A190: L111_1010 | B190: OOSTKERKEVAART | C190: Biochemisch zuurstofverbruik na 5d. | D190: 287 | E190: BZV5 | F190: L111_1010BZV5 | G190: 90 percentiel | H190: mgO2/L | I190: 6 | J190: maximum | K190: 9 | L190: 9 | M190: 15 | N190: 37.5
A191: L111_1011 | B191: BOEREKREEK | C191: Biochemisch zuurstofverbruik na 5d. | D191: 287 | E191: BZV5 | F191: L111_1011BZV5 | G191: 90 percentiel | H191: mgO2/L | I191: 6 | J191: maximum | K191: 9 | L191: 9 | M191: 15 | N191: 37.5
A192: L111_1014 | B192: MEREBEEK | C192: Biochemisch zuurstofverbruik na 5d. | D192: 287 | E192: BZV5 | F192: L111_1014BZV5 | G192: 90 percentiel | H192: mgO2/L | I192: 6 | J192: maximum | K192: 9 | L192: 9 | M192: 15 | N192: 37.5
A193: L111_1015 | B193: OUDE AVAART | C193: Biochemisch zuurstofverbruik na 5d. | D193: 287 | E193: BZV5 | F193: L111_1015BZV5 | G193: 90 percentiel | H193: mgO2/L | I193: 6 | J193: maximum | K193: 9 | L193: 9 | M193: 15 | N193: 37.5
A194: L111_1016 | B194: WANTEBEEK | C194: Biochemisch zuurstofverbruik na 5d. | D194: 287 | E194: BZV5 | F194: L111_1016BZV5 | G194: 90 percentiel | H194: mgO2/L | I194: 6 | J194: maximum | K194: 9 | L194: 9 | M194: 15 | N194: 37.5
A195: L111_1018 | B195: LEEBEEK | C195: Biochemisch zuurstofverbruik na 5d. | D195: 287 | E195: BZV5 | F195: =_xlfn.CONCAT(A195,E195) -> L111_1018BZV5 | G195: 90 percentiel | H195: mgO2/L | I195: 6 | J195: maximum | K195: 9 | L195: 9 | M195: 15 | N195: 37.5
A196: L111_1019 | B196: MOLENBEEK - MARKEBEEK | C196: Biochemisch zuurstofverbruik na 5d. | D196: 287 | E196: BZV5 | F196: L111_1019BZV5 | G196: 90 percentiel | H196: mgO2/L | I196: 6 | J196: maximum | K196: 9 | L196: 9 | M196: 15 | N196: 37.5
A197: L111_1020 | B197: OOSSEBEEK | C197: Biochemisch zuurstofverbruik na 5d. | D197: 287 | E197: BZV5 | F197: L111_1020BZV5 | G197: 90 percentiel | H197: mgO2/L | I197: 6 | J197: maximum | K197: 9 | L197: 9 | M197: 15 | N197: 37.5
A198: L111_1021 | B198: ZWALMBEEK | C198: Biochemisch zuurstofverbruik na 5d. | D198: 287 | E198: BZV5 | F198: L111_1021BZV5 | G198: 90 percentiel | H198: mgO2/L | I198: 6 | J198: maximum | K198: 9 | L198: 9 | M198: 15 | N198: 37.5
A199: L111_1022 | B199: MOLENBEEK (RONSE) | C199: Biochemisch zuurstofverbruik na 5d. | D199: 287 | E199: BZV5 | F199: L111_1022BZV5 | G199: 90 percentiel | H199: mgO2/L | I199: 6 | J199: maximum | K199: 9 | L199: 9 | M199: 15 | N199: 37.5
A200: L111_1024 | B200: BAVEGEMSE BEEK | C200: Biochemisch zuurstofverbruik na 5d. | D200: 287 | E200: BZV5 | F200: L111_1024BZV5 | G200: 90 percentiel | H200: mgO2/L | I200: 6 | J200: maximum | K200: 9 | L200: 9 | M200: 15 | N200: 37.5
... 3796 more rows

Sheet Criteria volgens stofcategorie (hidden)
A1: Cat 1 | B1: Milieuvoordeel primeert sterk tov haalbaarheid | H1: Bijkomende kostprijs tov huidige WZ | L1: Kostprijs technologie (EUR/m³) | P1: Kengetallen BBT - omzet | T1: Kengetallen BBT - toegevoegde waarde | X1: Kengetallen BBT - EBIDTA | AB1: BBT/meer dan BBT
H2: Aanvaardbaar | I2: Intermediair | K2: Niet aanvaardbaar | P2: betaalbaar | Q2: Intermediair | S2: Niet betaalbaar | T2: betaalbaar | U2: Intermediair | W2: Niet betaalbaar | X2: betaalbaar | Y2: Intermediair | AA2: Niet betaalbaar
A3: ENKEL VMM - aanpassing criteria (pas gele cellen aan) | F3: Stof x impactcategorie | G3: Stof x impactcategorie weergave | H3: Ondergrens | I3: ondergrens | J3: bovengrens | K3: bovengrens | L3: 1 | M3: 2 | N3: 3 | O3: 4 | P3: ondergrens | Q3: Ondergrens | R3: bovengrens | S3: ondergrens | T3: ondergrens | U3: Ondergrens | V3: bovengrens | W3: Bovengrens | X3: ondergrens | Y3: Ondergrens | Z3: bovengrens | AA3: Bovengrens
F4: 1 | G4: 1 | H4: =B7 -> 0.5 | I4: =B8 -> 0.5 | J4: =C8 -> 1 | K4: =B9 -> 1 | L4: =B15 -> 20 | M4: =B16 -> 12 | N4: =B17 -> 3 | O4: =B18 -> te bekijken | P4: =B23 -> 0.005 | Q4: =P4 -> 0.005 | R4: =C23 -> 0.05 | S4: =D23 -> 0.05 | T4: =B24 -> 0.02 | U4: =T4 -> 0.02 | V4: =C24 -> 0.5 | W4: =D24 -> 0.5 | X4: =B25 -> 0.1 | Y4: =X4 -> 0.1 | Z4: =C25 -> 1 | AA4: =D25 -> 1 | AB4: =A29 -> Bovenste kostencurve
A5: Bijkomende kostprijs tov huidige WZ | F5: 2 | G5: 1 | H5: =B38 -> 0.5 | I5: =B39 -> 0.5 | J5: =C39 -> 1 | K5: =B40 -> 1 | L5: =B46 -> 20 | M5: =B47 -> 12 | N5: =B48 -> 3 | O5: =B49 -> te bekijken | P5: =B54 -> 0.005 | Q5: =P5 -> 0.005 | R5: =C54 -> 0.05 | S5: =D54 -> 0.05 | T5: =B55 -> 0.02 | U5: =T5 -> 0.02 | V5: =C55 -> 0.5 | W5: =D55 -> 0.5 | X5: =B56 -> 0.1 | Y5: =X5 -> 0.1 | Z5: =C56 -> 1 | AA5: =D56 -> 1 | AB5: =A60 -> Bovenste kostencureve
F6: 3 | G6: 2 | H6: =B69 -> 0.5 | I6: =B70 -> 0.5 | J6: =C70 -> 1 | K6: =B71 -> 1 | L6: =B77 -> 20 | M6: =B78 -> 12 | N6: =B79 -> 3 | O6: =B80 -> te bekijken | P6: =B85 -> 0.005 | Q6: 0.005 | R6: =C85 -> 0.05 | S6: =D85 -> 0.05 | T6: =B86 -> 0.02 | U6: 0.02 | V6: =C86 -> 0.5 | W6: =D86 -> 0.5 | X6: =B87 -> 0.1 | Y6: 0.1 | Z6: =C87 -> 1 | AA6: =D87 -> 1 | AB6: =A91 -> Onderste kostencurve
